Workbook

Sheet Documentation
A1: Documentation
A2: Introduction
B3: This worksheet shows results based on your input data for 100 tests or simulations with the returns and inflation for each year based on the historical returns of a randomly selected year between 1928 and 2010.
B4: Pressing Ctrl r will show another 100 simulations.
B5: Read the worksheet of Assumptions. All formulas are visible and not protected so that if you are familiar with Excel you can see how numbers are derived and create your own adaptations.
A6: Entering Data and Using the Worksheets
B7: Most users will access three or four worksheets.
C8: First enter data on real estate you own in the Real Estate worksheet. Enter zeros if you want to ignore your homestead in these projections.
C9: The Main worksheet is for the rest of your data entry and shows the implications.
C10: The Print Main worksheet is identical to the Main worksheet except being formatted for printing. Any further identifying entry or comments are optional.
C11: The Fixed Rate Proj worksheet gives results for fixed annual rates of return. You need to complete the data on this worksheet for the fixed return line on the charts to be accurate. See the Assumptions worksheet regarding fixed returns.
C12: The Goal Seek worksheet is useful for finding out what fixed rate of return is necessary to reach a specific goal. The compounding is monthly.
C13: Most of the rest of the worksheet perform calculations or contain historical source data.
B14: The grey cells with bold print are for data entry. Depending on your circumstances, you may need to enter or overwrite formulas in other cells.
B15: To update the charts and some other columns, a sort is necessary after each recalculation. Pressing Control r sets recalculation to Manual and then does the sort so that the charts match the numbers. When you exit the spreadsheet, turn recalculation back to Automatic by going to Tools, Options, Calculation.
B16: To change the time span for the historical sources, go to worksheet Random Years, ^H and do a global replace to the desired time frame. Better results are achieved by using 1943-2005, as 3 of the 5 years with < -15% returns were before 1938.
B17: To get results and chart for say 1,000 tests of the same parameters, copy and past the results for the desired year(s) from multiple calculations in worksheet Random Yr Returns into another worksheet. See example in worksheet 1000-20Yr.
B18: You may change the conditional color formatting by marking the desired column or section and then going to Format, Conditional Formatting.
B19: Further documentation is on each worksheet.

Sheet Assumptions
B1: Some Assumptions of the Model
B3: The formulas have been checked and rechecked. They are assumed to be accurate, but there may be errors.
B4: Many people attend to daily financial affairs, but have little idea as to whether and how they will achieve longer-term financial security. The model is a tool to help in doing likely future projections.
B5: Judging from historical experience, doing projections with fixed or average rates of return and inflation gives an unrealistic picture of likely variability. To expect no or low volatility because that was a simiple way to do planning is shortsighted. This is a tool to focus on probability instead of volatility.
B6: It is better to understand market variability and plan to capitalize on it rather than to fight it with unrealistic and unproductive requirements of consistent returns.
B7: It is better to focus on the possibilities of meeting future requirements than to focus on current volatility. While volatility may be disconcerting, if the numbers are there to show that even with short-term volatility one is more likely to achieve future goals, the volatility should be accepted on the path to getting there.
B8: Many people have unrealistic ideas about the longer-term impact of different allocations between fixed income and equities.
B9: Inflation, interest rates and equity returns in future years will be generally similar to such rates in past years.
B10: The returns and rates for one year do not have a statistical probability of impacting returns for the next year.
B11: Since returns and rates do not conform to a statistically normal bell-shaped curve, it is better to do these Monte Carlo simulations drawing randomly from historical returns than from a statistical metric of variation. The random selection of historical returns is easier for most people to understand than measures of standard deviation, thus giving it better face validity.
B12: Within any given year, the relationship between inflation, interest rates and equity returns will be similar in the future as has historically been the case.
B13: The major features of the financial environment will continue, such as Social Security benefits, tax rates, relative cost of living, and lack of major changes such as needing long-term care.
B14: The user of this model will enter fairly accurate current data and estimates of their future such as for income and living expenses.
B15: Investments such as in small cap stocks or emerging markets will also approximate the historical returns of the S&P 500. This is not a precise tool. Equity returns are based on the S&P 500, including dividends.
B16: Social Security COLA (Cost of Living Adjustment) will correspond to inflation rates. (You may want to set the COLA to say 75% of inflation.)
B17: It is better to have a general model where all the assumptions can be known and adaptations can be made to fit specific circumstances than to have a model attempting to be too precise, that is built on unknown assumptions and is unable to incorporate unique financial situations.
B18: The purpose of financial projections is to guide right actions now more than to guarantee financial circumstances far into the future. Unrealistic endeavors towards security, such as with fixed income investments, can still be upended by changes in world events and rates, and reflect poor stewardship in foregoing available and prudent financial management. If low-variability investments can assure a realistic lifestyle in the future, that may be prudent. To apply the same strategy to investments far in excess of what might be needed for a personal lifestyle may not be prudent.
B19: Most people in the world have either too little money to meet basic needs, or far more money than necessary for basic needs today or far into the future. There are many reasons for this. If you experiment with some numbers in the Main worksheet, you will discover one reason. It is very easy to have 100 scenarios with the same input numbers show a 50% likelihood of being broke in twenty years, and a 20% likelihood of having ten million.
B20: This is not a tool that many people unfamiliar with Excel could take and work with on their own. Call or e-mail if you have questions or want to sit down for help in entering or adapting the worksheets to your data.
B21: Lee Wenzel, Wenzel Analytics. Lee@WenzelAnalytics.com. (952) 944-2699.

Sheet Real Estate
C1: House Value | D1: 400,000 | F1: Values applying randomly selected historical appreciation rates, + or - C2 if not 0.
C2: +or- on Hist Ret | D2: 0.0% | F2: 1 | G2: 2 | H2: 3 | I2: 4 | J2: 5 | K2: 6 | L2: 7 | M2: 8 | N2: 9 | O2: 10 | P2: 11 | Q2: 12 | R2: 13 | S2: 14 | T2: 15 | U2: 16 | V2: 17 | W2: 18 | X2: 19 | Y2: 20 | Z2: 21 | AA2: 22 | AB2: 23 | AC2: 24 | AD2: 25 | AE2: 26 | AF2: 27 | AG2: 28 | AH2: 29 | AI2: 30 | AJ2: 31 | AK2: 32 | AL2: 33 | AM2: 34 | AN2: 35 | AO2: 36 | AP2: 37 | AQ2: 38 | AR2: 39 | AS2: 40 | AT2: 41 | AU2: 42 | AV2: 43 | AW2: 44 | AX2: 45 | AY2: 46 | AZ2: 47 | BA2: 48 | BB2: 49 | BC2: 50 | BD2: 51 | BE2: 52 | BF2: 53 | BG2: 54 | BH2: 55 | BI2: 56 | BJ2: 57 | BK2: 58 | BL2: 59 | BM2: 60 | BN2: 61 | BO2: 62 | BP2: 63 | BQ2: 64 | BR2: 65 | BS2: 66 | BT2: 67 | BU2: 68 | BV2: 69 | BW2: 70 | BX2: 71 | BY2: 72 | BZ2: 73 | CA2: 74 | CB2: 75 | CC2: 76 | CD2: 77 | CE2: 78 | CF2: 79 | CG2: 80 | CH2: 81 | CI2: 82 | CJ2: 83 | CK2: 84 | CL2: 85 | CM2: 86 | CN2: 87 | CO2: 88 | CP2: 89 | CQ2: 90 | CR2: 91 | CS2: 92 | CT2: 93 | CU2: 94 | CV2: 95 | CW2: 96 | CX2: 97 | CY2: 98 | CZ2: 99 | DA2: 100
C3: Interest Rate | D3: 2.875%
C4: Annual P&I | D4: =1259.64*12 -> 15,116 | E4: Mortgage
A5: =Main!A7 -> 2022-12-31 | C5: Principal | D5: Interest | E5: 102,882
A6: =Main!A8 -> 2023-12-31 | B6: 1 | C6: =D4-D6 -> 12,158 | D6: =D3*E5 -> 2,958 | E6: =E5-C6 -> 90,724 | F6: =($A6-$A5)/365.25*$D$1*(1+$D$2+(VLOOKUP('RE Appr'!L13,'RE Appr'!$E$13:$J$59,6,FALSE)/100)) -> 419,543 | G6: =($A6-$A5)/365.25*$D$1*(1+$D$2+(VLOOKUP('RE Appr'!M13,'RE Appr'!$E$13:$J$59,6,FALSE)/100)) -> 429,316 | H6: =($A6-$A5)/365.25*$D$1*(1+$D$2+(VLOOKUP('RE Appr'!N13,'RE Appr'!$E$13:$J$59,6,FALSE)/100)) -> 418,174 | I6: =($A6-$A5)/365.25*$D$1*(1+$D$2+(VLOOKUP('RE Appr'!O13,'RE Appr'!$E$13:$J$59,6,FALSE)/100)) -> 375,603 | J6: =($A6-$A5)/365.25*$D$1*(1+$D$2+(VLOOKUP('RE Appr'!P13,'RE Appr'!$E$13:$J$59,6,FALSE)/100)) -> 415,286 | K6: =($A6-$A5)/365.25*$D$1*(1+$D$2+(VLOOKUP('RE Appr'!Q13,'RE Appr'!$E$13:$J$59,6,FALSE)/100)) -> 401,385 | L6: =($A6-$A5)/365.25*$D$1*(1+$D$2+(VLOOKUP('RE Appr'!R13,'RE Appr'!$E$13:$J$59,6,FALSE)/100)) -> 437,041 | M6: =($A6-$A5)/365.25*$D$1*(1+$D$2+(VLOOKUP('RE Appr'!S13,'RE Appr'!$E$13:$J$59,6,FALSE)/100)) -> 407,091 | N6: =($A6-$A5)/365.25*$D$1*(1+$D$2+(VLOOKUP('RE Appr'!T13,'RE Appr'!$E$13:$J$59,6,FALSE)/100)) -> 371,326 | O6: =($A6-$A5)/365.25*$D$1*(1+$D$2+(VLOOKUP('RE Appr'!U13,'RE Appr'!$E$13:$J$59,6,FALSE)/100)) -> 418,174 | P6: =($A6-$A5)/365.25*$D$1*(1+$D$2+(VLOOKUP('RE Appr'!V13,'RE Appr'!$E$13:$J$59,6,FALSE)/100)) -> 416,695 | Q6: =($A6-$A5)/365.25*$D$1*(1+$D$2+(VLOOKUP('RE Appr'!W13,'RE Appr'!$E$13:$J$59,6,FALSE)/100)) -> 422,511 | R6: =($A6-$A5)/365.25*$D$1*(1+$D$2+(VLOOKUP('RE Appr'!X13,'RE Appr'!$E$13:$J$59,6,FALSE)/100)) -> 383,827 | S6: =($A6-$A5)/365.25*$D$1*(1+$D$2+(VLOOKUP('RE Appr'!Y13,'RE Appr'!$E$13:$J$59,6,FALSE)/100)) -> 436,841 | T6: =($A6-$A5)/365.25*$D$1*(1+$D$2+(VLOOKUP('RE Appr'!Z13,'RE Appr'!$E$13:$J$59,6,FALSE)/100)) -> 371,326 | U6: =($A6-$A5)/365.25*$D$1*(1+$D$2+(VLOOKUP('RE Appr'!AA13,'RE Appr'!$E$13:$J$59,6,FALSE)/100)) -> 399,326 | V6: =($A6-$A5)/365.25*$D$1*(1+$D$2+(VLOOKUP('RE Appr'!AB13,'RE Appr'!$E$13:$J$59,6,FALSE)/100)) -> 415,286 | W6: =($A6-$A5)/365.25*$D$1*(1+$D$2+(VLOOKUP('RE Appr'!AC13,'RE Appr'!$E$13:$J$59,6,FALSE)/100)) -> 375,603 | X6: =($A6-$A5)/365.25*$D$1*(1+$D$2+(VLOOKUP('RE Appr'!AD13,'RE Appr'!$E$13:$J$59,6,FALSE)/100)) -> 412,977 | Y6: =($A6-$A5)/365.25*$D$1*(1+$D$2+(VLOOKUP('RE Appr'!AE13,'RE Appr'!$E$13:$J$59,6,FALSE)/100)) -> 416,695 | Z6: =($A6-$A5)/365.25*$D$1*(1+$D$2+(VLOOKUP('RE Appr'!AF13,'RE Appr'!$E$13:$J$59,6,FALSE)/100)) -> 418,834 | AA6: =($A6-$A5)/365.25*$D$1*(1+$D$2+(VLOOKUP('RE Appr'!AG13,'RE Appr'!$E$13:$J$59,6,FALSE)/100)) -> 455,688 | AB6: =($A6-$A5)/365.25*$D$1*(1+$D$2+(VLOOKUP('RE Appr'!AH13,'RE Appr'!$E$13:$J$59,6,FALSE)/100)) -> 435,772 | AC6: =($A6-$A5)/365.25*$D$1*(1+$D$2+(VLOOKUP('RE Appr'!AI13,'RE Appr'!$E$13:$J$59,6,FALSE)/100)) -> 429,316 | AD6: =($A6-$A5)/365.25*$D$1*(1+$D$2+(VLOOKUP('RE Appr'!AJ13,'RE Appr'!$E$13:$J$59,6,FALSE)/100)) -> 435,182 | AE6: =($A6-$A5)/365.25*$D$1*(1+$D$2+(VLOOKUP('RE Appr'!AK13,'RE Appr'!$E$13:$J$59,6,FALSE)/100)) -> 399,326 | AF6: =($A6-$A5)/365.25*$D$1*(1+$D$2+(VLOOKUP('RE Appr'!AL13,'RE Appr'!$E$13:$J$59,6,FALSE)/100)) -> 429,316 | AG6: =($A6-$A5)/365.25*$D$1*(1+$D$2+(VLOOKUP('RE Appr'!AM13,'RE Appr'!$E$13:$J$59,6,FALSE)/100)) -> 470,498 | AH6: =($A6-$A5)/365.25*$D$1*(1+$D$2+(VLOOKUP('RE Appr'!AN13,'RE Appr'!$E$13:$J$59,6,FALSE)/100)) -> 412,977 | AI6: =($A6-$A5)/365.25*$D$1*(1+$D$2+(VLOOKUP('RE Appr'!AO13,'RE Appr'!$E$13:$J$59,6,FALSE)/100)) -> 383,827 | AJ6: =($A6-$A5)/365.25*$D$1*(1+$D$2+(VLOOKUP('RE Appr'!AP13,'RE Appr'!$E$13:$J$59,6,FALSE)/100)) -> 417,916 | AK6: =($A6-$A5)/365.25*$D$1*(1+$D$2+(VLOOKUP('RE Appr'!AQ13,'RE Appr'!$E$13:$J$59,6,FALSE)/100)) -> 375,603 | AL6: =($A6-$A5)/365.25*$D$1*(1+$D$2+(VLOOKUP('RE Appr'!AR13,'RE Appr'!$E$13:$J$59,6,FALSE)/100)) -> 401,385 | AM6: =($A6-$A5)/365.25*$D$1*(1+$D$2+(VLOOKUP('RE Appr'!AS13,'RE Appr'!$E$13:$J$59,6,FALSE)/100)) -> 412,278 | AN6: =($A6-$A5)/365.25*$D$1*(1+$D$2+(VLOOKUP('RE Appr'!AT13,'RE Appr'!$E$13:$J$59,6,FALSE)/100)) -> 407,091 | AO6: =($A6-$A5)/365.25*$D$1*(1+$D$2+(VLOOKUP('RE Appr'!AU13,'RE Appr'!$E$13:$J$59,6,FALSE)/100)) -> 434,213 | AP6: =($A6-$A5)/365.25*$D$1*(1+$D$2+(VLOOKUP('RE Appr'!AV13,'RE Appr'!$E$13:$J$59,6,FALSE)/100)) -> 421,666 | AQ6: =($A6-$A5)/365.25*$D$1*(1+$D$2+(VLOOKUP('RE Appr'!AW13,'RE Appr'!$E$13:$J$59,6,FALSE)/100)) -> 412,637 | AR6: =($A6-$A5)/365.25*$D$1*(1+$D$2+(VLOOKUP('RE Appr'!AX13,'RE Appr'!$E$13:$J$59,6,FALSE)/100)) -> 415,848 | AS6: =($A6-$A5)/365.25*$D$1*(1+$D$2+(VLOOKUP('RE Appr'!AY13,'RE Appr'!$E$13:$J$59,6,FALSE)/100)) -> 415,286 | AT6: =($A6-$A5)/365.25*$D$1*(1+$D$2+(VLOOKUP('RE Appr'!AZ13,'RE Appr'!$E$13:$J$59,6,FALSE)/100)) -> 420,192 | AU6: =($A6-$A5)/365.25*$D$1*(1+$D$2+(VLOOKUP('RE Appr'!BA13,'RE Appr'!$E$13:$J$59,6,FALSE)/100)) -> 383,827 | AV6: =($A6-$A5)/365.25*$D$1*(1+$D$2+(VLOOKUP('RE Appr'!BB13,'RE Appr'!$E$13:$J$59,6,FALSE)/100)) -> 383,827 | AW6: =($A6-$A5)/365.25*$D$1*(1+$D$2+(VLOOKUP('RE Appr'!BC13,'RE Appr'!$E$13:$J$59,6,FALSE)/100)) -> 419,633 | AX6: =($A6-$A5)/365.25*$D$1*(1+$D$2+(VLOOKUP('RE Appr'!BD13,'RE Appr'!$E$13:$J$59,6,FALSE)/100)) -> 417,654 | AY6: =($A6-$A5)/365.25*$D$1*(1+$D$2+(VLOOKUP('RE Appr'!BE13,'RE Appr'!$E$13:$J$59,6,FALSE)/100)) -> 426,042 | AZ6: =($A6-$A5)/365.25*$D$1*(1+$D$2+(VLOOKUP('RE Appr'!BF13,'RE Appr'!$E$13:$J$59,6,FALSE)/100)) -> 440,668 | BA6: =($A6-$A5)/365.25*$D$1*(1+$D$2+(VLOOKUP('RE Appr'!BG13,'RE Appr'!$E$13:$J$59,6,FALSE)/100)) -> 419,633 | BB6: =($A6-$A5)/365.25*$D$1*(1+$D$2+(VLOOKUP('RE Appr'!BH13,'RE Appr'!$E$13:$J$59,6,FALSE)/100)) -> 386,675 | BC6: =($A6-$A5)/365.25*$D$1*(1+$D$2+(VLOOKUP('RE Appr'!BI13,'RE Appr'!$E$13:$J$59,6,FALSE)/100)) -> 409,270 | BD6: =($A6-$A5)/365.25*$D$1*(1+$D$2+(VLOOKUP('RE Appr'!BJ13,'RE Appr'!$E$13:$J$59,6,FALSE)/100)) -> 470,498 | BE6: =($A6-$A5)/365.25*$D$1*(1+$D$2+(VLOOKUP('RE Appr'!BK13,'RE Appr'!$E$13:$J$59,6,FALSE)/100)) -> 437,041 | BF6: =($A6-$A5)/365.25*$D$1*(1+$D$2+(VLOOKUP('RE Appr'!BL13,'RE Appr'!$E$13:$J$59,6,FALSE)/100)) -> 421,666 | BG6: =($A6-$A5)/365.25*$D$1*(1+$D$2+(VLOOKUP('RE Appr'!BM13,'RE Appr'!$E$13:$J$59,6,FALSE)/100)) -> 415,286 | BH6: =($A6-$A5)/365.25*$D$1*(1+$D$2+(VLOOKUP('RE Appr'!BN13,'RE Appr'!$E$13:$J$59,6,FALSE)/100)) -> 417,916 | BI6: =($A6-$A5)/365.25*$D$1*(1+$D$2+(VLOOKUP('RE Appr'!BO13,'RE Appr'!$E$13:$J$59,6,FALSE)/100)) -> 451,019 | BJ6: =($A6-$A5)/365.25*$D$1*(1+$D$2+(VLOOKUP('RE Appr'!BP13,'RE Appr'!$E$13:$J$59,6,FALSE)/100)) -> 423,730 | BK6: =($A6-$A5)/365.25*$D$1*(1+$D$2+(VLOOKUP('RE Appr'!BQ13,'RE Appr'!$E$13:$J$59,6,FALSE)/100)) -> 409,270 | BL6: =($A6-$A5)/365.25*$D$1*(1+$D$2+(VLOOKUP('RE Appr'!BR13,'RE Appr'!$E$13:$J$59,6,FALSE)/100)) -> 383,827 | BM6: =($A6-$A5)/365.25*$D$1*(1+$D$2+(VLOOKUP('RE Appr'!BS13,'RE Appr'!$E$13:$J$59,6,FALSE)/100)) -> 412,278 | BN6: =($A6-$A5)/365.25*$D$1*(1+$D$2+(VLOOKUP('RE Appr'!BT13,'RE Appr'!$E$13:$J$59,6,FALSE)/100)) -> 437,041 | BO6: =($A6-$A5)/365.25*$D$1*(1+$D$2+(VLOOKUP('RE Appr'!BU13,'RE Appr'!$E$13:$J$59,6,FALSE)/100)) -> 441,108 | BP6: =($A6-$A5)/365.25*$D$1*(1+$D$2+(VLOOKUP('RE Appr'!BV13,'RE Appr'!$E$13:$J$59,6,FALSE)/100)) -> 470,498 | BQ6: =($A6-$A5)/365.25*$D$1*(1+$D$2+(VLOOKUP('RE Appr'!BW13,'RE Appr'!$E$13:$J$59,6,FALSE)/100)) -> 436,841 | BR6: =($A6-$A5)/365.25*$D$1*(1+$D$2+(VLOOKUP('RE Appr'!BX13,'RE Appr'!$E$13:$J$59,6,FALSE)/100)) -> 431,774 | BS6: =($A6-$A5)/365.25*$D$1*(1+$D$2+(VLOOKUP('RE Appr'!BY13,'RE Appr'!$E$13:$J$59,6,FALSE)/100)) -> 441,108 | BT6: =($A6-$A5)/365.25*$D$1*(1+$D$2+(VLOOKUP('RE Appr'!BZ13,'RE Appr'!$E$13:$J$59,6,FALSE)/100)) -> 407,091 | BU6: =($A6-$A5)/365.25*$D$1*(1+$D$2+(VLOOKUP('RE Appr'!CA13,'RE Appr'!$E$13:$J$59,6,FALSE)/100)) -> 416,695 | BV6: =($A6-$A5)/365.25*$D$1*(1+$D$2+(VLOOKUP('RE Appr'!CB13,'RE Appr'!$E$13:$J$59,6,FALSE)/100)) -> 412,977 | BW6: =($A6-$A5)/365.25*$D$1*(1+$D$2+(VLOOKUP('RE Appr'!CC13,'RE Appr'!$E$13:$J$59,6,FALSE)/100)) -> 409,270 | BX6: =($A6-$A5)/365.25*$D$1*(1+$D$2+(VLOOKUP('RE Appr'!CD13,'RE Appr'!$E$13:$J$59,6,FALSE)/100)) -> 435,182 | BY6: =($A6-$A5)/365.25*$D$1*(1+$D$2+(VLOOKUP('RE Appr'!CE13,'RE Appr'!$E$13:$J$59,6,FALSE)/100)) -> 470,498 | BZ6: =($A6-$A5)/365.25*$D$1*(1+$D$2+(VLOOKUP('RE Appr'!CF13,'RE Appr'!$E$13:$J$59,6,FALSE)/100)) -> 423,730 | CA6: =($A6-$A5)/365.25*$D$1*(1+$D$2+(VLOOKUP('RE Appr'!CG13,'RE Appr'!$E$13:$J$59,6,FALSE)/100)) -> 407,091 | CB6: =($A6-$A5)/365.25*$D$1*(1+$D$2+(VLOOKUP('RE Appr'!CH13,'RE Appr'!$E$13:$J$59,6,FALSE)/100)) -> 419,633 | CC6: =($A6-$A5)/365.25*$D$1*(1+$D$2+(VLOOKUP('RE Appr'!CI13,'RE Appr'!$E$13:$J$59,6,FALSE)/100)) -> 375,603 | CD6: =($A6-$A5)/365.25*$D$1*(1+$D$2+(VLOOKUP('RE Appr'!CJ13,'RE Appr'!$E$13:$J$59,6,FALSE)/100)) -> 435,182 | CE6: =($A6-$A5)/365.25*$D$1*(1+$D$2+(VLOOKUP('RE Appr'!CK13,'RE Appr'!$E$13:$J$59,6,FALSE)/100)) -> 412,517 | CF6: =($A6-$A5)/365.25*$D$1*(1+$D$2+(VLOOKUP('RE Appr'!CL13,'RE Appr'!$E$13:$J$59,6,FALSE)/100)) -> 431,774 | CG6: =($A6-$A5)/365.25*$D$1*(1+$D$2+(VLOOKUP('RE Appr'!CM13,'RE Appr'!$E$13:$J$59,6,FALSE)/100)) -> 412,517 | CH6: =($A6-$A5)/365.25*$D$1*(1+$D$2+(VLOOKUP('RE Appr'!CN13,'RE Appr'!$E$13:$J$59,6,FALSE)/100)) -> 415,286 | CI6: =($A6-$A5)/365.25*$D$1*(1+$D$2+(VLOOKUP('RE Appr'!CO13,'RE Appr'!$E$13:$J$59,6,FALSE)/100)) -> 386,675 | CJ6: =($A6-$A5)/365.25*$D$1*(1+$D$2+(VLOOKUP('RE Appr'!CP13,'RE Appr'!$E$13:$J$59,6,FALSE)/100)) -> 401,385 | CK6: =($A6-$A5)/365.25*$D$1*(1+$D$2+(VLOOKUP('RE Appr'!CQ13,'RE Appr'!$E$13:$J$59,6,FALSE)/100)) -> 412,637 | CL6: =($A6-$A5)/365.25*$D$1*(1+$D$2+(VLOOKUP('RE Appr'!CR13,'RE Appr'!$E$13:$J$59,6,FALSE)/100)) -> 419,633 | CM6: =($A6-$A5)/365.25*$D$1*(1+$D$2+(VLOOKUP('RE Appr'!CS13,'RE Appr'!$E$13:$J$59,6,FALSE)/100)) -> 415,046 | CN6: =($A6-$A5)/365.25*$D$1*(1+$D$2+(VLOOKUP('RE Appr'!CT13,'RE Appr'!$E$13:$J$59,6,FALSE)/100)) -> 371,326 | CO6: =($A6-$A5)/365.25*$D$1*(1+$D$2+(VLOOKUP('RE Appr'!CU13,'RE Appr'!$E$13:$J$59,6,FALSE)/100)) -> 437,041 | CP6: =($A6-$A5)/365.25*$D$1*(1+$D$2+(VLOOKUP('RE Appr'!CV13,'RE Appr'!$E$13:$J$59,6,FALSE)/100)) -> 419,290 | CQ6: =($A6-$A5)/365.25*$D$1*(1+$D$2+(VLOOKUP('RE Appr'!CW13,'RE Appr'!$E$13:$J$59,6,FALSE)/100)) -> 412,517 | CR6: =($A6-$A5)/365.25*$D$1*(1+$D$2+(VLOOKUP('RE Appr'!CX13,'RE Appr'!$E$13:$J$59,6,FALSE)/100)) -> 414,846 | CS6: =($A6-$A5)/365.25*$D$1*(1+$D$2+(VLOOKUP('RE Appr'!CY13,'RE Appr'!$E$13:$J$59,6,FALSE)/100)) -> 416,695 | CT6: =($A6-$A5)/365.25*$D$1*(1+$D$2+(VLOOKUP('RE Appr'!CZ13,'RE Appr'!$E$13:$J$59,6,FALSE)/100)) -> 383,827 | CU6: =($A6-$A5)/365.25*$D$1*(1+$D$2+(VLOOKUP('RE Appr'!DA13,'RE Appr'!$E$13:$J$59,6,FALSE)/100)) -> 426,042 | CV6: =($A6-$A5)/365.25*$D$1*(1+$D$2+(VLOOKUP('RE Appr'!DB13,'RE Appr'!$E$13:$J$59,6,FALSE)/100)) -> 414,846 | CW6: =($A6-$A5)/365.25*$D$1*(1+$D$2+(VLOOKUP('RE Appr'!DC13,'RE Appr'!$E$13:$J$59,6,FALSE)/100)) -> 407,091 | CX6: =($A6-$A5)/365.25*$D$1*(1+$D$2+(VLOOKUP('RE Appr'!DD13,'RE Appr'!$E$13:$J$59,6,FALSE)/100)) -> 421,666 | CY6: =($A6-$A5)/365.25*$D$1*(1+$D$2+(VLOOKUP('RE Appr'!DE13,'RE Appr'!$E$13:$J$59,6,FALSE)/100)) -> 417,654 | CZ6: =($A6-$A5)/365.25*$D$1*(1+$D$2+(VLOOKUP('RE Appr'!DF13,'RE Appr'!$E$13:$J$59,6,FALSE)/100)) -> 409,270 | DA6: =($A6-$A5)/365.25*$D$1*(1+$D$2+(VLOOKUP('RE Appr'!DG13,'RE Appr'!$E$13:$J$59,6,FALSE)/100)) -> 415,848
A7: =Main!A9 -> 2024-12-30 | B7: =B6+1 -> 2 | C7: =$D$4-D7 -> 12,507 | D7: =($E$5-C6)*$D$3 -> 2,608 | E7: 78,217 | F7: =($A7-$A6)/365.25*$D$1*(1+$D$2+(VLOOKUP('RE Appr'!L14,'RE Appr'!$E$13:$J$59,6,FALSE)/100)) -> 417,916 | G7: =($A7-$A6)/365.25*$D$1*(1+$D$2+(VLOOKUP('RE Appr'!M14,'RE Appr'!$E$13:$J$59,6,FALSE)/100)) -> 419,543 | H7: =($A7-$A6)/365.25*$D$1*(1+$D$2+(VLOOKUP('RE Appr'!N14,'RE Appr'!$E$13:$J$59,6,FALSE)/100)) -> 435,182 | I7: =($A7-$A6)/365.25*$D$1*(1+$D$2+(VLOOKUP('RE Appr'!O14,'RE Appr'!$E$13:$J$59,6,FALSE)/100)) -> 431,774 | J7: =($A7-$A6)/365.25*$D$1*(1+$D$2+(VLOOKUP('RE Appr'!P14,'RE Appr'!$E$13:$J$59,6,FALSE)/100)) -> 421,666 | K7: =($A7-$A6)/365.25*$D$1*(1+$D$2+(VLOOKUP('RE Appr'!Q14,'RE Appr'!$E$13:$J$59,6,FALSE)/100)) -> 435,182 | L7: =($A7-$A6)/365.25*$D$1*(1+$D$2+(VLOOKUP('RE Appr'!R14,'RE Appr'!$E$13:$J$59,6,FALSE)/100)) -> 407,091 | M7: =($A7-$A6)/365.25*$D$1*(1+$D$2+(VLOOKUP('RE Appr'!S14,'RE Appr'!$E$13:$J$59,6,FALSE)/100)) -> 422,511 | N7: =($A7-$A6)/365.25*$D$1*(1+$D$2+(VLOOKUP('RE Appr'!T14,'RE Appr'!$E$13:$J$59,6,FALSE)/100)) -> 451,019 | O7: =($A7-$A6)/365.25*$D$1*(1+$D$2+(VLOOKUP('RE Appr'!U14,'RE Appr'!$E$13:$J$59,6,FALSE)/100)) -> 419,343 | P7: =($A7-$A6)/365.25*$D$1*(1+$D$2+(VLOOKUP('RE Appr'!V14,'RE Appr'!$E$13:$J$59,6,FALSE)/100)) -> 415,848 | Q7: =($A7-$A6)/365.25*$D$1*(1+$D$2+(VLOOKUP('RE Appr'!W14,'RE Appr'!$E$13:$J$59,6,FALSE)/100)) -> 412,637 | R7: =($A7-$A6)/365.25*$D$1*(1+$D$2+(VLOOKUP('RE Appr'!X14,'RE Appr'!$E$13:$J$59,6,FALSE)/100)) -> 412,278 | S7: =($A7-$A6)/365.25*$D$1*(1+$D$2+(VLOOKUP('RE Appr'!Y14,'RE Appr'!$E$13:$J$59,6,FALSE)/100)) -> 419,633 | T7: =($A7-$A6)/365.25*$D$1*(1+$D$2+(VLOOKUP('RE Appr'!Z14,'RE Appr'!$E$13:$J$59,6,FALSE)/100)) -> 437,041 | U7: =($A7-$A6)/365.25*$D$1*(1+$D$2+(VLOOKUP('RE Appr'!AA14,'RE Appr'!$E$13:$J$59,6,FALSE)/100)) -> 440,668 | V7: =($A7-$A6)/365.25*$D$1*(1+$D$2+(VLOOKUP('RE Appr'!AB14,'RE Appr'!$E$13:$J$59,6,FALSE)/100)) -> 415,046 | W7: =($A7-$A6)/365.25*$D$1*(1+$D$2+(VLOOKUP('RE Appr'!AC14,'RE Appr'!$E$13:$J$59,6,FALSE)/100)) -> 415,848 | X7: =($A7-$A6)/365.25*$D$1*(1+$D$2+(VLOOKUP('RE Appr'!AD14,'RE Appr'!$E$13:$J$59,6,FALSE)/100)) -> 401,385 | Y7: =($A7-$A6)/365.25*$D$1*(1+$D$2+(VLOOKUP('RE Appr'!AE14,'RE Appr'!$E$13:$J$59,6,FALSE)/100)) -> 422,511 | Z7: =($A7-$A6)/365.25*$D$1*(1+$D$2+(VLOOKUP('RE Appr'!AF14,'RE Appr'!$E$13:$J$59,6,FALSE)/100)) -> 416,235 | AA7: =($A7-$A6)/365.25*$D$1*(1+$D$2+(VLOOKUP('RE Appr'!AG14,'RE Appr'!$E$13:$J$59,6,FALSE)/100)) -> 412,637 | AB7: =($A7-$A6)/365.25*$D$1*(1+$D$2+(VLOOKUP('RE Appr'!AH14,'RE Appr'!$E$13:$J$59,6,FALSE)/100)) -> 419,633 | AC7: =($A7-$A6)/365.25*$D$1*(1+$D$2+(VLOOKUP('RE Appr'!AI14,'RE Appr'!$E$13:$J$59,6,FALSE)/100)) -> 416,235 | AD7: =($A7-$A6)/365.25*$D$1*(1+$D$2+(VLOOKUP('RE Appr'!AJ14,'RE Appr'!$E$13:$J$59,6,FALSE)/100)) -> 375,603 | AE7: =($A7-$A6)/365.25*$D$1*(1+$D$2+(VLOOKUP('RE Appr'!AK14,'RE Appr'!$E$13:$J$59,6,FALSE)/100)) -> 441,528 | AF7: =($A7-$A6)/365.25*$D$1*(1+$D$2+(VLOOKUP('RE Appr'!AL14,'RE Appr'!$E$13:$J$59,6,FALSE)/100)) -> 429,316 | AG7: =($A7-$A6)/365.25*$D$1*(1+$D$2+(VLOOKUP('RE Appr'!AM14,'RE Appr'!$E$13:$J$59,6,FALSE)/100)) -> 423,750 | AH7: =($A7-$A6)/365.25*$D$1*(1+$D$2+(VLOOKUP('RE Appr'!AN14,'RE Appr'!$E$13:$J$59,6,FALSE)/100)) -> 414,846 | AI7: =($A7-$A6)/365.25*$D$1*(1+$D$2+(VLOOKUP('RE Appr'!AO14,'RE Appr'!$E$13:$J$59,6,FALSE)/100)) -> 422,511 | AJ7: =($A7-$A6)/365.25*$D$1*(1+$D$2+(VLOOKUP('RE Appr'!AP14,'RE Appr'!$E$13:$J$59,6,FALSE)/100)) -> 440,668 | AK7: =($A7-$A6)/365.25*$D$1*(1+$D$2+(VLOOKUP('RE Appr'!AQ14,'RE Appr'!$E$13:$J$59,6,FALSE)/100)) -> 419,343 | AL7: =($A7-$A6)/365.25*$D$1*(1+$D$2+(VLOOKUP('RE Appr'!AR14,'RE Appr'!$E$13:$J$59,6,FALSE)/100)) -> 431,774 | AM7: =($A7-$A6)/365.25*$D$1*(1+$D$2+(VLOOKUP('RE Appr'!AS14,'RE Appr'!$E$13:$J$59,6,FALSE)/100)) -> 420,192 | AN7: =($A7-$A6)/365.25*$D$1*(1+$D$2+(VLOOKUP('RE Appr'!AT14,'RE Appr'!$E$13:$J$59,6,FALSE)/100)) -> 416,695 | AO7: =($A7-$A6)/365.25*$D$1*(1+$D$2+(VLOOKUP('RE Appr'!AU14,'RE Appr'!$E$13:$J$59,6,FALSE)/100)) -> 375,603 | AP7: =($A7-$A6)/365.25*$D$1*(1+$D$2+(VLOOKUP('RE Appr'!AV14,'RE Appr'!$E$13:$J$59,6,FALSE)/100)) -> 423,750 | AQ7: =($A7-$A6)/365.25*$D$1*(1+$D$2+(VLOOKUP('RE Appr'!AW14,'RE Appr'!$E$13:$J$59,6,FALSE)/100)) -> 399,326 | AR7: =($A7-$A6)/365.25*$D$1*(1+$D$2+(VLOOKUP('RE Appr'!AX14,'RE Appr'!$E$13:$J$59,6,FALSE)/100)) -> 435,182 | AS7: =($A7-$A6)/365.25*$D$1*(1+$D$2+(VLOOKUP('RE Appr'!AY14,'RE Appr'!$E$13:$J$59,6,FALSE)/100)) -> 435,182 | AT7: =($A7-$A6)/365.25*$D$1*(1+$D$2+(VLOOKUP('RE Appr'!AZ14,'RE Appr'!$E$13:$J$59,6,FALSE)/100)) -> 417,654 | AU7: =($A7-$A6)/365.25*$D$1*(1+$D$2+(VLOOKUP('RE Appr'!BA14,'RE Appr'!$E$13:$J$59,6,FALSE)/100)) -> 412,637 | AV7: =($A7-$A6)/365.25*$D$1*(1+$D$2+(VLOOKUP('RE Appr'!BB14,'RE Appr'!$E$13:$J$59,6,FALSE)/100)) -> 371,326 | AW7: =($A7-$A6)/365.25*$D$1*(1+$D$2+(VLOOKUP('RE Appr'!BC14,'RE Appr'!$E$13:$J$59,6,FALSE)/100)) -> 435,182 | AX7: =($A7-$A6)/365.25*$D$1*(1+$D$2+(VLOOKUP('RE Appr'!BD14,'RE Appr'!$E$13:$J$59,6,FALSE)/100)) -> 407,091 | AY7: =($A7-$A6)/365.25*$D$1*(1+$D$2+(VLOOKUP('RE Appr'!BE14,'RE Appr'!$E$13:$J$59,6,FALSE)/100)) -> 417,916 | AZ7: =($A7-$A6)/365.25*$D$1*(1+$D$2+(VLOOKUP('RE Appr'!BF14,'RE Appr'!$E$13:$J$59,6,FALSE)/100)) -> 440,668 | BA7: =($A7-$A6)/365.25*$D$1*(1+$D$2+(VLOOKUP('RE Appr'!BG14,'RE Appr'!$E$13:$J$59,6,FALSE)/100)) -> 435,182 | BB7: =($A7-$A6)/365.25*$D$1*(1+$D$2+(VLOOKUP('RE Appr'!BH14,'RE Appr'!$E$13:$J$59,6,FALSE)/100)) -> 410,729 | BC7: =($A7-$A6)/365.25*$D$1*(1+$D$2+(VLOOKUP('RE Appr'!BI14,'RE Appr'!$E$13:$J$59,6,FALSE)/100)) -> 419,290 | BD7: =($A7-$A6)/365.25*$D$1*(1+$D$2+(VLOOKUP('RE Appr'!BJ14,'RE Appr'!$E$13:$J$59,6,FALSE)/100)) -> 371,326 | BE7: =($A7-$A6)/365.25*$D$1*(1+$D$2+(VLOOKUP('RE Appr'!BK14,'RE Appr'!$E$13:$J$59,6,FALSE)/100)) -> 420,192 | BF7: =($A7-$A6)/365.25*$D$1*(1+$D$2+(VLOOKUP('RE Appr'!BL14,'RE Appr'!$E$13:$J$59,6,FALSE)/100)) -> 437,041 | BG7: =($A7-$A6)/365.25*$D$1*(1+$D$2+(VLOOKUP('RE Appr'!BM14,'RE Appr'!$E$13:$J$59,6,FALSE)/100)) -> 412,977 | BH7: =($A7-$A6)/365.25*$D$1*(1+$D$2+(VLOOKUP('RE Appr'!BN14,'RE Appr'!$E$13:$J$59,6,FALSE)/100)) -> 441,108 | BI7: =($A7-$A6)/365.25*$D$1*(1+$D$2+(VLOOKUP('RE Appr'!BO14,'RE Appr'!$E$13:$J$59,6,FALSE)/100)) -> 435,772 | BJ7: =($A7-$A6)/365.25*$D$1*(1+$D$2+(VLOOKUP('RE Appr'!BP14,'RE Appr'!$E$13:$J$59,6,FALSE)/100)) -> 371,326 | BK7: =($A7-$A6)/365.25*$D$1*(1+$D$2+(VLOOKUP('RE Appr'!BQ14,'RE Appr'!$E$13:$J$59,6,FALSE)/100)) -> 407,091 | BL7: =($A7-$A6)/365.25*$D$1*(1+$D$2+(VLOOKUP('RE Appr'!BR14,'RE Appr'!$E$13:$J$59,6,FALSE)/100)) -> 412,278 | BM7: =($A7-$A6)/365.25*$D$1*(1+$D$2+(VLOOKUP('RE Appr'!BS14,'RE Appr'!$E$13:$J$59,6,FALSE)/100)) -> 412,977 | BN7: =($A7-$A6)/365.25*$D$1*(1+$D$2+(VLOOKUP('RE Appr'!BT14,'RE Appr'!$E$13:$J$59,6,FALSE)/100)) -> 415,848 | BO7: =($A7-$A6)/365.25*$D$1*(1+$D$2+(VLOOKUP('RE Appr'!BU14,'RE Appr'!$E$13:$J$59,6,FALSE)/100)) -> 436,841 | BP7: =($A7-$A6)/365.25*$D$1*(1+$D$2+(VLOOKUP('RE Appr'!BV14,'RE Appr'!$E$13:$J$59,6,FALSE)/100)) -> 417,654 | BQ7: =($A7-$A6)/365.25*$D$1*(1+$D$2+(VLOOKUP('RE Appr'!BW14,'RE Appr'!$E$13:$J$59,6,FALSE)/100)) -> 426,042 | BR7: =($A7-$A6)/365.25*$D$1*(1+$D$2+(VLOOKUP('RE Appr'!BX14,'RE Appr'!$E$13:$J$59,6,FALSE)/100)) -> 423,730 | BS7: =($A7-$A6)/365.25*$D$1*(1+$D$2+(VLOOKUP('RE Appr'!BY14,'RE Appr'!$E$13:$J$59,6,FALSE)/100)) -> 417,916 | BT7: =($A7-$A6)/365.25*$D$1*(1+$D$2+(VLOOKUP('RE Appr'!BZ14,'RE Appr'!$E$13:$J$59,6,FALSE)/100)) -> 421,666 | BU7: =($A7-$A6)/365.25*$D$1*(1+$D$2+(VLOOKUP('RE Appr'!CA14,'RE Appr'!$E$13:$J$59,6,FALSE)/100)) -> 417,654 | BV7: =($A7-$A6)/365.25*$D$1*(1+$D$2+(VLOOKUP('RE Appr'!CB14,'RE Appr'!$E$13:$J$59,6,FALSE)/100)) -> 386,675 | BW7: =($A7-$A6)/365.25*$D$1*(1+$D$2+(VLOOKUP('RE Appr'!CC14,'RE Appr'!$E$13:$J$59,6,FALSE)/100)) -> 455,688 | BX7: =($A7-$A6)/365.25*$D$1*(1+$D$2+(VLOOKUP('RE Appr'!CD14,'RE Appr'!$E$13:$J$59,6,FALSE)/100)) -> 441,108 | BY7: =($A7-$A6)/365.25*$D$1*(1+$D$2+(VLOOKUP('RE Appr'!CE14,'RE Appr'!$E$13:$J$59,6,FALSE)/100)) -> 435,772 | BZ7: =($A7-$A6)/365.25*$D$1*(1+$D$2+(VLOOKUP('RE Appr'!CF14,'RE Appr'!$E$13:$J$59,6,FALSE)/100)) -> 412,977 | CA7: =($A7-$A6)/365.25*$D$1*(1+$D$2+(VLOOKUP('RE Appr'!CG14,'RE Appr'!$E$13:$J$59,6,FALSE)/100)) -> 409,270 | CB7: =($A7-$A6)/365.25*$D$1*(1+$D$2+(VLOOKUP('RE Appr'!CH14,'RE Appr'!$E$13:$J$59,6,FALSE)/100)) -> 383,827 | CC7: =($A7-$A6)/365.25*$D$1*(1+$D$2+(VLOOKUP('RE Appr'!CI14,'RE Appr'!$E$13:$J$59,6,FALSE)/100)) -> 410,729 | CD7: =($A7-$A6)/365.25*$D$1*(1+$D$2+(VLOOKUP('RE Appr'!CJ14,'RE Appr'!$E$13:$J$59,6,FALSE)/100)) -> 415,046 | CE7: =($A7-$A6)/365.25*$D$1*(1+$D$2+(VLOOKUP('RE Appr'!CK14,'RE Appr'!$E$13:$J$59,6,FALSE)/100)) -> 418,834 | CF7: =($A7-$A6)/365.25*$D$1*(1+$D$2+(VLOOKUP('RE Appr'!CL14,'RE Appr'!$E$13:$J$59,6,FALSE)/100)) -> 422,511 | CG7: =($A7-$A6)/365.25*$D$1*(1+$D$2+(VLOOKUP('RE Appr'!CM14,'RE Appr'!$E$13:$J$59,6,FALSE)/100)) -> 434,213 | CH7: =($A7-$A6)/365.25*$D$1*(1+$D$2+(VLOOKUP('RE Appr'!CN14,'RE Appr'!$E$13:$J$59,6,FALSE)/100)) -> 409,270 | CI7: =($A7-$A6)/365.25*$D$1*(1+$D$2+(VLOOKUP('RE Appr'!CO14,'RE Appr'!$E$13:$J$59,6,FALSE)/100)) -> 420,192 | CJ7: =($A7-$A6)/365.25*$D$1*(1+$D$2+(VLOOKUP('RE Appr'!CP14,'RE Appr'!$E$13:$J$59,6,FALSE)/100)) -> 470,498 | CK7: =($A7-$A6)/365.25*$D$1*(1+$D$2+(VLOOKUP('RE Appr'!CQ14,'RE Appr'!$E$13:$J$59,6,FALSE)/100)) -> 435,772 | CL7: =($A7-$A6)/365.25*$D$1*(1+$D$2+(VLOOKUP('RE Appr'!CR14,'RE Appr'!$E$13:$J$59,6,FALSE)/100)) -> 417,916 | CM7: =($A7-$A6)/365.25*$D$1*(1+$D$2+(VLOOKUP('RE Appr'!CS14,'RE Appr'!$E$13:$J$59,6,FALSE)/100)) -> 429,316 | CN7: =($A7-$A6)/365.25*$D$1*(1+$D$2+(VLOOKUP('RE Appr'!CT14,'RE Appr'!$E$13:$J$59,6,FALSE)/100)) -> 419,343 | CO7: =($A7-$A6)/365.25*$D$1*(1+$D$2+(VLOOKUP('RE Appr'!CU14,'RE Appr'!$E$13:$J$59,6,FALSE)/100)) -> 375,603 | CP7: =($A7-$A6)/365.25*$D$1*(1+$D$2+(VLOOKUP('RE Appr'!CV14,'RE Appr'!$E$13:$J$59,6,FALSE)/100)) -> 419,543 | CQ7: =($A7-$A6)/365.25*$D$1*(1+$D$2+(VLOOKUP('RE Appr'!CW14,'RE Appr'!$E$13:$J$59,6,FALSE)/100)) -> 418,174 | CR7: =($A7-$A6)/365.25*$D$1*(1+$D$2+(VLOOKUP('RE Appr'!CX14,'RE Appr'!$E$13:$J$59,6,FALSE)/100)) -> 415,848 | CS7: =($A7-$A6)/365.25*$D$1*(1+$D$2+(VLOOKUP('RE Appr'!CY14,'RE Appr'!$E$13:$J$59,6,FALSE)/100)) -> 426,042 | CT7: =($A7-$A6)/365.25*$D$1*(1+$D$2+(VLOOKUP('RE Appr'!CZ14,'RE Appr'!$E$13:$J$59,6,FALSE)/100)) -> 441,108 | CU7: =($A7-$A6)/365.25*$D$1*(1+$D$2+(VLOOKUP('RE Appr'!DA14,'RE Appr'!$E$13:$J$59,6,FALSE)/100)) -> 410,729 | CV7: =($A7-$A6)/365.25*$D$1*(1+$D$2+(VLOOKUP('RE Appr'!DB14,'RE Appr'!$E$13:$J$59,6,FALSE)/100)) -> 417,654 | CW7: =($A7-$A6)/365.25*$D$1*(1+$D$2+(VLOOKUP('RE Appr'!DC14,'RE Appr'!$E$13:$J$59,6,FALSE)/100)) -> 401,385 | CX7: =($A7-$A6)/365.25*$D$1*(1+$D$2+(VLOOKUP('RE Appr'!DD14,'RE Appr'!$E$13:$J$59,6,FALSE)/100)) -> 419,290 | CY7: =($A7-$A6)/365.25*$D$1*(1+$D$2+(VLOOKUP('RE Appr'!DE14,'RE Appr'!$E$13:$J$59,6,FALSE)/100)) -> 434,213 | CZ7: =($A7-$A6)/365.25*$D$1*(1+$D$2+(VLOOKUP('RE Appr'!DF14,'RE Appr'!$E$13:$J$59,6,FALSE)/100)) -> 407,091 | DA7: =($A7-$A6)/365.25*$D$1*(1+$D$2+(VLOOKUP('RE Appr'!DG14,'RE Appr'!$E$13:$J$59,6,FALSE)/100)) -> 412,637
A8: =Main!A10 -> 2025-12-30 | B8: =B7+1 -> 3 | C8: =$D$4-D8 -> 12,867 | D8: =($E$5-SUM(C$6:C7))*$D$3 -> 2,249 | E8: 65,350 | F8: =($A8-$A7)/365.25*$D$1*(1+$D$2+(VLOOKUP('RE Appr'!L15,'RE Appr'!$E$13:$J$59,6,FALSE)/100)) -> 421,666 | G8: =($A8-$A7)/365.25*$D$1*(1+$D$2+(VLOOKUP('RE Appr'!M15,'RE Appr'!$E$13:$J$59,6,FALSE)/100)) -> 437,041 | H8: =($A8-$A7)/365.25*$D$1*(1+$D$2+(VLOOKUP('RE Appr'!N15,'RE Appr'!$E$13:$J$59,6,FALSE)/100)) -> 371,326 | I8: =($A8-$A7)/365.25*$D$1*(1+$D$2+(VLOOKUP('RE Appr'!O15,'RE Appr'!$E$13:$J$59,6,FALSE)/100)) -> 423,750 | J8: =($A8-$A7)/365.25*$D$1*(1+$D$2+(VLOOKUP('RE Appr'!P15,'RE Appr'!$E$13:$J$59,6,FALSE)/100)) -> 412,278 | K8: =($A8-$A7)/365.25*$D$1*(1+$D$2+(VLOOKUP('RE Appr'!Q15,'RE Appr'!$E$13:$J$59,6,FALSE)/100)) -> 435,182 | L8: =($A8-$A7)/365.25*$D$1*(1+$D$2+(VLOOKUP('RE Appr'!R15,'RE Appr'!$E$13:$J$59,6,FALSE)/100)) -> 423,730 | M8: =($A8-$A7)/365.25*$D$1*(1+$D$2+(VLOOKUP('RE Appr'!S15,'RE Appr'!$E$13:$J$59,6,FALSE)/100)) -> 420,192 | N8: =($A8-$A7)/365.25*$D$1*(1+$D$2+(VLOOKUP('RE Appr'!T15,'RE Appr'!$E$13:$J$59,6,FALSE)/100)) -> 419,290 | O8: =($A8-$A7)/365.25*$D$1*(1+$D$2+(VLOOKUP('RE Appr'!U15,'RE Appr'!$E$13:$J$59,6,FALSE)/100)) -> 417,916 | P8: =($A8-$A7)/365.25*$D$1*(1+$D$2+(VLOOKUP('RE Appr'!V15,'RE Appr'!$E$13:$J$59,6,FALSE)/100)) -> 418,834 | Q8: =($A8-$A7)/365.25*$D$1*(1+$D$2+(VLOOKUP('RE Appr'!W15,'RE Appr'!$E$13:$J$59,6,FALSE)/100)) -> 371,326 | R8: =($A8-$A7)/365.25*$D$1*(1+$D$2+(VLOOKUP('RE Appr'!X15,'RE Appr'!$E$13:$J$59,6,FALSE)/100)) -> 383,827 | S8: =($A8-$A7)/365.25*$D$1*(1+$D$2+(VLOOKUP('RE Appr'!Y15,'RE Appr'!$E$13:$J$59,6,FALSE)/100)) -> 434,213 | T8: =($A8-$A7)/365.25*$D$1*(1+$D$2+(VLOOKUP('RE Appr'!Z15,'RE Appr'!$E$13:$J$59,6,FALSE)/100)) -> 429,316 | U8: =($A8-$A7)/365.25*$D$1*(1+$D$2+(VLOOKUP('RE Appr'!AA15,'RE Appr'!$E$13:$J$59,6,FALSE)/100)) -> 407,091 | V8: =($A8-$A7)/365.25*$D$1*(1+$D$2+(VLOOKUP('RE Appr'!AB15,'RE Appr'!$E$13:$J$59,6,FALSE)/100)) -> 441,528 | W8: =($A8-$A7)/365.25*$D$1*(1+$D$2+(VLOOKUP('RE Appr'!AC15,'RE Appr'!$E$13:$J$59,6,FALSE)/100)) -> 423,750 | X8: =($A8-$A7)/365.25*$D$1*(1+$D$2+(VLOOKUP('RE Appr'!AD15,'RE Appr'!$E$13:$J$59,6,FALSE)/100)) -> 412,637 | Y8: =($A8-$A7)/365.25*$D$1*(1+$D$2+(VLOOKUP('RE Appr'!AE15,'RE Appr'!$E$13:$J$59,6,FALSE)/100)) -> 386,675 | Z8: =($A8-$A7)/365.25*$D$1*(1+$D$2+(VLOOKUP('RE Appr'!AF15,'RE Appr'!$E$13:$J$59,6,FALSE)/100)) -> 441,108 | AA8: =($A8-$A7)/365.25*$D$1*(1+$D$2+(VLOOKUP('RE Appr'!AG15,'RE Appr'!$E$13:$J$59,6,FALSE)/100)) -> 441,528 | AB8: =($A8-$A7)/365.25*$D$1*(1+$D$2+(VLOOKUP('RE Appr'!AH15,'RE Appr'!$E$13:$J$59,6,FALSE)/100)) -> 409,270 | AC8: =($A8-$A7)/365.25*$D$1*(1+$D$2+(VLOOKUP('RE Appr'!AI15,'RE Appr'!$E$13:$J$59,6,FALSE)/100)) -> 440,668 | AD8: =($A8-$A7)/365.25*$D$1*(1+$D$2+(VLOOKUP('RE Appr'!AJ15,'RE Appr'!$E$13:$J$59,6,FALSE)/100)) -> 416,235 | AE8: =($A8-$A7)/365.25*$D$1*(1+$D$2+(VLOOKUP('RE Appr'!AK15,'RE Appr'!$E$13:$J$59,6,FALSE)/100)) -> 419,633 | AF8: =($A8-$A7)/365.25*$D$1*(1+$D$2+(VLOOKUP('RE Appr'!AL15,'RE Appr'!$E$13:$J$59,6,FALSE)/100)) -> 440,668 | AG8: =($A8-$A7)/365.25*$D$1*(1+$D$2+(VLOOKUP('RE Appr'!AM15,'RE Appr'!$E$13:$J$59,6,FALSE)/100)) -> 417,916 | AH8: =($A8-$A7)/365.25*$D$1*(1+$D$2+(VLOOKUP('RE Appr'!AN15,'RE Appr'!$E$13:$J$59,6,FALSE)/100)) -> 415,286 | AI8: =($A8-$A7)/365.25*$D$1*(1+$D$2+(VLOOKUP('RE Appr'!AO15,'RE Appr'!$E$13:$J$59,6,FALSE)/100)) -> 440,668 | AJ8: =($A8-$A7)/365.25*$D$1*(1+$D$2+(VLOOKUP('RE Appr'!AP15,'RE Appr'!$E$13:$J$59,6,FALSE)/100)) -> 435,182 | AK8: =($A8-$A7)/365.25*$D$1*(1+$D$2+(VLOOKUP('RE Appr'!AQ15,'RE Appr'!$E$13:$J$59,6,FALSE)/100)) -> 411,048 | AL8: =($A8-$A7)/365.25*$D$1*(1+$D$2+(VLOOKUP('RE Appr'!AR15,'RE Appr'!$E$13:$J$59,6,FALSE)/100)) -> 421,666 | AM8: =($A8-$A7)/365.25*$D$1*(1+$D$2+(VLOOKUP('RE Appr'!AS15,'RE Appr'!$E$13:$J$59,6,FALSE)/100)) -> 441,108 | AN8: =($A8-$A7)/365.25*$D$1*(1+$D$2+(VLOOKUP('RE Appr'!AT15,'RE Appr'!$E$13:$J$59,6,FALSE)/100)) -> 435,182 | AO8: =($A8-$A7)/365.25*$D$1*(1+$D$2+(VLOOKUP('RE Appr'!AU15,'RE Appr'!$E$13:$J$59,6,FALSE)/100)) -> 412,637 | AP8: =($A8-$A7)/365.25*$D$1*(1+$D$2+(VLOOKUP('RE Appr'!AV15,'RE Appr'!$E$13:$J$59,6,FALSE)/100)) -> 455,688 | AQ8: =($A8-$A7)/365.25*$D$1*(1+$D$2+(VLOOKUP('RE Appr'!AW15,'RE Appr'!$E$13:$J$59,6,FALSE)/100)) -> 440,668 | AR8: =($A8-$A7)/365.25*$D$1*(1+$D$2+(VLOOKUP('RE Appr'!AX15,'RE Appr'!$E$13:$J$59,6,FALSE)/100)) -> 417,654 | AS8: =($A8-$A7)/365.25*$D$1*(1+$D$2+(VLOOKUP('RE Appr'!AY15,'RE Appr'!$E$13:$J$59,6,FALSE)/100)) -> 470,498 | AT8: =($A8-$A7)/365.25*$D$1*(1+$D$2+(VLOOKUP('RE Appr'!AZ15,'RE Appr'!$E$13:$J$59,6,FALSE)/100)) -> 418,174 | AU8: =($A8-$A7)/365.25*$D$1*(1+$D$2+(VLOOKUP('RE Appr'!BA15,'RE Appr'!$E$13:$J$59,6,FALSE)/100)) -> 412,637 | AV8: =($A8-$A7)/365.25*$D$1*(1+$D$2+(VLOOKUP('RE Appr'!BB15,'RE Appr'!$E$13:$J$59,6,FALSE)/100)) -> 421,666 | AW8: =($A8-$A7)/365.25*$D$1*(1+$D$2+(VLOOKUP('RE Appr'!BC15,'RE Appr'!$E$13:$J$59,6,FALSE)/100)) -> 435,772 | AX8: =($A8-$A7)/365.25*$D$1*(1+$D$2+(VLOOKUP('RE Appr'!BD15,'RE Appr'!$E$13:$J$59,6,FALSE)/100)) -> 418,834 | AY8: =($A8-$A7)/365.25*$D$1*(1+$D$2+(VLOOKUP('RE Appr'!BE15,'RE Appr'!$E$13:$J$59,6,FALSE)/100)) -> 441,108 | AZ8: =($A8-$A7)/365.25*$D$1*(1+$D$2+(VLOOKUP('RE Appr'!BF15,'RE Appr'!$E$13:$J$59,6,FALSE)/100)) -> 420,192 | BA8: =($A8-$A7)/365.25*$D$1*(1+$D$2+(VLOOKUP('RE Appr'!BG15,'RE Appr'!$E$13:$J$59,6,FALSE)/100)) -> 451,019 | BB8: =($A8-$A7)/365.25*$D$1*(1+$D$2+(VLOOKUP('RE Appr'!BH15,'RE Appr'!$E$13:$J$59,6,FALSE)/100)) -> 375,603 | BC8: =($A8-$A7)/365.25*$D$1*(1+$D$2+(VLOOKUP('RE Appr'!BI15,'RE Appr'!$E$13:$J$59,6,FALSE)/100)) -> 431,774 | BD8: =($A8-$A7)/365.25*$D$1*(1+$D$2+(VLOOKUP('RE Appr'!BJ15,'RE Appr'!$E$13:$J$59,6,FALSE)/100)) -> 435,772 | BE8: =($A8-$A7)/365.25*$D$1*(1+$D$2+(VLOOKUP('RE Appr'!BK15,'RE Appr'!$E$13:$J$59,6,FALSE)/100)) -> 383,827 | BF8: =($A8-$A7)/365.25*$D$1*(1+$D$2+(VLOOKUP('RE Appr'!BL15,'RE Appr'!$E$13:$J$59,6,FALSE)/100)) -> 423,750 | BG8: =($A8-$A7)/365.25*$D$1*(1+$D$2+(VLOOKUP('RE Appr'!BM15,'RE Appr'!$E$13:$J$59,6,FALSE)/100)) -> 412,977 | BH8: =($A8-$A7)/365.25*$D$1*(1+$D$2+(VLOOKUP('RE Appr'!BN15,'RE Appr'!$E$13:$J$59,6,FALSE)/100)) -> 386,675 | BI8: =($A8-$A7)/365.25*$D$1*(1+$D$2+(VLOOKUP('RE Appr'!BO15,'RE Appr'!$E$13:$J$59,6,FALSE)/100)) -> 426,042 | BJ8: =($A8-$A7)/365.25*$D$1*(1+$D$2+(VLOOKUP('RE Appr'!BP15,'RE Appr'!$E$13:$J$59,6,FALSE)/100)) -> 429,316 | BK8: =($A8-$A7)/365.25*$D$1*(1+$D$2+(VLOOKUP('RE Appr'!BQ15,'RE Appr'!$E$13:$J$59,6,FALSE)/100)) -> 371,326 | BL8: =($A8-$A7)/365.25*$D$1*(1+$D$2+(VLOOKUP('RE Appr'!BR15,'RE Appr'!$E$13:$J$59,6,FALSE)/100)) -> 455,688 | BM8: =($A8-$A7)/365.25*$D$1*(1+$D$2+(VLOOKUP('RE Appr'!BS15,'RE Appr'!$E$13:$J$59,6,FALSE)/100)) -> 470,498 | BN8: =($A8-$A7)/365.25*$D$1*(1+$D$2+(VLOOKUP('RE Appr'!BT15,'RE Appr'!$E$13:$J$59,6,FALSE)/100)) -> 419,543 | BO8: =($A8-$A7)/365.25*$D$1*(1+$D$2+(VLOOKUP('RE Appr'!BU15,'RE Appr'!$E$13:$J$59,6,FALSE)/100)) -> 440,668 | BP8: =($A8-$A7)/365.25*$D$1*(1+$D$2+(VLOOKUP('RE Appr'!BV15,'RE Appr'!$E$13:$J$59,6,FALSE)/100)) -> 419,543 | BQ8: =($A8-$A7)/365.25*$D$1*(1+$D$2+(VLOOKUP('RE Appr'!BW15,'RE Appr'!$E$13:$J$59,6,FALSE)/100)) -> 417,654 | BR8: =($A8-$A7)/365.25*$D$1*(1+$D$2+(VLOOKUP('RE Appr'!BX15,'RE Appr'!$E$13:$J$59,6,FALSE)/100)) -> 375,603 | BS8: =($A8-$A7)/365.25*$D$1*(1+$D$2+(VLOOKUP('RE Appr'!BY15,'RE Appr'!$E$13:$J$59,6,FALSE)/100)) -> 451,019 | BT8: =($A8-$A7)/365.25*$D$1*(1+$D$2+(VLOOKUP('RE Appr'!BZ15,'RE Appr'!$E$13:$J$59,6,FALSE)/100)) -> 419,343 | BU8: =($A8-$A7)/365.25*$D$1*(1+$D$2+(VLOOKUP('RE Appr'!CA15,'RE Appr'!$E$13:$J$59,6,FALSE)/100)) -> 470,498 | BV8: =($A8-$A7)/365.25*$D$1*(1+$D$2+(VLOOKUP('RE Appr'!CB15,'RE Appr'!$E$13:$J$59,6,FALSE)/100)) -> 419,543 | BW8: =($A8-$A7)/365.25*$D$1*(1+$D$2+(VLOOKUP('RE Appr'!CC15,'RE Appr'!$E$13:$J$59,6,FALSE)/100)) -> 418,174 | BX8: =($A8-$A7)/365.25*$D$1*(1+$D$2+(VLOOKUP('RE Appr'!CD15,'RE Appr'!$E$13:$J$59,6,FALSE)/100)) -> 455,688 | BY8: =($A8-$A7)/365.25*$D$1*(1+$D$2+(VLOOKUP('RE Appr'!CE15,'RE Appr'!$E$13:$J$59,6,FALSE)/100)) -> 455,688 | BZ8: =($A8-$A7)/365.25*$D$1*(1+$D$2+(VLOOKUP('RE Appr'!CF15,'RE Appr'!$E$13:$J$59,6,FALSE)/100)) -> 415,286 | CA8: =($A8-$A7)/365.25*$D$1*(1+$D$2+(VLOOKUP('RE Appr'!CG15,'RE Appr'!$E$13:$J$59,6,FALSE)/100)) -> 418,174 | CB8: =($A8-$A7)/365.25*$D$1*(1+$D$2+(VLOOKUP('RE Appr'!CH15,'RE Appr'!$E$13:$J$59,6,FALSE)/100)) -> 375,603 | CC8: =($A8-$A7)/365.25*$D$1*(1+$D$2+(VLOOKUP('RE Appr'!CI15,'RE Appr'!$E$13:$J$59,6,FALSE)/100)) -> 411,048 | CD8: =($A8-$A7)/365.25*$D$1*(1+$D$2+(VLOOKUP('RE Appr'!CJ15,'RE Appr'!$E$13:$J$59,6,FALSE)/100)) -> 386,675 | CE8: =($A8-$A7)/365.25*$D$1*(1+$D$2+(VLOOKUP('RE Appr'!CK15,'RE Appr'!$E$13:$J$59,6,FALSE)/100)) -> 371,326 | CF8: =($A8-$A7)/365.25*$D$1*(1+$D$2+(VLOOKUP('RE Appr'!CL15,'RE Appr'!$E$13:$J$59,6,FALSE)/100)) -> 412,977 | CG8: =($A8-$A7)/365.25*$D$1*(1+$D$2+(VLOOKUP('RE Appr'!CM15,'RE Appr'!$E$13:$J$59,6,FALSE)/100)) -> 418,834 | CH8: =($A8-$A7)/365.25*$D$1*(1+$D$2+(VLOOKUP('RE Appr'!CN15,'RE Appr'!$E$13:$J$59,6,FALSE)/100)) -> 412,977 | CI8: =($A8-$A7)/365.25*$D$1*(1+$D$2+(VLOOKUP('RE Appr'!CO15,'RE Appr'!$E$13:$J$59,6,FALSE)/100)) -> 423,750 | CJ8: =($A8-$A7)/365.25*$D$1*(1+$D$2+(VLOOKUP('RE Appr'!CP15,'RE Appr'!$E$13:$J$59,6,FALSE)/100)) -> 412,517 | CK8: =($A8-$A7)/365.25*$D$1*(1+$D$2+(VLOOKUP('RE Appr'!CQ15,'RE Appr'!$E$13:$J$59,6,FALSE)/100)) -> 440,668 | CL8: =($A8-$A7)/365.25*$D$1*(1+$D$2+(VLOOKUP('RE Appr'!CR15,'RE Appr'!$E$13:$J$59,6,FALSE)/100)) -> 419,633 | CM8: =($A8-$A7)/365.25*$D$1*(1+$D$2+(VLOOKUP('RE Appr'!CS15,'RE Appr'!$E$13:$J$59,6,FALSE)/100)) -> 423,730 | CN8: =($A8-$A7)/365.25*$D$1*(1+$D$2+(VLOOKUP('RE Appr'!CT15,'RE Appr'!$E$13:$J$59,6,FALSE)/100)) -> 441,108 | CO8: =($A8-$A7)/365.25*$D$1*(1+$D$2+(VLOOKUP('RE Appr'!CU15,'RE Appr'!$E$13:$J$59,6,FALSE)/100)) -> 423,750 | CP8: =($A8-$A7)/365.25*$D$1*(1+$D$2+(VLOOKUP('RE Appr'!CV15,'RE Appr'!$E$13:$J$59,6,FALSE)/100)) -> 419,543 | CQ8: =($A8-$A7)/365.25*$D$1*(1+$D$2+(VLOOKUP('RE Appr'!CW15,'RE Appr'!$E$13:$J$59,6,FALSE)/100)) -> 455,688 | CR8: =($A8-$A7)/365.25*$D$1*(1+$D$2+(VLOOKUP('RE Appr'!CX15,'RE Appr'!$E$13:$J$59,6,FALSE)/100)) -> 416,695 | CS8: =($A8-$A7)/365.25*$D$1*(1+$D$2+(VLOOKUP('RE Appr'!CY15,'RE Appr'!$E$13:$J$59,6,FALSE)/100)) -> 451,019 | CT8: =($A8-$A7)/365.25*$D$1*(1+$D$2+(VLOOKUP('RE Appr'!CZ15,'RE Appr'!$E$13:$J$59,6,FALSE)/100)) -> 375,603 | CU8: =($A8-$A7)/365.25*$D$1*(1+$D$2+(VLOOKUP('RE Appr'!DA15,'RE Appr'!$E$13:$J$59,6,FALSE)/100)) -> 426,042 | CV8: =($A8-$A7)/365.25*$D$1*(1+$D$2+(VLOOKUP('RE Appr'!DB15,'RE Appr'!$E$13:$J$59,6,FALSE)/100)) -> 417,654 | CW8: =($A8-$A7)/365.25*$D$1*(1+$D$2+(VLOOKUP('RE Appr'!DC15,'RE Appr'!$E$13:$J$59,6,FALSE)/100)) -> 410,729 | CX8: =($A8-$A7)/365.25*$D$1*(1+$D$2+(VLOOKUP('RE Appr'!DD15,'RE Appr'!$E$13:$J$59,6,FALSE)/100)) -> 470,498 | CY8: =($A8-$A7)/365.25*$D$1*(1+$D$2+(VLOOKUP('RE Appr'!DE15,'RE Appr'!$E$13:$J$59,6,FALSE)/100)) -> 435,182 | CZ8: =($A8-$A7)/365.25*$D$1*(1+$D$2+(VLOOKUP('RE Appr'!DF15,'RE Appr'!$E$13:$J$59,6,FALSE)/100)) -> 441,528 | DA8: =($A8-$A7)/365.25*$D$1*(1+$D$2+(VLOOKUP('RE Appr'!DG15,'RE Appr'!$E$13:$J$59,6,FALSE)/100)) -> 441,528
A9: =Main!A11 -> 2026-12-30 | B9: 4 | C9: 13,237 | D9: =($E$5-SUM(C$6:C8))*$D$3 -> 1,879 | E9: 52,113 | F9: =($A9-$A8)/365.25*$D$1*(1+$D$2+(VLOOKUP('RE Appr'!L16,'RE Appr'!$E$13:$J$59,6,FALSE)/100)) -> 410,729 | G9: =($A9-$A8)/365.25*$D$1*(1+$D$2+(VLOOKUP('RE Appr'!M16,'RE Appr'!$E$13:$J$59,6,FALSE)/100)) -> 383,827 | H9: =($A9-$A8)/365.25*$D$1*(1+$D$2+(VLOOKUP('RE Appr'!N16,'RE Appr'!$E$13:$J$59,6,FALSE)/100)) -> 399,326 | I9: =($A9-$A8)/365.25*$D$1*(1+$D$2+(VLOOKUP('RE Appr'!O16,'RE Appr'!$E$13:$J$59,6,FALSE)/100)) -> 415,286 | J9: =($A9-$A8)/365.25*$D$1*(1+$D$2+(VLOOKUP('RE Appr'!P16,'RE Appr'!$E$13:$J$59,6,FALSE)/100)) -> 429,316 | K9: =($A9-$A8)/365.25*$D$1*(1+$D$2+(VLOOKUP('RE Appr'!Q16,'RE Appr'!$E$13:$J$59,6,FALSE)/100)) -> 419,290 | L9: =($A9-$A8)/365.25*$D$1*(1+$D$2+(VLOOKUP('RE Appr'!R16,'RE Appr'!$E$13:$J$59,6,FALSE)/100)) -> 417,916 | M9: =($A9-$A8)/365.25*$D$1*(1+$D$2+(VLOOKUP('RE Appr'!S16,'RE Appr'!$E$13:$J$59,6,FALSE)/100)) -> 418,174 | N9: =($A9-$A8)/365.25*$D$1*(1+$D$2+(VLOOKUP('RE Appr'!T16,'RE Appr'!$E$13:$J$59,6,FALSE)/100)) -> 441,108 | O9: =($A9-$A8)/365.25*$D$1*(1+$D$2+(VLOOKUP('RE Appr'!U16,'RE Appr'!$E$13:$J$59,6,FALSE)/100)) -> 416,235 | P9: =($A9-$A8)/365.25*$D$1*(1+$D$2+(VLOOKUP('RE Appr'!V16,'RE Appr'!$E$13:$J$59,6,FALSE)/100)) -> 419,343 | Q9: =($A9-$A8)/365.25*$D$1*(1+$D$2+(VLOOKUP('RE Appr'!W16,'RE Appr'!$E$13:$J$59,6,FALSE)/100)) -> 375,603 | R9: =($A9-$A8)/365.25*$D$1*(1+$D$2+(VLOOKUP('RE Appr'!X16,'RE Appr'!$E$13:$J$59,6,FALSE)/100)) -> 417,916 | S9: =($A9-$A8)/365.25*$D$1*(1+$D$2+(VLOOKUP('RE Appr'!Y16,'RE Appr'!$E$13:$J$59,6,FALSE)/100)) -> 419,290 | T9: =($A9-$A8)/365.25*$D$1*(1+$D$2+(VLOOKUP('RE Appr'!Z16,'RE Appr'!$E$13:$J$59,6,FALSE)/100)) -> 419,543 | U9: =($A9-$A8)/365.25*$D$1*(1+$D$2+(VLOOKUP('RE Appr'!AA16,'RE Appr'!$E$13:$J$59,6,FALSE)/100)) -> 455,688 | V9: =($A9-$A8)/365.25*$D$1*(1+$D$2+(VLOOKUP('RE Appr'!AB16,'RE Appr'!$E$13:$J$59,6,FALSE)/100)) -> 437,041 | W9: =($A9-$A8)/365.25*$D$1*(1+$D$2+(VLOOKUP('RE Appr'!AC16,'RE Appr'!$E$13:$J$59,6,FALSE)/100)) -> 412,517 | X9: =($A9-$A8)/365.25*$D$1*(1+$D$2+(VLOOKUP('RE Appr'!AD16,'RE Appr'!$E$13:$J$59,6,FALSE)/100)) -> 423,750 | Y9: =($A9-$A8)/365.25*$D$1*(1+$D$2+(VLOOKUP('RE Appr'!AE16,'RE Appr'!$E$13:$J$59,6,FALSE)/100)) -> 455,688 | Z9: =($A9-$A8)/365.25*$D$1*(1+$D$2+(VLOOKUP('RE Appr'!AF16,'RE Appr'!$E$13:$J$59,6,FALSE)/100)) -> 421,666 | AA9: =($A9-$A8)/365.25*$D$1*(1+$D$2+(VLOOKUP('RE Appr'!AG16,'RE Appr'!$E$13:$J$59,6,FALSE)/100)) -> 435,182 | AB9: =($A9-$A8)/365.25*$D$1*(1+$D$2+(VLOOKUP('RE Appr'!AH16,'RE Appr'!$E$13:$J$59,6,FALSE)/100)) -> 417,654 | AC9: =($A9-$A8)/365.25*$D$1*(1+$D$2+(VLOOKUP('RE Appr'!AI16,'RE Appr'!$E$13:$J$59,6,FALSE)/100)) -> 410,729 | AD9: =($A9-$A8)/365.25*$D$1*(1+$D$2+(VLOOKUP('RE Appr'!AJ16,'RE Appr'!$E$13:$J$59,6,FALSE)/100)) -> 399,326 | AE9: =($A9-$A8)/365.25*$D$1*(1+$D$2+(VLOOKUP('RE Appr'!AK16,'RE Appr'!$E$13:$J$59,6,FALSE)/100)) -> 401,385 | AF9: =($A9-$A8)/365.25*$D$1*(1+$D$2+(VLOOKUP('RE Appr'!AL16,'RE Appr'!$E$13:$J$59,6,FALSE)/100)) -> 441,528 | AG9: =($A9-$A8)/365.25*$D$1*(1+$D$2+(VLOOKUP('RE Appr'!AM16,'RE Appr'!$E$13:$J$59,6,FALSE)/100)) -> 418,834 | AH9: =($A9-$A8)/365.25*$D$1*(1+$D$2+(VLOOKUP('RE Appr'!AN16,'RE Appr'!$E$13:$J$59,6,FALSE)/100)) -> 417,916 | AI9: =($A9-$A8)/365.25*$D$1*(1+$D$2+(VLOOKUP('RE Appr'!AO16,'RE Appr'!$E$13:$J$59,6,FALSE)/100)) -> 426,042 | AJ9: =($A9-$A8)/365.25*$D$1*(1+$D$2+(VLOOKUP('RE Appr'!AP16,'RE Appr'!$E$13:$J$59,6,FALSE)/100)) -> 441,528 | AK9: =($A9-$A8)/365.25*$D$1*(1+$D$2+(VLOOKUP('RE Appr'!AQ16,'RE Appr'!$E$13:$J$59,6,FALSE)/100)) -> 441,108 | AL9: =($A9-$A8)/365.25*$D$1*(1+$D$2+(VLOOKUP('RE Appr'!AR16,'RE Appr'!$E$13:$J$59,6,FALSE)/100)) -> 419,633 | AM9: =($A9-$A8)/365.25*$D$1*(1+$D$2+(VLOOKUP('RE Appr'!AS16,'RE Appr'!$E$13:$J$59,6,FALSE)/100)) -> 415,286 | AN9: =($A9-$A8)/365.25*$D$1*(1+$D$2+(VLOOKUP('RE Appr'!AT16,'RE Appr'!$E$13:$J$59,6,FALSE)/100)) -> 419,633 | AO9: =($A9-$A8)/365.25*$D$1*(1+$D$2+(VLOOKUP('RE Appr'!AU16,'RE Appr'!$E$13:$J$59,6,FALSE)/100)) -> 416,235 | AP9: =($A9-$A8)/365.25*$D$1*(1+$D$2+(VLOOKUP('RE Appr'!AV16,'RE Appr'!$E$13:$J$59,6,FALSE)/100)) -> 437,041 | AQ9: =($A9-$A8)/365.25*$D$1*(1+$D$2+(VLOOKUP('RE Appr'!AW16,'RE Appr'!$E$13:$J$59,6,FALSE)/100)) -> 386,675 | AR9: =($A9-$A8)/365.25*$D$1*(1+$D$2+(VLOOKUP('RE Appr'!AX16,'RE Appr'!$E$13:$J$59,6,FALSE)/100)) -> 437,041 | AS9: =($A9-$A8)/365.25*$D$1*(1+$D$2+(VLOOKUP('RE Appr'!AY16,'RE Appr'!$E$13:$J$59,6,FALSE)/100)) -> 436,841 | AT9: =($A9-$A8)/365.25*$D$1*(1+$D$2+(VLOOKUP('RE Appr'!AZ16,'RE Appr'!$E$13:$J$59,6,FALSE)/100)) -> 419,343 | AU9: =($A9-$A8)/365.25*$D$1*(1+$D$2+(VLOOKUP('RE Appr'!BA16,'RE Appr'!$E$13:$J$59,6,FALSE)/100)) -> 440,668 | AV9: =($A9-$A8)/365.25*$D$1*(1+$D$2+(VLOOKUP('RE Appr'!BB16,'RE Appr'!$E$13:$J$59,6,FALSE)/100)) -> 407,091 | AW9: =($A9-$A8)/365.25*$D$1*(1+$D$2+(VLOOKUP('RE Appr'!BC16,'RE Appr'!$E$13:$J$59,6,FALSE)/100)) -> 416,235 | AX9: =($A9-$A8)/365.25*$D$1*(1+$D$2+(VLOOKUP('RE Appr'!BD16,'RE Appr'!$E$13:$J$59,6,FALSE)/100)) -> 399,326 | AY9: =($A9-$A8)/365.25*$D$1*(1+$D$2+(VLOOKUP('RE Appr'!BE16,'RE Appr'!$E$13:$J$59,6,FALSE)/100)) -> 410,729 | AZ9: =($A9-$A8)/365.25*$D$1*(1+$D$2+(VLOOKUP('RE Appr'!BF16,'RE Appr'!$E$13:$J$59,6,FALSE)/100)) -> 431,774 | BA9: =($A9-$A8)/365.25*$D$1*(1+$D$2+(VLOOKUP('RE Appr'!BG16,'RE Appr'!$E$13:$J$59,6,FALSE)/100)) -> 412,637 | BB9: =($A9-$A8)/365.25*$D$1*(1+$D$2+(VLOOKUP('RE Appr'!BH16,'RE Appr'!$E$13:$J$59,6,FALSE)/100)) -> 431,774 | BC9: =($A9-$A8)/365.25*$D$1*(1+$D$2+(VLOOKUP('RE Appr'!BI16,'RE Appr'!$E$13:$J$59,6,FALSE)/100)) -> 416,695 | BD9: =($A9-$A8)/365.25*$D$1*(1+$D$2+(VLOOKUP('RE Appr'!BJ16,'RE Appr'!$E$13:$J$59,6,FALSE)/100)) -> 415,848 | BE9: =($A9-$A8)/365.25*$D$1*(1+$D$2+(VLOOKUP('RE Appr'!BK16,'RE Appr'!$E$13:$J$59,6,FALSE)/100)) -> 417,916 | BF9: =($A9-$A8)/365.25*$D$1*(1+$D$2+(VLOOKUP('RE Appr'!BL16,'RE Appr'!$E$13:$J$59,6,FALSE)/100)) -> 412,637 | BG9: =($A9-$A8)/365.25*$D$1*(1+$D$2+(VLOOKUP('RE Appr'!BM16,'RE Appr'!$E$13:$J$59,6,FALSE)/100)) -> 435,182 | BH9: =($A9-$A8)/365.25*$D$1*(1+$D$2+(VLOOKUP('RE Appr'!BN16,'RE Appr'!$E$13:$J$59,6,FALSE)/100)) -> 410,729 | BI9: =($A9-$A8)/365.25*$D$1*(1+$D$2+(VLOOKUP('RE Appr'!BO16,'RE Appr'!$E$13:$J$59,6,FALSE)/100)) -> 412,977 | BJ9: =($A9-$A8)/365.25*$D$1*(1+$D$2+(VLOOKUP('RE Appr'!BP16,'RE Appr'!$E$13:$J$59,6,FALSE)/100)) -> 422,511 | BK9: =($A9-$A8)/365.25*$D$1*(1+$D$2+(VLOOKUP('RE Appr'!BQ16,'RE Appr'!$E$13:$J$59,6,FALSE)/100)) -> 415,848 | BL9: =($A9-$A8)/365.25*$D$1*(1+$D$2+(VLOOKUP('RE Appr'!BR16,'RE Appr'!$E$13:$J$59,6,FALSE)/100)) -> 412,517 | BM9: =($A9-$A8)/365.25*$D$1*(1+$D$2+(VLOOKUP('RE Appr'!BS16,'RE Appr'!$E$13:$J$59,6,FALSE)/100)) -> 420,192 | BN9: =($A9-$A8)/365.25*$D$1*(1+$D$2+(VLOOKUP('RE Appr'!BT16,'RE Appr'!$E$13:$J$59,6,FALSE)/100)) -> 419,633 | BO9: =($A9-$A8)/365.25*$D$1*(1+$D$2+(VLOOKUP('RE Appr'!BU16,'RE Appr'!$E$13:$J$59,6,FALSE)/100)) -> 415,286 | BP9: =($A9-$A8)/365.25*$D$1*(1+$D$2+(VLOOKUP('RE Appr'!BV16,'RE Appr'!$E$13:$J$59,6,FALSE)/100)) -> 423,730 | BQ9: =($A9-$A8)/365.25*$D$1*(1+$D$2+(VLOOKUP('RE Appr'!BW16,'RE Appr'!$E$13:$J$59,6,FALSE)/100)) -> 431,774 | BR9: =($A9-$A8)/365.25*$D$1*(1+$D$2+(VLOOKUP('RE Appr'!BX16,'RE Appr'!$E$13:$J$59,6,FALSE)/100)) -> 431,774 | BS9: =($A9-$A8)/365.25*$D$1*(1+$D$2+(VLOOKUP('RE Appr'!BY16,'RE Appr'!$E$13:$J$59,6,FALSE)/100)) -> 401,385 | BT9: =($A9-$A8)/365.25*$D$1*(1+$D$2+(VLOOKUP('RE Appr'!BZ16,'RE Appr'!$E$13:$J$59,6,FALSE)/100)) -> 422,511 | BU9: =($A9-$A8)/365.25*$D$1*(1+$D$2+(VLOOKUP('RE Appr'!CA16,'RE Appr'!$E$13:$J$59,6,FALSE)/100)) -> 417,654 | BV9: =($A9-$A8)/365.25*$D$1*(1+$D$2+(VLOOKUP('RE Appr'!CB16,'RE Appr'!$E$13:$J$59,6,FALSE)/100)) -> 415,286 | BW9: =($A9-$A8)/365.25*$D$1*(1+$D$2+(VLOOKUP('RE Appr'!CC16,'RE Appr'!$E$13:$J$59,6,FALSE)/100)) -> 451,019 | BX9: =($A9-$A8)/365.25*$D$1*(1+$D$2+(VLOOKUP('RE Appr'!CD16,'RE Appr'!$E$13:$J$59,6,FALSE)/100)) -> 414,846 | BY9: =($A9-$A8)/365.25*$D$1*(1+$D$2+(VLOOKUP('RE Appr'!CE16,'RE Appr'!$E$13:$J$59,6,FALSE)/100)) -> 421,666 | BZ9: =($A9-$A8)/365.25*$D$1*(1+$D$2+(VLOOKUP('RE Appr'!CF16,'RE Appr'!$E$13:$J$59,6,FALSE)/100)) -> 470,498 | CA9: =($A9-$A8)/365.25*$D$1*(1+$D$2+(VLOOKUP('RE Appr'!CG16,'RE Appr'!$E$13:$J$59,6,FALSE)/100)) -> 415,848 | CB9: =($A9-$A8)/365.25*$D$1*(1+$D$2+(VLOOKUP('RE Appr'!CH16,'RE Appr'!$E$13:$J$59,6,FALSE)/100)) -> 415,046 | CC9: =($A9-$A8)/365.25*$D$1*(1+$D$2+(VLOOKUP('RE Appr'!CI16,'RE Appr'!$E$13:$J$59,6,FALSE)/100)) -> 431,774 | CD9: =($A9-$A8)/365.25*$D$1*(1+$D$2+(VLOOKUP('RE Appr'!CJ16,'RE Appr'!$E$13:$J$59,6,FALSE)/100)) -> 437,041 | CE9: =($A9-$A8)/365.25*$D$1*(1+$D$2+(VLOOKUP('RE Appr'!CK16,'RE Appr'!$E$13:$J$59,6,FALSE)/100)) -> 437,041 | CF9: =($A9-$A8)/365.25*$D$1*(1+$D$2+(VLOOKUP('RE Appr'!CL16,'RE Appr'!$E$13:$J$59,6,FALSE)/100)) -> 418,174 | CG9: =($A9-$A8)/365.25*$D$1*(1+$D$2+(VLOOKUP('RE Appr'!CM16,'RE Appr'!$E$13:$J$59,6,FALSE)/100)) -> 399,326 | CH9: =($A9-$A8)/365.25*$D$1*(1+$D$2+(VLOOKUP('RE Appr'!CN16,'RE Appr'!$E$13:$J$59,6,FALSE)/100)) -> 470,498 | CI9: =($A9-$A8)/365.25*$D$1*(1+$D$2+(VLOOKUP('RE Appr'!CO16,'RE Appr'!$E$13:$J$59,6,FALSE)/100)) -> 419,543 | CJ9: =($A9-$A8)/365.25*$D$1*(1+$D$2+(VLOOKUP('RE Appr'!CP16,'RE Appr'!$E$13:$J$59,6,FALSE)/100)) -> 431,774 | CK9: =($A9-$A8)/365.25*$D$1*(1+$D$2+(VLOOKUP('RE Appr'!CQ16,'RE Appr'!$E$13:$J$59,6,FALSE)/100)) -> 436,841 | CL9: =($A9-$A8)/365.25*$D$1*(1+$D$2+(VLOOKUP('RE Appr'!CR16,'RE Appr'!$E$13:$J$59,6,FALSE)/100)) -> 435,772 | CM9: =($A9-$A8)/365.25*$D$1*(1+$D$2+(VLOOKUP('RE Appr'!CS16,'RE Appr'!$E$13:$J$59,6,FALSE)/100)) -> 415,848 | CN9: =($A9-$A8)/365.25*$D$1*(1+$D$2+(VLOOKUP('RE Appr'!CT16,'RE Appr'!$E$13:$J$59,6,FALSE)/100)) -> 436,841 | CO9: =($A9-$A8)/365.25*$D$1*(1+$D$2+(VLOOKUP('RE Appr'!CU16,'RE Appr'!$E$13:$J$59,6,FALSE)/100)) -> 386,675 | CP9: =($A9-$A8)/365.25*$D$1*(1+$D$2+(VLOOKUP('RE Appr'!CV16,'RE Appr'!$E$13:$J$59,6,FALSE)/100)) -> 418,174 | CQ9: =($A9-$A8)/365.25*$D$1*(1+$D$2+(VLOOKUP('RE Appr'!CW16,'RE Appr'!$E$13:$J$59,6,FALSE)/100)) -> 375,603 | CR9: =($A9-$A8)/365.25*$D$1*(1+$D$2+(VLOOKUP('RE Appr'!CX16,'RE Appr'!$E$13:$J$59,6,FALSE)/100)) -> 419,543 | CS9: =($A9-$A8)/365.25*$D$1*(1+$D$2+(VLOOKUP('RE Appr'!CY16,'RE Appr'!$E$13:$J$59,6,FALSE)/100)) -> 412,637 | CT9: =($A9-$A8)/365.25*$D$1*(1+$D$2+(VLOOKUP('RE Appr'!CZ16,'RE Appr'!$E$13:$J$59,6,FALSE)/100)) -> 419,290 | CU9: =($A9-$A8)/365.25*$D$1*(1+$D$2+(VLOOKUP('RE Appr'!DA16,'RE Appr'!$E$13:$J$59,6,FALSE)/100)) -> 412,278 | CV9: =($A9-$A8)/365.25*$D$1*(1+$D$2+(VLOOKUP('RE Appr'!DB16,'RE Appr'!$E$13:$J$59,6,FALSE)/100)) -> 399,326 | CW9: =($A9-$A8)/365.25*$D$1*(1+$D$2+(VLOOKUP('RE Appr'!DC16,'RE Appr'!$E$13:$J$59,6,FALSE)/100)) -> 399,326 | CX9: =($A9-$A8)/365.25*$D$1*(1+$D$2+(VLOOKUP('RE Appr'!DD16,'RE Appr'!$E$13:$J$59,6,FALSE)/100)) -> 418,834 | CY9: =($A9-$A8)/365.25*$D$1*(1+$D$2+(VLOOKUP('RE Appr'!DE16,'RE Appr'!$E$13:$J$59,6,FALSE)/100)) -> 414,846 | CZ9: =($A9-$A8)/365.25*$D$1*(1+$D$2+(VLOOKUP('RE Appr'!DF16,'RE Appr'!$E$13:$J$59,6,FALSE)/100)) -> 418,834 | DA9: =($A9-$A8)/365.25*$D$1*(1+$D$2+(VLOOKUP('RE Appr'!DG16,'RE Appr'!$E$13:$J$59,6,FALSE)/100)) -> 451,019
A10: =Main!A12 -> 2027-12-31 | B10: 5 | C10: 13,617 | D10: =($E$5-SUM(C$6:C9))*$D$3 -> 1,498 | E10: 38,495 | F10: =($A10-$A9)/365.25*$D$1*(1+$D$2+(VLOOKUP('RE Appr'!L17,'RE Appr'!$E$13:$J$59,6,FALSE)/100)) -> 410,391 | G10: =($A10-$A9)/365.25*$D$1*(1+$D$2+(VLOOKUP('RE Appr'!M17,'RE Appr'!$E$13:$J$59,6,FALSE)/100)) -> 441,875 | H10: =($A10-$A9)/365.25*$D$1*(1+$D$2+(VLOOKUP('RE Appr'!N17,'RE Appr'!$E$13:$J$59,6,FALSE)/100)) -> 411,854 | I10: =($A10-$A9)/365.25*$D$1*(1+$D$2+(VLOOKUP('RE Appr'!O17,'RE Appr'!$E$13:$J$59,6,FALSE)/100)) -> 423,668 | J10: =($A10-$A9)/365.25*$D$1*(1+$D$2+(VLOOKUP('RE Appr'!P17,'RE Appr'!$E$13:$J$59,6,FALSE)/100)) -> 387,735 | K10: =($A10-$A9)/365.25*$D$1*(1+$D$2+(VLOOKUP('RE Appr'!Q17,'RE Appr'!$E$13:$J$59,6,FALSE)/100)) -> 417,836 | L10: =($A10-$A9)/365.25*$D$1*(1+$D$2+(VLOOKUP('RE Appr'!R17,'RE Appr'!$E$13:$J$59,6,FALSE)/100)) -> 436,965 | M10: =($A10-$A9)/365.25*$D$1*(1+$D$2+(VLOOKUP('RE Appr'!S17,'RE Appr'!$E$13:$J$59,6,FALSE)/100)) -> 420,692 | N10: =($A10-$A9)/365.25*$D$1*(1+$D$2+(VLOOKUP('RE Appr'!T17,'RE Appr'!$E$13:$J$59,6,FALSE)/100)) -> 441,875 | O10: =($A10-$A9)/365.25*$D$1*(1+$D$2+(VLOOKUP('RE Appr'!U17,'RE Appr'!$E$13:$J$59,6,FALSE)/100)) -> 413,768 | P10: =($A10-$A9)/365.25*$D$1*(1+$D$2+(VLOOKUP('RE Appr'!V17,'RE Appr'!$E$13:$J$59,6,FALSE)/100)) -> 412,175 | Q10: =($A10-$A9)/365.25*$D$1*(1+$D$2+(VLOOKUP('RE Appr'!W17,'RE Appr'!$E$13:$J$59,6,FALSE)/100)) -> 400,421 | R10: =($A10-$A9)/365.25*$D$1*(1+$D$2+(VLOOKUP('RE Appr'!X17,'RE Appr'!$E$13:$J$59,6,FALSE)/100)) -> 441,875 | S10: =($A10-$A9)/365.25*$D$1*(1+$D$2+(VLOOKUP('RE Appr'!Y17,'RE Appr'!$E$13:$J$59,6,FALSE)/100)) -> 420,692 | T10: =($A10-$A9)/365.25*$D$1*(1+$D$2+(VLOOKUP('RE Appr'!Z17,'RE Appr'!$E$13:$J$59,6,FALSE)/100)) -> 412,175 | U10: =($A10-$A9)/365.25*$D$1*(1+$D$2+(VLOOKUP('RE Appr'!AA17,'RE Appr'!$E$13:$J$59,6,FALSE)/100)) -> 424,891 | V10: =($A10-$A9)/365.25*$D$1*(1+$D$2+(VLOOKUP('RE Appr'!AB17,'RE Appr'!$E$13:$J$59,6,FALSE)/100)) -> 436,965 | W10: =($A10-$A9)/365.25*$D$1*(1+$D$2+(VLOOKUP('RE Appr'!AC17,'RE Appr'!$E$13:$J$59,6,FALSE)/100)) -> 411,854 | X10: =($A10-$A9)/365.25*$D$1*(1+$D$2+(VLOOKUP('RE Appr'!AD17,'RE Appr'!$E$13:$J$59,6,FALSE)/100)) -> 402,485 | Y10: =($A10-$A9)/365.25*$D$1*(1+$D$2+(VLOOKUP('RE Appr'!AE17,'RE Appr'!$E$13:$J$59,6,FALSE)/100)) -> 442,737 | Z10: =($A10-$A9)/365.25*$D$1*(1+$D$2+(VLOOKUP('RE Appr'!AF17,'RE Appr'!$E$13:$J$59,6,FALSE)/100)) -> 471,787 | AA10: =($A10-$A9)/365.25*$D$1*(1+$D$2+(VLOOKUP('RE Appr'!AG17,'RE Appr'!$E$13:$J$59,6,FALSE)/100)) -> 413,648 | AB10: =($A10-$A9)/365.25*$D$1*(1+$D$2+(VLOOKUP('RE Appr'!AH17,'RE Appr'!$E$13:$J$59,6,FALSE)/100)) -> 417,375 | AC10: =($A10-$A9)/365.25*$D$1*(1+$D$2+(VLOOKUP('RE Appr'!AI17,'RE Appr'!$E$13:$J$59,6,FALSE)/100)) -> 402,485 | AD10: =($A10-$A9)/365.25*$D$1*(1+$D$2+(VLOOKUP('RE Appr'!AJ17,'RE Appr'!$E$13:$J$59,6,FALSE)/100)) -> 416,423 | AE10: =($A10-$A9)/365.25*$D$1*(1+$D$2+(VLOOKUP('RE Appr'!AK17,'RE Appr'!$E$13:$J$59,6,FALSE)/100)) -> 471,787 | AF10: =($A10-$A9)/365.25*$D$1*(1+$D$2+(VLOOKUP('RE Appr'!AL17,'RE Appr'!$E$13:$J$59,6,FALSE)/100)) -> 413,648 | AG10: =($A10-$A9)/365.25*$D$1*(1+$D$2+(VLOOKUP('RE Appr'!AM17,'RE Appr'!$E$13:$J$59,6,FALSE)/100)) -> 420,492 | AH10: =($A10-$A9)/365.25*$D$1*(1+$D$2+(VLOOKUP('RE Appr'!AN17,'RE Appr'!$E$13:$J$59,6,FALSE)/100)) -> 408,206 | AI10: =($A10-$A9)/365.25*$D$1*(1+$D$2+(VLOOKUP('RE Appr'!AO17,'RE Appr'!$E$13:$J$59,6,FALSE)/100)) -> 435,402 | AJ10: =($A10-$A9)/365.25*$D$1*(1+$D$2+(VLOOKUP('RE Appr'!AP17,'RE Appr'!$E$13:$J$59,6,FALSE)/100)) -> 416,183 | AK10: =($A10-$A9)/365.25*$D$1*(1+$D$2+(VLOOKUP('RE Appr'!AQ17,'RE Appr'!$E$13:$J$59,6,FALSE)/100)) -> 423,668 | AL10: =($A10-$A9)/365.25*$D$1*(1+$D$2+(VLOOKUP('RE Appr'!AR17,'RE Appr'!$E$13:$J$59,6,FALSE)/100)) -> 416,987 | AM10: =($A10-$A9)/365.25*$D$1*(1+$D$2+(VLOOKUP('RE Appr'!AS17,'RE Appr'!$E$13:$J$59,6,FALSE)/100)) -> 376,632 | AN10: =($A10-$A9)/365.25*$D$1*(1+$D$2+(VLOOKUP('RE Appr'!AT17,'RE Appr'!$E$13:$J$59,6,FALSE)/100)) -> 384,879 | AO10: =($A10-$A9)/365.25*$D$1*(1+$D$2+(VLOOKUP('RE Appr'!AU17,'RE Appr'!$E$13:$J$59,6,FALSE)/100)) -> 411,854 | AP10: =($A10-$A9)/365.25*$D$1*(1+$D$2+(VLOOKUP('RE Appr'!AV17,'RE Appr'!$E$13:$J$59,6,FALSE)/100)) -> 384,879 | AQ10: =($A10-$A9)/365.25*$D$1*(1+$D$2+(VLOOKUP('RE Appr'!AW17,'RE Appr'!$E$13:$J$59,6,FALSE)/100)) -> 441,875 | AR10: =($A10-$A9)/365.25*$D$1*(1+$D$2+(VLOOKUP('RE Appr'!AX17,'RE Appr'!$E$13:$J$59,6,FALSE)/100)) -> 416,183 | AS10: =($A10-$A9)/365.25*$D$1*(1+$D$2+(VLOOKUP('RE Appr'!AY17,'RE Appr'!$E$13:$J$59,6,FALSE)/100)) -> 402,485 | AT10: =($A10-$A9)/365.25*$D$1*(1+$D$2+(VLOOKUP('RE Appr'!AZ17,'RE Appr'!$E$13:$J$59,6,FALSE)/100)) -> 372,343 | AU10: =($A10-$A9)/365.25*$D$1*(1+$D$2+(VLOOKUP('RE Appr'!BA17,'RE Appr'!$E$13:$J$59,6,FALSE)/100)) -> 420,439 | AV10: =($A10-$A9)/365.25*$D$1*(1+$D$2+(VLOOKUP('RE Appr'!BB17,'RE Appr'!$E$13:$J$59,6,FALSE)/100)) -> 432,957 | AW10: =($A10-$A9)/365.25*$D$1*(1+$D$2+(VLOOKUP('RE Appr'!BC17,'RE Appr'!$E$13:$J$59,6,FALSE)/100)) -> 418,798 | AX10: =($A10-$A9)/365.25*$D$1*(1+$D$2+(VLOOKUP('RE Appr'!BD17,'RE Appr'!$E$13:$J$59,6,FALSE)/100)) -> 420,492 | AY10: =($A10-$A9)/365.25*$D$1*(1+$D$2+(VLOOKUP('RE Appr'!BE17,'RE Appr'!$E$13:$J$59,6,FALSE)/100)) -> 432,957 | AZ10: =($A10-$A9)/365.25*$D$1*(1+$D$2+(VLOOKUP('RE Appr'!BF17,'RE Appr'!$E$13:$J$59,6,FALSE)/100)) -> 412,175 | BA10: =($A10-$A9)/365.25*$D$1*(1+$D$2+(VLOOKUP('RE Appr'!BG17,'RE Appr'!$E$13:$J$59,6,FALSE)/100)) -> 402,485 | BB10: =($A10-$A9)/365.25*$D$1*(1+$D$2+(VLOOKUP('RE Appr'!BH17,'RE Appr'!$E$13:$J$59,6,FALSE)/100)) -> 456,936 | BC10: =($A10-$A9)/365.25*$D$1*(1+$D$2+(VLOOKUP('RE Appr'!BI17,'RE Appr'!$E$13:$J$59,6,FALSE)/100)) -> 423,668 | BD10: =($A10-$A9)/365.25*$D$1*(1+$D$2+(VLOOKUP('RE Appr'!BJ17,'RE Appr'!$E$13:$J$59,6,FALSE)/100)) -> 430,492 | BE10: =($A10-$A9)/365.25*$D$1*(1+$D$2+(VLOOKUP('RE Appr'!BK17,'RE Appr'!$E$13:$J$59,6,FALSE)/100)) -> 452,255 | BF10: =($A10-$A9)/365.25*$D$1*(1+$D$2+(VLOOKUP('RE Appr'!BL17,'RE Appr'!$E$13:$J$59,6,FALSE)/100)) -> 419,061 | BG10: =($A10-$A9)/365.25*$D$1*(1+$D$2+(VLOOKUP('RE Appr'!BM17,'RE Appr'!$E$13:$J$59,6,FALSE)/100)) -> 435,402 | BH10: =($A10-$A9)/365.25*$D$1*(1+$D$2+(VLOOKUP('RE Appr'!BN17,'RE Appr'!$E$13:$J$59,6,FALSE)/100)) -> 416,183 | BI10: =($A10-$A9)/365.25*$D$1*(1+$D$2+(VLOOKUP('RE Appr'!BO17,'RE Appr'!$E$13:$J$59,6,FALSE)/100)) -> 418,798 | BJ10: =($A10-$A9)/365.25*$D$1*(1+$D$2+(VLOOKUP('RE Appr'!BP17,'RE Appr'!$E$13:$J$59,6,FALSE)/100)) -> 411,854 | BK10: =($A10-$A9)/365.25*$D$1*(1+$D$2+(VLOOKUP('RE Appr'!BQ17,'RE Appr'!$E$13:$J$59,6,FALSE)/100)) -> 419,319 | BL10: =($A10-$A9)/365.25*$D$1*(1+$D$2+(VLOOKUP('RE Appr'!BR17,'RE Appr'!$E$13:$J$59,6,FALSE)/100)) -> 441,875 | BM10: =($A10-$A9)/365.25*$D$1*(1+$D$2+(VLOOKUP('RE Appr'!BS17,'RE Appr'!$E$13:$J$59,6,FALSE)/100)) -> 438,238 | BN10: =($A10-$A9)/365.25*$D$1*(1+$D$2+(VLOOKUP('RE Appr'!BT17,'RE Appr'!$E$13:$J$59,6,FALSE)/100)) -> 412,175 | BO10: =($A10-$A9)/365.25*$D$1*(1+$D$2+(VLOOKUP('RE Appr'!BU17,'RE Appr'!$E$13:$J$59,6,FALSE)/100)) -> 414,109 | BP10: =($A10-$A9)/365.25*$D$1*(1+$D$2+(VLOOKUP('RE Appr'!BV17,'RE Appr'!$E$13:$J$59,6,FALSE)/100)) -> 413,407 | BQ10: =($A10-$A9)/365.25*$D$1*(1+$D$2+(VLOOKUP('RE Appr'!BW17,'RE Appr'!$E$13:$J$59,6,FALSE)/100)) -> 441,875 | BR10: =($A10-$A9)/365.25*$D$1*(1+$D$2+(VLOOKUP('RE Appr'!BX17,'RE Appr'!$E$13:$J$59,6,FALSE)/100)) -> 420,782 | BS10: =($A10-$A9)/365.25*$D$1*(1+$D$2+(VLOOKUP('RE Appr'!BY17,'RE Appr'!$E$13:$J$59,6,FALSE)/100)) -> 419,319 | BT10: =($A10-$A9)/365.25*$D$1*(1+$D$2+(VLOOKUP('RE Appr'!BZ17,'RE Appr'!$E$13:$J$59,6,FALSE)/100)) -> 415,982 | BU10: =($A10-$A9)/365.25*$D$1*(1+$D$2+(VLOOKUP('RE Appr'!CA17,'RE Appr'!$E$13:$J$59,6,FALSE)/100)) -> 402,485 | BV10: =($A10-$A9)/365.25*$D$1*(1+$D$2+(VLOOKUP('RE Appr'!CB17,'RE Appr'!$E$13:$J$59,6,FALSE)/100)) -> 384,879 | BW10: =($A10-$A9)/365.25*$D$1*(1+$D$2+(VLOOKUP('RE Appr'!CC17,'RE Appr'!$E$13:$J$59,6,FALSE)/100)) -> 376,632 | BX10: =($A10-$A9)/365.25*$D$1*(1+$D$2+(VLOOKUP('RE Appr'!CD17,'RE Appr'!$E$13:$J$59,6,FALSE)/100)) -> 411,854 | BY10: =($A10-$A9)/365.25*$D$1*(1+$D$2+(VLOOKUP('RE Appr'!CE17,'RE Appr'!$E$13:$J$59,6,FALSE)/100)) -> 376,632 | BZ10: =($A10-$A9)/365.25*$D$1*(1+$D$2+(VLOOKUP('RE Appr'!CF17,'RE Appr'!$E$13:$J$59,6,FALSE)/100)) -> 436,374 | CA10: =($A10-$A9)/365.25*$D$1*(1+$D$2+(VLOOKUP('RE Appr'!CG17,'RE Appr'!$E$13:$J$59,6,FALSE)/100)) -> 435,402 | CB10: =($A10-$A9)/365.25*$D$1*(1+$D$2+(VLOOKUP('RE Appr'!CH17,'RE Appr'!$E$13:$J$59,6,FALSE)/100)) -> 372,343 | CC10: =($A10-$A9)/365.25*$D$1*(1+$D$2+(VLOOKUP('RE Appr'!CI17,'RE Appr'!$E$13:$J$59,6,FALSE)/100)) -> 416,183 | CD10: =($A10-$A9)/365.25*$D$1*(1+$D$2+(VLOOKUP('RE Appr'!CJ17,'RE Appr'!$E$13:$J$59,6,FALSE)/100)) -> 417,375 | CE10: =($A10-$A9)/365.25*$D$1*(1+$D$2+(VLOOKUP('RE Appr'!CK17,'RE Appr'!$E$13:$J$59,6,FALSE)/100)) -> 417,836 | CF10: =($A10-$A9)/365.25*$D$1*(1+$D$2+(VLOOKUP('RE Appr'!CL17,'RE Appr'!$E$13:$J$59,6,FALSE)/100)) -> 417,375 | CG10: =($A10-$A9)/365.25*$D$1*(1+$D$2+(VLOOKUP('RE Appr'!CM17,'RE Appr'!$E$13:$J$59,6,FALSE)/100)) -> 413,407 | CH10: =($A10-$A9)/365.25*$D$1*(1+$D$2+(VLOOKUP('RE Appr'!CN17,'RE Appr'!$E$13:$J$59,6,FALSE)/100)) -> 412,175 | CI10: =($A10-$A9)/365.25*$D$1*(1+$D$2+(VLOOKUP('RE Appr'!CO17,'RE Appr'!$E$13:$J$59,6,FALSE)/100)) -> 372,343 | CJ10: =($A10-$A9)/365.25*$D$1*(1+$D$2+(VLOOKUP('RE Appr'!CP17,'RE Appr'!$E$13:$J$59,6,FALSE)/100)) -> 419,319 | CK10: =($A10-$A9)/365.25*$D$1*(1+$D$2+(VLOOKUP('RE Appr'!CQ17,'RE Appr'!$E$13:$J$59,6,FALSE)/100)) -> 424,891 | CL10: =($A10-$A9)/365.25*$D$1*(1+$D$2+(VLOOKUP('RE Appr'!CR17,'RE Appr'!$E$13:$J$59,6,FALSE)/100)) -> 408,206 | CM10: =($A10-$A9)/365.25*$D$1*(1+$D$2+(VLOOKUP('RE Appr'!CS17,'RE Appr'!$E$13:$J$59,6,FALSE)/100)) -> 456,936 | CN10: =($A10-$A9)/365.25*$D$1*(1+$D$2+(VLOOKUP('RE Appr'!CT17,'RE Appr'!$E$13:$J$59,6,FALSE)/100)) -> 471,787 | CO10: =($A10-$A9)/365.25*$D$1*(1+$D$2+(VLOOKUP('RE Appr'!CU17,'RE Appr'!$E$13:$J$59,6,FALSE)/100)) -> 400,421 | CP10: =($A10-$A9)/365.25*$D$1*(1+$D$2+(VLOOKUP('RE Appr'!CV17,'RE Appr'!$E$13:$J$59,6,FALSE)/100)) -> 435,402 | CQ10: =($A10-$A9)/365.25*$D$1*(1+$D$2+(VLOOKUP('RE Appr'!CW17,'RE Appr'!$E$13:$J$59,6,FALSE)/100)) -> 410,391 | CR10: =($A10-$A9)/365.25*$D$1*(1+$D$2+(VLOOKUP('RE Appr'!CX17,'RE Appr'!$E$13:$J$59,6,FALSE)/100)) -> 416,987 | CS10: =($A10-$A9)/365.25*$D$1*(1+$D$2+(VLOOKUP('RE Appr'!CY17,'RE Appr'!$E$13:$J$59,6,FALSE)/100)) -> 420,492 | CT10: =($A10-$A9)/365.25*$D$1*(1+$D$2+(VLOOKUP('RE Appr'!CZ17,'RE Appr'!$E$13:$J$59,6,FALSE)/100)) -> 384,879 | CU10: =($A10-$A9)/365.25*$D$1*(1+$D$2+(VLOOKUP('RE Appr'!DA17,'RE Appr'!$E$13:$J$59,6,FALSE)/100)) -> 441,875 | CV10: =($A10-$A9)/365.25*$D$1*(1+$D$2+(VLOOKUP('RE Appr'!DB17,'RE Appr'!$E$13:$J$59,6,FALSE)/100)) -> 442,316 | CW10: =($A10-$A9)/365.25*$D$1*(1+$D$2+(VLOOKUP('RE Appr'!DC17,'RE Appr'!$E$13:$J$59,6,FALSE)/100)) -> 441,875 | CX10: =($A10-$A9)/365.25*$D$1*(1+$D$2+(VLOOKUP('RE Appr'!DD17,'RE Appr'!$E$13:$J$59,6,FALSE)/100)) -> 419,981 | CY10: =($A10-$A9)/365.25*$D$1*(1+$D$2+(VLOOKUP('RE Appr'!DE17,'RE Appr'!$E$13:$J$59,6,FALSE)/100)) -> 419,319 | CZ10: =($A10-$A9)/365.25*$D$1*(1+$D$2+(VLOOKUP('RE Appr'!DF17,'RE Appr'!$E$13:$J$59,6,FALSE)/100)) -> 419,319 | DA10: =($A10-$A9)/365.25*$D$1*(1+$D$2+(VLOOKUP('RE Appr'!DG17,'RE Appr'!$E$13:$J$59,6,FALSE)/100)) -> 412,175
A11: =Main!A13 -> 2028-12-30 | B11: 6 | C11: 14,009 | D11: =($E$5-SUM(C$6:C10))*$D$3 -> 1,107 | E11: 24,486 | F11: =($A11-$A10)/365.25*$D$1*(1+$D$2+(VLOOKUP('RE Appr'!L18,'RE Appr'!$E$13:$J$59,6,FALSE)/100)) -> 436,841 | G11: =($A11-$A10)/365.25*$D$1*(1+$D$2+(VLOOKUP('RE Appr'!M18,'RE Appr'!$E$13:$J$59,6,FALSE)/100)) -> 416,235 | H11: =($A11-$A10)/365.25*$D$1*(1+$D$2+(VLOOKUP('RE Appr'!N18,'RE Appr'!$E$13:$J$59,6,FALSE)/100)) -> 415,848 | I11: =($A11-$A10)/365.25*$D$1*(1+$D$2+(VLOOKUP('RE Appr'!O18,'RE Appr'!$E$13:$J$59,6,FALSE)/100)) -> 434,213 | J11: =($A11-$A10)/365.25*$D$1*(1+$D$2+(VLOOKUP('RE Appr'!P18,'RE Appr'!$E$13:$J$59,6,FALSE)/100)) -> 420,192 | K11: =($A11-$A10)/365.25*$D$1*(1+$D$2+(VLOOKUP('RE Appr'!Q18,'RE Appr'!$E$13:$J$59,6,FALSE)/100)) -> 451,019 | L11: =($A11-$A10)/365.25*$D$1*(1+$D$2+(VLOOKUP('RE Appr'!R18,'RE Appr'!$E$13:$J$59,6,FALSE)/100)) -> 470,498 | M11: =($A11-$A10)/365.25*$D$1*(1+$D$2+(VLOOKUP('RE Appr'!S18,'RE Appr'!$E$13:$J$59,6,FALSE)/100)) -> 415,848 | N11: =($A11-$A10)/365.25*$D$1*(1+$D$2+(VLOOKUP('RE Appr'!T18,'RE Appr'!$E$13:$J$59,6,FALSE)/100)) -> 418,834 | O11: =($A11-$A10)/365.25*$D$1*(1+$D$2+(VLOOKUP('RE Appr'!U18,'RE Appr'!$E$13:$J$59,6,FALSE)/100)) -> 435,772 | P11: =($A11-$A10)/365.25*$D$1*(1+$D$2+(VLOOKUP('RE Appr'!V18,'RE Appr'!$E$13:$J$59,6,FALSE)/100)) -> 419,633 | Q11: =($A11-$A10)/365.25*$D$1*(1+$D$2+(VLOOKUP('RE Appr'!W18,'RE Appr'!$E$13:$J$59,6,FALSE)/100)) -> 419,343 | R11: =($A11-$A10)/365.25*$D$1*(1+$D$2+(VLOOKUP('RE Appr'!X18,'RE Appr'!$E$13:$J$59,6,FALSE)/100)) -> 386,675 | S11: =($A11-$A10)/365.25*$D$1*(1+$D$2+(VLOOKUP('RE Appr'!Y18,'RE Appr'!$E$13:$J$59,6,FALSE)/100)) -> 436,841 | T11: =($A11-$A10)/365.25*$D$1*(1+$D$2+(VLOOKUP('RE Appr'!Z18,'RE Appr'!$E$13:$J$59,6,FALSE)/100)) -> 412,637 | U11: =($A11-$A10)/365.25*$D$1*(1+$D$2+(VLOOKUP('RE Appr'!AA18,'RE Appr'!$E$13:$J$59,6,FALSE)/100)) -> 440,668 | V11: =($A11-$A10)/365.25*$D$1*(1+$D$2+(VLOOKUP('RE Appr'!AB18,'RE Appr'!$E$13:$J$59,6,FALSE)/100)) -> 415,286 | W11: =($A11-$A10)/365.25*$D$1*(1+$D$2+(VLOOKUP('RE Appr'!AC18,'RE Appr'!$E$13:$J$59,6,FALSE)/100)) -> 435,772 | X11: =($A11-$A10)/365.25*$D$1*(1+$D$2+(VLOOKUP('RE Appr'!AD18,'RE Appr'!$E$13:$J$59,6,FALSE)/100)) -> 415,286 | Y11: =($A11-$A10)/365.25*$D$1*(1+$D$2+(VLOOKUP('RE Appr'!AE18,'RE Appr'!$E$13:$J$59,6,FALSE)/100)) -> 441,108 | Z11: =($A11-$A10)/365.25*$D$1*(1+$D$2+(VLOOKUP('RE Appr'!AF18,'RE Appr'!$E$13:$J$59,6,FALSE)/100)) -> 409,270 | AA11: =($A11-$A10)/365.25*$D$1*(1+$D$2+(VLOOKUP('RE Appr'!AG18,'RE Appr'!$E$13:$J$59,6,FALSE)/100)) -> 434,213 | AB11: =($A11-$A10)/365.25*$D$1*(1+$D$2+(VLOOKUP('RE Appr'!AH18,'RE Appr'!$E$13:$J$59,6,FALSE)/100)) -> 416,235 | AC11: =($A11-$A10)/365.25*$D$1*(1+$D$2+(VLOOKUP('RE Appr'!AI18,'RE Appr'!$E$13:$J$59,6,FALSE)/100)) -> 451,019 | AD11: =($A11-$A10)/365.25*$D$1*(1+$D$2+(VLOOKUP('RE Appr'!AJ18,'RE Appr'!$E$13:$J$59,6,FALSE)/100)) -> 375,603 | AE11: =($A11-$A10)/365.25*$D$1*(1+$D$2+(VLOOKUP('RE Appr'!AK18,'RE Appr'!$E$13:$J$59,6,FALSE)/100)) -> 386,675 | AF11: =($A11-$A10)/365.25*$D$1*(1+$D$2+(VLOOKUP('RE Appr'!AL18,'RE Appr'!$E$13:$J$59,6,FALSE)/100)) -> 419,343 | AG11: =($A11-$A10)/365.25*$D$1*(1+$D$2+(VLOOKUP('RE Appr'!AM18,'RE Appr'!$E$13:$J$59,6,FALSE)/100)) -> 399,326 | AH11: =($A11-$A10)/365.25*$D$1*(1+$D$2+(VLOOKUP('RE Appr'!AN18,'RE Appr'!$E$13:$J$59,6,FALSE)/100)) -> 418,174 | AI11: =($A11-$A10)/365.25*$D$1*(1+$D$2+(VLOOKUP('RE Appr'!AO18,'RE Appr'!$E$13:$J$59,6,FALSE)/100)) -> 416,235 | AJ11: =($A11-$A10)/365.25*$D$1*(1+$D$2+(VLOOKUP('RE Appr'!AP18,'RE Appr'!$E$13:$J$59,6,FALSE)/100)) -> 401,385 | AK11: =($A11-$A10)/365.25*$D$1*(1+$D$2+(VLOOKUP('RE Appr'!AQ18,'RE Appr'!$E$13:$J$59,6,FALSE)/100)) -> 415,046 | AL11: =($A11-$A10)/365.25*$D$1*(1+$D$2+(VLOOKUP('RE Appr'!AR18,'RE Appr'!$E$13:$J$59,6,FALSE)/100)) -> 437,041 | AM11: =($A11-$A10)/365.25*$D$1*(1+$D$2+(VLOOKUP('RE Appr'!AS18,'RE Appr'!$E$13:$J$59,6,FALSE)/100)) -> 423,750 | AN11: =($A11-$A10)/365.25*$D$1*(1+$D$2+(VLOOKUP('RE Appr'!AT18,'RE Appr'!$E$13:$J$59,6,FALSE)/100)) -> 415,848 | AO11: =($A11-$A10)/365.25*$D$1*(1+$D$2+(VLOOKUP('RE Appr'!AU18,'RE Appr'!$E$13:$J$59,6,FALSE)/100)) -> 418,174 | AP11: =($A11-$A10)/365.25*$D$1*(1+$D$2+(VLOOKUP('RE Appr'!AV18,'RE Appr'!$E$13:$J$59,6,FALSE)/100)) -> 417,916 | AQ11: =($A11-$A10)/365.25*$D$1*(1+$D$2+(VLOOKUP('RE Appr'!AW18,'RE Appr'!$E$13:$J$59,6,FALSE)/100)) -> 419,290 | AR11: =($A11-$A10)/365.25*$D$1*(1+$D$2+(VLOOKUP('RE Appr'!AX18,'RE Appr'!$E$13:$J$59,6,FALSE)/100)) -> 419,343 | AS11: =($A11-$A10)/365.25*$D$1*(1+$D$2+(VLOOKUP('RE Appr'!AY18,'RE Appr'!$E$13:$J$59,6,FALSE)/100)) -> 417,654 | AT11: =($A11-$A10)/365.25*$D$1*(1+$D$2+(VLOOKUP('RE Appr'!AZ18,'RE Appr'!$E$13:$J$59,6,FALSE)/100)) -> 415,286 | AU11: =($A11-$A10)/365.25*$D$1*(1+$D$2+(VLOOKUP('RE Appr'!BA18,'RE Appr'!$E$13:$J$59,6,FALSE)/100)) -> 440,668 | AV11: =($A11-$A10)/365.25*$D$1*(1+$D$2+(VLOOKUP('RE Appr'!BB18,'RE Appr'!$E$13:$J$59,6,FALSE)/100)) -> 436,841 | AW11: =($A11-$A10)/365.25*$D$1*(1+$D$2+(VLOOKUP('RE Appr'!BC18,'RE Appr'!$E$13:$J$59,6,FALSE)/100)) -> 440,668 | AX11: =($A11-$A10)/365.25*$D$1*(1+$D$2+(VLOOKUP('RE Appr'!BD18,'RE Appr'!$E$13:$J$59,6,FALSE)/100)) -> 440,668 | AY11: =($A11-$A10)/365.25*$D$1*(1+$D$2+(VLOOKUP('RE Appr'!BE18,'RE Appr'!$E$13:$J$59,6,FALSE)/100)) -> 451,019 | AZ11: =($A11-$A10)/365.25*$D$1*(1+$D$2+(VLOOKUP('RE Appr'!BF18,'RE Appr'!$E$13:$J$59,6,FALSE)/100)) -> 451,019 | BA11: =($A11-$A10)/365.25*$D$1*(1+$D$2+(VLOOKUP('RE Appr'!BG18,'RE Appr'!$E$13:$J$59,6,FALSE)/100)) -> 436,841 | BB11: =($A11-$A10)/365.25*$D$1*(1+$D$2+(VLOOKUP('RE Appr'!BH18,'RE Appr'!$E$13:$J$59,6,FALSE)/100)) -> 426,042 | BC11: =($A11-$A10)/365.25*$D$1*(1+$D$2+(VLOOKUP('RE Appr'!BI18,'RE Appr'!$E$13:$J$59,6,FALSE)/100)) -> 441,108 | BD11: =($A11-$A10)/365.25*$D$1*(1+$D$2+(VLOOKUP('RE Appr'!BJ18,'RE Appr'!$E$13:$J$59,6,FALSE)/100)) -> 423,730 | BE11: =($A11-$A10)/365.25*$D$1*(1+$D$2+(VLOOKUP('RE Appr'!BK18,'RE Appr'!$E$13:$J$59,6,FALSE)/100)) -> 417,916 | BF11: =($A11-$A10)/365.25*$D$1*(1+$D$2+(VLOOKUP('RE Appr'!BL18,'RE Appr'!$E$13:$J$59,6,FALSE)/100)) -> 431,774 | BG11: =($A11-$A10)/365.25*$D$1*(1+$D$2+(VLOOKUP('RE Appr'!BM18,'RE Appr'!$E$13:$J$59,6,FALSE)/100)) -> 412,977 | BH11: =($A11-$A10)/365.25*$D$1*(1+$D$2+(VLOOKUP('RE Appr'!BN18,'RE Appr'!$E$13:$J$59,6,FALSE)/100)) -> 419,633 | BI11: =($A11-$A10)/365.25*$D$1*(1+$D$2+(VLOOKUP('RE Appr'!BO18,'RE Appr'!$E$13:$J$59,6,FALSE)/100)) -> 434,213 | BJ11: =($A11-$A10)/365.25*$D$1*(1+$D$2+(VLOOKUP('RE Appr'!BP18,'RE Appr'!$E$13:$J$59,6,FALSE)/100)) -> 435,182 | BK11: =($A11-$A10)/365.25*$D$1*(1+$D$2+(VLOOKUP('RE Appr'!BQ18,'RE Appr'!$E$13:$J$59,6,FALSE)/100)) -> 412,278 | BL11: =($A11-$A10)/365.25*$D$1*(1+$D$2+(VLOOKUP('RE Appr'!BR18,'RE Appr'!$E$13:$J$59,6,FALSE)/100)) -> 415,046 | BM11: =($A11-$A10)/365.25*$D$1*(1+$D$2+(VLOOKUP('RE Appr'!BS18,'RE Appr'!$E$13:$J$59,6,FALSE)/100)) -> 415,848 | BN11: =($A11-$A10)/365.25*$D$1*(1+$D$2+(VLOOKUP('RE Appr'!BT18,'RE Appr'!$E$13:$J$59,6,FALSE)/100)) -> 409,270 | BO11: =($A11-$A10)/365.25*$D$1*(1+$D$2+(VLOOKUP('RE Appr'!BU18,'RE Appr'!$E$13:$J$59,6,FALSE)/100)) -> 409,270 | BP11: =($A11-$A10)/365.25*$D$1*(1+$D$2+(VLOOKUP('RE Appr'!BV18,'RE Appr'!$E$13:$J$59,6,FALSE)/100)) -> 429,316 | BQ11: =($A11-$A10)/365.25*$D$1*(1+$D$2+(VLOOKUP('RE Appr'!BW18,'RE Appr'!$E$13:$J$59,6,FALSE)/100)) -> 419,290 | BR11: =($A11-$A10)/365.25*$D$1*(1+$D$2+(VLOOKUP('RE Appr'!BX18,'RE Appr'!$E$13:$J$59,6,FALSE)/100)) -> 371,326 | BS11: =($A11-$A10)/365.25*$D$1*(1+$D$2+(VLOOKUP('RE Appr'!BY18,'RE Appr'!$E$13:$J$59,6,FALSE)/100)) -> 451,019 | BT11: =($A11-$A10)/365.25*$D$1*(1+$D$2+(VLOOKUP('RE Appr'!BZ18,'RE Appr'!$E$13:$J$59,6,FALSE)/100)) -> 419,290 | BU11: =($A11-$A10)/365.25*$D$1*(1+$D$2+(VLOOKUP('RE Appr'!CA18,'RE Appr'!$E$13:$J$59,6,FALSE)/100)) -> 409,270 | BV11: =($A11-$A10)/365.25*$D$1*(1+$D$2+(VLOOKUP('RE Appr'!CB18,'RE Appr'!$E$13:$J$59,6,FALSE)/100)) -> 421,666 | BW11: =($A11-$A10)/365.25*$D$1*(1+$D$2+(VLOOKUP('RE Appr'!CC18,'RE Appr'!$E$13:$J$59,6,FALSE)/100)) -> 415,848 | BX11: =($A11-$A10)/365.25*$D$1*(1+$D$2+(VLOOKUP('RE Appr'!CD18,'RE Appr'!$E$13:$J$59,6,FALSE)/100)) -> 420,192 | BY11: =($A11-$A10)/365.25*$D$1*(1+$D$2+(VLOOKUP('RE Appr'!CE18,'RE Appr'!$E$13:$J$59,6,FALSE)/100)) -> 434,213 | BZ11: =($A11-$A10)/365.25*$D$1*(1+$D$2+(VLOOKUP('RE Appr'!CF18,'RE Appr'!$E$13:$J$59,6,FALSE)/100)) -> 418,834 | CA11: =($A11-$A10)/365.25*$D$1*(1+$D$2+(VLOOKUP('RE Appr'!CG18,'RE Appr'!$E$13:$J$59,6,FALSE)/100)) -> 429,316 | CB11: =($A11-$A10)/365.25*$D$1*(1+$D$2+(VLOOKUP('RE Appr'!CH18,'RE Appr'!$E$13:$J$59,6,FALSE)/100)) -> 419,290 | CC11: =($A11-$A10)/365.25*$D$1*(1+$D$2+(VLOOKUP('RE Appr'!CI18,'RE Appr'!$E$13:$J$59,6,FALSE)/100)) -> 431,774 | CD11: =($A11-$A10)/365.25*$D$1*(1+$D$2+(VLOOKUP('RE Appr'!CJ18,'RE Appr'!$E$13:$J$59,6,FALSE)/100)) -> 375,603 | CE11: =($A11-$A10)/365.25*$D$1*(1+$D$2+(VLOOKUP('RE Appr'!CK18,'RE Appr'!$E$13:$J$59,6,FALSE)/100)) -> 412,977 | CF11: =($A11-$A10)/365.25*$D$1*(1+$D$2+(VLOOKUP('RE Appr'!CL18,'RE Appr'!$E$13:$J$59,6,FALSE)/100)) -> 412,517 | CG11: =($A11-$A10)/365.25*$D$1*(1+$D$2+(VLOOKUP('RE Appr'!CM18,'RE Appr'!$E$13:$J$59,6,FALSE)/100)) -> 411,048 | CH11: =($A11-$A10)/365.25*$D$1*(1+$D$2+(VLOOKUP('RE Appr'!CN18,'RE Appr'!$E$13:$J$59,6,FALSE)/100)) -> 435,182 | CI11: =($A11-$A10)/365.25*$D$1*(1+$D$2+(VLOOKUP('RE Appr'!CO18,'RE Appr'!$E$13:$J$59,6,FALSE)/100)) -> 412,637 | CJ11: =($A11-$A10)/365.25*$D$1*(1+$D$2+(VLOOKUP('RE Appr'!CP18,'RE Appr'!$E$13:$J$59,6,FALSE)/100)) -> 419,633 | CK11: =($A11-$A10)/365.25*$D$1*(1+$D$2+(VLOOKUP('RE Appr'!CQ18,'RE Appr'!$E$13:$J$59,6,FALSE)/100)) -> 416,235 | CL11: =($A11-$A10)/365.25*$D$1*(1+$D$2+(VLOOKUP('RE Appr'!CR18,'RE Appr'!$E$13:$J$59,6,FALSE)/100)) -> 441,528 | CM11: =($A11-$A10)/365.25*$D$1*(1+$D$2+(VLOOKUP('RE Appr'!CS18,'RE Appr'!$E$13:$J$59,6,FALSE)/100)) -> 423,750 | CN11: =($A11-$A10)/365.25*$D$1*(1+$D$2+(VLOOKUP('RE Appr'!CT18,'RE Appr'!$E$13:$J$59,6,FALSE)/100)) -> 415,848 | CO11: =($A11-$A10)/365.25*$D$1*(1+$D$2+(VLOOKUP('RE Appr'!CU18,'RE Appr'!$E$13:$J$59,6,FALSE)/100)) -> 441,108 | CP11: =($A11-$A10)/365.25*$D$1*(1+$D$2+(VLOOKUP('RE Appr'!CV18,'RE Appr'!$E$13:$J$59,6,FALSE)/100)) -> 426,042 | CQ11: =($A11-$A10)/365.25*$D$1*(1+$D$2+(VLOOKUP('RE Appr'!CW18,'RE Appr'!$E$13:$J$59,6,FALSE)/100)) -> 455,688 | CR11: =($A11-$A10)/365.25*$D$1*(1+$D$2+(VLOOKUP('RE Appr'!CX18,'RE Appr'!$E$13:$J$59,6,FALSE)/100)) -> 423,750 | CS11: =($A11-$A10)/365.25*$D$1*(1+$D$2+(VLOOKUP('RE Appr'!CY18,'RE Appr'!$E$13:$J$59,6,FALSE)/100)) -> 423,730 | CT11: =($A11-$A10)/365.25*$D$1*(1+$D$2+(VLOOKUP('RE Appr'!CZ18,'RE Appr'!$E$13:$J$59,6,FALSE)/100)) -> 420,192 | CU11: =($A11-$A10)/365.25*$D$1*(1+$D$2+(VLOOKUP('RE Appr'!DA18,'RE Appr'!$E$13:$J$59,6,FALSE)/100)) -> 375,603 | CV11: =($A11-$A10)/365.25*$D$1*(1+$D$2+(VLOOKUP('RE Appr'!DB18,'RE Appr'!$E$13:$J$59,6,FALSE)/100)) -> 421,666 | CW11: =($A11-$A10)/365.25*$D$1*(1+$D$2+(VLOOKUP('RE Appr'!DC18,'RE Appr'!$E$13:$J$59,6,FALSE)/100)) -> 417,916 | CX11: =($A11-$A10)/365.25*$D$1*(1+$D$2+(VLOOKUP('RE Appr'!DD18,'RE Appr'!$E$13:$J$59,6,FALSE)/100)) -> 426,042 | CY11: =($A11-$A10)/365.25*$D$1*(1+$D$2+(VLOOKUP('RE Appr'!DE18,'RE Appr'!$E$13:$J$59,6,FALSE)/100)) -> 426,042 | CZ11: =($A11-$A10)/365.25*$D$1*(1+$D$2+(VLOOKUP('RE Appr'!DF18,'RE Appr'!$E$13:$J$59,6,FALSE)/100)) -> 412,278 | DA11: =($A11-$A10)/365.25*$D$1*(1+$D$2+(VLOOKUP('RE Appr'!DG18,'RE Appr'!$E$13:$J$59,6,FALSE)/100)) -> 418,174
A12: =Main!A14 -> 2029-12-30 | B12: 7 | C12: 14,412 | D12: =($E$5-SUM(C$6:C11))*$D$3 -> 704 | E12: 10,075 | F12: =($A12-$A11)/365.25*$D$1*(1+$D$2+(VLOOKUP('RE Appr'!L19,'RE Appr'!$E$13:$J$59,6,FALSE)/100)) -> 455,688 | G12: =($A12-$A11)/365.25*$D$1*(1+$D$2+(VLOOKUP('RE Appr'!M19,'RE Appr'!$E$13:$J$59,6,FALSE)/100)) -> 416,695 | H12: =($A12-$A11)/365.25*$D$1*(1+$D$2+(VLOOKUP('RE Appr'!N19,'RE Appr'!$E$13:$J$59,6,FALSE)/100)) -> 441,528 | I12: =($A12-$A11)/365.25*$D$1*(1+$D$2+(VLOOKUP('RE Appr'!O19,'RE Appr'!$E$13:$J$59,6,FALSE)/100)) -> 418,834 | J12: =($A12-$A11)/365.25*$D$1*(1+$D$2+(VLOOKUP('RE Appr'!P19,'RE Appr'!$E$13:$J$59,6,FALSE)/100)) -> 412,278 | K12: =($A12-$A11)/365.25*$D$1*(1+$D$2+(VLOOKUP('RE Appr'!Q19,'RE Appr'!$E$13:$J$59,6,FALSE)/100)) -> 440,668 | L12: =($A12-$A11)/365.25*$D$1*(1+$D$2+(VLOOKUP('RE Appr'!R19,'RE Appr'!$E$13:$J$59,6,FALSE)/100)) -> 429,316 | M12: =($A12-$A11)/365.25*$D$1*(1+$D$2+(VLOOKUP('RE Appr'!S19,'RE Appr'!$E$13:$J$59,6,FALSE)/100)) -> 419,633 | N12: =($A12-$A11)/365.25*$D$1*(1+$D$2+(VLOOKUP('RE Appr'!T19,'RE Appr'!$E$13:$J$59,6,FALSE)/100)) -> 436,841 | O12: =($A12-$A11)/365.25*$D$1*(1+$D$2+(VLOOKUP('RE Appr'!U19,'RE Appr'!$E$13:$J$59,6,FALSE)/100)) -> 412,278 | P12: =($A12-$A11)/365.25*$D$1*(1+$D$2+(VLOOKUP('RE Appr'!V19,'RE Appr'!$E$13:$J$59,6,FALSE)/100)) -> 418,174 | Q12: =($A12-$A11)/365.25*$D$1*(1+$D$2+(VLOOKUP('RE Appr'!W19,'RE Appr'!$E$13:$J$59,6,FALSE)/100)) -> 371,326 | R12: =($A12-$A11)/365.25*$D$1*(1+$D$2+(VLOOKUP('RE Appr'!X19,'RE Appr'!$E$13:$J$59,6,FALSE)/100)) -> 411,048 | S12: =($A12-$A11)/365.25*$D$1*(1+$D$2+(VLOOKUP('RE Appr'!Y19,'RE Appr'!$E$13:$J$59,6,FALSE)/100)) -> 409,270 | T12: =($A12-$A11)/365.25*$D$1*(1+$D$2+(VLOOKUP('RE Appr'!Z19,'RE Appr'!$E$13:$J$59,6,FALSE)/100)) -> 410,729 | U12: =($A12-$A11)/365.25*$D$1*(1+$D$2+(VLOOKUP('RE Appr'!AA19,'RE Appr'!$E$13:$J$59,6,FALSE)/100)) -> 411,048 | V12: =($A12-$A11)/365.25*$D$1*(1+$D$2+(VLOOKUP('RE Appr'!AB19,'RE Appr'!$E$13:$J$59,6,FALSE)/100)) -> 422,511 | W12: =($A12-$A11)/365.25*$D$1*(1+$D$2+(VLOOKUP('RE Appr'!AC19,'RE Appr'!$E$13:$J$59,6,FALSE)/100)) -> 411,048 | X12: =($A12-$A11)/365.25*$D$1*(1+$D$2+(VLOOKUP('RE Appr'!AD19,'RE Appr'!$E$13:$J$59,6,FALSE)/100)) -> 440,668 | Y12: =($A12-$A11)/365.25*$D$1*(1+$D$2+(VLOOKUP('RE Appr'!AE19,'RE Appr'!$E$13:$J$59,6,FALSE)/100)) -> 410,729 | Z12: =($A12-$A11)/365.25*$D$1*(1+$D$2+(VLOOKUP('RE Appr'!AF19,'RE Appr'!$E$13:$J$59,6,FALSE)/100)) -> 417,916 | AA12: =($A12-$A11)/365.25*$D$1*(1+$D$2+(VLOOKUP('RE Appr'!AG19,'RE Appr'!$E$13:$J$59,6,FALSE)/100)) -> 419,343 | AB12: =($A12-$A11)/365.25*$D$1*(1+$D$2+(VLOOKUP('RE Appr'!AH19,'RE Appr'!$E$13:$J$59,6,FALSE)/100)) -> 411,048 | AC12: =($A12-$A11)/365.25*$D$1*(1+$D$2+(VLOOKUP('RE Appr'!AI19,'RE Appr'!$E$13:$J$59,6,FALSE)/100)) -> 436,841 | AD12: =($A12-$A11)/365.25*$D$1*(1+$D$2+(VLOOKUP('RE Appr'!AJ19,'RE Appr'!$E$13:$J$59,6,FALSE)/100)) -> 451,019 | AE12: =($A12-$A11)/365.25*$D$1*(1+$D$2+(VLOOKUP('RE Appr'!AK19,'RE Appr'!$E$13:$J$59,6,FALSE)/100)) -> 429,316 | AF12: =($A12-$A11)/365.25*$D$1*(1+$D$2+(VLOOKUP('RE Appr'!AL19,'RE Appr'!$E$13:$J$59,6,FALSE)/100)) -> 410,729 | AG12: =($A12-$A11)/365.25*$D$1*(1+$D$2+(VLOOKUP('RE Appr'!AM19,'RE Appr'!$E$13:$J$59,6,FALSE)/100)) -> 423,730 | AH12: =($A12-$A11)/365.25*$D$1*(1+$D$2+(VLOOKUP('RE Appr'!AN19,'RE Appr'!$E$13:$J$59,6,FALSE)/100)) -> 420,192 | AI12: =($A12-$A11)/365.25*$D$1*(1+$D$2+(VLOOKUP('RE Appr'!AO19,'RE Appr'!$E$13:$J$59,6,FALSE)/100)) -> 412,517 | AJ12: =($A12-$A11)/365.25*$D$1*(1+$D$2+(VLOOKUP('RE Appr'!AP19,'RE Appr'!$E$13:$J$59,6,FALSE)/100)) -> 435,772 | AK12: =($A12-$A11)/365.25*$D$1*(1+$D$2+(VLOOKUP('RE Appr'!AQ19,'RE Appr'!$E$13:$J$59,6,FALSE)/100)) -> 412,517 | AL12: =($A12-$A11)/365.25*$D$1*(1+$D$2+(VLOOKUP('RE Appr'!AR19,'RE Appr'!$E$13:$J$59,6,FALSE)/100)) -> 415,286 | AM12: =($A12-$A11)/365.25*$D$1*(1+$D$2+(VLOOKUP('RE Appr'!AS19,'RE Appr'!$E$13:$J$59,6,FALSE)/100)) -> 418,174 | AN12: =($A12-$A11)/365.25*$D$1*(1+$D$2+(VLOOKUP('RE Appr'!AT19,'RE Appr'!$E$13:$J$59,6,FALSE)/100)) -> 440,668 | AO12: =($A12-$A11)/365.25*$D$1*(1+$D$2+(VLOOKUP('RE Appr'!AU19,'RE Appr'!$E$13:$J$59,6,FALSE)/100)) -> 412,977 | AP12: =($A12-$A11)/365.25*$D$1*(1+$D$2+(VLOOKUP('RE Appr'!AV19,'RE Appr'!$E$13:$J$59,6,FALSE)/100)) -> 411,048 | AQ12: =($A12-$A11)/365.25*$D$1*(1+$D$2+(VLOOKUP('RE Appr'!AW19,'RE Appr'!$E$13:$J$59,6,FALSE)/100)) -> 431,774 | AR12: =($A12-$A11)/365.25*$D$1*(1+$D$2+(VLOOKUP('RE Appr'!AX19,'RE Appr'!$E$13:$J$59,6,FALSE)/100)) -> 416,695 | AS12: =($A12-$A11)/365.25*$D$1*(1+$D$2+(VLOOKUP('RE Appr'!AY19,'RE Appr'!$E$13:$J$59,6,FALSE)/100)) -> 417,654 | AT12: =($A12-$A11)/365.25*$D$1*(1+$D$2+(VLOOKUP('RE Appr'!AZ19,'RE Appr'!$E$13:$J$59,6,FALSE)/100)) -> 419,543 | AU12: =($A12-$A11)/365.25*$D$1*(1+$D$2+(VLOOKUP('RE Appr'!BA19,'RE Appr'!$E$13:$J$59,6,FALSE)/100)) -> 414,846 | AV12: =($A12-$A11)/365.25*$D$1*(1+$D$2+(VLOOKUP('RE Appr'!BB19,'RE Appr'!$E$13:$J$59,6,FALSE)/100)) -> 416,695 | AW12: =($A12-$A11)/365.25*$D$1*(1+$D$2+(VLOOKUP('RE Appr'!BC19,'RE Appr'!$E$13:$J$59,6,FALSE)/100)) -> 401,385 | AX12: =($A12-$A11)/365.25*$D$1*(1+$D$2+(VLOOKUP('RE Appr'!BD19,'RE Appr'!$E$13:$J$59,6,FALSE)/100)) -> 410,729 | AY12: =($A12-$A11)/365.25*$D$1*(1+$D$2+(VLOOKUP('RE Appr'!BE19,'RE Appr'!$E$13:$J$59,6,FALSE)/100)) -> 417,654 | AZ12: =($A12-$A11)/365.25*$D$1*(1+$D$2+(VLOOKUP('RE Appr'!BF19,'RE Appr'!$E$13:$J$59,6,FALSE)/100)) -> 412,517 | BA12: =($A12-$A11)/365.25*$D$1*(1+$D$2+(VLOOKUP('RE Appr'!BG19,'RE Appr'!$E$13:$J$59,6,FALSE)/100)) -> 441,528 | BB12: =($A12-$A11)/365.25*$D$1*(1+$D$2+(VLOOKUP('RE Appr'!BH19,'RE Appr'!$E$13:$J$59,6,FALSE)/100)) -> 441,528 | BC12: =($A12-$A11)/365.25*$D$1*(1+$D$2+(VLOOKUP('RE Appr'!BI19,'RE Appr'!$E$13:$J$59,6,FALSE)/100)) -> 417,654 | BD12: =($A12-$A11)/365.25*$D$1*(1+$D$2+(VLOOKUP('RE Appr'!BJ19,'RE Appr'!$E$13:$J$59,6,FALSE)/100)) -> 375,603 | BE12: =($A12-$A11)/365.25*$D$1*(1+$D$2+(VLOOKUP('RE Appr'!BK19,'RE Appr'!$E$13:$J$59,6,FALSE)/100)) -> 417,916 | BF12: =($A12-$A11)/365.25*$D$1*(1+$D$2+(VLOOKUP('RE Appr'!BL19,'RE Appr'!$E$13:$J$59,6,FALSE)/100)) -> 441,528 | BG12: =($A12-$A11)/365.25*$D$1*(1+$D$2+(VLOOKUP('RE Appr'!BM19,'RE Appr'!$E$13:$J$59,6,FALSE)/100)) -> 426,042 | BH12: =($A12-$A11)/365.25*$D$1*(1+$D$2+(VLOOKUP('RE Appr'!BN19,'RE Appr'!$E$13:$J$59,6,FALSE)/100)) -> 409,270 | BI12: =($A12-$A11)/365.25*$D$1*(1+$D$2+(VLOOKUP('RE Appr'!BO19,'RE Appr'!$E$13:$J$59,6,FALSE)/100)) -> 409,270 | BJ12: =($A12-$A11)/365.25*$D$1*(1+$D$2+(VLOOKUP('RE Appr'!BP19,'RE Appr'!$E$13:$J$59,6,FALSE)/100)) -> 435,772 | BK12: =($A12-$A11)/365.25*$D$1*(1+$D$2+(VLOOKUP('RE Appr'!BQ19,'RE Appr'!$E$13:$J$59,6,FALSE)/100)) -> 441,108 | BL12: =($A12-$A11)/365.25*$D$1*(1+$D$2+(VLOOKUP('RE Appr'!BR19,'RE Appr'!$E$13:$J$59,6,FALSE)/100)) -> 440,668 | BM12: =($A12-$A11)/365.25*$D$1*(1+$D$2+(VLOOKUP('RE Appr'!BS19,'RE Appr'!$E$13:$J$59,6,FALSE)/100)) -> 451,019 | BN12: =($A12-$A11)/365.25*$D$1*(1+$D$2+(VLOOKUP('RE Appr'!BT19,'RE Appr'!$E$13:$J$59,6,FALSE)/100)) -> 429,316 | BO12: =($A12-$A11)/365.25*$D$1*(1+$D$2+(VLOOKUP('RE Appr'!BU19,'RE Appr'!$E$13:$J$59,6,FALSE)/100)) -> 419,290 | BP12: =($A12-$A11)/365.25*$D$1*(1+$D$2+(VLOOKUP('RE Appr'!BV19,'RE Appr'!$E$13:$J$59,6,FALSE)/100)) -> 409,270 | BQ12: =($A12-$A11)/365.25*$D$1*(1+$D$2+(VLOOKUP('RE Appr'!BW19,'RE Appr'!$E$13:$J$59,6,FALSE)/100)) -> 451,019 | BR12: =($A12-$A11)/365.25*$D$1*(1+$D$2+(VLOOKUP('RE Appr'!BX19,'RE Appr'!$E$13:$J$59,6,FALSE)/100)) -> 419,543 | BS12: =($A12-$A11)/365.25*$D$1*(1+$D$2+(VLOOKUP('RE Appr'!BY19,'RE Appr'!$E$13:$J$59,6,FALSE)/100)) -> 441,108 | BT12: =($A12-$A11)/365.25*$D$1*(1+$D$2+(VLOOKUP('RE Appr'!BZ19,'RE Appr'!$E$13:$J$59,6,FALSE)/100)) -> 434,213 | BU12: =($A12-$A11)/365.25*$D$1*(1+$D$2+(VLOOKUP('RE Appr'!CA19,'RE Appr'!$E$13:$J$59,6,FALSE)/100)) -> 412,977 | BV12: =($A12-$A11)/365.25*$D$1*(1+$D$2+(VLOOKUP('RE Appr'!CB19,'RE Appr'!$E$13:$J$59,6,FALSE)/100)) -> 437,041 | BW12: =($A12-$A11)/365.25*$D$1*(1+$D$2+(VLOOKUP('RE Appr'!CC19,'RE Appr'!$E$13:$J$59,6,FALSE)/100)) -> 436,841 | BX12: =($A12-$A11)/365.25*$D$1*(1+$D$2+(VLOOKUP('RE Appr'!CD19,'RE Appr'!$E$13:$J$59,6,FALSE)/100)) -> 451,019 | BY12: =($A12-$A11)/365.25*$D$1*(1+$D$2+(VLOOKUP('RE Appr'!CE19,'RE Appr'!$E$13:$J$59,6,FALSE)/100)) -> 411,048 | BZ12: =($A12-$A11)/365.25*$D$1*(1+$D$2+(VLOOKUP('RE Appr'!CF19,'RE Appr'!$E$13:$J$59,6,FALSE)/100)) -> 470,498 | CA12: =($A12-$A11)/365.25*$D$1*(1+$D$2+(VLOOKUP('RE Appr'!CG19,'RE Appr'!$E$13:$J$59,6,FALSE)/100)) -> 437,041 | CB12: =($A12-$A11)/365.25*$D$1*(1+$D$2+(VLOOKUP('RE Appr'!CH19,'RE Appr'!$E$13:$J$59,6,FALSE)/100)) -> 419,343 | CC12: =($A12-$A11)/365.25*$D$1*(1+$D$2+(VLOOKUP('RE Appr'!CI19,'RE Appr'!$E$13:$J$59,6,FALSE)/100)) -> 418,834 | CD12: =($A12-$A11)/365.25*$D$1*(1+$D$2+(VLOOKUP('RE Appr'!CJ19,'RE Appr'!$E$13:$J$59,6,FALSE)/100)) -> 412,278 | CE12: =($A12-$A11)/365.25*$D$1*(1+$D$2+(VLOOKUP('RE Appr'!CK19,'RE Appr'!$E$13:$J$59,6,FALSE)/100)) -> 419,633 | CF12: =($A12-$A11)/365.25*$D$1*(1+$D$2+(VLOOKUP('RE Appr'!CL19,'RE Appr'!$E$13:$J$59,6,FALSE)/100)) -> 386,675 | CG12: =($A12-$A11)/365.25*$D$1*(1+$D$2+(VLOOKUP('RE Appr'!CM19,'RE Appr'!$E$13:$J$59,6,FALSE)/100)) -> 371,326 | CH12: =($A12-$A11)/365.25*$D$1*(1+$D$2+(VLOOKUP('RE Appr'!CN19,'RE Appr'!$E$13:$J$59,6,FALSE)/100)) -> 415,286 | CI12: =($A12-$A11)/365.25*$D$1*(1+$D$2+(VLOOKUP('RE Appr'!CO19,'RE Appr'!$E$13:$J$59,6,FALSE)/100)) -> 470,498 | CJ12: =($A12-$A11)/365.25*$D$1*(1+$D$2+(VLOOKUP('RE Appr'!CP19,'RE Appr'!$E$13:$J$59,6,FALSE)/100)) -> 419,633 | CK12: =($A12-$A11)/365.25*$D$1*(1+$D$2+(VLOOKUP('RE Appr'!CQ19,'RE Appr'!$E$13:$J$59,6,FALSE)/100)) -> 416,235 | CL12: =($A12-$A11)/365.25*$D$1*(1+$D$2+(VLOOKUP('RE Appr'!CR19,'RE Appr'!$E$13:$J$59,6,FALSE)/100)) -> 436,841 | CM12: =($A12-$A11)/365.25*$D$1*(1+$D$2+(VLOOKUP('RE Appr'!CS19,'RE Appr'!$E$13:$J$59,6,FALSE)/100)) -> 470,498 | CN12: =($A12-$A11)/365.25*$D$1*(1+$D$2+(VLOOKUP('RE Appr'!CT19,'RE Appr'!$E$13:$J$59,6,FALSE)/100)) -> 410,729 | CO12: =($A12-$A11)/365.25*$D$1*(1+$D$2+(VLOOKUP('RE Appr'!CU19,'RE Appr'!$E$13:$J$59,6,FALSE)/100)) -> 423,730 | CP12: =($A12-$A11)/365.25*$D$1*(1+$D$2+(VLOOKUP('RE Appr'!CV19,'RE Appr'!$E$13:$J$59,6,FALSE)/100)) -> 434,213 | CQ12: =($A12-$A11)/365.25*$D$1*(1+$D$2+(VLOOKUP('RE Appr'!CW19,'RE Appr'!$E$13:$J$59,6,FALSE)/100)) -> 418,174 | CR12: =($A12-$A11)/365.25*$D$1*(1+$D$2+(VLOOKUP('RE Appr'!CX19,'RE Appr'!$E$13:$J$59,6,FALSE)/100)) -> 434,213 | CS12: =($A12-$A11)/365.25*$D$1*(1+$D$2+(VLOOKUP('RE Appr'!CY19,'RE Appr'!$E$13:$J$59,6,FALSE)/100)) -> 386,675 | CT12: =($A12-$A11)/365.25*$D$1*(1+$D$2+(VLOOKUP('RE Appr'!CZ19,'RE Appr'!$E$13:$J$59,6,FALSE)/100)) -> 386,675 | CU12: =($A12-$A11)/365.25*$D$1*(1+$D$2+(VLOOKUP('RE Appr'!DA19,'RE Appr'!$E$13:$J$59,6,FALSE)/100)) -> 435,182 | CV12: =($A12-$A11)/365.25*$D$1*(1+$D$2+(VLOOKUP('RE Appr'!DB19,'RE Appr'!$E$13:$J$59,6,FALSE)/100)) -> 423,730 | CW12: =($A12-$A11)/365.25*$D$1*(1+$D$2+(VLOOKUP('RE Appr'!DC19,'RE Appr'!$E$13:$J$59,6,FALSE)/100)) -> 422,511 | CX12: =($A12-$A11)/365.25*$D$1*(1+$D$2+(VLOOKUP('RE Appr'!DD19,'RE Appr'!$E$13:$J$59,6,FALSE)/100)) -> 419,543 | CY12: =($A12-$A11)/365.25*$D$1*(1+$D$2+(VLOOKUP('RE Appr'!DE19,'RE Appr'!$E$13:$J$59,6,FALSE)/100)) -> 416,695 | CZ12: =($A12-$A11)/365.25*$D$1*(1+$D$2+(VLOOKUP('RE Appr'!DF19,'RE Appr'!$E$13:$J$59,6,FALSE)/100)) -> 420,192 | DA12: =($A12-$A11)/365.25*$D$1*(1+$D$2+(VLOOKUP('RE Appr'!DG19,'RE Appr'!$E$13:$J$59,6,FALSE)/100)) -> 383,827
A13: =Main!A15 -> 2030-12-30 | B13: 8 | C13: =$D$4-D13-4751 -> 10,075 | D13: =($E$5-SUM(C$6:C12))*$D$3 -> 290 | E13: (0) | F13: =($A13-$A12)/365.25*$D$1*(1+$D$2+(VLOOKUP('RE Appr'!L20,'RE Appr'!$E$13:$J$59,6,FALSE)/100)) -> 401,385 | G13: =($A13-$A12)/365.25*$D$1*(1+$D$2+(VLOOKUP('RE Appr'!M20,'RE Appr'!$E$13:$J$59,6,FALSE)/100)) -> 412,977 | H13: =($A13-$A12)/365.25*$D$1*(1+$D$2+(VLOOKUP('RE Appr'!N20,'RE Appr'!$E$13:$J$59,6,FALSE)/100)) -> 420,192 | I13: =($A13-$A12)/365.25*$D$1*(1+$D$2+(VLOOKUP('RE Appr'!O20,'RE Appr'!$E$13:$J$59,6,FALSE)/100)) -> 429,316 | J13: =($A13-$A12)/365.25*$D$1*(1+$D$2+(VLOOKUP('RE Appr'!P20,'RE Appr'!$E$13:$J$59,6,FALSE)/100)) -> 420,192 | K13: =($A13-$A12)/365.25*$D$1*(1+$D$2+(VLOOKUP('RE Appr'!Q20,'RE Appr'!$E$13:$J$59,6,FALSE)/100)) -> 409,270 | L13: =($A13-$A12)/365.25*$D$1*(1+$D$2+(VLOOKUP('RE Appr'!R20,'RE Appr'!$E$13:$J$59,6,FALSE)/100)) -> 455,688 | M13: =($A13-$A12)/365.25*$D$1*(1+$D$2+(VLOOKUP('RE Appr'!S20,'RE Appr'!$E$13:$J$59,6,FALSE)/100)) -> 420,192 | N13: =($A13-$A12)/365.25*$D$1*(1+$D$2+(VLOOKUP('RE Appr'!T20,'RE Appr'!$E$13:$J$59,6,FALSE)/100)) -> 426,042 | O13: =($A13-$A12)/365.25*$D$1*(1+$D$2+(VLOOKUP('RE Appr'!U20,'RE Appr'!$E$13:$J$59,6,FALSE)/100)) -> 412,637 | P13: =($A13-$A12)/365.25*$D$1*(1+$D$2+(VLOOKUP('RE Appr'!V20,'RE Appr'!$E$13:$J$59,6,FALSE)/100)) -> 434,213 | Q13: =($A13-$A12)/365.25*$D$1*(1+$D$2+(VLOOKUP('RE Appr'!W20,'RE Appr'!$E$13:$J$59,6,FALSE)/100)) -> 417,654 | R13: =($A13-$A12)/365.25*$D$1*(1+$D$2+(VLOOKUP('RE Appr'!X20,'RE Appr'!$E$13:$J$59,6,FALSE)/100)) -> 417,654 | S13: =($A13-$A12)/365.25*$D$1*(1+$D$2+(VLOOKUP('RE Appr'!Y20,'RE Appr'!$E$13:$J$59,6,FALSE)/100)) -> 417,654 | T13: =($A13-$A12)/365.25*$D$1*(1+$D$2+(VLOOKUP('RE Appr'!Z20,'RE Appr'!$E$13:$J$59,6,FALSE)/100)) -> 423,750 | U13: =($A13-$A12)/365.25*$D$1*(1+$D$2+(VLOOKUP('RE Appr'!AA20,'RE Appr'!$E$13:$J$59,6,FALSE)/100)) -> 410,729 | V13: =($A13-$A12)/365.25*$D$1*(1+$D$2+(VLOOKUP('RE Appr'!AB20,'RE Appr'!$E$13:$J$59,6,FALSE)/100)) -> 386,675 | W13: =($A13-$A12)/365.25*$D$1*(1+$D$2+(VLOOKUP('RE Appr'!AC20,'RE Appr'!$E$13:$J$59,6,FALSE)/100)) -> 426,042 | X13: =($A13-$A12)/365.25*$D$1*(1+$D$2+(VLOOKUP('RE Appr'!AD20,'RE Appr'!$E$13:$J$59,6,FALSE)/100)) -> 416,235 | Y13: =($A13-$A12)/365.25*$D$1*(1+$D$2+(VLOOKUP('RE Appr'!AE20,'RE Appr'!$E$13:$J$59,6,FALSE)/100)) -> 407,091 | Z13: =($A13-$A12)/365.25*$D$1*(1+$D$2+(VLOOKUP('RE Appr'!AF20,'RE Appr'!$E$13:$J$59,6,FALSE)/100)) -> 410,729 | AA13: =($A13-$A12)/365.25*$D$1*(1+$D$2+(VLOOKUP('RE Appr'!AG20,'RE Appr'!$E$13:$J$59,6,FALSE)/100)) -> 371,326 | AB13: =($A13-$A12)/365.25*$D$1*(1+$D$2+(VLOOKUP('RE Appr'!AH20,'RE Appr'!$E$13:$J$59,6,FALSE)/100)) -> 422,511 | AC13: =($A13-$A12)/365.25*$D$1*(1+$D$2+(VLOOKUP('RE Appr'!AI20,'RE Appr'!$E$13:$J$59,6,FALSE)/100)) -> 399,326 | AD13: =($A13-$A12)/365.25*$D$1*(1+$D$2+(VLOOKUP('RE Appr'!AJ20,'RE Appr'!$E$13:$J$59,6,FALSE)/100)) -> 414,846 | AE13: =($A13-$A12)/365.25*$D$1*(1+$D$2+(VLOOKUP('RE Appr'!AK20,'RE Appr'!$E$13:$J$59,6,FALSE)/100)) -> 419,543 | AF13: =($A13-$A12)/365.25*$D$1*(1+$D$2+(VLOOKUP('RE Appr'!AL20,'RE Appr'!$E$13:$J$59,6,FALSE)/100)) -> 411,048 | AG13: =($A13-$A12)/365.25*$D$1*(1+$D$2+(VLOOKUP('RE Appr'!AM20,'RE Appr'!$E$13:$J$59,6,FALSE)/100)) -> 431,774 | AH13: =($A13-$A12)/365.25*$D$1*(1+$D$2+(VLOOKUP('RE Appr'!AN20,'RE Appr'!$E$13:$J$59,6,FALSE)/100)) -> 436,841 | AI13: =($A13-$A12)/365.25*$D$1*(1+$D$2+(VLOOKUP('RE Appr'!AO20,'RE Appr'!$E$13:$J$59,6,FALSE)/100)) -> 418,834 | AJ13: =($A13-$A12)/365.25*$D$1*(1+$D$2+(VLOOKUP('RE Appr'!AP20,'RE Appr'!$E$13:$J$59,6,FALSE)/100)) -> 418,834 | AK13: =($A13-$A12)/365.25*$D$1*(1+$D$2+(VLOOKUP('RE Appr'!AQ20,'RE Appr'!$E$13:$J$59,6,FALSE)/100)) -> 431,774 | AL13: =($A13-$A12)/365.25*$D$1*(1+$D$2+(VLOOKUP('RE Appr'!AR20,'RE Appr'!$E$13:$J$59,6,FALSE)/100)) -> 416,695 | AM13: =($A13-$A12)/365.25*$D$1*(1+$D$2+(VLOOKUP('RE Appr'!AS20,'RE Appr'!$E$13:$J$59,6,FALSE)/100)) -> 409,270 | AN13: =($A13-$A12)/365.25*$D$1*(1+$D$2+(VLOOKUP('RE Appr'!AT20,'RE Appr'!$E$13:$J$59,6,FALSE)/100)) -> 410,729 | AO13: =($A13-$A12)/365.25*$D$1*(1+$D$2+(VLOOKUP('RE Appr'!AU20,'RE Appr'!$E$13:$J$59,6,FALSE)/100)) -> 441,528 | AP13: =($A13-$A12)/365.25*$D$1*(1+$D$2+(VLOOKUP('RE Appr'!AV20,'RE Appr'!$E$13:$J$59,6,FALSE)/100)) -> 426,042 | AQ13: =($A13-$A12)/365.25*$D$1*(1+$D$2+(VLOOKUP('RE Appr'!AW20,'RE Appr'!$E$13:$J$59,6,FALSE)/100)) -> 419,290 | AR13: =($A13-$A12)/365.25*$D$1*(1+$D$2+(VLOOKUP('RE Appr'!AX20,'RE Appr'!$E$13:$J$59,6,FALSE)/100)) -> 416,695 | AS13: =($A13-$A12)/365.25*$D$1*(1+$D$2+(VLOOKUP('RE Appr'!AY20,'RE Appr'!$E$13:$J$59,6,FALSE)/100)) -> 416,235 | AT13: =($A13-$A12)/365.25*$D$1*(1+$D$2+(VLOOKUP('RE Appr'!AZ20,'RE Appr'!$E$13:$J$59,6,FALSE)/100)) -> 371,326 | AU13: =($A13-$A12)/365.25*$D$1*(1+$D$2+(VLOOKUP('RE Appr'!BA20,'RE Appr'!$E$13:$J$59,6,FALSE)/100)) -> 418,174 | AV13: =($A13-$A12)/365.25*$D$1*(1+$D$2+(VLOOKUP('RE Appr'!BB20,'RE Appr'!$E$13:$J$59,6,FALSE)/100)) -> 401,385 | AW13: =($A13-$A12)/365.25*$D$1*(1+$D$2+(VLOOKUP('RE Appr'!BC20,'RE Appr'!$E$13:$J$59,6,FALSE)/100)) -> 423,730 | AX13: =($A13-$A12)/365.25*$D$1*(1+$D$2+(VLOOKUP('RE Appr'!BD20,'RE Appr'!$E$13:$J$59,6,FALSE)/100)) -> 420,192 | AY13: =($A13-$A12)/365.25*$D$1*(1+$D$2+(VLOOKUP('RE Appr'!BE20,'RE Appr'!$E$13:$J$59,6,FALSE)/100)) -> 420,192 | AZ13: =($A13-$A12)/365.25*$D$1*(1+$D$2+(VLOOKUP('RE Appr'!BF20,'RE Appr'!$E$13:$J$59,6,FALSE)/100)) -> 386,675 | BA13: =($A13-$A12)/365.25*$D$1*(1+$D$2+(VLOOKUP('RE Appr'!BG20,'RE Appr'!$E$13:$J$59,6,FALSE)/100)) -> 426,042 | BB13: =($A13-$A12)/365.25*$D$1*(1+$D$2+(VLOOKUP('RE Appr'!BH20,'RE Appr'!$E$13:$J$59,6,FALSE)/100)) -> 423,730 | BC13: =($A13-$A12)/365.25*$D$1*(1+$D$2+(VLOOKUP('RE Appr'!BI20,'RE Appr'!$E$13:$J$59,6,FALSE)/100)) -> 410,729 | BD13: =($A13-$A12)/365.25*$D$1*(1+$D$2+(VLOOKUP('RE Appr'!BJ20,'RE Appr'!$E$13:$J$59,6,FALSE)/100)) -> 419,633 | BE13: =($A13-$A12)/365.25*$D$1*(1+$D$2+(VLOOKUP('RE Appr'!BK20,'RE Appr'!$E$13:$J$59,6,FALSE)/100)) -> 371,326 | BF13: =($A13-$A12)/365.25*$D$1*(1+$D$2+(VLOOKUP('RE Appr'!BL20,'RE Appr'!$E$13:$J$59,6,FALSE)/100)) -> 412,278 | BG13: =($A13-$A12)/365.25*$D$1*(1+$D$2+(VLOOKUP('RE Appr'!BM20,'RE Appr'!$E$13:$J$59,6,FALSE)/100)) -> 371,326 | BH13: =($A13-$A12)/365.25*$D$1*(1+$D$2+(VLOOKUP('RE Appr'!BN20,'RE Appr'!$E$13:$J$59,6,FALSE)/100)) -> 415,848 | BI13: =($A13-$A12)/365.25*$D$1*(1+$D$2+(VLOOKUP('RE Appr'!BO20,'RE Appr'!$E$13:$J$59,6,FALSE)/100)) -> 419,290 | BJ13: =($A13-$A12)/365.25*$D$1*(1+$D$2+(VLOOKUP('RE Appr'!BP20,'RE Appr'!$E$13:$J$59,6,FALSE)/100)) -> 455,688 | BK13: =($A13-$A12)/365.25*$D$1*(1+$D$2+(VLOOKUP('RE Appr'!BQ20,'RE Appr'!$E$13:$J$59,6,FALSE)/100)) -> 418,834 | BL13: =($A13-$A12)/365.25*$D$1*(1+$D$2+(VLOOKUP('RE Appr'!BR20,'RE Appr'!$E$13:$J$59,6,FALSE)/100)) -> 420,192 | BM13: =($A13-$A12)/365.25*$D$1*(1+$D$2+(VLOOKUP('RE Appr'!BS20,'RE Appr'!$E$13:$J$59,6,FALSE)/100)) -> 431,774 | BN13: =($A13-$A12)/365.25*$D$1*(1+$D$2+(VLOOKUP('RE Appr'!BT20,'RE Appr'!$E$13:$J$59,6,FALSE)/100)) -> 441,108 | BO13: =($A13-$A12)/365.25*$D$1*(1+$D$2+(VLOOKUP('RE Appr'!BU20,'RE Appr'!$E$13:$J$59,6,FALSE)/100)) -> 416,695 | BP13: =($A13-$A12)/365.25*$D$1*(1+$D$2+(VLOOKUP('RE Appr'!BV20,'RE Appr'!$E$13:$J$59,6,FALSE)/100)) -> 451,019 | BQ13: =($A13-$A12)/365.25*$D$1*(1+$D$2+(VLOOKUP('RE Appr'!BW20,'RE Appr'!$E$13:$J$59,6,FALSE)/100)) -> 415,046 | BR13: =($A13-$A12)/365.25*$D$1*(1+$D$2+(VLOOKUP('RE Appr'!BX20,'RE Appr'!$E$13:$J$59,6,FALSE)/100)) -> 417,916 | BS13: =($A13-$A12)/365.25*$D$1*(1+$D$2+(VLOOKUP('RE Appr'!BY20,'RE Appr'!$E$13:$J$59,6,FALSE)/100)) -> 422,511 | BT13: =($A13-$A12)/365.25*$D$1*(1+$D$2+(VLOOKUP('RE Appr'!BZ20,'RE Appr'!$E$13:$J$59,6,FALSE)/100)) -> 423,750 | BU13: =($A13-$A12)/365.25*$D$1*(1+$D$2+(VLOOKUP('RE Appr'!CA20,'RE Appr'!$E$13:$J$59,6,FALSE)/100)) -> 429,316 | BV13: =($A13-$A12)/365.25*$D$1*(1+$D$2+(VLOOKUP('RE Appr'!CB20,'RE Appr'!$E$13:$J$59,6,FALSE)/100)) -> 419,343 | BW13: =($A13-$A12)/365.25*$D$1*(1+$D$2+(VLOOKUP('RE Appr'!CC20,'RE Appr'!$E$13:$J$59,6,FALSE)/100)) -> 419,343 | BX13: =($A13-$A12)/365.25*$D$1*(1+$D$2+(VLOOKUP('RE Appr'!CD20,'RE Appr'!$E$13:$J$59,6,FALSE)/100)) -> 423,750 | BY13: =($A13-$A12)/365.25*$D$1*(1+$D$2+(VLOOKUP('RE Appr'!CE20,'RE Appr'!$E$13:$J$59,6,FALSE)/100)) -> 419,290 | BZ13: =($A13-$A12)/365.25*$D$1*(1+$D$2+(VLOOKUP('RE Appr'!CF20,'RE Appr'!$E$13:$J$59,6,FALSE)/100)) -> 419,633 | CA13: =($A13-$A12)/365.25*$D$1*(1+$D$2+(VLOOKUP('RE Appr'!CG20,'RE Appr'!$E$13:$J$59,6,FALSE)/100)) -> 440,668 | CB13: =($A13-$A12)/365.25*$D$1*(1+$D$2+(VLOOKUP('RE Appr'!CH20,'RE Appr'!$E$13:$J$59,6,FALSE)/100)) -> 410,729 | CC13: =($A13-$A12)/365.25*$D$1*(1+$D$2+(VLOOKUP('RE Appr'!CI20,'RE Appr'!$E$13:$J$59,6,FALSE)/100)) -> 451,019 | CD13: =($A13-$A12)/365.25*$D$1*(1+$D$2+(VLOOKUP('RE Appr'!CJ20,'RE Appr'!$E$13:$J$59,6,FALSE)/100)) -> 435,182 | CE13: =($A13-$A12)/365.25*$D$1*(1+$D$2+(VLOOKUP('RE Appr'!CK20,'RE Appr'!$E$13:$J$59,6,FALSE)/100)) -> 411,048 | CF13: =($A13-$A12)/365.25*$D$1*(1+$D$2+(VLOOKUP('RE Appr'!CL20,'RE Appr'!$E$13:$J$59,6,FALSE)/100)) -> 412,517 | CG13: =($A13-$A12)/365.25*$D$1*(1+$D$2+(VLOOKUP('RE Appr'!CM20,'RE Appr'!$E$13:$J$59,6,FALSE)/100)) -> 455,688 | CH13: =($A13-$A12)/365.25*$D$1*(1+$D$2+(VLOOKUP('RE Appr'!CN20,'RE Appr'!$E$13:$J$59,6,FALSE)/100)) -> 412,977 | CI13: =($A13-$A12)/365.25*$D$1*(1+$D$2+(VLOOKUP('RE Appr'!CO20,'RE Appr'!$E$13:$J$59,6,FALSE)/100)) -> 429,316 | CJ13: =($A13-$A12)/365.25*$D$1*(1+$D$2+(VLOOKUP('RE Appr'!CP20,'RE Appr'!$E$13:$J$59,6,FALSE)/100)) -> 436,841 | CK13: =($A13-$A12)/365.25*$D$1*(1+$D$2+(VLOOKUP('RE Appr'!CQ20,'RE Appr'!$E$13:$J$59,6,FALSE)/100)) -> 437,041 | CL13: =($A13-$A12)/365.25*$D$1*(1+$D$2+(VLOOKUP('RE Appr'!CR20,'RE Appr'!$E$13:$J$59,6,FALSE)/100)) -> 412,517 | CM13: =($A13-$A12)/365.25*$D$1*(1+$D$2+(VLOOKUP('RE Appr'!CS20,'RE Appr'!$E$13:$J$59,6,FALSE)/100)) -> 410,729 | CN13: =($A13-$A12)/365.25*$D$1*(1+$D$2+(VLOOKUP('RE Appr'!CT20,'RE Appr'!$E$13:$J$59,6,FALSE)/100)) -> 417,654 | CO13: =($A13-$A12)/365.25*$D$1*(1+$D$2+(VLOOKUP('RE Appr'!CU20,'RE Appr'!$E$13:$J$59,6,FALSE)/100)) -> 435,182 | CP13: =($A13-$A12)/365.25*$D$1*(1+$D$2+(VLOOKUP('RE Appr'!CV20,'RE Appr'!$E$13:$J$59,6,FALSE)/100)) -> 418,174 | CQ13: =($A13-$A12)/365.25*$D$1*(1+$D$2+(VLOOKUP('RE Appr'!CW20,'RE Appr'!$E$13:$J$59,6,FALSE)/100)) -> 375,603 | CR13: =($A13-$A12)/365.25*$D$1*(1+$D$2+(VLOOKUP('RE Appr'!CX20,'RE Appr'!$E$13:$J$59,6,FALSE)/100)) -> 401,385 | CS13: =($A13-$A12)/365.25*$D$1*(1+$D$2+(VLOOKUP('RE Appr'!CY20,'RE Appr'!$E$13:$J$59,6,FALSE)/100)) -> 386,675 | CT13: =($A13-$A12)/365.25*$D$1*(1+$D$2+(VLOOKUP('RE Appr'!CZ20,'RE Appr'!$E$13:$J$59,6,FALSE)/100)) -> 399,326 | CU13: =($A13-$A12)/365.25*$D$1*(1+$D$2+(VLOOKUP('RE Appr'!DA20,'RE Appr'!$E$13:$J$59,6,FALSE)/100)) -> 371,326 | CV13: =($A13-$A12)/365.25*$D$1*(1+$D$2+(VLOOKUP('RE Appr'!DB20,'RE Appr'!$E$13:$J$59,6,FALSE)/100)) -> 418,174 | CW13: =($A13-$A12)/365.25*$D$1*(1+$D$2+(VLOOKUP('RE Appr'!DC20,'RE Appr'!$E$13:$J$59,6,FALSE)/100)) -> 386,675 | CX13: =($A13-$A12)/365.25*$D$1*(1+$D$2+(VLOOKUP('RE Appr'!DD20,'RE Appr'!$E$13:$J$59,6,FALSE)/100)) -> 417,916 | CY13: =($A13-$A12)/365.25*$D$1*(1+$D$2+(VLOOKUP('RE Appr'!DE20,'RE Appr'!$E$13:$J$59,6,FALSE)/100)) -> 411,048 | CZ13: =($A13-$A12)/365.25*$D$1*(1+$D$2+(VLOOKUP('RE Appr'!DF20,'RE Appr'!$E$13:$J$59,6,FALSE)/100)) -> 414,846 | DA13: =($A13-$A12)/365.25*$D$1*(1+$D$2+(VLOOKUP('RE Appr'!DG20,'RE Appr'!$E$13:$J$59,6,FALSE)/100)) -> 412,977
A14: =Main!A16 -> 2031-12-31 | B14: 9 | F14: =($A14-$A13)/365.25*$D$1*(1+$D$2+(VLOOKUP('RE Appr'!L21,'RE Appr'!$E$13:$J$59,6,FALSE)/100)) -> 442,737 | G14: =($A14-$A13)/365.25*$D$1*(1+$D$2+(VLOOKUP('RE Appr'!M21,'RE Appr'!$E$13:$J$59,6,FALSE)/100)) -> 436,965 | H14: =($A14-$A13)/365.25*$D$1*(1+$D$2+(VLOOKUP('RE Appr'!N21,'RE Appr'!$E$13:$J$59,6,FALSE)/100)) -> 416,183 | I14: =($A14-$A13)/365.25*$D$1*(1+$D$2+(VLOOKUP('RE Appr'!O21,'RE Appr'!$E$13:$J$59,6,FALSE)/100)) -> 471,787 | J14: =($A14-$A13)/365.25*$D$1*(1+$D$2+(VLOOKUP('RE Appr'!P21,'RE Appr'!$E$13:$J$59,6,FALSE)/100)) -> 430,492 | K14: =($A14-$A13)/365.25*$D$1*(1+$D$2+(VLOOKUP('RE Appr'!Q21,'RE Appr'!$E$13:$J$59,6,FALSE)/100)) -> 430,492 | L14: =($A14-$A13)/365.25*$D$1*(1+$D$2+(VLOOKUP('RE Appr'!R21,'RE Appr'!$E$13:$J$59,6,FALSE)/100)) -> 423,668 | M14: =($A14-$A13)/365.25*$D$1*(1+$D$2+(VLOOKUP('RE Appr'!S21,'RE Appr'!$E$13:$J$59,6,FALSE)/100)) -> 418,798 | N14: =($A14-$A13)/365.25*$D$1*(1+$D$2+(VLOOKUP('RE Appr'!T21,'RE Appr'!$E$13:$J$59,6,FALSE)/100)) -> 424,891 | O14: =($A14-$A13)/365.25*$D$1*(1+$D$2+(VLOOKUP('RE Appr'!U21,'RE Appr'!$E$13:$J$59,6,FALSE)/100)) -> 413,407 | P14: =($A14-$A13)/365.25*$D$1*(1+$D$2+(VLOOKUP('RE Appr'!V21,'RE Appr'!$E$13:$J$59,6,FALSE)/100)) -> 471,787 | Q14: =($A14-$A13)/365.25*$D$1*(1+$D$2+(VLOOKUP('RE Appr'!W21,'RE Appr'!$E$13:$J$59,6,FALSE)/100)) -> 436,374 | R14: =($A14-$A13)/365.25*$D$1*(1+$D$2+(VLOOKUP('RE Appr'!X21,'RE Appr'!$E$13:$J$59,6,FALSE)/100)) -> 442,737 | S14: =($A14-$A13)/365.25*$D$1*(1+$D$2+(VLOOKUP('RE Appr'!Y21,'RE Appr'!$E$13:$J$59,6,FALSE)/100)) -> 418,798 | T14: =($A14-$A13)/365.25*$D$1*(1+$D$2+(VLOOKUP('RE Appr'!Z21,'RE Appr'!$E$13:$J$59,6,FALSE)/100)) -> 442,316 | U14: =($A14-$A13)/365.25*$D$1*(1+$D$2+(VLOOKUP('RE Appr'!AA21,'RE Appr'!$E$13:$J$59,6,FALSE)/100)) -> 420,439 | V14: =($A14-$A13)/365.25*$D$1*(1+$D$2+(VLOOKUP('RE Appr'!AB21,'RE Appr'!$E$13:$J$59,6,FALSE)/100)) -> 410,391 | W14: =($A14-$A13)/365.25*$D$1*(1+$D$2+(VLOOKUP('RE Appr'!AC21,'RE Appr'!$E$13:$J$59,6,FALSE)/100)) -> 416,183 | X14: =($A14-$A13)/365.25*$D$1*(1+$D$2+(VLOOKUP('RE Appr'!AD21,'RE Appr'!$E$13:$J$59,6,FALSE)/100)) -> 420,439 | Y14: =($A14-$A13)/365.25*$D$1*(1+$D$2+(VLOOKUP('RE Appr'!AE21,'RE Appr'!$E$13:$J$59,6,FALSE)/100)) -> 384,879 | Z14: =($A14-$A13)/365.25*$D$1*(1+$D$2+(VLOOKUP('RE Appr'!AF21,'RE Appr'!$E$13:$J$59,6,FALSE)/100)) -> 400,421 | AA14: =($A14-$A13)/365.25*$D$1*(1+$D$2+(VLOOKUP('RE Appr'!AG21,'RE Appr'!$E$13:$J$59,6,FALSE)/100)) -> 416,423 | AB14: =($A14-$A13)/365.25*$D$1*(1+$D$2+(VLOOKUP('RE Appr'!AH21,'RE Appr'!$E$13:$J$59,6,FALSE)/100)) -> 420,692 | AC14: =($A14-$A13)/365.25*$D$1*(1+$D$2+(VLOOKUP('RE Appr'!AI21,'RE Appr'!$E$13:$J$59,6,FALSE)/100)) -> 423,668 | AD14: =($A14-$A13)/365.25*$D$1*(1+$D$2+(VLOOKUP('RE Appr'!AJ21,'RE Appr'!$E$13:$J$59,6,FALSE)/100)) -> 387,735 | AE14: =($A14-$A13)/365.25*$D$1*(1+$D$2+(VLOOKUP('RE Appr'!AK21,'RE Appr'!$E$13:$J$59,6,FALSE)/100)) -> 417,836 | AF14: =($A14-$A13)/365.25*$D$1*(1+$D$2+(VLOOKUP('RE Appr'!AL21,'RE Appr'!$E$13:$J$59,6,FALSE)/100)) -> 438,238 | AG14: =($A14-$A13)/365.25*$D$1*(1+$D$2+(VLOOKUP('RE Appr'!AM21,'RE Appr'!$E$13:$J$59,6,FALSE)/100)) -> 408,206 | AH14: =($A14-$A13)/365.25*$D$1*(1+$D$2+(VLOOKUP('RE Appr'!AN21,'RE Appr'!$E$13:$J$59,6,FALSE)/100)) -> 452,255 | AI14: =($A14-$A13)/365.25*$D$1*(1+$D$2+(VLOOKUP('RE Appr'!AO21,'RE Appr'!$E$13:$J$59,6,FALSE)/100)) -> 438,038 | AJ14: =($A14-$A13)/365.25*$D$1*(1+$D$2+(VLOOKUP('RE Appr'!AP21,'RE Appr'!$E$13:$J$59,6,FALSE)/100)) -> 420,439 | AK14: =($A14-$A13)/365.25*$D$1*(1+$D$2+(VLOOKUP('RE Appr'!AQ21,'RE Appr'!$E$13:$J$59,6,FALSE)/100)) -> 416,183 | AL14: =($A14-$A13)/365.25*$D$1*(1+$D$2+(VLOOKUP('RE Appr'!AR21,'RE Appr'!$E$13:$J$59,6,FALSE)/100)) -> 419,061 | AM14: =($A14-$A13)/365.25*$D$1*(1+$D$2+(VLOOKUP('RE Appr'!AS21,'RE Appr'!$E$13:$J$59,6,FALSE)/100)) -> 438,238 | AN14: =($A14-$A13)/365.25*$D$1*(1+$D$2+(VLOOKUP('RE Appr'!AT21,'RE Appr'!$E$13:$J$59,6,FALSE)/100)) -> 416,987 | AO14: =($A14-$A13)/365.25*$D$1*(1+$D$2+(VLOOKUP('RE Appr'!AU21,'RE Appr'!$E$13:$J$59,6,FALSE)/100)) -> 452,255 | AP14: =($A14-$A13)/365.25*$D$1*(1+$D$2+(VLOOKUP('RE Appr'!AV21,'RE Appr'!$E$13:$J$59,6,FALSE)/100)) -> 420,692 | AQ14: =($A14-$A13)/365.25*$D$1*(1+$D$2+(VLOOKUP('RE Appr'!AW21,'RE Appr'!$E$13:$J$59,6,FALSE)/100)) -> 432,957 | AR14: =($A14-$A13)/365.25*$D$1*(1+$D$2+(VLOOKUP('RE Appr'!AX21,'RE Appr'!$E$13:$J$59,6,FALSE)/100)) -> 376,632 | AS14: =($A14-$A13)/365.25*$D$1*(1+$D$2+(VLOOKUP('RE Appr'!AY21,'RE Appr'!$E$13:$J$59,6,FALSE)/100)) -> 417,375 | AT14: =($A14-$A13)/365.25*$D$1*(1+$D$2+(VLOOKUP('RE Appr'!AZ21,'RE Appr'!$E$13:$J$59,6,FALSE)/100)) -> 435,402 | AU14: =($A14-$A13)/365.25*$D$1*(1+$D$2+(VLOOKUP('RE Appr'!BA21,'RE Appr'!$E$13:$J$59,6,FALSE)/100)) -> 420,492 | AV14: =($A14-$A13)/365.25*$D$1*(1+$D$2+(VLOOKUP('RE Appr'!BB21,'RE Appr'!$E$13:$J$59,6,FALSE)/100)) -> 410,391 | AW14: =($A14-$A13)/365.25*$D$1*(1+$D$2+(VLOOKUP('RE Appr'!BC21,'RE Appr'!$E$13:$J$59,6,FALSE)/100)) -> 419,319 | AX14: =($A14-$A13)/365.25*$D$1*(1+$D$2+(VLOOKUP('RE Appr'!BD21,'RE Appr'!$E$13:$J$59,6,FALSE)/100)) -> 413,648 | AY14: =($A14-$A13)/365.25*$D$1*(1+$D$2+(VLOOKUP('RE Appr'!BE21,'RE Appr'!$E$13:$J$59,6,FALSE)/100)) -> 414,109 | AZ14: =($A14-$A13)/365.25*$D$1*(1+$D$2+(VLOOKUP('RE Appr'!BF21,'RE Appr'!$E$13:$J$59,6,FALSE)/100)) -> 435,402 | BA14: =($A14-$A13)/365.25*$D$1*(1+$D$2+(VLOOKUP('RE Appr'!BG21,'RE Appr'!$E$13:$J$59,6,FALSE)/100)) -> 420,492 | BB14: =($A14-$A13)/365.25*$D$1*(1+$D$2+(VLOOKUP('RE Appr'!BH21,'RE Appr'!$E$13:$J$59,6,FALSE)/100)) -> 420,782 | BC14: =($A14-$A13)/365.25*$D$1*(1+$D$2+(VLOOKUP('RE Appr'!BI21,'RE Appr'!$E$13:$J$59,6,FALSE)/100)) -> 430,492 | BD14: =($A14-$A13)/365.25*$D$1*(1+$D$2+(VLOOKUP('RE Appr'!BJ21,'RE Appr'!$E$13:$J$59,6,FALSE)/100)) -> 418,798 | BE14: =($A14-$A13)/365.25*$D$1*(1+$D$2+(VLOOKUP('RE Appr'!BK21,'RE Appr'!$E$13:$J$59,6,FALSE)/100)) -> 413,648 | BF14: =($A14-$A13)/365.25*$D$1*(1+$D$2+(VLOOKUP('RE Appr'!BL21,'RE Appr'!$E$13:$J$59,6,FALSE)/100)) -> 410,391 | BG14: =($A14-$A13)/365.25*$D$1*(1+$D$2+(VLOOKUP('RE Appr'!BM21,'RE Appr'!$E$13:$J$59,6,FALSE)/100)) -> 419,981 | BH14: =($A14-$A13)/365.25*$D$1*(1+$D$2+(VLOOKUP('RE Appr'!BN21,'RE Appr'!$E$13:$J$59,6,FALSE)/100)) -> 384,879 | BI14: =($A14-$A13)/365.25*$D$1*(1+$D$2+(VLOOKUP('RE Appr'!BO21,'RE Appr'!$E$13:$J$59,6,FALSE)/100)) -> 442,737 | BJ14: =($A14-$A13)/365.25*$D$1*(1+$D$2+(VLOOKUP('RE Appr'!BP21,'RE Appr'!$E$13:$J$59,6,FALSE)/100)) -> 436,374 | BK14: =($A14-$A13)/365.25*$D$1*(1+$D$2+(VLOOKUP('RE Appr'!BQ21,'RE Appr'!$E$13:$J$59,6,FALSE)/100)) -> 438,038 | BL14: =($A14-$A13)/365.25*$D$1*(1+$D$2+(VLOOKUP('RE Appr'!BR21,'RE Appr'!$E$13:$J$59,6,FALSE)/100)) -> 424,891 | BM14: =($A14-$A13)/365.25*$D$1*(1+$D$2+(VLOOKUP('RE Appr'!BS21,'RE Appr'!$E$13:$J$59,6,FALSE)/100)) -> 415,982 | BN14: =($A14-$A13)/365.25*$D$1*(1+$D$2+(VLOOKUP('RE Appr'!BT21,'RE Appr'!$E$13:$J$59,6,FALSE)/100)) -> 412,175 | BO14: =($A14-$A13)/365.25*$D$1*(1+$D$2+(VLOOKUP('RE Appr'!BU21,'RE Appr'!$E$13:$J$59,6,FALSE)/100)) -> 418,798 | BP14: =($A14-$A13)/365.25*$D$1*(1+$D$2+(VLOOKUP('RE Appr'!BV21,'RE Appr'!$E$13:$J$59,6,FALSE)/100)) -> 420,492 | BQ14: =($A14-$A13)/365.25*$D$1*(1+$D$2+(VLOOKUP('RE Appr'!BW21,'RE Appr'!$E$13:$J$59,6,FALSE)/100)) -> 438,238 | BR14: =($A14-$A13)/365.25*$D$1*(1+$D$2+(VLOOKUP('RE Appr'!BX21,'RE Appr'!$E$13:$J$59,6,FALSE)/100)) -> 372,343 | BS14: =($A14-$A13)/365.25*$D$1*(1+$D$2+(VLOOKUP('RE Appr'!BY21,'RE Appr'!$E$13:$J$59,6,FALSE)/100)) -> 471,787 | BT14: =($A14-$A13)/365.25*$D$1*(1+$D$2+(VLOOKUP('RE Appr'!BZ21,'RE Appr'!$E$13:$J$59,6,FALSE)/100)) -> 411,854 | BU14: =($A14-$A13)/365.25*$D$1*(1+$D$2+(VLOOKUP('RE Appr'!CA21,'RE Appr'!$E$13:$J$59,6,FALSE)/100)) -> 413,648 | BV14: =($A14-$A13)/365.25*$D$1*(1+$D$2+(VLOOKUP('RE Appr'!CB21,'RE Appr'!$E$13:$J$59,6,FALSE)/100)) -> 418,798 | BW14: =($A14-$A13)/365.25*$D$1*(1+$D$2+(VLOOKUP('RE Appr'!CC21,'RE Appr'!$E$13:$J$59,6,FALSE)/100)) -> 442,737 | BX14: =($A14-$A13)/365.25*$D$1*(1+$D$2+(VLOOKUP('RE Appr'!CD21,'RE Appr'!$E$13:$J$59,6,FALSE)/100)) -> 435,402 | BY14: =($A14-$A13)/365.25*$D$1*(1+$D$2+(VLOOKUP('RE Appr'!CE21,'RE Appr'!$E$13:$J$59,6,FALSE)/100)) -> 372,343 | BZ14: =($A14-$A13)/365.25*$D$1*(1+$D$2+(VLOOKUP('RE Appr'!CF21,'RE Appr'!$E$13:$J$59,6,FALSE)/100)) -> 419,061 | CA14: =($A14-$A13)/365.25*$D$1*(1+$D$2+(VLOOKUP('RE Appr'!CG21,'RE Appr'!$E$13:$J$59,6,FALSE)/100)) -> 418,798 | CB14: =($A14-$A13)/365.25*$D$1*(1+$D$2+(VLOOKUP('RE Appr'!CH21,'RE Appr'!$E$13:$J$59,6,FALSE)/100)) -> 420,782 | CC14: =($A14-$A13)/365.25*$D$1*(1+$D$2+(VLOOKUP('RE Appr'!CI21,'RE Appr'!$E$13:$J$59,6,FALSE)/100)) -> 372,343 | CD14: =($A14-$A13)/365.25*$D$1*(1+$D$2+(VLOOKUP('RE Appr'!CJ21,'RE Appr'!$E$13:$J$59,6,FALSE)/100)) -> 421,343 | CE14: =($A14-$A13)/365.25*$D$1*(1+$D$2+(VLOOKUP('RE Appr'!CK21,'RE Appr'!$E$13:$J$59,6,FALSE)/100)) -> 438,038 | CF14: =($A14-$A13)/365.25*$D$1*(1+$D$2+(VLOOKUP('RE Appr'!CL21,'RE Appr'!$E$13:$J$59,6,FALSE)/100)) -> 400,421 | CG14: =($A14-$A13)/365.25*$D$1*(1+$D$2+(VLOOKUP('RE Appr'!CM21,'RE Appr'!$E$13:$J$59,6,FALSE)/100)) -> 430,492 | CH14: =($A14-$A13)/365.25*$D$1*(1+$D$2+(VLOOKUP('RE Appr'!CN21,'RE Appr'!$E$13:$J$59,6,FALSE)/100)) -> 419,981 | CI14: =($A14-$A13)/365.25*$D$1*(1+$D$2+(VLOOKUP('RE Appr'!CO21,'RE Appr'!$E$13:$J$59,6,FALSE)/100)) -> 452,255 | CJ14: =($A14-$A13)/365.25*$D$1*(1+$D$2+(VLOOKUP('RE Appr'!CP21,'RE Appr'!$E$13:$J$59,6,FALSE)/100)) -> 420,439 | CK14: =($A14-$A13)/365.25*$D$1*(1+$D$2+(VLOOKUP('RE Appr'!CQ21,'RE Appr'!$E$13:$J$59,6,FALSE)/100)) -> 424,911 | CL14: =($A14-$A13)/365.25*$D$1*(1+$D$2+(VLOOKUP('RE Appr'!CR21,'RE Appr'!$E$13:$J$59,6,FALSE)/100)) -> 430,492 | CM14: =($A14-$A13)/365.25*$D$1*(1+$D$2+(VLOOKUP('RE Appr'!CS21,'RE Appr'!$E$13:$J$59,6,FALSE)/100)) -> 384,879 | CN14: =($A14-$A13)/365.25*$D$1*(1+$D$2+(VLOOKUP('RE Appr'!CT21,'RE Appr'!$E$13:$J$59,6,FALSE)/100)) -> 420,782 | CO14: =($A14-$A13)/365.25*$D$1*(1+$D$2+(VLOOKUP('RE Appr'!CU21,'RE Appr'!$E$13:$J$59,6,FALSE)/100)) -> 424,911 | CP14: =($A14-$A13)/365.25*$D$1*(1+$D$2+(VLOOKUP('RE Appr'!CV21,'RE Appr'!$E$13:$J$59,6,FALSE)/100)) -> 436,374 | CQ14: =($A14-$A13)/365.25*$D$1*(1+$D$2+(VLOOKUP('RE Appr'!CW21,'RE Appr'!$E$13:$J$59,6,FALSE)/100)) -> 416,423 | CR14: =($A14-$A13)/365.25*$D$1*(1+$D$2+(VLOOKUP('RE Appr'!CX21,'RE Appr'!$E$13:$J$59,6,FALSE)/100)) -> 441,875 | CS14: =($A14-$A13)/365.25*$D$1*(1+$D$2+(VLOOKUP('RE Appr'!CY21,'RE Appr'!$E$13:$J$59,6,FALSE)/100)) -> 432,957 | CT14: =($A14-$A13)/365.25*$D$1*(1+$D$2+(VLOOKUP('RE Appr'!CZ21,'RE Appr'!$E$13:$J$59,6,FALSE)/100)) -> 419,061 | CU14: =($A14-$A13)/365.25*$D$1*(1+$D$2+(VLOOKUP('RE Appr'!DA21,'RE Appr'!$E$13:$J$59,6,FALSE)/100)) -> 417,375 | CV14: =($A14-$A13)/365.25*$D$1*(1+$D$2+(VLOOKUP('RE Appr'!DB21,'RE Appr'!$E$13:$J$59,6,FALSE)/100)) -> 387,735 | CW14: =($A14-$A13)/365.25*$D$1*(1+$D$2+(VLOOKUP('RE Appr'!DC21,'RE Appr'!$E$13:$J$59,6,FALSE)/100)) -> 417,375 | CX14: =($A14-$A13)/365.25*$D$1*(1+$D$2+(VLOOKUP('RE Appr'!DD21,'RE Appr'!$E$13:$J$59,6,FALSE)/100)) -> 422,821 | CY14: =($A14-$A13)/365.25*$D$1*(1+$D$2+(VLOOKUP('RE Appr'!DE21,'RE Appr'!$E$13:$J$59,6,FALSE)/100)) -> 442,737 | CZ14: =($A14-$A13)/365.25*$D$1*(1+$D$2+(VLOOKUP('RE Appr'!DF21,'RE Appr'!$E$13:$J$59,6,FALSE)/100)) -> 420,439 | DA14: =($A14-$A13)/365.25*$D$1*(1+$D$2+(VLOOKUP('RE Appr'!DG21,'RE Appr'!$E$13:$J$59,6,FALSE)/100)) -> 420,692
A15: =Main!A17 -> 2032-12-30 | B15: 10 | F15: =($A15-$A14)/365.25*$D$1*(1+$D$2+(VLOOKUP('RE Appr'!L22,'RE Appr'!$E$13:$J$59,6,FALSE)/100)) -> 437,041 | G15: =($A15-$A14)/365.25*$D$1*(1+$D$2+(VLOOKUP('RE Appr'!M22,'RE Appr'!$E$13:$J$59,6,FALSE)/100)) -> 417,916 | H15: =($A15-$A14)/365.25*$D$1*(1+$D$2+(VLOOKUP('RE Appr'!N22,'RE Appr'!$E$13:$J$59,6,FALSE)/100)) -> 435,772 | I15: =($A15-$A14)/365.25*$D$1*(1+$D$2+(VLOOKUP('RE Appr'!O22,'RE Appr'!$E$13:$J$59,6,FALSE)/100)) -> 441,108 | J15: =($A15-$A14)/365.25*$D$1*(1+$D$2+(VLOOKUP('RE Appr'!P22,'RE Appr'!$E$13:$J$59,6,FALSE)/100)) -> 426,042 | K15: =($A15-$A14)/365.25*$D$1*(1+$D$2+(VLOOKUP('RE Appr'!Q22,'RE Appr'!$E$13:$J$59,6,FALSE)/100)) -> 401,385 | L15: =($A15-$A14)/365.25*$D$1*(1+$D$2+(VLOOKUP('RE Appr'!R22,'RE Appr'!$E$13:$J$59,6,FALSE)/100)) -> 429,316 | M15: =($A15-$A14)/365.25*$D$1*(1+$D$2+(VLOOKUP('RE Appr'!S22,'RE Appr'!$E$13:$J$59,6,FALSE)/100)) -> 417,916 | N15: =($A15-$A14)/365.25*$D$1*(1+$D$2+(VLOOKUP('RE Appr'!T22,'RE Appr'!$E$13:$J$59,6,FALSE)/100)) -> 421,666 | O15: =($A15-$A14)/365.25*$D$1*(1+$D$2+(VLOOKUP('RE Appr'!U22,'RE Appr'!$E$13:$J$59,6,FALSE)/100)) -> 419,633 | P15: =($A15-$A14)/365.25*$D$1*(1+$D$2+(VLOOKUP('RE Appr'!V22,'RE Appr'!$E$13:$J$59,6,FALSE)/100)) -> 429,316 | Q15: =($A15-$A14)/365.25*$D$1*(1+$D$2+(VLOOKUP('RE Appr'!W22,'RE Appr'!$E$13:$J$59,6,FALSE)/100)) -> 436,841 | R15: =($A15-$A14)/365.25*$D$1*(1+$D$2+(VLOOKUP('RE Appr'!X22,'RE Appr'!$E$13:$J$59,6,FALSE)/100)) -> 419,633 | S15: =($A15-$A14)/365.25*$D$1*(1+$D$2+(VLOOKUP('RE Appr'!Y22,'RE Appr'!$E$13:$J$59,6,FALSE)/100)) -> 414,846 | T15: =($A15-$A14)/365.25*$D$1*(1+$D$2+(VLOOKUP('RE Appr'!Z22,'RE Appr'!$E$13:$J$59,6,FALSE)/100)) -> 416,235 | U15: =($A15-$A14)/365.25*$D$1*(1+$D$2+(VLOOKUP('RE Appr'!AA22,'RE Appr'!$E$13:$J$59,6,FALSE)/100)) -> 434,213 | V15: =($A15-$A14)/365.25*$D$1*(1+$D$2+(VLOOKUP('RE Appr'!AB22,'RE Appr'!$E$13:$J$59,6,FALSE)/100)) -> 440,668 | W15: =($A15-$A14)/365.25*$D$1*(1+$D$2+(VLOOKUP('RE Appr'!AC22,'RE Appr'!$E$13:$J$59,6,FALSE)/100)) -> 429,316 | X15: =($A15-$A14)/365.25*$D$1*(1+$D$2+(VLOOKUP('RE Appr'!AD22,'RE Appr'!$E$13:$J$59,6,FALSE)/100)) -> 386,675 | Y15: =($A15-$A14)/365.25*$D$1*(1+$D$2+(VLOOKUP('RE Appr'!AE22,'RE Appr'!$E$13:$J$59,6,FALSE)/100)) -> 436,841 | Z15: =($A15-$A14)/365.25*$D$1*(1+$D$2+(VLOOKUP('RE Appr'!AF22,'RE Appr'!$E$13:$J$59,6,FALSE)/100)) -> 412,977 | AA15: =($A15-$A14)/365.25*$D$1*(1+$D$2+(VLOOKUP('RE Appr'!AG22,'RE Appr'!$E$13:$J$59,6,FALSE)/100)) -> 417,916 | AB15: =($A15-$A14)/365.25*$D$1*(1+$D$2+(VLOOKUP('RE Appr'!AH22,'RE Appr'!$E$13:$J$59,6,FALSE)/100)) -> 455,688 | AC15: =($A15-$A14)/365.25*$D$1*(1+$D$2+(VLOOKUP('RE Appr'!AI22,'RE Appr'!$E$13:$J$59,6,FALSE)/100)) -> 407,091 | AD15: =($A15-$A14)/365.25*$D$1*(1+$D$2+(VLOOKUP('RE Appr'!AJ22,'RE Appr'!$E$13:$J$59,6,FALSE)/100)) -> 410,729 | AE15: =($A15-$A14)/365.25*$D$1*(1+$D$2+(VLOOKUP('RE Appr'!AK22,'RE Appr'!$E$13:$J$59,6,FALSE)/100)) -> 451,019 | AF15: =($A15-$A14)/365.25*$D$1*(1+$D$2+(VLOOKUP('RE Appr'!AL22,'RE Appr'!$E$13:$J$59,6,FALSE)/100)) -> 410,729 | AG15: =($A15-$A14)/365.25*$D$1*(1+$D$2+(VLOOKUP('RE Appr'!AM22,'RE Appr'!$E$13:$J$59,6,FALSE)/100)) -> 416,695 | AH15: =($A15-$A14)/365.25*$D$1*(1+$D$2+(VLOOKUP('RE Appr'!AN22,'RE Appr'!$E$13:$J$59,6,FALSE)/100)) -> 422,511 | AI15: =($A15-$A14)/365.25*$D$1*(1+$D$2+(VLOOKUP('RE Appr'!AO22,'RE Appr'!$E$13:$J$59,6,FALSE)/100)) -> 429,316 | AJ15: =($A15-$A14)/365.25*$D$1*(1+$D$2+(VLOOKUP('RE Appr'!AP22,'RE Appr'!$E$13:$J$59,6,FALSE)/100)) -> 411,048 | AK15: =($A15-$A14)/365.25*$D$1*(1+$D$2+(VLOOKUP('RE Appr'!AQ22,'RE Appr'!$E$13:$J$59,6,FALSE)/100)) -> 407,091 | AL15: =($A15-$A14)/365.25*$D$1*(1+$D$2+(VLOOKUP('RE Appr'!AR22,'RE Appr'!$E$13:$J$59,6,FALSE)/100)) -> 451,019 | AM15: =($A15-$A14)/365.25*$D$1*(1+$D$2+(VLOOKUP('RE Appr'!AS22,'RE Appr'!$E$13:$J$59,6,FALSE)/100)) -> 386,675 | AN15: =($A15-$A14)/365.25*$D$1*(1+$D$2+(VLOOKUP('RE Appr'!AT22,'RE Appr'!$E$13:$J$59,6,FALSE)/100)) -> 422,511 | AO15: =($A15-$A14)/365.25*$D$1*(1+$D$2+(VLOOKUP('RE Appr'!AU22,'RE Appr'!$E$13:$J$59,6,FALSE)/100)) -> 441,528 | AP15: =($A15-$A14)/365.25*$D$1*(1+$D$2+(VLOOKUP('RE Appr'!AV22,'RE Appr'!$E$13:$J$59,6,FALSE)/100)) -> 412,977 | AQ15: =($A15-$A14)/365.25*$D$1*(1+$D$2+(VLOOKUP('RE Appr'!AW22,'RE Appr'!$E$13:$J$59,6,FALSE)/100)) -> 414,846 | AR15: =($A15-$A14)/365.25*$D$1*(1+$D$2+(VLOOKUP('RE Appr'!AX22,'RE Appr'!$E$13:$J$59,6,FALSE)/100)) -> 431,774 | AS15: =($A15-$A14)/365.25*$D$1*(1+$D$2+(VLOOKUP('RE Appr'!AY22,'RE Appr'!$E$13:$J$59,6,FALSE)/100)) -> 441,108 | AT15: =($A15-$A14)/365.25*$D$1*(1+$D$2+(VLOOKUP('RE Appr'!AZ22,'RE Appr'!$E$13:$J$59,6,FALSE)/100)) -> 418,834 | AU15: =($A15-$A14)/365.25*$D$1*(1+$D$2+(VLOOKUP('RE Appr'!BA22,'RE Appr'!$E$13:$J$59,6,FALSE)/100)) -> 412,278 | AV15: =($A15-$A14)/365.25*$D$1*(1+$D$2+(VLOOKUP('RE Appr'!BB22,'RE Appr'!$E$13:$J$59,6,FALSE)/100)) -> 440,668 | AW15: =($A15-$A14)/365.25*$D$1*(1+$D$2+(VLOOKUP('RE Appr'!BC22,'RE Appr'!$E$13:$J$59,6,FALSE)/100)) -> 412,517 | AX15: =($A15-$A14)/365.25*$D$1*(1+$D$2+(VLOOKUP('RE Appr'!BD22,'RE Appr'!$E$13:$J$59,6,FALSE)/100)) -> 401,385 | AY15: =($A15-$A14)/365.25*$D$1*(1+$D$2+(VLOOKUP('RE Appr'!BE22,'RE Appr'!$E$13:$J$59,6,FALSE)/100)) -> 419,543 | AZ15: =($A15-$A14)/365.25*$D$1*(1+$D$2+(VLOOKUP('RE Appr'!BF22,'RE Appr'!$E$13:$J$59,6,FALSE)/100)) -> 383,827 | BA15: =($A15-$A14)/365.25*$D$1*(1+$D$2+(VLOOKUP('RE Appr'!BG22,'RE Appr'!$E$13:$J$59,6,FALSE)/100)) -> 399,326 | BB15: =($A15-$A14)/365.25*$D$1*(1+$D$2+(VLOOKUP('RE Appr'!BH22,'RE Appr'!$E$13:$J$59,6,FALSE)/100)) -> 441,528 | BC15: =($A15-$A14)/365.25*$D$1*(1+$D$2+(VLOOKUP('RE Appr'!BI22,'RE Appr'!$E$13:$J$59,6,FALSE)/100)) -> 386,675 | BD15: =($A15-$A14)/365.25*$D$1*(1+$D$2+(VLOOKUP('RE Appr'!BJ22,'RE Appr'!$E$13:$J$59,6,FALSE)/100)) -> 375,603 | BE15: =($A15-$A14)/365.25*$D$1*(1+$D$2+(VLOOKUP('RE Appr'!BK22,'RE Appr'!$E$13:$J$59,6,FALSE)/100)) -> 419,290 | BF15: =($A15-$A14)/365.25*$D$1*(1+$D$2+(VLOOKUP('RE Appr'!BL22,'RE Appr'!$E$13:$J$59,6,FALSE)/100)) -> 429,316 | BG15: =($A15-$A14)/365.25*$D$1*(1+$D$2+(VLOOKUP('RE Appr'!BM22,'RE Appr'!$E$13:$J$59,6,FALSE)/100)) -> 431,774 | BH15: =($A15-$A14)/365.25*$D$1*(1+$D$2+(VLOOKUP('RE Appr'!BN22,'RE Appr'!$E$13:$J$59,6,FALSE)/100)) -> 414,846 | BI15: =($A15-$A14)/365.25*$D$1*(1+$D$2+(VLOOKUP('RE Appr'!BO22,'RE Appr'!$E$13:$J$59,6,FALSE)/100)) -> 418,174 | BJ15: =($A15-$A14)/365.25*$D$1*(1+$D$2+(VLOOKUP('RE Appr'!BP22,'RE Appr'!$E$13:$J$59,6,FALSE)/100)) -> 435,182 | BK15: =($A15-$A14)/365.25*$D$1*(1+$D$2+(VLOOKUP('RE Appr'!BQ22,'RE Appr'!$E$13:$J$59,6,FALSE)/100)) -> 435,772 | BL15: =($A15-$A14)/365.25*$D$1*(1+$D$2+(VLOOKUP('RE Appr'!BR22,'RE Appr'!$E$13:$J$59,6,FALSE)/100)) -> 419,633 | BM15: =($A15-$A14)/365.25*$D$1*(1+$D$2+(VLOOKUP('RE Appr'!BS22,'RE Appr'!$E$13:$J$59,6,FALSE)/100)) -> 409,270 | BN15: =($A15-$A14)/365.25*$D$1*(1+$D$2+(VLOOKUP('RE Appr'!BT22,'RE Appr'!$E$13:$J$59,6,FALSE)/100)) -> 420,192 | BO15: =($A15-$A14)/365.25*$D$1*(1+$D$2+(VLOOKUP('RE Appr'!BU22,'RE Appr'!$E$13:$J$59,6,FALSE)/100)) -> 420,192 | BP15: =($A15-$A14)/365.25*$D$1*(1+$D$2+(VLOOKUP('RE Appr'!BV22,'RE Appr'!$E$13:$J$59,6,FALSE)/100)) -> 415,046 | BQ15: =($A15-$A14)/365.25*$D$1*(1+$D$2+(VLOOKUP('RE Appr'!BW22,'RE Appr'!$E$13:$J$59,6,FALSE)/100)) -> 412,637 | BR15: =($A15-$A14)/365.25*$D$1*(1+$D$2+(VLOOKUP('RE Appr'!BX22,'RE Appr'!$E$13:$J$59,6,FALSE)/100)) -> 415,848 | BS15: =($A15-$A14)/365.25*$D$1*(1+$D$2+(VLOOKUP('RE Appr'!BY22,'RE Appr'!$E$13:$J$59,6,FALSE)/100)) -> 412,977 | BT15: =($A15-$A14)/365.25*$D$1*(1+$D$2+(VLOOKUP('RE Appr'!BZ22,'RE Appr'!$E$13:$J$59,6,FALSE)/100)) -> 419,543 | BU15: =($A15-$A14)/365.25*$D$1*(1+$D$2+(VLOOKUP('RE Appr'!CA22,'RE Appr'!$E$13:$J$59,6,FALSE)/100)) -> 431,774 | BV15: =($A15-$A14)/365.25*$D$1*(1+$D$2+(VLOOKUP('RE Appr'!CB22,'RE Appr'!$E$13:$J$59,6,FALSE)/100)) -> 411,048 | BW15: =($A15-$A14)/365.25*$D$1*(1+$D$2+(VLOOKUP('RE Appr'!CC22,'RE Appr'!$E$13:$J$59,6,FALSE)/100)) -> 410,729 | BX15: =($A15-$A14)/365.25*$D$1*(1+$D$2+(VLOOKUP('RE Appr'!CD22,'RE Appr'!$E$13:$J$59,6,FALSE)/100)) -> 426,042 | BY15: =($A15-$A14)/365.25*$D$1*(1+$D$2+(VLOOKUP('RE Appr'!CE22,'RE Appr'!$E$13:$J$59,6,FALSE)/100)) -> 437,041 | BZ15: =($A15-$A14)/365.25*$D$1*(1+$D$2+(VLOOKUP('RE Appr'!CF22,'RE Appr'!$E$13:$J$59,6,FALSE)/100)) -> 414,846 | CA15: =($A15-$A14)/365.25*$D$1*(1+$D$2+(VLOOKUP('RE Appr'!CG22,'RE Appr'!$E$13:$J$59,6,FALSE)/100)) -> 435,182 | CB15: =($A15-$A14)/365.25*$D$1*(1+$D$2+(VLOOKUP('RE Appr'!CH22,'RE Appr'!$E$13:$J$59,6,FALSE)/100)) -> 371,326 | CC15: =($A15-$A14)/365.25*$D$1*(1+$D$2+(VLOOKUP('RE Appr'!CI22,'RE Appr'!$E$13:$J$59,6,FALSE)/100)) -> 441,108 | CD15: =($A15-$A14)/365.25*$D$1*(1+$D$2+(VLOOKUP('RE Appr'!CJ22,'RE Appr'!$E$13:$J$59,6,FALSE)/100)) -> 416,695 | CE15: =($A15-$A14)/365.25*$D$1*(1+$D$2+(VLOOKUP('RE Appr'!CK22,'RE Appr'!$E$13:$J$59,6,FALSE)/100)) -> 407,091 | CF15: =($A15-$A14)/365.25*$D$1*(1+$D$2+(VLOOKUP('RE Appr'!CL22,'RE Appr'!$E$13:$J$59,6,FALSE)/100)) -> 423,750 | CG15: =($A15-$A14)/365.25*$D$1*(1+$D$2+(VLOOKUP('RE Appr'!CM22,'RE Appr'!$E$13:$J$59,6,FALSE)/100)) -> 436,841 | CH15: =($A15-$A14)/365.25*$D$1*(1+$D$2+(VLOOKUP('RE Appr'!CN22,'RE Appr'!$E$13:$J$59,6,FALSE)/100)) -> 414,846 | CI15: =($A15-$A14)/365.25*$D$1*(1+$D$2+(VLOOKUP('RE Appr'!CO22,'RE Appr'!$E$13:$J$59,6,FALSE)/100)) -> 417,654 | CJ15: =($A15-$A14)/365.25*$D$1*(1+$D$2+(VLOOKUP('RE Appr'!CP22,'RE Appr'!$E$13:$J$59,6,FALSE)/100)) -> 440,668 | CK15: =($A15-$A14)/365.25*$D$1*(1+$D$2+(VLOOKUP('RE Appr'!CQ22,'RE Appr'!$E$13:$J$59,6,FALSE)/100)) -> 411,048 | CL15: =($A15-$A14)/365.25*$D$1*(1+$D$2+(VLOOKUP('RE Appr'!CR22,'RE Appr'!$E$13:$J$59,6,FALSE)/100)) -> 416,695 | CM15: =($A15-$A14)/365.25*$D$1*(1+$D$2+(VLOOKUP('RE Appr'!CS22,'RE Appr'!$E$13:$J$59,6,FALSE)/100)) -> 411,048 | CN15: =($A15-$A14)/365.25*$D$1*(1+$D$2+(VLOOKUP('RE Appr'!CT22,'RE Appr'!$E$13:$J$59,6,FALSE)/100)) -> 420,192 | CO15: =($A15-$A14)/365.25*$D$1*(1+$D$2+(VLOOKUP('RE Appr'!CU22,'RE Appr'!$E$13:$J$59,6,FALSE)/100)) -> 455,688 | CP15: =($A15-$A14)/365.25*$D$1*(1+$D$2+(VLOOKUP('RE Appr'!CV22,'RE Appr'!$E$13:$J$59,6,FALSE)/100)) -> 419,633 | CQ15: =($A15-$A14)/365.25*$D$1*(1+$D$2+(VLOOKUP('RE Appr'!CW22,'RE Appr'!$E$13:$J$59,6,FALSE)/100)) -> 399,326 | CR15: =($A15-$A14)/365.25*$D$1*(1+$D$2+(VLOOKUP('RE Appr'!CX22,'RE Appr'!$E$13:$J$59,6,FALSE)/100)) -> 417,654 | CS15: =($A15-$A14)/365.25*$D$1*(1+$D$2+(VLOOKUP('RE Appr'!CY22,'RE Appr'!$E$13:$J$59,6,FALSE)/100)) -> 371,326 | CT15: =($A15-$A14)/365.25*$D$1*(1+$D$2+(VLOOKUP('RE Appr'!CZ22,'RE Appr'!$E$13:$J$59,6,FALSE)/100)) -> 440,668 | CU15: =($A15-$A14)/365.25*$D$1*(1+$D$2+(VLOOKUP('RE Appr'!DA22,'RE Appr'!$E$13:$J$59,6,FALSE)/100)) -> 423,730 | CV15: =($A15-$A14)/365.25*$D$1*(1+$D$2+(VLOOKUP('RE Appr'!DB22,'RE Appr'!$E$13:$J$59,6,FALSE)/100)) -> 431,774 | CW15: =($A15-$A14)/365.25*$D$1*(1+$D$2+(VLOOKUP('RE Appr'!DC22,'RE Appr'!$E$13:$J$59,6,FALSE)/100)) -> 401,385 | CX15: =($A15-$A14)/365.25*$D$1*(1+$D$2+(VLOOKUP('RE Appr'!DD22,'RE Appr'!$E$13:$J$59,6,FALSE)/100)) -> 470,498 | CY15: =($A15-$A14)/365.25*$D$1*(1+$D$2+(VLOOKUP('RE Appr'!DE22,'RE Appr'!$E$13:$J$59,6,FALSE)/100)) -> 423,750 | CZ15: =($A15-$A14)/365.25*$D$1*(1+$D$2+(VLOOKUP('RE Appr'!DF22,'RE Appr'!$E$13:$J$59,6,FALSE)/100)) -> 419,343 | DA15: =($A15-$A14)/365.25*$D$1*(1+$D$2+(VLOOKUP('RE Appr'!DG22,'RE Appr'!$E$13:$J$59,6,FALSE)/100)) -> 419,343
A16: =Main!A18 -> 2033-12-30 | B16: 11 | F16: =($A16-$A15)/365.25*$D$1*(1+$D$2+(VLOOKUP('RE Appr'!L23,'RE Appr'!$E$13:$J$59,6,FALSE)/100)) -> 375,603 | G16: =($A16-$A15)/365.25*$D$1*(1+$D$2+(VLOOKUP('RE Appr'!M23,'RE Appr'!$E$13:$J$59,6,FALSE)/100)) -> 420,192 | H16: =($A16-$A15)/365.25*$D$1*(1+$D$2+(VLOOKUP('RE Appr'!N23,'RE Appr'!$E$13:$J$59,6,FALSE)/100)) -> 423,750 | I16: =($A16-$A15)/365.25*$D$1*(1+$D$2+(VLOOKUP('RE Appr'!O23,'RE Appr'!$E$13:$J$59,6,FALSE)/100)) -> 410,729 | J16: =($A16-$A15)/365.25*$D$1*(1+$D$2+(VLOOKUP('RE Appr'!P23,'RE Appr'!$E$13:$J$59,6,FALSE)/100)) -> 386,675 | K16: =($A16-$A15)/365.25*$D$1*(1+$D$2+(VLOOKUP('RE Appr'!Q23,'RE Appr'!$E$13:$J$59,6,FALSE)/100)) -> 412,637 | L16: =($A16-$A15)/365.25*$D$1*(1+$D$2+(VLOOKUP('RE Appr'!R23,'RE Appr'!$E$13:$J$59,6,FALSE)/100)) -> 418,834 | M16: =($A16-$A15)/365.25*$D$1*(1+$D$2+(VLOOKUP('RE Appr'!S23,'RE Appr'!$E$13:$J$59,6,FALSE)/100)) -> 412,637 | N16: =($A16-$A15)/365.25*$D$1*(1+$D$2+(VLOOKUP('RE Appr'!T23,'RE Appr'!$E$13:$J$59,6,FALSE)/100)) -> 407,091 | O16: =($A16-$A15)/365.25*$D$1*(1+$D$2+(VLOOKUP('RE Appr'!U23,'RE Appr'!$E$13:$J$59,6,FALSE)/100)) -> 416,235 | P16: =($A16-$A15)/365.25*$D$1*(1+$D$2+(VLOOKUP('RE Appr'!V23,'RE Appr'!$E$13:$J$59,6,FALSE)/100)) -> 412,637 | Q16: =($A16-$A15)/365.25*$D$1*(1+$D$2+(VLOOKUP('RE Appr'!W23,'RE Appr'!$E$13:$J$59,6,FALSE)/100)) -> 419,343 | R16: =($A16-$A15)/365.25*$D$1*(1+$D$2+(VLOOKUP('RE Appr'!X23,'RE Appr'!$E$13:$J$59,6,FALSE)/100)) -> 419,343 | S16: =($A16-$A15)/365.25*$D$1*(1+$D$2+(VLOOKUP('RE Appr'!Y23,'RE Appr'!$E$13:$J$59,6,FALSE)/100)) -> 419,543 | T16: =($A16-$A15)/365.25*$D$1*(1+$D$2+(VLOOKUP('RE Appr'!Z23,'RE Appr'!$E$13:$J$59,6,FALSE)/100)) -> 437,041 | U16: =($A16-$A15)/365.25*$D$1*(1+$D$2+(VLOOKUP('RE Appr'!AA23,'RE Appr'!$E$13:$J$59,6,FALSE)/100)) -> 419,343 | V16: =($A16-$A15)/365.25*$D$1*(1+$D$2+(VLOOKUP('RE Appr'!AB23,'RE Appr'!$E$13:$J$59,6,FALSE)/100)) -> 455,688 | W16: =($A16-$A15)/365.25*$D$1*(1+$D$2+(VLOOKUP('RE Appr'!AC23,'RE Appr'!$E$13:$J$59,6,FALSE)/100)) -> 437,041 | X16: =($A16-$A15)/365.25*$D$1*(1+$D$2+(VLOOKUP('RE Appr'!AD23,'RE Appr'!$E$13:$J$59,6,FALSE)/100)) -> 412,517 | Y16: =($A16-$A15)/365.25*$D$1*(1+$D$2+(VLOOKUP('RE Appr'!AE23,'RE Appr'!$E$13:$J$59,6,FALSE)/100)) -> 401,385 | Z16: =($A16-$A15)/365.25*$D$1*(1+$D$2+(VLOOKUP('RE Appr'!AF23,'RE Appr'!$E$13:$J$59,6,FALSE)/100)) -> 435,182 | AA16: =($A16-$A15)/365.25*$D$1*(1+$D$2+(VLOOKUP('RE Appr'!AG23,'RE Appr'!$E$13:$J$59,6,FALSE)/100)) -> 470,498 | AB16: =($A16-$A15)/365.25*$D$1*(1+$D$2+(VLOOKUP('RE Appr'!AH23,'RE Appr'!$E$13:$J$59,6,FALSE)/100)) -> 412,517 | AC16: =($A16-$A15)/365.25*$D$1*(1+$D$2+(VLOOKUP('RE Appr'!AI23,'RE Appr'!$E$13:$J$59,6,FALSE)/100)) -> 383,827 | AD16: =($A16-$A15)/365.25*$D$1*(1+$D$2+(VLOOKUP('RE Appr'!AJ23,'RE Appr'!$E$13:$J$59,6,FALSE)/100)) -> 412,637 | AE16: =($A16-$A15)/365.25*$D$1*(1+$D$2+(VLOOKUP('RE Appr'!AK23,'RE Appr'!$E$13:$J$59,6,FALSE)/100)) -> 435,182 | AF16: =($A16-$A15)/365.25*$D$1*(1+$D$2+(VLOOKUP('RE Appr'!AL23,'RE Appr'!$E$13:$J$59,6,FALSE)/100)) -> 422,511 | AG16: =($A16-$A15)/365.25*$D$1*(1+$D$2+(VLOOKUP('RE Appr'!AM23,'RE Appr'!$E$13:$J$59,6,FALSE)/100)) -> 419,290 | AH16: =($A16-$A15)/365.25*$D$1*(1+$D$2+(VLOOKUP('RE Appr'!AN23,'RE Appr'!$E$13:$J$59,6,FALSE)/100)) -> 440,668 | AI16: =($A16-$A15)/365.25*$D$1*(1+$D$2+(VLOOKUP('RE Appr'!AO23,'RE Appr'!$E$13:$J$59,6,FALSE)/100)) -> 420,192 | AJ16: =($A16-$A15)/365.25*$D$1*(1+$D$2+(VLOOKUP('RE Appr'!AP23,'RE Appr'!$E$13:$J$59,6,FALSE)/100)) -> 419,543 | AK16: =($A16-$A15)/365.25*$D$1*(1+$D$2+(VLOOKUP('RE Appr'!AQ23,'RE Appr'!$E$13:$J$59,6,FALSE)/100)) -> 441,528 | AL16: =($A16-$A15)/365.25*$D$1*(1+$D$2+(VLOOKUP('RE Appr'!AR23,'RE Appr'!$E$13:$J$59,6,FALSE)/100)) -> 429,316 | AM16: =($A16-$A15)/365.25*$D$1*(1+$D$2+(VLOOKUP('RE Appr'!AS23,'RE Appr'!$E$13:$J$59,6,FALSE)/100)) -> 414,846 | AN16: =($A16-$A15)/365.25*$D$1*(1+$D$2+(VLOOKUP('RE Appr'!AT23,'RE Appr'!$E$13:$J$59,6,FALSE)/100)) -> 437,041 | AO16: =($A16-$A15)/365.25*$D$1*(1+$D$2+(VLOOKUP('RE Appr'!AU23,'RE Appr'!$E$13:$J$59,6,FALSE)/100)) -> 441,108 | AP16: =($A16-$A15)/365.25*$D$1*(1+$D$2+(VLOOKUP('RE Appr'!AV23,'RE Appr'!$E$13:$J$59,6,FALSE)/100)) -> 426,042 | AQ16: =($A16-$A15)/365.25*$D$1*(1+$D$2+(VLOOKUP('RE Appr'!AW23,'RE Appr'!$E$13:$J$59,6,FALSE)/100)) -> 419,343 | AR16: =($A16-$A15)/365.25*$D$1*(1+$D$2+(VLOOKUP('RE Appr'!AX23,'RE Appr'!$E$13:$J$59,6,FALSE)/100)) -> 409,270 | AS16: =($A16-$A15)/365.25*$D$1*(1+$D$2+(VLOOKUP('RE Appr'!AY23,'RE Appr'!$E$13:$J$59,6,FALSE)/100)) -> 416,235 | AT16: =($A16-$A15)/365.25*$D$1*(1+$D$2+(VLOOKUP('RE Appr'!AZ23,'RE Appr'!$E$13:$J$59,6,FALSE)/100)) -> 440,668 | AU16: =($A16-$A15)/365.25*$D$1*(1+$D$2+(VLOOKUP('RE Appr'!BA23,'RE Appr'!$E$13:$J$59,6,FALSE)/100)) -> 470,498 | AV16: =($A16-$A15)/365.25*$D$1*(1+$D$2+(VLOOKUP('RE Appr'!BB23,'RE Appr'!$E$13:$J$59,6,FALSE)/100)) -> 431,774 | AW16: =($A16-$A15)/365.25*$D$1*(1+$D$2+(VLOOKUP('RE Appr'!BC23,'RE Appr'!$E$13:$J$59,6,FALSE)/100)) -> 422,511 | AX16: =($A16-$A15)/365.25*$D$1*(1+$D$2+(VLOOKUP('RE Appr'!BD23,'RE Appr'!$E$13:$J$59,6,FALSE)/100)) -> 401,385 | AY16: =($A16-$A15)/365.25*$D$1*(1+$D$2+(VLOOKUP('RE Appr'!BE23,'RE Appr'!$E$13:$J$59,6,FALSE)/100)) -> 436,841 | AZ16: =($A16-$A15)/365.25*$D$1*(1+$D$2+(VLOOKUP('RE Appr'!BF23,'RE Appr'!$E$13:$J$59,6,FALSE)/100)) -> 409,270 | BA16: =($A16-$A15)/365.25*$D$1*(1+$D$2+(VLOOKUP('RE Appr'!BG23,'RE Appr'!$E$13:$J$59,6,FALSE)/100)) -> 415,848 | BB16: =($A16-$A15)/365.25*$D$1*(1+$D$2+(VLOOKUP('RE Appr'!BH23,'RE Appr'!$E$13:$J$59,6,FALSE)/100)) -> 441,528 | BC16: =($A16-$A15)/365.25*$D$1*(1+$D$2+(VLOOKUP('RE Appr'!BI23,'RE Appr'!$E$13:$J$59,6,FALSE)/100)) -> 409,270 | BD16: =($A16-$A15)/365.25*$D$1*(1+$D$2+(VLOOKUP('RE Appr'!BJ23,'RE Appr'!$E$13:$J$59,6,FALSE)/100)) -> 415,046 | BE16: =($A16-$A15)/365.25*$D$1*(1+$D$2+(VLOOKUP('RE Appr'!BK23,'RE Appr'!$E$13:$J$59,6,FALSE)/100)) -> 415,848 | BF16: =($A16-$A15)/365.25*$D$1*(1+$D$2+(VLOOKUP('RE Appr'!BL23,'RE Appr'!$E$13:$J$59,6,FALSE)/100)) -> 435,772 | BG16: =($A16-$A15)/365.25*$D$1*(1+$D$2+(VLOOKUP('RE Appr'!BM23,'RE Appr'!$E$13:$J$59,6,FALSE)/100)) -> 383,827 | BH16: =($A16-$A15)/365.25*$D$1*(1+$D$2+(VLOOKUP('RE Appr'!BN23,'RE Appr'!$E$13:$J$59,6,FALSE)/100)) -> 417,654 | BI16: =($A16-$A15)/365.25*$D$1*(1+$D$2+(VLOOKUP('RE Appr'!BO23,'RE Appr'!$E$13:$J$59,6,FALSE)/100)) -> 421,666 | BJ16: =($A16-$A15)/365.25*$D$1*(1+$D$2+(VLOOKUP('RE Appr'!BP23,'RE Appr'!$E$13:$J$59,6,FALSE)/100)) -> 407,091 | BK16: =($A16-$A15)/365.25*$D$1*(1+$D$2+(VLOOKUP('RE Appr'!BQ23,'RE Appr'!$E$13:$J$59,6,FALSE)/100)) -> 451,019 | BL16: =($A16-$A15)/365.25*$D$1*(1+$D$2+(VLOOKUP('RE Appr'!BR23,'RE Appr'!$E$13:$J$59,6,FALSE)/100)) -> 441,528 | BM16: =($A16-$A15)/365.25*$D$1*(1+$D$2+(VLOOKUP('RE Appr'!BS23,'RE Appr'!$E$13:$J$59,6,FALSE)/100)) -> 419,343 | BN16: =($A16-$A15)/365.25*$D$1*(1+$D$2+(VLOOKUP('RE Appr'!BT23,'RE Appr'!$E$13:$J$59,6,FALSE)/100)) -> 423,730 | BO16: =($A16-$A15)/365.25*$D$1*(1+$D$2+(VLOOKUP('RE Appr'!BU23,'RE Appr'!$E$13:$J$59,6,FALSE)/100)) -> 409,270 | BP16: =($A16-$A15)/365.25*$D$1*(1+$D$2+(VLOOKUP('RE Appr'!BV23,'RE Appr'!$E$13:$J$59,6,FALSE)/100)) -> 421,666 | BQ16: =($A16-$A15)/365.25*$D$1*(1+$D$2+(VLOOKUP('RE Appr'!BW23,'RE Appr'!$E$13:$J$59,6,FALSE)/100)) -> 415,848 | BR16: =($A16-$A15)/365.25*$D$1*(1+$D$2+(VLOOKUP('RE Appr'!BX23,'RE Appr'!$E$13:$J$59,6,FALSE)/100)) -> 437,041 | BS16: =($A16-$A15)/365.25*$D$1*(1+$D$2+(VLOOKUP('RE Appr'!BY23,'RE Appr'!$E$13:$J$59,6,FALSE)/100)) -> 429,316 | BT16: =($A16-$A15)/365.25*$D$1*(1+$D$2+(VLOOKUP('RE Appr'!BZ23,'RE Appr'!$E$13:$J$59,6,FALSE)/100)) -> 423,750 | BU16: =($A16-$A15)/365.25*$D$1*(1+$D$2+(VLOOKUP('RE Appr'!CA23,'RE Appr'!$E$13:$J$59,6,FALSE)/100)) -> 411,048 | BV16: =($A16-$A15)/365.25*$D$1*(1+$D$2+(VLOOKUP('RE Appr'!CB23,'RE Appr'!$E$13:$J$59,6,FALSE)/100)) -> 470,498 | BW16: =($A16-$A15)/365.25*$D$1*(1+$D$2+(VLOOKUP('RE Appr'!CC23,'RE Appr'!$E$13:$J$59,6,FALSE)/100)) -> 431,774 | BX16: =($A16-$A15)/365.25*$D$1*(1+$D$2+(VLOOKUP('RE Appr'!CD23,'RE Appr'!$E$13:$J$59,6,FALSE)/100)) -> 415,286 | BY16: =($A16-$A15)/365.25*$D$1*(1+$D$2+(VLOOKUP('RE Appr'!CE23,'RE Appr'!$E$13:$J$59,6,FALSE)/100)) -> 410,729 | BZ16: =($A16-$A15)/365.25*$D$1*(1+$D$2+(VLOOKUP('RE Appr'!CF23,'RE Appr'!$E$13:$J$59,6,FALSE)/100)) -> 411,048 | CA16: =($A16-$A15)/365.25*$D$1*(1+$D$2+(VLOOKUP('RE Appr'!CG23,'RE Appr'!$E$13:$J$59,6,FALSE)/100)) -> 423,750 | CB16: =($A16-$A15)/365.25*$D$1*(1+$D$2+(VLOOKUP('RE Appr'!CH23,'RE Appr'!$E$13:$J$59,6,FALSE)/100)) -> 455,688 | CC16: =($A16-$A15)/365.25*$D$1*(1+$D$2+(VLOOKUP('RE Appr'!CI23,'RE Appr'!$E$13:$J$59,6,FALSE)/100)) -> 415,046 | CD16: =($A16-$A15)/365.25*$D$1*(1+$D$2+(VLOOKUP('RE Appr'!CJ23,'RE Appr'!$E$13:$J$59,6,FALSE)/100)) -> 375,603 | CE16: =($A16-$A15)/365.25*$D$1*(1+$D$2+(VLOOKUP('RE Appr'!CK23,'RE Appr'!$E$13:$J$59,6,FALSE)/100)) -> 418,174 | CF16: =($A16-$A15)/365.25*$D$1*(1+$D$2+(VLOOKUP('RE Appr'!CL23,'RE Appr'!$E$13:$J$59,6,FALSE)/100)) -> 412,977 | CG16: =($A16-$A15)/365.25*$D$1*(1+$D$2+(VLOOKUP('RE Appr'!CM23,'RE Appr'!$E$13:$J$59,6,FALSE)/100)) -> 429,316 | CH16: =($A16-$A15)/365.25*$D$1*(1+$D$2+(VLOOKUP('RE Appr'!CN23,'RE Appr'!$E$13:$J$59,6,FALSE)/100)) -> 419,543 | CI16: =($A16-$A15)/365.25*$D$1*(1+$D$2+(VLOOKUP('RE Appr'!CO23,'RE Appr'!$E$13:$J$59,6,FALSE)/100)) -> 419,343 | CJ16: =($A16-$A15)/365.25*$D$1*(1+$D$2+(VLOOKUP('RE Appr'!CP23,'RE Appr'!$E$13:$J$59,6,FALSE)/100)) -> 409,270 | CK16: =($A16-$A15)/365.25*$D$1*(1+$D$2+(VLOOKUP('RE Appr'!CQ23,'RE Appr'!$E$13:$J$59,6,FALSE)/100)) -> 420,192 | CL16: =($A16-$A15)/365.25*$D$1*(1+$D$2+(VLOOKUP('RE Appr'!CR23,'RE Appr'!$E$13:$J$59,6,FALSE)/100)) -> 419,343 | CM16: =($A16-$A15)/365.25*$D$1*(1+$D$2+(VLOOKUP('RE Appr'!CS23,'RE Appr'!$E$13:$J$59,6,FALSE)/100)) -> 410,729 | CN16: =($A16-$A15)/365.25*$D$1*(1+$D$2+(VLOOKUP('RE Appr'!CT23,'RE Appr'!$E$13:$J$59,6,FALSE)/100)) -> 417,654 | CO16: =($A16-$A15)/365.25*$D$1*(1+$D$2+(VLOOKUP('RE Appr'!CU23,'RE Appr'!$E$13:$J$59,6,FALSE)/100)) -> 375,603 | CP16: =($A16-$A15)/365.25*$D$1*(1+$D$2+(VLOOKUP('RE Appr'!CV23,'RE Appr'!$E$13:$J$59,6,FALSE)/100)) -> 407,091 | CQ16: =($A16-$A15)/365.25*$D$1*(1+$D$2+(VLOOKUP('RE Appr'!CW23,'RE Appr'!$E$13:$J$59,6,FALSE)/100)) -> 383,827 | CR16: =($A16-$A15)/365.25*$D$1*(1+$D$2+(VLOOKUP('RE Appr'!CX23,'RE Appr'!$E$13:$J$59,6,FALSE)/100)) -> 418,834 | CS16: =($A16-$A15)/365.25*$D$1*(1+$D$2+(VLOOKUP('RE Appr'!CY23,'RE Appr'!$E$13:$J$59,6,FALSE)/100)) -> 437,041 | CT16: =($A16-$A15)/365.25*$D$1*(1+$D$2+(VLOOKUP('RE Appr'!CZ23,'RE Appr'!$E$13:$J$59,6,FALSE)/100)) -> 423,730 | CU16: =($A16-$A15)/365.25*$D$1*(1+$D$2+(VLOOKUP('RE Appr'!DA23,'RE Appr'!$E$13:$J$59,6,FALSE)/100)) -> 412,977 | CV16: =($A16-$A15)/365.25*$D$1*(1+$D$2+(VLOOKUP('RE Appr'!DB23,'RE Appr'!$E$13:$J$59,6,FALSE)/100)) -> 423,750 | CW16: =($A16-$A15)/365.25*$D$1*(1+$D$2+(VLOOKUP('RE Appr'!DC23,'RE Appr'!$E$13:$J$59,6,FALSE)/100)) -> 399,326 | CX16: =($A16-$A15)/365.25*$D$1*(1+$D$2+(VLOOKUP('RE Appr'!DD23,'RE Appr'!$E$13:$J$59,6,FALSE)/100)) -> 401,385 | CY16: =($A16-$A15)/365.25*$D$1*(1+$D$2+(VLOOKUP('RE Appr'!DE23,'RE Appr'!$E$13:$J$59,6,FALSE)/100)) -> 415,286 | CZ16: =($A16-$A15)/365.25*$D$1*(1+$D$2+(VLOOKUP('RE Appr'!DF23,'RE Appr'!$E$13:$J$59,6,FALSE)/100)) -> 455,688 | DA16: =($A16-$A15)/365.25*$D$1*(1+$D$2+(VLOOKUP('RE Appr'!DG23,'RE Appr'!$E$13:$J$59,6,FALSE)/100)) -> 419,290
A17: =Main!A19 -> 2034-12-30 | B17: 12 | F17: =($A17-$A16)/365.25*$D$1*(1+$D$2+(VLOOKUP('RE Appr'!L24,'RE Appr'!$E$13:$J$59,6,FALSE)/100)) -> 399,326 | G17: =($A17-$A16)/365.25*$D$1*(1+$D$2+(VLOOKUP('RE Appr'!M24,'RE Appr'!$E$13:$J$59,6,FALSE)/100)) -> 418,174 | H17: =($A17-$A16)/365.25*$D$1*(1+$D$2+(VLOOKUP('RE Appr'!N24,'RE Appr'!$E$13:$J$59,6,FALSE)/100)) -> 470,498 | I17: =($A17-$A16)/365.25*$D$1*(1+$D$2+(VLOOKUP('RE Appr'!O24,'RE Appr'!$E$13:$J$59,6,FALSE)/100)) -> 417,654 | J17: =($A17-$A16)/365.25*$D$1*(1+$D$2+(VLOOKUP('RE Appr'!P24,'RE Appr'!$E$13:$J$59,6,FALSE)/100)) -> 410,729 | K17: =($A17-$A16)/365.25*$D$1*(1+$D$2+(VLOOKUP('RE Appr'!Q24,'RE Appr'!$E$13:$J$59,6,FALSE)/100)) -> 436,841 | L17: =($A17-$A16)/365.25*$D$1*(1+$D$2+(VLOOKUP('RE Appr'!R24,'RE Appr'!$E$13:$J$59,6,FALSE)/100)) -> 441,108 | M17: =($A17-$A16)/365.25*$D$1*(1+$D$2+(VLOOKUP('RE Appr'!S24,'RE Appr'!$E$13:$J$59,6,FALSE)/100)) -> 415,286 | N17: =($A17-$A16)/365.25*$D$1*(1+$D$2+(VLOOKUP('RE Appr'!T24,'RE Appr'!$E$13:$J$59,6,FALSE)/100)) -> 412,517 | O17: =($A17-$A16)/365.25*$D$1*(1+$D$2+(VLOOKUP('RE Appr'!U24,'RE Appr'!$E$13:$J$59,6,FALSE)/100)) -> 455,688 | P17: =($A17-$A16)/365.25*$D$1*(1+$D$2+(VLOOKUP('RE Appr'!V24,'RE Appr'!$E$13:$J$59,6,FALSE)/100)) -> 411,048 | Q17: =($A17-$A16)/365.25*$D$1*(1+$D$2+(VLOOKUP('RE Appr'!W24,'RE Appr'!$E$13:$J$59,6,FALSE)/100)) -> 429,316 | R17: =($A17-$A16)/365.25*$D$1*(1+$D$2+(VLOOKUP('RE Appr'!X24,'RE Appr'!$E$13:$J$59,6,FALSE)/100)) -> 435,182 | S17: =($A17-$A16)/365.25*$D$1*(1+$D$2+(VLOOKUP('RE Appr'!Y24,'RE Appr'!$E$13:$J$59,6,FALSE)/100)) -> 399,326 | T17: =($A17-$A16)/365.25*$D$1*(1+$D$2+(VLOOKUP('RE Appr'!Z24,'RE Appr'!$E$13:$J$59,6,FALSE)/100)) -> 435,772 | U17: =($A17-$A16)/365.25*$D$1*(1+$D$2+(VLOOKUP('RE Appr'!AA24,'RE Appr'!$E$13:$J$59,6,FALSE)/100)) -> 440,668 | V17: =($A17-$A16)/365.25*$D$1*(1+$D$2+(VLOOKUP('RE Appr'!AB24,'RE Appr'!$E$13:$J$59,6,FALSE)/100)) -> 441,108 | W17: =($A17-$A16)/365.25*$D$1*(1+$D$2+(VLOOKUP('RE Appr'!AC24,'RE Appr'!$E$13:$J$59,6,FALSE)/100)) -> 441,528 | X17: =($A17-$A16)/365.25*$D$1*(1+$D$2+(VLOOKUP('RE Appr'!AD24,'RE Appr'!$E$13:$J$59,6,FALSE)/100)) -> 412,517 | Y17: =($A17-$A16)/365.25*$D$1*(1+$D$2+(VLOOKUP('RE Appr'!AE24,'RE Appr'!$E$13:$J$59,6,FALSE)/100)) -> 415,286 | Z17: =($A17-$A16)/365.25*$D$1*(1+$D$2+(VLOOKUP('RE Appr'!AF24,'RE Appr'!$E$13:$J$59,6,FALSE)/100)) -> 412,517 | AA17: =($A17-$A16)/365.25*$D$1*(1+$D$2+(VLOOKUP('RE Appr'!AG24,'RE Appr'!$E$13:$J$59,6,FALSE)/100)) -> 422,511 | AB17: =($A17-$A16)/365.25*$D$1*(1+$D$2+(VLOOKUP('RE Appr'!AH24,'RE Appr'!$E$13:$J$59,6,FALSE)/100)) -> 412,517 | AC17: =($A17-$A16)/365.25*$D$1*(1+$D$2+(VLOOKUP('RE Appr'!AI24,'RE Appr'!$E$13:$J$59,6,FALSE)/100)) -> 423,750 | AD17: =($A17-$A16)/365.25*$D$1*(1+$D$2+(VLOOKUP('RE Appr'!AJ24,'RE Appr'!$E$13:$J$59,6,FALSE)/100)) -> 415,286 | AE17: =($A17-$A16)/365.25*$D$1*(1+$D$2+(VLOOKUP('RE Appr'!AK24,'RE Appr'!$E$13:$J$59,6,FALSE)/100)) -> 415,046 | AF17: =($A17-$A16)/365.25*$D$1*(1+$D$2+(VLOOKUP('RE Appr'!AL24,'RE Appr'!$E$13:$J$59,6,FALSE)/100)) -> 418,174 | AG17: =($A17-$A16)/365.25*$D$1*(1+$D$2+(VLOOKUP('RE Appr'!AM24,'RE Appr'!$E$13:$J$59,6,FALSE)/100)) -> 435,772 | AH17: =($A17-$A16)/365.25*$D$1*(1+$D$2+(VLOOKUP('RE Appr'!AN24,'RE Appr'!$E$13:$J$59,6,FALSE)/100)) -> 410,729 | AI17: =($A17-$A16)/365.25*$D$1*(1+$D$2+(VLOOKUP('RE Appr'!AO24,'RE Appr'!$E$13:$J$59,6,FALSE)/100)) -> 412,517 | AJ17: =($A17-$A16)/365.25*$D$1*(1+$D$2+(VLOOKUP('RE Appr'!AP24,'RE Appr'!$E$13:$J$59,6,FALSE)/100)) -> 434,213 | AK17: =($A17-$A16)/365.25*$D$1*(1+$D$2+(VLOOKUP('RE Appr'!AQ24,'RE Appr'!$E$13:$J$59,6,FALSE)/100)) -> 436,841 | AL17: =($A17-$A16)/365.25*$D$1*(1+$D$2+(VLOOKUP('RE Appr'!AR24,'RE Appr'!$E$13:$J$59,6,FALSE)/100)) -> 399,326 | AM17: =($A17-$A16)/365.25*$D$1*(1+$D$2+(VLOOKUP('RE Appr'!AS24,'RE Appr'!$E$13:$J$59,6,FALSE)/100)) -> 412,637 | AN17: =($A17-$A16)/365.25*$D$1*(1+$D$2+(VLOOKUP('RE Appr'!AT24,'RE Appr'!$E$13:$J$59,6,FALSE)/100)) -> 415,046 | AO17: =($A17-$A16)/365.25*$D$1*(1+$D$2+(VLOOKUP('RE Appr'!AU24,'RE Appr'!$E$13:$J$59,6,FALSE)/100)) -> 437,041 | AP17: =($A17-$A16)/365.25*$D$1*(1+$D$2+(VLOOKUP('RE Appr'!AV24,'RE Appr'!$E$13:$J$59,6,FALSE)/100)) -> 410,729 | AQ17: =($A17-$A16)/365.25*$D$1*(1+$D$2+(VLOOKUP('RE Appr'!AW24,'RE Appr'!$E$13:$J$59,6,FALSE)/100)) -> 419,633 | AR17: =($A17-$A16)/365.25*$D$1*(1+$D$2+(VLOOKUP('RE Appr'!AX24,'RE Appr'!$E$13:$J$59,6,FALSE)/100)) -> 435,772 | AS17: =($A17-$A16)/365.25*$D$1*(1+$D$2+(VLOOKUP('RE Appr'!AY24,'RE Appr'!$E$13:$J$59,6,FALSE)/100)) -> 423,750 | AT17: =($A17-$A16)/365.25*$D$1*(1+$D$2+(VLOOKUP('RE Appr'!AZ24,'RE Appr'!$E$13:$J$59,6,FALSE)/100)) -> 429,316 | AU17: =($A17-$A16)/365.25*$D$1*(1+$D$2+(VLOOKUP('RE Appr'!BA24,'RE Appr'!$E$13:$J$59,6,FALSE)/100)) -> 440,668 | AV17: =($A17-$A16)/365.25*$D$1*(1+$D$2+(VLOOKUP('RE Appr'!BB24,'RE Appr'!$E$13:$J$59,6,FALSE)/100)) -> 437,041 | AW17: =($A17-$A16)/365.25*$D$1*(1+$D$2+(VLOOKUP('RE Appr'!BC24,'RE Appr'!$E$13:$J$59,6,FALSE)/100)) -> 416,695 | AX17: =($A17-$A16)/365.25*$D$1*(1+$D$2+(VLOOKUP('RE Appr'!BD24,'RE Appr'!$E$13:$J$59,6,FALSE)/100)) -> 437,041 | AY17: =($A17-$A16)/365.25*$D$1*(1+$D$2+(VLOOKUP('RE Appr'!BE24,'RE Appr'!$E$13:$J$59,6,FALSE)/100)) -> 415,286 | AZ17: =($A17-$A16)/365.25*$D$1*(1+$D$2+(VLOOKUP('RE Appr'!BF24,'RE Appr'!$E$13:$J$59,6,FALSE)/100)) -> 401,385 | BA17: =($A17-$A16)/365.25*$D$1*(1+$D$2+(VLOOKUP('RE Appr'!BG24,'RE Appr'!$E$13:$J$59,6,FALSE)/100)) -> 422,511 | BB17: =($A17-$A16)/365.25*$D$1*(1+$D$2+(VLOOKUP('RE Appr'!BH24,'RE Appr'!$E$13:$J$59,6,FALSE)/100)) -> 437,041 | BC17: =($A17-$A16)/365.25*$D$1*(1+$D$2+(VLOOKUP('RE Appr'!BI24,'RE Appr'!$E$13:$J$59,6,FALSE)/100)) -> 412,278 | BD17: =($A17-$A16)/365.25*$D$1*(1+$D$2+(VLOOKUP('RE Appr'!BJ24,'RE Appr'!$E$13:$J$59,6,FALSE)/100)) -> 407,091 | BE17: =($A17-$A16)/365.25*$D$1*(1+$D$2+(VLOOKUP('RE Appr'!BK24,'RE Appr'!$E$13:$J$59,6,FALSE)/100)) -> 451,019 | BF17: =($A17-$A16)/365.25*$D$1*(1+$D$2+(VLOOKUP('RE Appr'!BL24,'RE Appr'!$E$13:$J$59,6,FALSE)/100)) -> 435,772 | BG17: =($A17-$A16)/365.25*$D$1*(1+$D$2+(VLOOKUP('RE Appr'!BM24,'RE Appr'!$E$13:$J$59,6,FALSE)/100)) -> 419,290 | BH17: =($A17-$A16)/365.25*$D$1*(1+$D$2+(VLOOKUP('RE Appr'!BN24,'RE Appr'!$E$13:$J$59,6,FALSE)/100)) -> 431,774 | BI17: =($A17-$A16)/365.25*$D$1*(1+$D$2+(VLOOKUP('RE Appr'!BO24,'RE Appr'!$E$13:$J$59,6,FALSE)/100)) -> 419,290 | BJ17: =($A17-$A16)/365.25*$D$1*(1+$D$2+(VLOOKUP('RE Appr'!BP24,'RE Appr'!$E$13:$J$59,6,FALSE)/100)) -> 407,091 | BK17: =($A17-$A16)/365.25*$D$1*(1+$D$2+(VLOOKUP('RE Appr'!BQ24,'RE Appr'!$E$13:$J$59,6,FALSE)/100)) -> 431,774 | BL17: =($A17-$A16)/365.25*$D$1*(1+$D$2+(VLOOKUP('RE Appr'!BR24,'RE Appr'!$E$13:$J$59,6,FALSE)/100)) -> 435,182 | BM17: =($A17-$A16)/365.25*$D$1*(1+$D$2+(VLOOKUP('RE Appr'!BS24,'RE Appr'!$E$13:$J$59,6,FALSE)/100)) -> 407,091 | BN17: =($A17-$A16)/365.25*$D$1*(1+$D$2+(VLOOKUP('RE Appr'!BT24,'RE Appr'!$E$13:$J$59,6,FALSE)/100)) -> 423,730 | BO17: =($A17-$A16)/365.25*$D$1*(1+$D$2+(VLOOKUP('RE Appr'!BU24,'RE Appr'!$E$13:$J$59,6,FALSE)/100)) -> 412,977 | BP17: =($A17-$A16)/365.25*$D$1*(1+$D$2+(VLOOKUP('RE Appr'!BV24,'RE Appr'!$E$13:$J$59,6,FALSE)/100)) -> 421,666 | BQ17: =($A17-$A16)/365.25*$D$1*(1+$D$2+(VLOOKUP('RE Appr'!BW24,'RE Appr'!$E$13:$J$59,6,FALSE)/100)) -> 383,827 | BR17: =($A17-$A16)/365.25*$D$1*(1+$D$2+(VLOOKUP('RE Appr'!BX24,'RE Appr'!$E$13:$J$59,6,FALSE)/100)) -> 419,633 | BS17: =($A17-$A16)/365.25*$D$1*(1+$D$2+(VLOOKUP('RE Appr'!BY24,'RE Appr'!$E$13:$J$59,6,FALSE)/100)) -> 416,235 | BT17: =($A17-$A16)/365.25*$D$1*(1+$D$2+(VLOOKUP('RE Appr'!BZ24,'RE Appr'!$E$13:$J$59,6,FALSE)/100)) -> 420,192 | BU17: =($A17-$A16)/365.25*$D$1*(1+$D$2+(VLOOKUP('RE Appr'!CA24,'RE Appr'!$E$13:$J$59,6,FALSE)/100)) -> 429,316 | BV17: =($A17-$A16)/365.25*$D$1*(1+$D$2+(VLOOKUP('RE Appr'!CB24,'RE Appr'!$E$13:$J$59,6,FALSE)/100)) -> 437,041 | BW17: =($A17-$A16)/365.25*$D$1*(1+$D$2+(VLOOKUP('RE Appr'!CC24,'RE Appr'!$E$13:$J$59,6,FALSE)/100)) -> 412,278 | BX17: =($A17-$A16)/365.25*$D$1*(1+$D$2+(VLOOKUP('RE Appr'!CD24,'RE Appr'!$E$13:$J$59,6,FALSE)/100)) -> 419,290 | BY17: =($A17-$A16)/365.25*$D$1*(1+$D$2+(VLOOKUP('RE Appr'!CE24,'RE Appr'!$E$13:$J$59,6,FALSE)/100)) -> 436,841 | BZ17: =($A17-$A16)/365.25*$D$1*(1+$D$2+(VLOOKUP('RE Appr'!CF24,'RE Appr'!$E$13:$J$59,6,FALSE)/100)) -> 416,695 | CA17: =($A17-$A16)/365.25*$D$1*(1+$D$2+(VLOOKUP('RE Appr'!CG24,'RE Appr'!$E$13:$J$59,6,FALSE)/100)) -> 415,286 | CB17: =($A17-$A16)/365.25*$D$1*(1+$D$2+(VLOOKUP('RE Appr'!CH24,'RE Appr'!$E$13:$J$59,6,FALSE)/100)) -> 434,213 | CC17: =($A17-$A16)/365.25*$D$1*(1+$D$2+(VLOOKUP('RE Appr'!CI24,'RE Appr'!$E$13:$J$59,6,FALSE)/100)) -> 412,517 | CD17: =($A17-$A16)/365.25*$D$1*(1+$D$2+(VLOOKUP('RE Appr'!CJ24,'RE Appr'!$E$13:$J$59,6,FALSE)/100)) -> 429,316 | CE17: =($A17-$A16)/365.25*$D$1*(1+$D$2+(VLOOKUP('RE Appr'!CK24,'RE Appr'!$E$13:$J$59,6,FALSE)/100)) -> 437,041 | CF17: =($A17-$A16)/365.25*$D$1*(1+$D$2+(VLOOKUP('RE Appr'!CL24,'RE Appr'!$E$13:$J$59,6,FALSE)/100)) -> 416,235 | CG17: =($A17-$A16)/365.25*$D$1*(1+$D$2+(VLOOKUP('RE Appr'!CM24,'RE Appr'!$E$13:$J$59,6,FALSE)/100)) -> 411,048 | CH17: =($A17-$A16)/365.25*$D$1*(1+$D$2+(VLOOKUP('RE Appr'!CN24,'RE Appr'!$E$13:$J$59,6,FALSE)/100)) -> 418,834 | CI17: =($A17-$A16)/365.25*$D$1*(1+$D$2+(VLOOKUP('RE Appr'!CO24,'RE Appr'!$E$13:$J$59,6,FALSE)/100)) -> 419,343 | CJ17: =($A17-$A16)/365.25*$D$1*(1+$D$2+(VLOOKUP('RE Appr'!CP24,'RE Appr'!$E$13:$J$59,6,FALSE)/100)) -> 409,270 | CK17: =($A17-$A16)/365.25*$D$1*(1+$D$2+(VLOOKUP('RE Appr'!CQ24,'RE Appr'!$E$13:$J$59,6,FALSE)/100)) -> 410,729 | CL17: =($A17-$A16)/365.25*$D$1*(1+$D$2+(VLOOKUP('RE Appr'!CR24,'RE Appr'!$E$13:$J$59,6,FALSE)/100)) -> 418,174 | CM17: =($A17-$A16)/365.25*$D$1*(1+$D$2+(VLOOKUP('RE Appr'!CS24,'RE Appr'!$E$13:$J$59,6,FALSE)/100)) -> 418,174 | CN17: =($A17-$A16)/365.25*$D$1*(1+$D$2+(VLOOKUP('RE Appr'!CT24,'RE Appr'!$E$13:$J$59,6,FALSE)/100)) -> 375,603 | CO17: =($A17-$A16)/365.25*$D$1*(1+$D$2+(VLOOKUP('RE Appr'!CU24,'RE Appr'!$E$13:$J$59,6,FALSE)/100)) -> 455,688 | CP17: =($A17-$A16)/365.25*$D$1*(1+$D$2+(VLOOKUP('RE Appr'!CV24,'RE Appr'!$E$13:$J$59,6,FALSE)/100)) -> 421,666 | CQ17: =($A17-$A16)/365.25*$D$1*(1+$D$2+(VLOOKUP('RE Appr'!CW24,'RE Appr'!$E$13:$J$59,6,FALSE)/100)) -> 441,528 | CR17: =($A17-$A16)/365.25*$D$1*(1+$D$2+(VLOOKUP('RE Appr'!CX24,'RE Appr'!$E$13:$J$59,6,FALSE)/100)) -> 401,385 | CS17: =($A17-$A16)/365.25*$D$1*(1+$D$2+(VLOOKUP('RE Appr'!CY24,'RE Appr'!$E$13:$J$59,6,FALSE)/100)) -> 409,270 | CT17: =($A17-$A16)/365.25*$D$1*(1+$D$2+(VLOOKUP('RE Appr'!CZ24,'RE Appr'!$E$13:$J$59,6,FALSE)/100)) -> 399,326 | CU17: =($A17-$A16)/365.25*$D$1*(1+$D$2+(VLOOKUP('RE Appr'!DA24,'RE Appr'!$E$13:$J$59,6,FALSE)/100)) -> 415,286 | CV17: =($A17-$A16)/365.25*$D$1*(1+$D$2+(VLOOKUP('RE Appr'!DB24,'RE Appr'!$E$13:$J$59,6,FALSE)/100)) -> 420,192 | CW17: =($A17-$A16)/365.25*$D$1*(1+$D$2+(VLOOKUP('RE Appr'!DC24,'RE Appr'!$E$13:$J$59,6,FALSE)/100)) -> 420,192 | CX17: =($A17-$A16)/365.25*$D$1*(1+$D$2+(VLOOKUP('RE Appr'!DD24,'RE Appr'!$E$13:$J$59,6,FALSE)/100)) -> 455,688 | CY17: =($A17-$A16)/365.25*$D$1*(1+$D$2+(VLOOKUP('RE Appr'!DE24,'RE Appr'!$E$13:$J$59,6,FALSE)/100)) -> 411,048 | CZ17: =($A17-$A16)/365.25*$D$1*(1+$D$2+(VLOOKUP('RE Appr'!DF24,'RE Appr'!$E$13:$J$59,6,FALSE)/100)) -> 410,729 | DA17: =($A17-$A16)/365.25*$D$1*(1+$D$2+(VLOOKUP('RE Appr'!DG24,'RE Appr'!$E$13:$J$59,6,FALSE)/100)) -> 423,750
A18: =Main!A20 -> 2035-12-31 | B18: 13 | F18: =($A18-$A17)/365.25*$D$1*(1+$D$2+(VLOOKUP('RE Appr'!L25,'RE Appr'!$E$13:$J$59,6,FALSE)/100)) -> 402,485 | G18: =($A18-$A17)/365.25*$D$1*(1+$D$2+(VLOOKUP('RE Appr'!M25,'RE Appr'!$E$13:$J$59,6,FALSE)/100)) -> 416,423 | H18: =($A18-$A17)/365.25*$D$1*(1+$D$2+(VLOOKUP('RE Appr'!N25,'RE Appr'!$E$13:$J$59,6,FALSE)/100)) -> 413,407 | I18: =($A18-$A17)/365.25*$D$1*(1+$D$2+(VLOOKUP('RE Appr'!O25,'RE Appr'!$E$13:$J$59,6,FALSE)/100)) -> 442,316 | J18: =($A18-$A17)/365.25*$D$1*(1+$D$2+(VLOOKUP('RE Appr'!P25,'RE Appr'!$E$13:$J$59,6,FALSE)/100)) -> 372,343 | K18: =($A18-$A17)/365.25*$D$1*(1+$D$2+(VLOOKUP('RE Appr'!Q25,'RE Appr'!$E$13:$J$59,6,FALSE)/100)) -> 416,987 | L18: =($A18-$A17)/365.25*$D$1*(1+$D$2+(VLOOKUP('RE Appr'!R25,'RE Appr'!$E$13:$J$59,6,FALSE)/100)) -> 413,768 | M18: =($A18-$A17)/365.25*$D$1*(1+$D$2+(VLOOKUP('RE Appr'!S25,'RE Appr'!$E$13:$J$59,6,FALSE)/100)) -> 410,391 | N18: =($A18-$A17)/365.25*$D$1*(1+$D$2+(VLOOKUP('RE Appr'!T25,'RE Appr'!$E$13:$J$59,6,FALSE)/100)) -> 384,879 | O18: =($A18-$A17)/365.25*$D$1*(1+$D$2+(VLOOKUP('RE Appr'!U25,'RE Appr'!$E$13:$J$59,6,FALSE)/100)) -> 423,668 | P18: =($A18-$A17)/365.25*$D$1*(1+$D$2+(VLOOKUP('RE Appr'!V25,'RE Appr'!$E$13:$J$59,6,FALSE)/100)) -> 376,632 | Q18: =($A18-$A17)/365.25*$D$1*(1+$D$2+(VLOOKUP('RE Appr'!W25,'RE Appr'!$E$13:$J$59,6,FALSE)/100)) -> 420,492 | R18: =($A18-$A17)/365.25*$D$1*(1+$D$2+(VLOOKUP('RE Appr'!X25,'RE Appr'!$E$13:$J$59,6,FALSE)/100)) -> 471,787 | S18: =($A18-$A17)/365.25*$D$1*(1+$D$2+(VLOOKUP('RE Appr'!Y25,'RE Appr'!$E$13:$J$59,6,FALSE)/100)) -> 420,782 | T18: =($A18-$A17)/365.25*$D$1*(1+$D$2+(VLOOKUP('RE Appr'!Z25,'RE Appr'!$E$13:$J$59,6,FALSE)/100)) -> 436,374 | U18: =($A18-$A17)/365.25*$D$1*(1+$D$2+(VLOOKUP('RE Appr'!AA25,'RE Appr'!$E$13:$J$59,6,FALSE)/100)) -> 432,957 | V18: =($A18-$A17)/365.25*$D$1*(1+$D$2+(VLOOKUP('RE Appr'!AB25,'RE Appr'!$E$13:$J$59,6,FALSE)/100)) -> 408,206 | W18: =($A18-$A17)/365.25*$D$1*(1+$D$2+(VLOOKUP('RE Appr'!AC25,'RE Appr'!$E$13:$J$59,6,FALSE)/100)) -> 471,787 | X18: =($A18-$A17)/365.25*$D$1*(1+$D$2+(VLOOKUP('RE Appr'!AD25,'RE Appr'!$E$13:$J$59,6,FALSE)/100)) -> 387,735 | Y18: =($A18-$A17)/365.25*$D$1*(1+$D$2+(VLOOKUP('RE Appr'!AE25,'RE Appr'!$E$13:$J$59,6,FALSE)/100)) -> 413,768 | Z18: =($A18-$A17)/365.25*$D$1*(1+$D$2+(VLOOKUP('RE Appr'!AF25,'RE Appr'!$E$13:$J$59,6,FALSE)/100)) -> 408,206 | AA18: =($A18-$A17)/365.25*$D$1*(1+$D$2+(VLOOKUP('RE Appr'!AG25,'RE Appr'!$E$13:$J$59,6,FALSE)/100)) -> 415,982 | AB18: =($A18-$A17)/365.25*$D$1*(1+$D$2+(VLOOKUP('RE Appr'!AH25,'RE Appr'!$E$13:$J$59,6,FALSE)/100)) -> 421,343 | AC18: =($A18-$A17)/365.25*$D$1*(1+$D$2+(VLOOKUP('RE Appr'!AI25,'RE Appr'!$E$13:$J$59,6,FALSE)/100)) -> 436,965 | AD18: =($A18-$A17)/365.25*$D$1*(1+$D$2+(VLOOKUP('RE Appr'!AJ25,'RE Appr'!$E$13:$J$59,6,FALSE)/100)) -> 420,692 | AE18: =($A18-$A17)/365.25*$D$1*(1+$D$2+(VLOOKUP('RE Appr'!AK25,'RE Appr'!$E$13:$J$59,6,FALSE)/100)) -> 417,375 | AF18: =($A18-$A17)/365.25*$D$1*(1+$D$2+(VLOOKUP('RE Appr'!AL25,'RE Appr'!$E$13:$J$59,6,FALSE)/100)) -> 418,798 | AG18: =($A18-$A17)/365.25*$D$1*(1+$D$2+(VLOOKUP('RE Appr'!AM25,'RE Appr'!$E$13:$J$59,6,FALSE)/100)) -> 418,798 | AH18: =($A18-$A17)/365.25*$D$1*(1+$D$2+(VLOOKUP('RE Appr'!AN25,'RE Appr'!$E$13:$J$59,6,FALSE)/100)) -> 418,798 | AI18: =($A18-$A17)/365.25*$D$1*(1+$D$2+(VLOOKUP('RE Appr'!AO25,'RE Appr'!$E$13:$J$59,6,FALSE)/100)) -> 412,175 | AJ18: =($A18-$A17)/365.25*$D$1*(1+$D$2+(VLOOKUP('RE Appr'!AP25,'RE Appr'!$E$13:$J$59,6,FALSE)/100)) -> 420,439 | AK18: =($A18-$A17)/365.25*$D$1*(1+$D$2+(VLOOKUP('RE Appr'!AQ25,'RE Appr'!$E$13:$J$59,6,FALSE)/100)) -> 430,492 | AL18: =($A18-$A17)/365.25*$D$1*(1+$D$2+(VLOOKUP('RE Appr'!AR25,'RE Appr'!$E$13:$J$59,6,FALSE)/100)) -> 372,343 | AM18: =($A18-$A17)/365.25*$D$1*(1+$D$2+(VLOOKUP('RE Appr'!AS25,'RE Appr'!$E$13:$J$59,6,FALSE)/100)) -> 376,632 | AN18: =($A18-$A17)/365.25*$D$1*(1+$D$2+(VLOOKUP('RE Appr'!AT25,'RE Appr'!$E$13:$J$59,6,FALSE)/100)) -> 417,375 | AO18: =($A18-$A17)/365.25*$D$1*(1+$D$2+(VLOOKUP('RE Appr'!AU25,'RE Appr'!$E$13:$J$59,6,FALSE)/100)) -> 413,648 | AP18: =($A18-$A17)/365.25*$D$1*(1+$D$2+(VLOOKUP('RE Appr'!AV25,'RE Appr'!$E$13:$J$59,6,FALSE)/100)) -> 420,492 | AQ18: =($A18-$A17)/365.25*$D$1*(1+$D$2+(VLOOKUP('RE Appr'!AW25,'RE Appr'!$E$13:$J$59,6,FALSE)/100)) -> 414,109 | AR18: =($A18-$A17)/365.25*$D$1*(1+$D$2+(VLOOKUP('RE Appr'!AX25,'RE Appr'!$E$13:$J$59,6,FALSE)/100)) -> 415,982 | AS18: =($A18-$A17)/365.25*$D$1*(1+$D$2+(VLOOKUP('RE Appr'!AY25,'RE Appr'!$E$13:$J$59,6,FALSE)/100)) -> 417,836 | AT18: =($A18-$A17)/365.25*$D$1*(1+$D$2+(VLOOKUP('RE Appr'!AZ25,'RE Appr'!$E$13:$J$59,6,FALSE)/100)) -> 420,492 | AU18: =($A18-$A17)/365.25*$D$1*(1+$D$2+(VLOOKUP('RE Appr'!BA25,'RE Appr'!$E$13:$J$59,6,FALSE)/100)) -> 419,981 | AV18: =($A18-$A17)/365.25*$D$1*(1+$D$2+(VLOOKUP('RE Appr'!BB25,'RE Appr'!$E$13:$J$59,6,FALSE)/100)) -> 402,485 | AW18: =($A18-$A17)/365.25*$D$1*(1+$D$2+(VLOOKUP('RE Appr'!BC25,'RE Appr'!$E$13:$J$59,6,FALSE)/100)) -> 424,911 | AX18: =($A18-$A17)/365.25*$D$1*(1+$D$2+(VLOOKUP('RE Appr'!BD25,'RE Appr'!$E$13:$J$59,6,FALSE)/100)) -> 420,782 | AY18: =($A18-$A17)/365.25*$D$1*(1+$D$2+(VLOOKUP('RE Appr'!BE25,'RE Appr'!$E$13:$J$59,6,FALSE)/100)) -> 424,891 | AZ18: =($A18-$A17)/365.25*$D$1*(1+$D$2+(VLOOKUP('RE Appr'!BF25,'RE Appr'!$E$13:$J$59,6,FALSE)/100)) -> 416,183 | BA18: =($A18-$A17)/365.25*$D$1*(1+$D$2+(VLOOKUP('RE Appr'!BG25,'RE Appr'!$E$13:$J$59,6,FALSE)/100)) -> 402,485 | BB18: =($A18-$A17)/365.25*$D$1*(1+$D$2+(VLOOKUP('RE Appr'!BH25,'RE Appr'!$E$13:$J$59,6,FALSE)/100)) -> 417,836 | BC18: =($A18-$A17)/365.25*$D$1*(1+$D$2+(VLOOKUP('RE Appr'!BI25,'RE Appr'!$E$13:$J$59,6,FALSE)/100)) -> 418,798 | BD18: =($A18-$A17)/365.25*$D$1*(1+$D$2+(VLOOKUP('RE Appr'!BJ25,'RE Appr'!$E$13:$J$59,6,FALSE)/100)) -> 402,485 | BE18: =($A18-$A17)/365.25*$D$1*(1+$D$2+(VLOOKUP('RE Appr'!BK25,'RE Appr'!$E$13:$J$59,6,FALSE)/100)) -> 422,821 | BF18: =($A18-$A17)/365.25*$D$1*(1+$D$2+(VLOOKUP('RE Appr'!BL25,'RE Appr'!$E$13:$J$59,6,FALSE)/100)) -> 422,821 | BG18: =($A18-$A17)/365.25*$D$1*(1+$D$2+(VLOOKUP('RE Appr'!BM25,'RE Appr'!$E$13:$J$59,6,FALSE)/100)) -> 372,343 | BH18: =($A18-$A17)/365.25*$D$1*(1+$D$2+(VLOOKUP('RE Appr'!BN25,'RE Appr'!$E$13:$J$59,6,FALSE)/100)) -> 372,343 | BI18: =($A18-$A17)/365.25*$D$1*(1+$D$2+(VLOOKUP('RE Appr'!BO25,'RE Appr'!$E$13:$J$59,6,FALSE)/100)) -> 456,936 | BJ18: =($A18-$A17)/365.25*$D$1*(1+$D$2+(VLOOKUP('RE Appr'!BP25,'RE Appr'!$E$13:$J$59,6,FALSE)/100)) -> 421,343 | BK18: =($A18-$A17)/365.25*$D$1*(1+$D$2+(VLOOKUP('RE Appr'!BQ25,'RE Appr'!$E$13:$J$59,6,FALSE)/100)) -> 421,343 | BL18: =($A18-$A17)/365.25*$D$1*(1+$D$2+(VLOOKUP('RE Appr'!BR25,'RE Appr'!$E$13:$J$59,6,FALSE)/100)) -> 436,374 | BM18: =($A18-$A17)/365.25*$D$1*(1+$D$2+(VLOOKUP('RE Appr'!BS25,'RE Appr'!$E$13:$J$59,6,FALSE)/100)) -> 442,316 | BN18: =($A18-$A17)/365.25*$D$1*(1+$D$2+(VLOOKUP('RE Appr'!BT25,'RE Appr'!$E$13:$J$59,6,FALSE)/100)) -> 436,965 | BO18: =($A18-$A17)/365.25*$D$1*(1+$D$2+(VLOOKUP('RE Appr'!BU25,'RE Appr'!$E$13:$J$59,6,FALSE)/100)) -> 456,936 | BP18: =($A18-$A17)/365.25*$D$1*(1+$D$2+(VLOOKUP('RE Appr'!BV25,'RE Appr'!$E$13:$J$59,6,FALSE)/100)) -> 435,402 | BQ18: =($A18-$A17)/365.25*$D$1*(1+$D$2+(VLOOKUP('RE Appr'!BW25,'RE Appr'!$E$13:$J$59,6,FALSE)/100)) -> 420,439 | BR18: =($A18-$A17)/365.25*$D$1*(1+$D$2+(VLOOKUP('RE Appr'!BX25,'RE Appr'!$E$13:$J$59,6,FALSE)/100)) -> 419,981 | BS18: =($A18-$A17)/365.25*$D$1*(1+$D$2+(VLOOKUP('RE Appr'!BY25,'RE Appr'!$E$13:$J$59,6,FALSE)/100)) -> 432,957 | BT18: =($A18-$A17)/365.25*$D$1*(1+$D$2+(VLOOKUP('RE Appr'!BZ25,'RE Appr'!$E$13:$J$59,6,FALSE)/100)) -> 376,632 | BU18: =($A18-$A17)/365.25*$D$1*(1+$D$2+(VLOOKUP('RE Appr'!CA25,'RE Appr'!$E$13:$J$59,6,FALSE)/100)) -> 412,175 | BV18: =($A18-$A17)/365.25*$D$1*(1+$D$2+(VLOOKUP('RE Appr'!CB25,'RE Appr'!$E$13:$J$59,6,FALSE)/100)) -> 414,109 | BW18: =($A18-$A17)/365.25*$D$1*(1+$D$2+(VLOOKUP('RE Appr'!CC25,'RE Appr'!$E$13:$J$59,6,FALSE)/100)) -> 420,492 | BX18: =($A18-$A17)/365.25*$D$1*(1+$D$2+(VLOOKUP('RE Appr'!CD25,'RE Appr'!$E$13:$J$59,6,FALSE)/100)) -> 436,374 | BY18: =($A18-$A17)/365.25*$D$1*(1+$D$2+(VLOOKUP('RE Appr'!CE25,'RE Appr'!$E$13:$J$59,6,FALSE)/100)) -> 413,768 | BZ18: =($A18-$A17)/365.25*$D$1*(1+$D$2+(VLOOKUP('RE Appr'!CF25,'RE Appr'!$E$13:$J$59,6,FALSE)/100)) -> 471,787 | CA18: =($A18-$A17)/365.25*$D$1*(1+$D$2+(VLOOKUP('RE Appr'!CG25,'RE Appr'!$E$13:$J$59,6,FALSE)/100)) -> 416,423 | CB18: =($A18-$A17)/365.25*$D$1*(1+$D$2+(VLOOKUP('RE Appr'!CH25,'RE Appr'!$E$13:$J$59,6,FALSE)/100)) -> 419,061 | CC18: =($A18-$A17)/365.25*$D$1*(1+$D$2+(VLOOKUP('RE Appr'!CI25,'RE Appr'!$E$13:$J$59,6,FALSE)/100)) -> 441,875 | CD18: =($A18-$A17)/365.25*$D$1*(1+$D$2+(VLOOKUP('RE Appr'!CJ25,'RE Appr'!$E$13:$J$59,6,FALSE)/100)) -> 427,209 | CE18: =($A18-$A17)/365.25*$D$1*(1+$D$2+(VLOOKUP('RE Appr'!CK25,'RE Appr'!$E$13:$J$59,6,FALSE)/100)) -> 411,854 | CF18: =($A18-$A17)/365.25*$D$1*(1+$D$2+(VLOOKUP('RE Appr'!CL25,'RE Appr'!$E$13:$J$59,6,FALSE)/100)) -> 427,209 | CG18: =($A18-$A17)/365.25*$D$1*(1+$D$2+(VLOOKUP('RE Appr'!CM25,'RE Appr'!$E$13:$J$59,6,FALSE)/100)) -> 417,375 | CH18: =($A18-$A17)/365.25*$D$1*(1+$D$2+(VLOOKUP('RE Appr'!CN25,'RE Appr'!$E$13:$J$59,6,FALSE)/100)) -> 420,439 | CI18: =($A18-$A17)/365.25*$D$1*(1+$D$2+(VLOOKUP('RE Appr'!CO25,'RE Appr'!$E$13:$J$59,6,FALSE)/100)) -> 400,421 | CJ18: =($A18-$A17)/365.25*$D$1*(1+$D$2+(VLOOKUP('RE Appr'!CP25,'RE Appr'!$E$13:$J$59,6,FALSE)/100)) -> 413,648 | CK18: =($A18-$A17)/365.25*$D$1*(1+$D$2+(VLOOKUP('RE Appr'!CQ25,'RE Appr'!$E$13:$J$59,6,FALSE)/100)) -> 419,981 | CL18: =($A18-$A17)/365.25*$D$1*(1+$D$2+(VLOOKUP('RE Appr'!CR25,'RE Appr'!$E$13:$J$59,6,FALSE)/100)) -> 432,957 | CM18: =($A18-$A17)/365.25*$D$1*(1+$D$2+(VLOOKUP('RE Appr'!CS25,'RE Appr'!$E$13:$J$59,6,FALSE)/100)) -> 424,891 | CN18: =($A18-$A17)/365.25*$D$1*(1+$D$2+(VLOOKUP('RE Appr'!CT25,'RE Appr'!$E$13:$J$59,6,FALSE)/100)) -> 416,183 | CO18: =($A18-$A17)/365.25*$D$1*(1+$D$2+(VLOOKUP('RE Appr'!CU25,'RE Appr'!$E$13:$J$59,6,FALSE)/100)) -> 400,421 | CP18: =($A18-$A17)/365.25*$D$1*(1+$D$2+(VLOOKUP('RE Appr'!CV25,'RE Appr'!$E$13:$J$59,6,FALSE)/100)) -> 442,316 | CQ18: =($A18-$A17)/365.25*$D$1*(1+$D$2+(VLOOKUP('RE Appr'!CW25,'RE Appr'!$E$13:$J$59,6,FALSE)/100)) -> 424,911 | CR18: =($A18-$A17)/365.25*$D$1*(1+$D$2+(VLOOKUP('RE Appr'!CX25,'RE Appr'!$E$13:$J$59,6,FALSE)/100)) -> 411,854 | CS18: =($A18-$A17)/365.25*$D$1*(1+$D$2+(VLOOKUP('RE Appr'!CY25,'RE Appr'!$E$13:$J$59,6,FALSE)/100)) -> 441,875 | CT18: =($A18-$A17)/365.25*$D$1*(1+$D$2+(VLOOKUP('RE Appr'!CZ25,'RE Appr'!$E$13:$J$59,6,FALSE)/100)) -> 416,423 | CU18: =($A18-$A17)/365.25*$D$1*(1+$D$2+(VLOOKUP('RE Appr'!DA25,'RE Appr'!$E$13:$J$59,6,FALSE)/100)) -> 416,183 | CV18: =($A18-$A17)/365.25*$D$1*(1+$D$2+(VLOOKUP('RE Appr'!DB25,'RE Appr'!$E$13:$J$59,6,FALSE)/100)) -> 471,787 | CW18: =($A18-$A17)/365.25*$D$1*(1+$D$2+(VLOOKUP('RE Appr'!DC25,'RE Appr'!$E$13:$J$59,6,FALSE)/100)) -> 435,402 | CX18: =($A18-$A17)/365.25*$D$1*(1+$D$2+(VLOOKUP('RE Appr'!DD25,'RE Appr'!$E$13:$J$59,6,FALSE)/100)) -> 432,957 | CY18: =($A18-$A17)/365.25*$D$1*(1+$D$2+(VLOOKUP('RE Appr'!DE25,'RE Appr'!$E$13:$J$59,6,FALSE)/100)) -> 372,343 | CZ18: =($A18-$A17)/365.25*$D$1*(1+$D$2+(VLOOKUP('RE Appr'!DF25,'RE Appr'!$E$13:$J$59,6,FALSE)/100)) -> 420,492 | DA18: =($A18-$A17)/365.25*$D$1*(1+$D$2+(VLOOKUP('RE Appr'!DG25,'RE Appr'!$E$13:$J$59,6,FALSE)/100)) -> 427,209
A19: =Main!A21 -> 2036-12-30 | B19: 14 | F19: =($A19-$A18)/365.25*$D$1*(1+$D$2+(VLOOKUP('RE Appr'!L26,'RE Appr'!$E$13:$J$59,6,FALSE)/100)) -> 386,675 | G19: =($A19-$A18)/365.25*$D$1*(1+$D$2+(VLOOKUP('RE Appr'!M26,'RE Appr'!$E$13:$J$59,6,FALSE)/100)) -> 441,108 | H19: =($A19-$A18)/365.25*$D$1*(1+$D$2+(VLOOKUP('RE Appr'!N26,'RE Appr'!$E$13:$J$59,6,FALSE)/100)) -> 412,637 | I19: =($A19-$A18)/365.25*$D$1*(1+$D$2+(VLOOKUP('RE Appr'!O26,'RE Appr'!$E$13:$J$59,6,FALSE)/100)) -> 436,841 | J19: =($A19-$A18)/365.25*$D$1*(1+$D$2+(VLOOKUP('RE Appr'!P26,'RE Appr'!$E$13:$J$59,6,FALSE)/100)) -> 412,977 | K19: =($A19-$A18)/365.25*$D$1*(1+$D$2+(VLOOKUP('RE Appr'!Q26,'RE Appr'!$E$13:$J$59,6,FALSE)/100)) -> 412,977 | L19: =($A19-$A18)/365.25*$D$1*(1+$D$2+(VLOOKUP('RE Appr'!R26,'RE Appr'!$E$13:$J$59,6,FALSE)/100)) -> 386,675 | M19: =($A19-$A18)/365.25*$D$1*(1+$D$2+(VLOOKUP('RE Appr'!S26,'RE Appr'!$E$13:$J$59,6,FALSE)/100)) -> 441,528 | N19: =($A19-$A18)/365.25*$D$1*(1+$D$2+(VLOOKUP('RE Appr'!T26,'RE Appr'!$E$13:$J$59,6,FALSE)/100)) -> 422,511 | O19: =($A19-$A18)/365.25*$D$1*(1+$D$2+(VLOOKUP('RE Appr'!U26,'RE Appr'!$E$13:$J$59,6,FALSE)/100)) -> 412,517 | P19: =($A19-$A18)/365.25*$D$1*(1+$D$2+(VLOOKUP('RE Appr'!V26,'RE Appr'!$E$13:$J$59,6,FALSE)/100)) -> 412,977 | Q19: =($A19-$A18)/365.25*$D$1*(1+$D$2+(VLOOKUP('RE Appr'!W26,'RE Appr'!$E$13:$J$59,6,FALSE)/100)) -> 410,729 | R19: =($A19-$A18)/365.25*$D$1*(1+$D$2+(VLOOKUP('RE Appr'!X26,'RE Appr'!$E$13:$J$59,6,FALSE)/100)) -> 419,290 | S19: =($A19-$A18)/365.25*$D$1*(1+$D$2+(VLOOKUP('RE Appr'!Y26,'RE Appr'!$E$13:$J$59,6,FALSE)/100)) -> 375,603 | T19: =($A19-$A18)/365.25*$D$1*(1+$D$2+(VLOOKUP('RE Appr'!Z26,'RE Appr'!$E$13:$J$59,6,FALSE)/100)) -> 440,668 | U19: =($A19-$A18)/365.25*$D$1*(1+$D$2+(VLOOKUP('RE Appr'!AA26,'RE Appr'!$E$13:$J$59,6,FALSE)/100)) -> 411,048 | V19: =($A19-$A18)/365.25*$D$1*(1+$D$2+(VLOOKUP('RE Appr'!AB26,'RE Appr'!$E$13:$J$59,6,FALSE)/100)) -> 418,834 | W19: =($A19-$A18)/365.25*$D$1*(1+$D$2+(VLOOKUP('RE Appr'!AC26,'RE Appr'!$E$13:$J$59,6,FALSE)/100)) -> 412,977 | X19: =($A19-$A18)/365.25*$D$1*(1+$D$2+(VLOOKUP('RE Appr'!AD26,'RE Appr'!$E$13:$J$59,6,FALSE)/100)) -> 418,834 | Y19: =($A19-$A18)/365.25*$D$1*(1+$D$2+(VLOOKUP('RE Appr'!AE26,'RE Appr'!$E$13:$J$59,6,FALSE)/100)) -> 407,091 | Z19: =($A19-$A18)/365.25*$D$1*(1+$D$2+(VLOOKUP('RE Appr'!AF26,'RE Appr'!$E$13:$J$59,6,FALSE)/100)) -> 435,772 | AA19: =($A19-$A18)/365.25*$D$1*(1+$D$2+(VLOOKUP('RE Appr'!AG26,'RE Appr'!$E$13:$J$59,6,FALSE)/100)) -> 417,916 | AB19: =($A19-$A18)/365.25*$D$1*(1+$D$2+(VLOOKUP('RE Appr'!AH26,'RE Appr'!$E$13:$J$59,6,FALSE)/100)) -> 416,695 | AC19: =($A19-$A18)/365.25*$D$1*(1+$D$2+(VLOOKUP('RE Appr'!AI26,'RE Appr'!$E$13:$J$59,6,FALSE)/100)) -> 426,042 | AD19: =($A19-$A18)/365.25*$D$1*(1+$D$2+(VLOOKUP('RE Appr'!AJ26,'RE Appr'!$E$13:$J$59,6,FALSE)/100)) -> 371,326 | AE19: =($A19-$A18)/365.25*$D$1*(1+$D$2+(VLOOKUP('RE Appr'!AK26,'RE Appr'!$E$13:$J$59,6,FALSE)/100)) -> 423,730 | AF19: =($A19-$A18)/365.25*$D$1*(1+$D$2+(VLOOKUP('RE Appr'!AL26,'RE Appr'!$E$13:$J$59,6,FALSE)/100)) -> 415,286 | AG19: =($A19-$A18)/365.25*$D$1*(1+$D$2+(VLOOKUP('RE Appr'!AM26,'RE Appr'!$E$13:$J$59,6,FALSE)/100)) -> 436,841 | AH19: =($A19-$A18)/365.25*$D$1*(1+$D$2+(VLOOKUP('RE Appr'!AN26,'RE Appr'!$E$13:$J$59,6,FALSE)/100)) -> 421,666 | AI19: =($A19-$A18)/365.25*$D$1*(1+$D$2+(VLOOKUP('RE Appr'!AO26,'RE Appr'!$E$13:$J$59,6,FALSE)/100)) -> 401,385 | AJ19: =($A19-$A18)/365.25*$D$1*(1+$D$2+(VLOOKUP('RE Appr'!AP26,'RE Appr'!$E$13:$J$59,6,FALSE)/100)) -> 412,517 | AK19: =($A19-$A18)/365.25*$D$1*(1+$D$2+(VLOOKUP('RE Appr'!AQ26,'RE Appr'!$E$13:$J$59,6,FALSE)/100)) -> 435,772 | AL19: =($A19-$A18)/365.25*$D$1*(1+$D$2+(VLOOKUP('RE Appr'!AR26,'RE Appr'!$E$13:$J$59,6,FALSE)/100)) -> 441,108 | AM19: =($A19-$A18)/365.25*$D$1*(1+$D$2+(VLOOKUP('RE Appr'!AS26,'RE Appr'!$E$13:$J$59,6,FALSE)/100)) -> 415,286 | AN19: =($A19-$A18)/365.25*$D$1*(1+$D$2+(VLOOKUP('RE Appr'!AT26,'RE Appr'!$E$13:$J$59,6,FALSE)/100)) -> 423,730 | AO19: =($A19-$A18)/365.25*$D$1*(1+$D$2+(VLOOKUP('RE Appr'!AU26,'RE Appr'!$E$13:$J$59,6,FALSE)/100)) -> 419,543 | AP19: =($A19-$A18)/365.25*$D$1*(1+$D$2+(VLOOKUP('RE Appr'!AV26,'RE Appr'!$E$13:$J$59,6,FALSE)/100)) -> 399,326 | AQ19: =($A19-$A18)/365.25*$D$1*(1+$D$2+(VLOOKUP('RE Appr'!AW26,'RE Appr'!$E$13:$J$59,6,FALSE)/100)) -> 401,385 | AR19: =($A19-$A18)/365.25*$D$1*(1+$D$2+(VLOOKUP('RE Appr'!AX26,'RE Appr'!$E$13:$J$59,6,FALSE)/100)) -> 451,019 | AS19: =($A19-$A18)/365.25*$D$1*(1+$D$2+(VLOOKUP('RE Appr'!AY26,'RE Appr'!$E$13:$J$59,6,FALSE)/100)) -> 416,235 | AT19: =($A19-$A18)/365.25*$D$1*(1+$D$2+(VLOOKUP('RE Appr'!AZ26,'RE Appr'!$E$13:$J$59,6,FALSE)/100)) -> 412,278 | AU19: =($A19-$A18)/365.25*$D$1*(1+$D$2+(VLOOKUP('RE Appr'!BA26,'RE Appr'!$E$13:$J$59,6,FALSE)/100)) -> 420,192 | AV19: =($A19-$A18)/365.25*$D$1*(1+$D$2+(VLOOKUP('RE Appr'!BB26,'RE Appr'!$E$13:$J$59,6,FALSE)/100)) -> 437,041 | AW19: =($A19-$A18)/365.25*$D$1*(1+$D$2+(VLOOKUP('RE Appr'!BC26,'RE Appr'!$E$13:$J$59,6,FALSE)/100)) -> 431,774 | AX19: =($A19-$A18)/365.25*$D$1*(1+$D$2+(VLOOKUP('RE Appr'!BD26,'RE Appr'!$E$13:$J$59,6,FALSE)/100)) -> 419,543 | AY19: =($A19-$A18)/365.25*$D$1*(1+$D$2+(VLOOKUP('RE Appr'!BE26,'RE Appr'!$E$13:$J$59,6,FALSE)/100)) -> 412,977 | AZ19: =($A19-$A18)/365.25*$D$1*(1+$D$2+(VLOOKUP('RE Appr'!BF26,'RE Appr'!$E$13:$J$59,6,FALSE)/100)) -> 412,278 | BA19: =($A19-$A18)/365.25*$D$1*(1+$D$2+(VLOOKUP('RE Appr'!BG26,'RE Appr'!$E$13:$J$59,6,FALSE)/100)) -> 411,048 | BB19: =($A19-$A18)/365.25*$D$1*(1+$D$2+(VLOOKUP('RE Appr'!BH26,'RE Appr'!$E$13:$J$59,6,FALSE)/100)) -> 421,666 | BC19: =($A19-$A18)/365.25*$D$1*(1+$D$2+(VLOOKUP('RE Appr'!BI26,'RE Appr'!$E$13:$J$59,6,FALSE)/100)) -> 418,174 | BD19: =($A19-$A18)/365.25*$D$1*(1+$D$2+(VLOOKUP('RE Appr'!BJ26,'RE Appr'!$E$13:$J$59,6,FALSE)/100)) -> 415,286 | BE19: =($A19-$A18)/365.25*$D$1*(1+$D$2+(VLOOKUP('RE Appr'!BK26,'RE Appr'!$E$13:$J$59,6,FALSE)/100)) -> 386,675 | BF19: =($A19-$A18)/365.25*$D$1*(1+$D$2+(VLOOKUP('RE Appr'!BL26,'RE Appr'!$E$13:$J$59,6,FALSE)/100)) -> 411,048 | BG19: =($A19-$A18)/365.25*$D$1*(1+$D$2+(VLOOKUP('RE Appr'!BM26,'RE Appr'!$E$13:$J$59,6,FALSE)/100)) -> 429,316 | BH19: =($A19-$A18)/365.25*$D$1*(1+$D$2+(VLOOKUP('RE Appr'!BN26,'RE Appr'!$E$13:$J$59,6,FALSE)/100)) -> 419,343 | BI19: =($A19-$A18)/365.25*$D$1*(1+$D$2+(VLOOKUP('RE Appr'!BO26,'RE Appr'!$E$13:$J$59,6,FALSE)/100)) -> 409,270 | BJ19: =($A19-$A18)/365.25*$D$1*(1+$D$2+(VLOOKUP('RE Appr'!BP26,'RE Appr'!$E$13:$J$59,6,FALSE)/100)) -> 412,637 | BK19: =($A19-$A18)/365.25*$D$1*(1+$D$2+(VLOOKUP('RE Appr'!BQ26,'RE Appr'!$E$13:$J$59,6,FALSE)/100)) -> 383,827 | BL19: =($A19-$A18)/365.25*$D$1*(1+$D$2+(VLOOKUP('RE Appr'!BR26,'RE Appr'!$E$13:$J$59,6,FALSE)/100)) -> 371,326 | BM19: =($A19-$A18)/365.25*$D$1*(1+$D$2+(VLOOKUP('RE Appr'!BS26,'RE Appr'!$E$13:$J$59,6,FALSE)/100)) -> 419,633 | BN19: =($A19-$A18)/365.25*$D$1*(1+$D$2+(VLOOKUP('RE Appr'!BT26,'RE Appr'!$E$13:$J$59,6,FALSE)/100)) -> 371,326 | BO19: =($A19-$A18)/365.25*$D$1*(1+$D$2+(VLOOKUP('RE Appr'!BU26,'RE Appr'!$E$13:$J$59,6,FALSE)/100)) -> 419,290 | BP19: =($A19-$A18)/365.25*$D$1*(1+$D$2+(VLOOKUP('RE Appr'!BV26,'RE Appr'!$E$13:$J$59,6,FALSE)/100)) -> 436,841 | BQ19: =($A19-$A18)/365.25*$D$1*(1+$D$2+(VLOOKUP('RE Appr'!BW26,'RE Appr'!$E$13:$J$59,6,FALSE)/100)) -> 412,637 | BR19: =($A19-$A18)/365.25*$D$1*(1+$D$2+(VLOOKUP('RE Appr'!BX26,'RE Appr'!$E$13:$J$59,6,FALSE)/100)) -> 415,286 | BS19: =($A19-$A18)/365.25*$D$1*(1+$D$2+(VLOOKUP('RE Appr'!BY26,'RE Appr'!$E$13:$J$59,6,FALSE)/100)) -> 375,603 | BT19: =($A19-$A18)/365.25*$D$1*(1+$D$2+(VLOOKUP('RE Appr'!BZ26,'RE Appr'!$E$13:$J$59,6,FALSE)/100)) -> 435,182 | BU19: =($A19-$A18)/365.25*$D$1*(1+$D$2+(VLOOKUP('RE Appr'!CA26,'RE Appr'!$E$13:$J$59,6,FALSE)/100)) -> 416,235 | BV19: =($A19-$A18)/365.25*$D$1*(1+$D$2+(VLOOKUP('RE Appr'!CB26,'RE Appr'!$E$13:$J$59,6,FALSE)/100)) -> 414,846 | BW19: =($A19-$A18)/365.25*$D$1*(1+$D$2+(VLOOKUP('RE Appr'!CC26,'RE Appr'!$E$13:$J$59,6,FALSE)/100)) -> 441,108 | BX19: =($A19-$A18)/365.25*$D$1*(1+$D$2+(VLOOKUP('RE Appr'!CD26,'RE Appr'!$E$13:$J$59,6,FALSE)/100)) -> 437,041 | BY19: =($A19-$A18)/365.25*$D$1*(1+$D$2+(VLOOKUP('RE Appr'!CE26,'RE Appr'!$E$13:$J$59,6,FALSE)/100)) -> 431,774 | BZ19: =($A19-$A18)/365.25*$D$1*(1+$D$2+(VLOOKUP('RE Appr'!CF26,'RE Appr'!$E$13:$J$59,6,FALSE)/100)) -> 416,695 | CA19: =($A19-$A18)/365.25*$D$1*(1+$D$2+(VLOOKUP('RE Appr'!CG26,'RE Appr'!$E$13:$J$59,6,FALSE)/100)) -> 419,543 | CB19: =($A19-$A18)/365.25*$D$1*(1+$D$2+(VLOOKUP('RE Appr'!CH26,'RE Appr'!$E$13:$J$59,6,FALSE)/100)) -> 401,385 | CC19: =($A19-$A18)/365.25*$D$1*(1+$D$2+(VLOOKUP('RE Appr'!CI26,'RE Appr'!$E$13:$J$59,6,FALSE)/100)) -> 416,695 | CD19: =($A19-$A18)/365.25*$D$1*(1+$D$2+(VLOOKUP('RE Appr'!CJ26,'RE Appr'!$E$13:$J$59,6,FALSE)/100)) -> 419,543 | CE19: =($A19-$A18)/365.25*$D$1*(1+$D$2+(VLOOKUP('RE Appr'!CK26,'RE Appr'!$E$13:$J$59,6,FALSE)/100)) -> 435,182 | CF19: =($A19-$A18)/365.25*$D$1*(1+$D$2+(VLOOKUP('RE Appr'!CL26,'RE Appr'!$E$13:$J$59,6,FALSE)/100)) -> 417,654 | CG19: =($A19-$A18)/365.25*$D$1*(1+$D$2+(VLOOKUP('RE Appr'!CM26,'RE Appr'!$E$13:$J$59,6,FALSE)/100)) -> 431,774 | CH19: =($A19-$A18)/365.25*$D$1*(1+$D$2+(VLOOKUP('RE Appr'!CN26,'RE Appr'!$E$13:$J$59,6,FALSE)/100)) -> 417,654 | CI19: =($A19-$A18)/365.25*$D$1*(1+$D$2+(VLOOKUP('RE Appr'!CO26,'RE Appr'!$E$13:$J$59,6,FALSE)/100)) -> 371,326 | CJ19: =($A19-$A18)/365.25*$D$1*(1+$D$2+(VLOOKUP('RE Appr'!CP26,'RE Appr'!$E$13:$J$59,6,FALSE)/100)) -> 441,528 | CK19: =($A19-$A18)/365.25*$D$1*(1+$D$2+(VLOOKUP('RE Appr'!CQ26,'RE Appr'!$E$13:$J$59,6,FALSE)/100)) -> 418,834 | CL19: =($A19-$A18)/365.25*$D$1*(1+$D$2+(VLOOKUP('RE Appr'!CR26,'RE Appr'!$E$13:$J$59,6,FALSE)/100)) -> 383,827 | CM19: =($A19-$A18)/365.25*$D$1*(1+$D$2+(VLOOKUP('RE Appr'!CS26,'RE Appr'!$E$13:$J$59,6,FALSE)/100)) -> 455,688 | CN19: =($A19-$A18)/365.25*$D$1*(1+$D$2+(VLOOKUP('RE Appr'!CT26,'RE Appr'!$E$13:$J$59,6,FALSE)/100)) -> 437,041 | CO19: =($A19-$A18)/365.25*$D$1*(1+$D$2+(VLOOKUP('RE Appr'!CU26,'RE Appr'!$E$13:$J$59,6,FALSE)/100)) -> 429,316 | CP19: =($A19-$A18)/365.25*$D$1*(1+$D$2+(VLOOKUP('RE Appr'!CV26,'RE Appr'!$E$13:$J$59,6,FALSE)/100)) -> 455,688 | CQ19: =($A19-$A18)/365.25*$D$1*(1+$D$2+(VLOOKUP('RE Appr'!CW26,'RE Appr'!$E$13:$J$59,6,FALSE)/100)) -> 415,848 | CR19: =($A19-$A18)/365.25*$D$1*(1+$D$2+(VLOOKUP('RE Appr'!CX26,'RE Appr'!$E$13:$J$59,6,FALSE)/100)) -> 420,192 | CS19: =($A19-$A18)/365.25*$D$1*(1+$D$2+(VLOOKUP('RE Appr'!CY26,'RE Appr'!$E$13:$J$59,6,FALSE)/100)) -> 415,848 | CT19: =($A19-$A18)/365.25*$D$1*(1+$D$2+(VLOOKUP('RE Appr'!CZ26,'RE Appr'!$E$13:$J$59,6,FALSE)/100)) -> 426,042 | CU19: =($A19-$A18)/365.25*$D$1*(1+$D$2+(VLOOKUP('RE Appr'!DA26,'RE Appr'!$E$13:$J$59,6,FALSE)/100)) -> 416,235 | CV19: =($A19-$A18)/365.25*$D$1*(1+$D$2+(VLOOKUP('RE Appr'!DB26,'RE Appr'!$E$13:$J$59,6,FALSE)/100)) -> 422,511 | CW19: =($A19-$A18)/365.25*$D$1*(1+$D$2+(VLOOKUP('RE Appr'!DC26,'RE Appr'!$E$13:$J$59,6,FALSE)/100)) -> 383,827 | CX19: =($A19-$A18)/365.25*$D$1*(1+$D$2+(VLOOKUP('RE Appr'!DD26,'RE Appr'!$E$13:$J$59,6,FALSE)/100)) -> 470,498 | CY19: =($A19-$A18)/365.25*$D$1*(1+$D$2+(VLOOKUP('RE Appr'!DE26,'RE Appr'!$E$13:$J$59,6,FALSE)/100)) -> 399,326 | CZ19: =($A19-$A18)/365.25*$D$1*(1+$D$2+(VLOOKUP('RE Appr'!DF26,'RE Appr'!$E$13:$J$59,6,FALSE)/100)) -> 415,046 | DA19: =($A19-$A18)/365.25*$D$1*(1+$D$2+(VLOOKUP('RE Appr'!DG26,'RE Appr'!$E$13:$J$59,6,FALSE)/100)) -> 470,498
A20: =Main!A22 -> 2037-12-30 | B20: 15 | F20: =($A20-$A19)/365.25*$D$1*(1+$D$2+(VLOOKUP('RE Appr'!L27,'RE Appr'!$E$13:$J$59,6,FALSE)/100)) -> 441,528 | G20: =($A20-$A19)/365.25*$D$1*(1+$D$2+(VLOOKUP('RE Appr'!M27,'RE Appr'!$E$13:$J$59,6,FALSE)/100)) -> 435,772 | H20: =($A20-$A19)/365.25*$D$1*(1+$D$2+(VLOOKUP('RE Appr'!N27,'RE Appr'!$E$13:$J$59,6,FALSE)/100)) -> 426,042 | I20: =($A20-$A19)/365.25*$D$1*(1+$D$2+(VLOOKUP('RE Appr'!O27,'RE Appr'!$E$13:$J$59,6,FALSE)/100)) -> 375,603 | J20: =($A20-$A19)/365.25*$D$1*(1+$D$2+(VLOOKUP('RE Appr'!P27,'RE Appr'!$E$13:$J$59,6,FALSE)/100)) -> 371,326 | K20: =($A20-$A19)/365.25*$D$1*(1+$D$2+(VLOOKUP('RE Appr'!Q27,'RE Appr'!$E$13:$J$59,6,FALSE)/100)) -> 410,729 | L20: =($A20-$A19)/365.25*$D$1*(1+$D$2+(VLOOKUP('RE Appr'!R27,'RE Appr'!$E$13:$J$59,6,FALSE)/100)) -> 419,343 | M20: =($A20-$A19)/365.25*$D$1*(1+$D$2+(VLOOKUP('RE Appr'!S27,'RE Appr'!$E$13:$J$59,6,FALSE)/100)) -> 419,343 | N20: =($A20-$A19)/365.25*$D$1*(1+$D$2+(VLOOKUP('RE Appr'!T27,'RE Appr'!$E$13:$J$59,6,FALSE)/100)) -> 401,385 | O20: =($A20-$A19)/365.25*$D$1*(1+$D$2+(VLOOKUP('RE Appr'!U27,'RE Appr'!$E$13:$J$59,6,FALSE)/100)) -> 401,385 | P20: =($A20-$A19)/365.25*$D$1*(1+$D$2+(VLOOKUP('RE Appr'!V27,'RE Appr'!$E$13:$J$59,6,FALSE)/100)) -> 383,827 | Q20: =($A20-$A19)/365.25*$D$1*(1+$D$2+(VLOOKUP('RE Appr'!W27,'RE Appr'!$E$13:$J$59,6,FALSE)/100)) -> 415,046 | R20: =($A20-$A19)/365.25*$D$1*(1+$D$2+(VLOOKUP('RE Appr'!X27,'RE Appr'!$E$13:$J$59,6,FALSE)/100)) -> 417,654 | S20: =($A20-$A19)/365.25*$D$1*(1+$D$2+(VLOOKUP('RE Appr'!Y27,'RE Appr'!$E$13:$J$59,6,FALSE)/100)) -> 371,326 | T20: =($A20-$A19)/365.25*$D$1*(1+$D$2+(VLOOKUP('RE Appr'!Z27,'RE Appr'!$E$13:$J$59,6,FALSE)/100)) -> 401,385 | U20: =($A20-$A19)/365.25*$D$1*(1+$D$2+(VLOOKUP('RE Appr'!AA27,'RE Appr'!$E$13:$J$59,6,FALSE)/100)) -> 414,846 | V20: =($A20-$A19)/365.25*$D$1*(1+$D$2+(VLOOKUP('RE Appr'!AB27,'RE Appr'!$E$13:$J$59,6,FALSE)/100)) -> 417,916 | W20: =($A20-$A19)/365.25*$D$1*(1+$D$2+(VLOOKUP('RE Appr'!AC27,'RE Appr'!$E$13:$J$59,6,FALSE)/100)) -> 422,511 | X20: =($A20-$A19)/365.25*$D$1*(1+$D$2+(VLOOKUP('RE Appr'!AD27,'RE Appr'!$E$13:$J$59,6,FALSE)/100)) -> 415,046 | Y20: =($A20-$A19)/365.25*$D$1*(1+$D$2+(VLOOKUP('RE Appr'!AE27,'RE Appr'!$E$13:$J$59,6,FALSE)/100)) -> 434,213 | Z20: =($A20-$A19)/365.25*$D$1*(1+$D$2+(VLOOKUP('RE Appr'!AF27,'RE Appr'!$E$13:$J$59,6,FALSE)/100)) -> 416,695 | AA20: =($A20-$A19)/365.25*$D$1*(1+$D$2+(VLOOKUP('RE Appr'!AG27,'RE Appr'!$E$13:$J$59,6,FALSE)/100)) -> 412,517 | AB20: =($A20-$A19)/365.25*$D$1*(1+$D$2+(VLOOKUP('RE Appr'!AH27,'RE Appr'!$E$13:$J$59,6,FALSE)/100)) -> 416,695 | AC20: =($A20-$A19)/365.25*$D$1*(1+$D$2+(VLOOKUP('RE Appr'!AI27,'RE Appr'!$E$13:$J$59,6,FALSE)/100)) -> 423,730 | AD20: =($A20-$A19)/365.25*$D$1*(1+$D$2+(VLOOKUP('RE Appr'!AJ27,'RE Appr'!$E$13:$J$59,6,FALSE)/100)) -> 417,654 | AE20: =($A20-$A19)/365.25*$D$1*(1+$D$2+(VLOOKUP('RE Appr'!AK27,'RE Appr'!$E$13:$J$59,6,FALSE)/100)) -> 386,675 | AF20: =($A20-$A19)/365.25*$D$1*(1+$D$2+(VLOOKUP('RE Appr'!AL27,'RE Appr'!$E$13:$J$59,6,FALSE)/100)) -> 431,774 | AG20: =($A20-$A19)/365.25*$D$1*(1+$D$2+(VLOOKUP('RE Appr'!AM27,'RE Appr'!$E$13:$J$59,6,FALSE)/100)) -> 419,633 | AH20: =($A20-$A19)/365.25*$D$1*(1+$D$2+(VLOOKUP('RE Appr'!AN27,'RE Appr'!$E$13:$J$59,6,FALSE)/100)) -> 414,846 | AI20: =($A20-$A19)/365.25*$D$1*(1+$D$2+(VLOOKUP('RE Appr'!AO27,'RE Appr'!$E$13:$J$59,6,FALSE)/100)) -> 399,326 | AJ20: =($A20-$A19)/365.25*$D$1*(1+$D$2+(VLOOKUP('RE Appr'!AP27,'RE Appr'!$E$13:$J$59,6,FALSE)/100)) -> 441,108 | AK20: =($A20-$A19)/365.25*$D$1*(1+$D$2+(VLOOKUP('RE Appr'!AQ27,'RE Appr'!$E$13:$J$59,6,FALSE)/100)) -> 417,916 | AL20: =($A20-$A19)/365.25*$D$1*(1+$D$2+(VLOOKUP('RE Appr'!AR27,'RE Appr'!$E$13:$J$59,6,FALSE)/100)) -> 411,048 | AM20: =($A20-$A19)/365.25*$D$1*(1+$D$2+(VLOOKUP('RE Appr'!AS27,'RE Appr'!$E$13:$J$59,6,FALSE)/100)) -> 437,041 | AN20: =($A20-$A19)/365.25*$D$1*(1+$D$2+(VLOOKUP('RE Appr'!AT27,'RE Appr'!$E$13:$J$59,6,FALSE)/100)) -> 419,290 | AO20: =($A20-$A19)/365.25*$D$1*(1+$D$2+(VLOOKUP('RE Appr'!AU27,'RE Appr'!$E$13:$J$59,6,FALSE)/100)) -> 407,091 | AP20: =($A20-$A19)/365.25*$D$1*(1+$D$2+(VLOOKUP('RE Appr'!AV27,'RE Appr'!$E$13:$J$59,6,FALSE)/100)) -> 417,916 | AQ20: =($A20-$A19)/365.25*$D$1*(1+$D$2+(VLOOKUP('RE Appr'!AW27,'RE Appr'!$E$13:$J$59,6,FALSE)/100)) -> 412,637 | AR20: =($A20-$A19)/365.25*$D$1*(1+$D$2+(VLOOKUP('RE Appr'!AX27,'RE Appr'!$E$13:$J$59,6,FALSE)/100)) -> 401,385 | AS20: =($A20-$A19)/365.25*$D$1*(1+$D$2+(VLOOKUP('RE Appr'!AY27,'RE Appr'!$E$13:$J$59,6,FALSE)/100)) -> 429,316 | AT20: =($A20-$A19)/365.25*$D$1*(1+$D$2+(VLOOKUP('RE Appr'!AZ27,'RE Appr'!$E$13:$J$59,6,FALSE)/100)) -> 440,668 | AU20: =($A20-$A19)/365.25*$D$1*(1+$D$2+(VLOOKUP('RE Appr'!BA27,'RE Appr'!$E$13:$J$59,6,FALSE)/100)) -> 417,916 | AV20: =($A20-$A19)/365.25*$D$1*(1+$D$2+(VLOOKUP('RE Appr'!BB27,'RE Appr'!$E$13:$J$59,6,FALSE)/100)) -> 409,270 | AW20: =($A20-$A19)/365.25*$D$1*(1+$D$2+(VLOOKUP('RE Appr'!BC27,'RE Appr'!$E$13:$J$59,6,FALSE)/100)) -> 451,019 | AX20: =($A20-$A19)/365.25*$D$1*(1+$D$2+(VLOOKUP('RE Appr'!BD27,'RE Appr'!$E$13:$J$59,6,FALSE)/100)) -> 412,977 | AY20: =($A20-$A19)/365.25*$D$1*(1+$D$2+(VLOOKUP('RE Appr'!BE27,'RE Appr'!$E$13:$J$59,6,FALSE)/100)) -> 409,270 | AZ20: =($A20-$A19)/365.25*$D$1*(1+$D$2+(VLOOKUP('RE Appr'!BF27,'RE Appr'!$E$13:$J$59,6,FALSE)/100)) -> 441,108 | BA20: =($A20-$A19)/365.25*$D$1*(1+$D$2+(VLOOKUP('RE Appr'!BG27,'RE Appr'!$E$13:$J$59,6,FALSE)/100)) -> 419,543 | BB20: =($A20-$A19)/365.25*$D$1*(1+$D$2+(VLOOKUP('RE Appr'!BH27,'RE Appr'!$E$13:$J$59,6,FALSE)/100)) -> 419,543 | BC20: =($A20-$A19)/365.25*$D$1*(1+$D$2+(VLOOKUP('RE Appr'!BI27,'RE Appr'!$E$13:$J$59,6,FALSE)/100)) -> 383,827 | BD20: =($A20-$A19)/365.25*$D$1*(1+$D$2+(VLOOKUP('RE Appr'!BJ27,'RE Appr'!$E$13:$J$59,6,FALSE)/100)) -> 421,666 | BE20: =($A20-$A19)/365.25*$D$1*(1+$D$2+(VLOOKUP('RE Appr'!BK27,'RE Appr'!$E$13:$J$59,6,FALSE)/100)) -> 375,603 | BF20: =($A20-$A19)/365.25*$D$1*(1+$D$2+(VLOOKUP('RE Appr'!BL27,'RE Appr'!$E$13:$J$59,6,FALSE)/100)) -> 415,286 | BG20: =($A20-$A19)/365.25*$D$1*(1+$D$2+(VLOOKUP('RE Appr'!BM27,'RE Appr'!$E$13:$J$59,6,FALSE)/100)) -> 451,019 | BH20: =($A20-$A19)/365.25*$D$1*(1+$D$2+(VLOOKUP('RE Appr'!BN27,'RE Appr'!$E$13:$J$59,6,FALSE)/100)) -> 434,213 | BI20: =($A20-$A19)/365.25*$D$1*(1+$D$2+(VLOOKUP('RE Appr'!BO27,'RE Appr'!$E$13:$J$59,6,FALSE)/100)) -> 417,654 | BJ20: =($A20-$A19)/365.25*$D$1*(1+$D$2+(VLOOKUP('RE Appr'!BP27,'RE Appr'!$E$13:$J$59,6,FALSE)/100)) -> 440,668 | BK20: =($A20-$A19)/365.25*$D$1*(1+$D$2+(VLOOKUP('RE Appr'!BQ27,'RE Appr'!$E$13:$J$59,6,FALSE)/100)) -> 417,654 | BL20: =($A20-$A19)/365.25*$D$1*(1+$D$2+(VLOOKUP('RE Appr'!BR27,'RE Appr'!$E$13:$J$59,6,FALSE)/100)) -> 412,517 | BM20: =($A20-$A19)/365.25*$D$1*(1+$D$2+(VLOOKUP('RE Appr'!BS27,'RE Appr'!$E$13:$J$59,6,FALSE)/100)) -> 470,498 | BN20: =($A20-$A19)/365.25*$D$1*(1+$D$2+(VLOOKUP('RE Appr'!BT27,'RE Appr'!$E$13:$J$59,6,FALSE)/100)) -> 436,841 | BO20: =($A20-$A19)/365.25*$D$1*(1+$D$2+(VLOOKUP('RE Appr'!BU27,'RE Appr'!$E$13:$J$59,6,FALSE)/100)) -> 386,675 | BP20: =($A20-$A19)/365.25*$D$1*(1+$D$2+(VLOOKUP('RE Appr'!BV27,'RE Appr'!$E$13:$J$59,6,FALSE)/100)) -> 414,846 | BQ20: =($A20-$A19)/365.25*$D$1*(1+$D$2+(VLOOKUP('RE Appr'!BW27,'RE Appr'!$E$13:$J$59,6,FALSE)/100)) -> 371,326 | BR20: =($A20-$A19)/365.25*$D$1*(1+$D$2+(VLOOKUP('RE Appr'!BX27,'RE Appr'!$E$13:$J$59,6,FALSE)/100)) -> 417,916 | BS20: =($A20-$A19)/365.25*$D$1*(1+$D$2+(VLOOKUP('RE Appr'!BY27,'RE Appr'!$E$13:$J$59,6,FALSE)/100)) -> 371,326 | BT20: =($A20-$A19)/365.25*$D$1*(1+$D$2+(VLOOKUP('RE Appr'!BZ27,'RE Appr'!$E$13:$J$59,6,FALSE)/100)) -> 418,834 | BU20: =($A20-$A19)/365.25*$D$1*(1+$D$2+(VLOOKUP('RE Appr'!CA27,'RE Appr'!$E$13:$J$59,6,FALSE)/100)) -> 423,730 | BV20: =($A20-$A19)/365.25*$D$1*(1+$D$2+(VLOOKUP('RE Appr'!CB27,'RE Appr'!$E$13:$J$59,6,FALSE)/100)) -> 434,213 | BW20: =($A20-$A19)/365.25*$D$1*(1+$D$2+(VLOOKUP('RE Appr'!CC27,'RE Appr'!$E$13:$J$59,6,FALSE)/100)) -> 412,977 | BX20: =($A20-$A19)/365.25*$D$1*(1+$D$2+(VLOOKUP('RE Appr'!CD27,'RE Appr'!$E$13:$J$59,6,FALSE)/100)) -> 371,326 | BY20: =($A20-$A19)/365.25*$D$1*(1+$D$2+(VLOOKUP('RE Appr'!CE27,'RE Appr'!$E$13:$J$59,6,FALSE)/100)) -> 435,182 | BZ20: =($A20-$A19)/365.25*$D$1*(1+$D$2+(VLOOKUP('RE Appr'!CF27,'RE Appr'!$E$13:$J$59,6,FALSE)/100)) -> 451,019 | CA20: =($A20-$A19)/365.25*$D$1*(1+$D$2+(VLOOKUP('RE Appr'!CG27,'RE Appr'!$E$13:$J$59,6,FALSE)/100)) -> 436,841 | CB20: =($A20-$A19)/365.25*$D$1*(1+$D$2+(VLOOKUP('RE Appr'!CH27,'RE Appr'!$E$13:$J$59,6,FALSE)/100)) -> 426,042 | CC20: =($A20-$A19)/365.25*$D$1*(1+$D$2+(VLOOKUP('RE Appr'!CI27,'RE Appr'!$E$13:$J$59,6,FALSE)/100)) -> 371,326 | CD20: =($A20-$A19)/365.25*$D$1*(1+$D$2+(VLOOKUP('RE Appr'!CJ27,'RE Appr'!$E$13:$J$59,6,FALSE)/100)) -> 419,343 | CE20: =($A20-$A19)/365.25*$D$1*(1+$D$2+(VLOOKUP('RE Appr'!CK27,'RE Appr'!$E$13:$J$59,6,FALSE)/100)) -> 435,772 | CF20: =($A20-$A19)/365.25*$D$1*(1+$D$2+(VLOOKUP('RE Appr'!CL27,'RE Appr'!$E$13:$J$59,6,FALSE)/100)) -> 434,213 | CG20: =($A20-$A19)/365.25*$D$1*(1+$D$2+(VLOOKUP('RE Appr'!CM27,'RE Appr'!$E$13:$J$59,6,FALSE)/100)) -> 437,041 | CH20: =($A20-$A19)/365.25*$D$1*(1+$D$2+(VLOOKUP('RE Appr'!CN27,'RE Appr'!$E$13:$J$59,6,FALSE)/100)) -> 440,668 | CI20: =($A20-$A19)/365.25*$D$1*(1+$D$2+(VLOOKUP('RE Appr'!CO27,'RE Appr'!$E$13:$J$59,6,FALSE)/100)) -> 451,019 | CJ20: =($A20-$A19)/365.25*$D$1*(1+$D$2+(VLOOKUP('RE Appr'!CP27,'RE Appr'!$E$13:$J$59,6,FALSE)/100)) -> 434,213 | CK20: =($A20-$A19)/365.25*$D$1*(1+$D$2+(VLOOKUP('RE Appr'!CQ27,'RE Appr'!$E$13:$J$59,6,FALSE)/100)) -> 437,041 | CL20: =($A20-$A19)/365.25*$D$1*(1+$D$2+(VLOOKUP('RE Appr'!CR27,'RE Appr'!$E$13:$J$59,6,FALSE)/100)) -> 375,603 | CM20: =($A20-$A19)/365.25*$D$1*(1+$D$2+(VLOOKUP('RE Appr'!CS27,'RE Appr'!$E$13:$J$59,6,FALSE)/100)) -> 383,827 | CN20: =($A20-$A19)/365.25*$D$1*(1+$D$2+(VLOOKUP('RE Appr'!CT27,'RE Appr'!$E$13:$J$59,6,FALSE)/100)) -> 412,278 | CO20: =($A20-$A19)/365.25*$D$1*(1+$D$2+(VLOOKUP('RE Appr'!CU27,'RE Appr'!$E$13:$J$59,6,FALSE)/100)) -> 407,091 | CP20: =($A20-$A19)/365.25*$D$1*(1+$D$2+(VLOOKUP('RE Appr'!CV27,'RE Appr'!$E$13:$J$59,6,FALSE)/100)) -> 441,528 | CQ20: =($A20-$A19)/365.25*$D$1*(1+$D$2+(VLOOKUP('RE Appr'!CW27,'RE Appr'!$E$13:$J$59,6,FALSE)/100)) -> 441,108 | CR20: =($A20-$A19)/365.25*$D$1*(1+$D$2+(VLOOKUP('RE Appr'!CX27,'RE Appr'!$E$13:$J$59,6,FALSE)/100)) -> 415,848 | CS20: =($A20-$A19)/365.25*$D$1*(1+$D$2+(VLOOKUP('RE Appr'!CY27,'RE Appr'!$E$13:$J$59,6,FALSE)/100)) -> 434,213 | CT20: =($A20-$A19)/365.25*$D$1*(1+$D$2+(VLOOKUP('RE Appr'!CZ27,'RE Appr'!$E$13:$J$59,6,FALSE)/100)) -> 415,046 | CU20: =($A20-$A19)/365.25*$D$1*(1+$D$2+(VLOOKUP('RE Appr'!DA27,'RE Appr'!$E$13:$J$59,6,FALSE)/100)) -> 415,046 | CV20: =($A20-$A19)/365.25*$D$1*(1+$D$2+(VLOOKUP('RE Appr'!DB27,'RE Appr'!$E$13:$J$59,6,FALSE)/100)) -> 383,827 | CW20: =($A20-$A19)/365.25*$D$1*(1+$D$2+(VLOOKUP('RE Appr'!DC27,'RE Appr'!$E$13:$J$59,6,FALSE)/100)) -> 419,633 | CX20: =($A20-$A19)/365.25*$D$1*(1+$D$2+(VLOOKUP('RE Appr'!DD27,'RE Appr'!$E$13:$J$59,6,FALSE)/100)) -> 419,290 | CY20: =($A20-$A19)/365.25*$D$1*(1+$D$2+(VLOOKUP('RE Appr'!DE27,'RE Appr'!$E$13:$J$59,6,FALSE)/100)) -> 415,286 | CZ20: =($A20-$A19)/365.25*$D$1*(1+$D$2+(VLOOKUP('RE Appr'!DF27,'RE Appr'!$E$13:$J$59,6,FALSE)/100)) -> 415,046 | DA20: =($A20-$A19)/365.25*$D$1*(1+$D$2+(VLOOKUP('RE Appr'!DG27,'RE Appr'!$E$13:$J$59,6,FALSE)/100)) -> 418,174
A21: =Main!A23 -> 2038-12-30 | B21: 16 | F21: =($A21-$A20)/365.25*$D$1*(1+$D$2+(VLOOKUP('RE Appr'!L28,'RE Appr'!$E$13:$J$59,6,FALSE)/100)) -> 407,091 | G21: =($A21-$A20)/365.25*$D$1*(1+$D$2+(VLOOKUP('RE Appr'!M28,'RE Appr'!$E$13:$J$59,6,FALSE)/100)) -> 383,827 | H21: =($A21-$A20)/365.25*$D$1*(1+$D$2+(VLOOKUP('RE Appr'!N28,'RE Appr'!$E$13:$J$59,6,FALSE)/100)) -> 412,278 | I21: =($A21-$A20)/365.25*$D$1*(1+$D$2+(VLOOKUP('RE Appr'!O28,'RE Appr'!$E$13:$J$59,6,FALSE)/100)) -> 415,848 | J21: =($A21-$A20)/365.25*$D$1*(1+$D$2+(VLOOKUP('RE Appr'!P28,'RE Appr'!$E$13:$J$59,6,FALSE)/100)) -> 423,750 | K21: =($A21-$A20)/365.25*$D$1*(1+$D$2+(VLOOKUP('RE Appr'!Q28,'RE Appr'!$E$13:$J$59,6,FALSE)/100)) -> 415,286 | L21: =($A21-$A20)/365.25*$D$1*(1+$D$2+(VLOOKUP('RE Appr'!R28,'RE Appr'!$E$13:$J$59,6,FALSE)/100)) -> 429,316 | M21: =($A21-$A20)/365.25*$D$1*(1+$D$2+(VLOOKUP('RE Appr'!S28,'RE Appr'!$E$13:$J$59,6,FALSE)/100)) -> 423,730 | N21: =($A21-$A20)/365.25*$D$1*(1+$D$2+(VLOOKUP('RE Appr'!T28,'RE Appr'!$E$13:$J$59,6,FALSE)/100)) -> 399,326 | O21: =($A21-$A20)/365.25*$D$1*(1+$D$2+(VLOOKUP('RE Appr'!U28,'RE Appr'!$E$13:$J$59,6,FALSE)/100)) -> 412,977 | P21: =($A21-$A20)/365.25*$D$1*(1+$D$2+(VLOOKUP('RE Appr'!V28,'RE Appr'!$E$13:$J$59,6,FALSE)/100)) -> 417,654 | Q21: =($A21-$A20)/365.25*$D$1*(1+$D$2+(VLOOKUP('RE Appr'!W28,'RE Appr'!$E$13:$J$59,6,FALSE)/100)) -> 412,517 | R21: =($A21-$A20)/365.25*$D$1*(1+$D$2+(VLOOKUP('RE Appr'!X28,'RE Appr'!$E$13:$J$59,6,FALSE)/100)) -> 435,772 | S21: =($A21-$A20)/365.25*$D$1*(1+$D$2+(VLOOKUP('RE Appr'!Y28,'RE Appr'!$E$13:$J$59,6,FALSE)/100)) -> 451,019 | T21: =($A21-$A20)/365.25*$D$1*(1+$D$2+(VLOOKUP('RE Appr'!Z28,'RE Appr'!$E$13:$J$59,6,FALSE)/100)) -> 423,730 | U21: =($A21-$A20)/365.25*$D$1*(1+$D$2+(VLOOKUP('RE Appr'!AA28,'RE Appr'!$E$13:$J$59,6,FALSE)/100)) -> 420,192 | V21: =($A21-$A20)/365.25*$D$1*(1+$D$2+(VLOOKUP('RE Appr'!AB28,'RE Appr'!$E$13:$J$59,6,FALSE)/100)) -> 423,750 | W21: =($A21-$A20)/365.25*$D$1*(1+$D$2+(VLOOKUP('RE Appr'!AC28,'RE Appr'!$E$13:$J$59,6,FALSE)/100)) -> 451,019 | X21: =($A21-$A20)/365.25*$D$1*(1+$D$2+(VLOOKUP('RE Appr'!AD28,'RE Appr'!$E$13:$J$59,6,FALSE)/100)) -> 401,385 | Y21: =($A21-$A20)/365.25*$D$1*(1+$D$2+(VLOOKUP('RE Appr'!AE28,'RE Appr'!$E$13:$J$59,6,FALSE)/100)) -> 419,343 | Z21: =($A21-$A20)/365.25*$D$1*(1+$D$2+(VLOOKUP('RE Appr'!AF28,'RE Appr'!$E$13:$J$59,6,FALSE)/100)) -> 383,827 | AA21: =($A21-$A20)/365.25*$D$1*(1+$D$2+(VLOOKUP('RE Appr'!AG28,'RE Appr'!$E$13:$J$59,6,FALSE)/100)) -> 423,730 | AB21: =($A21-$A20)/365.25*$D$1*(1+$D$2+(VLOOKUP('RE Appr'!AH28,'RE Appr'!$E$13:$J$59,6,FALSE)/100)) -> 412,278 | AC21: =($A21-$A20)/365.25*$D$1*(1+$D$2+(VLOOKUP('RE Appr'!AI28,'RE Appr'!$E$13:$J$59,6,FALSE)/100)) -> 441,108 | AD21: =($A21-$A20)/365.25*$D$1*(1+$D$2+(VLOOKUP('RE Appr'!AJ28,'RE Appr'!$E$13:$J$59,6,FALSE)/100)) -> 401,385 | AE21: =($A21-$A20)/365.25*$D$1*(1+$D$2+(VLOOKUP('RE Appr'!AK28,'RE Appr'!$E$13:$J$59,6,FALSE)/100)) -> 416,235 | AF21: =($A21-$A20)/365.25*$D$1*(1+$D$2+(VLOOKUP('RE Appr'!AL28,'RE Appr'!$E$13:$J$59,6,FALSE)/100)) -> 412,278 | AG21: =($A21-$A20)/365.25*$D$1*(1+$D$2+(VLOOKUP('RE Appr'!AM28,'RE Appr'!$E$13:$J$59,6,FALSE)/100)) -> 431,774 | AH21: =($A21-$A20)/365.25*$D$1*(1+$D$2+(VLOOKUP('RE Appr'!AN28,'RE Appr'!$E$13:$J$59,6,FALSE)/100)) -> 451,019 | AI21: =($A21-$A20)/365.25*$D$1*(1+$D$2+(VLOOKUP('RE Appr'!AO28,'RE Appr'!$E$13:$J$59,6,FALSE)/100)) -> 419,543 | AJ21: =($A21-$A20)/365.25*$D$1*(1+$D$2+(VLOOKUP('RE Appr'!AP28,'RE Appr'!$E$13:$J$59,6,FALSE)/100)) -> 426,042 | AK21: =($A21-$A20)/365.25*$D$1*(1+$D$2+(VLOOKUP('RE Appr'!AQ28,'RE Appr'!$E$13:$J$59,6,FALSE)/100)) -> 383,827 | AL21: =($A21-$A20)/365.25*$D$1*(1+$D$2+(VLOOKUP('RE Appr'!AR28,'RE Appr'!$E$13:$J$59,6,FALSE)/100)) -> 440,668 | AM21: =($A21-$A20)/365.25*$D$1*(1+$D$2+(VLOOKUP('RE Appr'!AS28,'RE Appr'!$E$13:$J$59,6,FALSE)/100)) -> 419,543 | AN21: =($A21-$A20)/365.25*$D$1*(1+$D$2+(VLOOKUP('RE Appr'!AT28,'RE Appr'!$E$13:$J$59,6,FALSE)/100)) -> 399,326 | AO21: =($A21-$A20)/365.25*$D$1*(1+$D$2+(VLOOKUP('RE Appr'!AU28,'RE Appr'!$E$13:$J$59,6,FALSE)/100)) -> 414,846 | AP21: =($A21-$A20)/365.25*$D$1*(1+$D$2+(VLOOKUP('RE Appr'!AV28,'RE Appr'!$E$13:$J$59,6,FALSE)/100)) -> 412,517 | AQ21: =($A21-$A20)/365.25*$D$1*(1+$D$2+(VLOOKUP('RE Appr'!AW28,'RE Appr'!$E$13:$J$59,6,FALSE)/100)) -> 414,846 | AR21: =($A21-$A20)/365.25*$D$1*(1+$D$2+(VLOOKUP('RE Appr'!AX28,'RE Appr'!$E$13:$J$59,6,FALSE)/100)) -> 411,048 | AS21: =($A21-$A20)/365.25*$D$1*(1+$D$2+(VLOOKUP('RE Appr'!AY28,'RE Appr'!$E$13:$J$59,6,FALSE)/100)) -> 435,182 | AT21: =($A21-$A20)/365.25*$D$1*(1+$D$2+(VLOOKUP('RE Appr'!AZ28,'RE Appr'!$E$13:$J$59,6,FALSE)/100)) -> 412,977 | AU21: =($A21-$A20)/365.25*$D$1*(1+$D$2+(VLOOKUP('RE Appr'!BA28,'RE Appr'!$E$13:$J$59,6,FALSE)/100)) -> 455,688 | AV21: =($A21-$A20)/365.25*$D$1*(1+$D$2+(VLOOKUP('RE Appr'!BB28,'RE Appr'!$E$13:$J$59,6,FALSE)/100)) -> 401,385 | AW21: =($A21-$A20)/365.25*$D$1*(1+$D$2+(VLOOKUP('RE Appr'!BC28,'RE Appr'!$E$13:$J$59,6,FALSE)/100)) -> 401,385 | AX21: =($A21-$A20)/365.25*$D$1*(1+$D$2+(VLOOKUP('RE Appr'!BD28,'RE Appr'!$E$13:$J$59,6,FALSE)/100)) -> 412,278 | AY21: =($A21-$A20)/365.25*$D$1*(1+$D$2+(VLOOKUP('RE Appr'!BE28,'RE Appr'!$E$13:$J$59,6,FALSE)/100)) -> 412,278 | AZ21: =($A21-$A20)/365.25*$D$1*(1+$D$2+(VLOOKUP('RE Appr'!BF28,'RE Appr'!$E$13:$J$59,6,FALSE)/100)) -> 417,654 | BA21: =($A21-$A20)/365.25*$D$1*(1+$D$2+(VLOOKUP('RE Appr'!BG28,'RE Appr'!$E$13:$J$59,6,FALSE)/100)) -> 411,048 | BB21: =($A21-$A20)/365.25*$D$1*(1+$D$2+(VLOOKUP('RE Appr'!BH28,'RE Appr'!$E$13:$J$59,6,FALSE)/100)) -> 415,848 | BC21: =($A21-$A20)/365.25*$D$1*(1+$D$2+(VLOOKUP('RE Appr'!BI28,'RE Appr'!$E$13:$J$59,6,FALSE)/100)) -> 419,343 | BD21: =($A21-$A20)/365.25*$D$1*(1+$D$2+(VLOOKUP('RE Appr'!BJ28,'RE Appr'!$E$13:$J$59,6,FALSE)/100)) -> 435,182 | BE21: =($A21-$A20)/365.25*$D$1*(1+$D$2+(VLOOKUP('RE Appr'!BK28,'RE Appr'!$E$13:$J$59,6,FALSE)/100)) -> 455,688 | BF21: =($A21-$A20)/365.25*$D$1*(1+$D$2+(VLOOKUP('RE Appr'!BL28,'RE Appr'!$E$13:$J$59,6,FALSE)/100)) -> 409,270 | BG21: =($A21-$A20)/365.25*$D$1*(1+$D$2+(VLOOKUP('RE Appr'!BM28,'RE Appr'!$E$13:$J$59,6,FALSE)/100)) -> 419,290 | BH21: =($A21-$A20)/365.25*$D$1*(1+$D$2+(VLOOKUP('RE Appr'!BN28,'RE Appr'!$E$13:$J$59,6,FALSE)/100)) -> 440,668 | BI21: =($A21-$A20)/365.25*$D$1*(1+$D$2+(VLOOKUP('RE Appr'!BO28,'RE Appr'!$E$13:$J$59,6,FALSE)/100)) -> 401,385 | BJ21: =($A21-$A20)/365.25*$D$1*(1+$D$2+(VLOOKUP('RE Appr'!BP28,'RE Appr'!$E$13:$J$59,6,FALSE)/100)) -> 419,633 | BK21: =($A21-$A20)/365.25*$D$1*(1+$D$2+(VLOOKUP('RE Appr'!BQ28,'RE Appr'!$E$13:$J$59,6,FALSE)/100)) -> 417,654 | BL21: =($A21-$A20)/365.25*$D$1*(1+$D$2+(VLOOKUP('RE Appr'!BR28,'RE Appr'!$E$13:$J$59,6,FALSE)/100)) -> 419,290 | BM21: =($A21-$A20)/365.25*$D$1*(1+$D$2+(VLOOKUP('RE Appr'!BS28,'RE Appr'!$E$13:$J$59,6,FALSE)/100)) -> 399,326 | BN21: =($A21-$A20)/365.25*$D$1*(1+$D$2+(VLOOKUP('RE Appr'!BT28,'RE Appr'!$E$13:$J$59,6,FALSE)/100)) -> 375,603 | BO21: =($A21-$A20)/365.25*$D$1*(1+$D$2+(VLOOKUP('RE Appr'!BU28,'RE Appr'!$E$13:$J$59,6,FALSE)/100)) -> 441,108 | BP21: =($A21-$A20)/365.25*$D$1*(1+$D$2+(VLOOKUP('RE Appr'!BV28,'RE Appr'!$E$13:$J$59,6,FALSE)/100)) -> 415,286 | BQ21: =($A21-$A20)/365.25*$D$1*(1+$D$2+(VLOOKUP('RE Appr'!BW28,'RE Appr'!$E$13:$J$59,6,FALSE)/100)) -> 417,916 | BR21: =($A21-$A20)/365.25*$D$1*(1+$D$2+(VLOOKUP('RE Appr'!BX28,'RE Appr'!$E$13:$J$59,6,FALSE)/100)) -> 437,041 | BS21: =($A21-$A20)/365.25*$D$1*(1+$D$2+(VLOOKUP('RE Appr'!BY28,'RE Appr'!$E$13:$J$59,6,FALSE)/100)) -> 415,286 | BT21: =($A21-$A20)/365.25*$D$1*(1+$D$2+(VLOOKUP('RE Appr'!BZ28,'RE Appr'!$E$13:$J$59,6,FALSE)/100)) -> 421,666 | BU21: =($A21-$A20)/365.25*$D$1*(1+$D$2+(VLOOKUP('RE Appr'!CA28,'RE Appr'!$E$13:$J$59,6,FALSE)/100)) -> 441,528 | BV21: =($A21-$A20)/365.25*$D$1*(1+$D$2+(VLOOKUP('RE Appr'!CB28,'RE Appr'!$E$13:$J$59,6,FALSE)/100)) -> 431,774 | BW21: =($A21-$A20)/365.25*$D$1*(1+$D$2+(VLOOKUP('RE Appr'!CC28,'RE Appr'!$E$13:$J$59,6,FALSE)/100)) -> 419,290 | BX21: =($A21-$A20)/365.25*$D$1*(1+$D$2+(VLOOKUP('RE Appr'!CD28,'RE Appr'!$E$13:$J$59,6,FALSE)/100)) -> 419,543 | BY21: =($A21-$A20)/365.25*$D$1*(1+$D$2+(VLOOKUP('RE Appr'!CE28,'RE Appr'!$E$13:$J$59,6,FALSE)/100)) -> 419,343 | BZ21: =($A21-$A20)/365.25*$D$1*(1+$D$2+(VLOOKUP('RE Appr'!CF28,'RE Appr'!$E$13:$J$59,6,FALSE)/100)) -> 419,343 | CA21: =($A21-$A20)/365.25*$D$1*(1+$D$2+(VLOOKUP('RE Appr'!CG28,'RE Appr'!$E$13:$J$59,6,FALSE)/100)) -> 417,654 | CB21: =($A21-$A20)/365.25*$D$1*(1+$D$2+(VLOOKUP('RE Appr'!CH28,'RE Appr'!$E$13:$J$59,6,FALSE)/100)) -> 375,603 | CC21: =($A21-$A20)/365.25*$D$1*(1+$D$2+(VLOOKUP('RE Appr'!CI28,'RE Appr'!$E$13:$J$59,6,FALSE)/100)) -> 375,603 | CD21: =($A21-$A20)/365.25*$D$1*(1+$D$2+(VLOOKUP('RE Appr'!CJ28,'RE Appr'!$E$13:$J$59,6,FALSE)/100)) -> 412,278 | CE21: =($A21-$A20)/365.25*$D$1*(1+$D$2+(VLOOKUP('RE Appr'!CK28,'RE Appr'!$E$13:$J$59,6,FALSE)/100)) -> 441,528 | CF21: =($A21-$A20)/365.25*$D$1*(1+$D$2+(VLOOKUP('RE Appr'!CL28,'RE Appr'!$E$13:$J$59,6,FALSE)/100)) -> 417,916 | CG21: =($A21-$A20)/365.25*$D$1*(1+$D$2+(VLOOKUP('RE Appr'!CM28,'RE Appr'!$E$13:$J$59,6,FALSE)/100)) -> 434,213 | CH21: =($A21-$A20)/365.25*$D$1*(1+$D$2+(VLOOKUP('RE Appr'!CN28,'RE Appr'!$E$13:$J$59,6,FALSE)/100)) -> 399,326 | CI21: =($A21-$A20)/365.25*$D$1*(1+$D$2+(VLOOKUP('RE Appr'!CO28,'RE Appr'!$E$13:$J$59,6,FALSE)/100)) -> 437,041 | CJ21: =($A21-$A20)/365.25*$D$1*(1+$D$2+(VLOOKUP('RE Appr'!CP28,'RE Appr'!$E$13:$J$59,6,FALSE)/100)) -> 412,278 | CK21: =($A21-$A20)/365.25*$D$1*(1+$D$2+(VLOOKUP('RE Appr'!CQ28,'RE Appr'!$E$13:$J$59,6,FALSE)/100)) -> 386,675 | CL21: =($A21-$A20)/365.25*$D$1*(1+$D$2+(VLOOKUP('RE Appr'!CR28,'RE Appr'!$E$13:$J$59,6,FALSE)/100)) -> 418,834 | CM21: =($A21-$A20)/365.25*$D$1*(1+$D$2+(VLOOKUP('RE Appr'!CS28,'RE Appr'!$E$13:$J$59,6,FALSE)/100)) -> 412,637 | CN21: =($A21-$A20)/365.25*$D$1*(1+$D$2+(VLOOKUP('RE Appr'!CT28,'RE Appr'!$E$13:$J$59,6,FALSE)/100)) -> 423,730 | CO21: =($A21-$A20)/365.25*$D$1*(1+$D$2+(VLOOKUP('RE Appr'!CU28,'RE Appr'!$E$13:$J$59,6,FALSE)/100)) -> 441,528 | CP21: =($A21-$A20)/365.25*$D$1*(1+$D$2+(VLOOKUP('RE Appr'!CV28,'RE Appr'!$E$13:$J$59,6,FALSE)/100)) -> 441,528 | CQ21: =($A21-$A20)/365.25*$D$1*(1+$D$2+(VLOOKUP('RE Appr'!CW28,'RE Appr'!$E$13:$J$59,6,FALSE)/100)) -> 436,841 | CR21: =($A21-$A20)/365.25*$D$1*(1+$D$2+(VLOOKUP('RE Appr'!CX28,'RE Appr'!$E$13:$J$59,6,FALSE)/100)) -> 410,729 | CS21: =($A21-$A20)/365.25*$D$1*(1+$D$2+(VLOOKUP('RE Appr'!CY28,'RE Appr'!$E$13:$J$59,6,FALSE)/100)) -> 417,916 | CT21: =($A21-$A20)/365.25*$D$1*(1+$D$2+(VLOOKUP('RE Appr'!CZ28,'RE Appr'!$E$13:$J$59,6,FALSE)/100)) -> 409,270 | CU21: =($A21-$A20)/365.25*$D$1*(1+$D$2+(VLOOKUP('RE Appr'!DA28,'RE Appr'!$E$13:$J$59,6,FALSE)/100)) -> 412,517 | CV21: =($A21-$A20)/365.25*$D$1*(1+$D$2+(VLOOKUP('RE Appr'!DB28,'RE Appr'!$E$13:$J$59,6,FALSE)/100)) -> 423,730 | CW21: =($A21-$A20)/365.25*$D$1*(1+$D$2+(VLOOKUP('RE Appr'!DC28,'RE Appr'!$E$13:$J$59,6,FALSE)/100)) -> 420,192 | CX21: =($A21-$A20)/365.25*$D$1*(1+$D$2+(VLOOKUP('RE Appr'!DD28,'RE Appr'!$E$13:$J$59,6,FALSE)/100)) -> 417,654 | CY21: =($A21-$A20)/365.25*$D$1*(1+$D$2+(VLOOKUP('RE Appr'!DE28,'RE Appr'!$E$13:$J$59,6,FALSE)/100)) -> 429,316 | CZ21: =($A21-$A20)/365.25*$D$1*(1+$D$2+(VLOOKUP('RE Appr'!DF28,'RE Appr'!$E$13:$J$59,6,FALSE)/100)) -> 435,182 | DA21: =($A21-$A20)/365.25*$D$1*(1+$D$2+(VLOOKUP('RE Appr'!DG28,'RE Appr'!$E$13:$J$59,6,FALSE)/100)) -> 470,498
A22: =Main!A24 -> 2039-12-31 | B22: 17 | F22: =($A22-$A21)/365.25*$D$1*(1+$D$2+(VLOOKUP('RE Appr'!L29,'RE Appr'!$E$13:$J$59,6,FALSE)/100)) -> 413,407 | G22: =($A22-$A21)/365.25*$D$1*(1+$D$2+(VLOOKUP('RE Appr'!M29,'RE Appr'!$E$13:$J$59,6,FALSE)/100)) -> 402,485 | H22: =($A22-$A21)/365.25*$D$1*(1+$D$2+(VLOOKUP('RE Appr'!N29,'RE Appr'!$E$13:$J$59,6,FALSE)/100)) -> 436,965 | I22: =($A22-$A21)/365.25*$D$1*(1+$D$2+(VLOOKUP('RE Appr'!O29,'RE Appr'!$E$13:$J$59,6,FALSE)/100)) -> 427,209 | J22: =($A22-$A21)/365.25*$D$1*(1+$D$2+(VLOOKUP('RE Appr'!P29,'RE Appr'!$E$13:$J$59,6,FALSE)/100)) -> 415,982 | K22: =($A22-$A21)/365.25*$D$1*(1+$D$2+(VLOOKUP('RE Appr'!Q29,'RE Appr'!$E$13:$J$59,6,FALSE)/100)) -> 416,423 | L22: =($A22-$A21)/365.25*$D$1*(1+$D$2+(VLOOKUP('RE Appr'!R29,'RE Appr'!$E$13:$J$59,6,FALSE)/100)) -> 420,439 | M22: =($A22-$A21)/365.25*$D$1*(1+$D$2+(VLOOKUP('RE Appr'!S29,'RE Appr'!$E$13:$J$59,6,FALSE)/100)) -> 384,879 | N22: =($A22-$A21)/365.25*$D$1*(1+$D$2+(VLOOKUP('RE Appr'!T29,'RE Appr'!$E$13:$J$59,6,FALSE)/100)) -> 416,423 | O22: =($A22-$A21)/365.25*$D$1*(1+$D$2+(VLOOKUP('RE Appr'!U29,'RE Appr'!$E$13:$J$59,6,FALSE)/100)) -> 419,319 | P22: =($A22-$A21)/365.25*$D$1*(1+$D$2+(VLOOKUP('RE Appr'!V29,'RE Appr'!$E$13:$J$59,6,FALSE)/100)) -> 435,402 | Q22: =($A22-$A21)/365.25*$D$1*(1+$D$2+(VLOOKUP('RE Appr'!W29,'RE Appr'!$E$13:$J$59,6,FALSE)/100)) -> 416,423 | R22: =($A22-$A21)/365.25*$D$1*(1+$D$2+(VLOOKUP('RE Appr'!X29,'RE Appr'!$E$13:$J$59,6,FALSE)/100)) -> 420,439 | S22: =($A22-$A21)/365.25*$D$1*(1+$D$2+(VLOOKUP('RE Appr'!Y29,'RE Appr'!$E$13:$J$59,6,FALSE)/100)) -> 417,836 | T22: =($A22-$A21)/365.25*$D$1*(1+$D$2+(VLOOKUP('RE Appr'!Z29,'RE Appr'!$E$13:$J$59,6,FALSE)/100)) -> 418,798 | U22: =($A22-$A21)/365.25*$D$1*(1+$D$2+(VLOOKUP('RE Appr'!AA29,'RE Appr'!$E$13:$J$59,6,FALSE)/100)) -> 471,787 | V22: =($A22-$A21)/365.25*$D$1*(1+$D$2+(VLOOKUP('RE Appr'!AB29,'RE Appr'!$E$13:$J$59,6,FALSE)/100)) -> 471,787 | W22: =($A22-$A21)/365.25*$D$1*(1+$D$2+(VLOOKUP('RE Appr'!AC29,'RE Appr'!$E$13:$J$59,6,FALSE)/100)) -> 441,875 | X22: =($A22-$A21)/365.25*$D$1*(1+$D$2+(VLOOKUP('RE Appr'!AD29,'RE Appr'!$E$13:$J$59,6,FALSE)/100)) -> 436,965 | Y22: =($A22-$A21)/365.25*$D$1*(1+$D$2+(VLOOKUP('RE Appr'!AE29,'RE Appr'!$E$13:$J$59,6,FALSE)/100)) -> 416,423 | Z22: =($A22-$A21)/365.25*$D$1*(1+$D$2+(VLOOKUP('RE Appr'!AF29,'RE Appr'!$E$13:$J$59,6,FALSE)/100)) -> 441,875 | AA22: =($A22-$A21)/365.25*$D$1*(1+$D$2+(VLOOKUP('RE Appr'!AG29,'RE Appr'!$E$13:$J$59,6,FALSE)/100)) -> 419,981 | AB22: =($A22-$A21)/365.25*$D$1*(1+$D$2+(VLOOKUP('RE Appr'!AH29,'RE Appr'!$E$13:$J$59,6,FALSE)/100)) -> 402,485 | AC22: =($A22-$A21)/365.25*$D$1*(1+$D$2+(VLOOKUP('RE Appr'!AI29,'RE Appr'!$E$13:$J$59,6,FALSE)/100)) -> 419,981 | AD22: =($A22-$A21)/365.25*$D$1*(1+$D$2+(VLOOKUP('RE Appr'!AJ29,'RE Appr'!$E$13:$J$59,6,FALSE)/100)) -> 435,402 | AE22: =($A22-$A21)/365.25*$D$1*(1+$D$2+(VLOOKUP('RE Appr'!AK29,'RE Appr'!$E$13:$J$59,6,FALSE)/100)) -> 422,821 | AF22: =($A22-$A21)/365.25*$D$1*(1+$D$2+(VLOOKUP('RE Appr'!AL29,'RE Appr'!$E$13:$J$59,6,FALSE)/100)) -> 436,965 | AG22: =($A22-$A21)/365.25*$D$1*(1+$D$2+(VLOOKUP('RE Appr'!AM29,'RE Appr'!$E$13:$J$59,6,FALSE)/100)) -> 436,965 | AH22: =($A22-$A21)/365.25*$D$1*(1+$D$2+(VLOOKUP('RE Appr'!AN29,'RE Appr'!$E$13:$J$59,6,FALSE)/100)) -> 415,982 | AI22: =($A22-$A21)/365.25*$D$1*(1+$D$2+(VLOOKUP('RE Appr'!AO29,'RE Appr'!$E$13:$J$59,6,FALSE)/100)) -> 436,965 | AJ22: =($A22-$A21)/365.25*$D$1*(1+$D$2+(VLOOKUP('RE Appr'!AP29,'RE Appr'!$E$13:$J$59,6,FALSE)/100)) -> 414,109 | AK22: =($A22-$A21)/365.25*$D$1*(1+$D$2+(VLOOKUP('RE Appr'!AQ29,'RE Appr'!$E$13:$J$59,6,FALSE)/100)) -> 419,061 | AL22: =($A22-$A21)/365.25*$D$1*(1+$D$2+(VLOOKUP('RE Appr'!AR29,'RE Appr'!$E$13:$J$59,6,FALSE)/100)) -> 416,183 | AM22: =($A22-$A21)/365.25*$D$1*(1+$D$2+(VLOOKUP('RE Appr'!AS29,'RE Appr'!$E$13:$J$59,6,FALSE)/100)) -> 376,632 | AN22: =($A22-$A21)/365.25*$D$1*(1+$D$2+(VLOOKUP('RE Appr'!AT29,'RE Appr'!$E$13:$J$59,6,FALSE)/100)) -> 456,936 | AO22: =($A22-$A21)/365.25*$D$1*(1+$D$2+(VLOOKUP('RE Appr'!AU29,'RE Appr'!$E$13:$J$59,6,FALSE)/100)) -> 417,375 | AP22: =($A22-$A21)/365.25*$D$1*(1+$D$2+(VLOOKUP('RE Appr'!AV29,'RE Appr'!$E$13:$J$59,6,FALSE)/100)) -> 438,238 | AQ22: =($A22-$A21)/365.25*$D$1*(1+$D$2+(VLOOKUP('RE Appr'!AW29,'RE Appr'!$E$13:$J$59,6,FALSE)/100)) -> 412,175 | AR22: =($A22-$A21)/365.25*$D$1*(1+$D$2+(VLOOKUP('RE Appr'!AX29,'RE Appr'!$E$13:$J$59,6,FALSE)/100)) -> 413,407 | AS22: =($A22-$A21)/365.25*$D$1*(1+$D$2+(VLOOKUP('RE Appr'!AY29,'RE Appr'!$E$13:$J$59,6,FALSE)/100)) -> 372,343 | AT22: =($A22-$A21)/365.25*$D$1*(1+$D$2+(VLOOKUP('RE Appr'!AZ29,'RE Appr'!$E$13:$J$59,6,FALSE)/100)) -> 413,407 | AU22: =($A22-$A21)/365.25*$D$1*(1+$D$2+(VLOOKUP('RE Appr'!BA29,'RE Appr'!$E$13:$J$59,6,FALSE)/100)) -> 411,854 | AV22: =($A22-$A21)/365.25*$D$1*(1+$D$2+(VLOOKUP('RE Appr'!BB29,'RE Appr'!$E$13:$J$59,6,FALSE)/100)) -> 420,492 | AW22: =($A22-$A21)/365.25*$D$1*(1+$D$2+(VLOOKUP('RE Appr'!BC29,'RE Appr'!$E$13:$J$59,6,FALSE)/100)) -> 438,038 | AX22: =($A22-$A21)/365.25*$D$1*(1+$D$2+(VLOOKUP('RE Appr'!BD29,'RE Appr'!$E$13:$J$59,6,FALSE)/100)) -> 436,965 | AY22: =($A22-$A21)/365.25*$D$1*(1+$D$2+(VLOOKUP('RE Appr'!BE29,'RE Appr'!$E$13:$J$59,6,FALSE)/100)) -> 435,402 | AZ22: =($A22-$A21)/365.25*$D$1*(1+$D$2+(VLOOKUP('RE Appr'!BF29,'RE Appr'!$E$13:$J$59,6,FALSE)/100)) -> 384,879 | BA22: =($A22-$A21)/365.25*$D$1*(1+$D$2+(VLOOKUP('RE Appr'!BG29,'RE Appr'!$E$13:$J$59,6,FALSE)/100)) -> 427,209 | BB22: =($A22-$A21)/365.25*$D$1*(1+$D$2+(VLOOKUP('RE Appr'!BH29,'RE Appr'!$E$13:$J$59,6,FALSE)/100)) -> 384,879 | BC22: =($A22-$A21)/365.25*$D$1*(1+$D$2+(VLOOKUP('RE Appr'!BI29,'RE Appr'!$E$13:$J$59,6,FALSE)/100)) -> 402,485 | BD22: =($A22-$A21)/365.25*$D$1*(1+$D$2+(VLOOKUP('RE Appr'!BJ29,'RE Appr'!$E$13:$J$59,6,FALSE)/100)) -> 436,374 | BE22: =($A22-$A21)/365.25*$D$1*(1+$D$2+(VLOOKUP('RE Appr'!BK29,'RE Appr'!$E$13:$J$59,6,FALSE)/100)) -> 420,782 | BF22: =($A22-$A21)/365.25*$D$1*(1+$D$2+(VLOOKUP('RE Appr'!BL29,'RE Appr'!$E$13:$J$59,6,FALSE)/100)) -> 442,737 | BG22: =($A22-$A21)/365.25*$D$1*(1+$D$2+(VLOOKUP('RE Appr'!BM29,'RE Appr'!$E$13:$J$59,6,FALSE)/100)) -> 438,038 | BH22: =($A22-$A21)/365.25*$D$1*(1+$D$2+(VLOOKUP('RE Appr'!BN29,'RE Appr'!$E$13:$J$59,6,FALSE)/100)) -> 456,936 | BI22: =($A22-$A21)/365.25*$D$1*(1+$D$2+(VLOOKUP('RE Appr'!BO29,'RE Appr'!$E$13:$J$59,6,FALSE)/100)) -> 420,492 | BJ22: =($A22-$A21)/365.25*$D$1*(1+$D$2+(VLOOKUP('RE Appr'!BP29,'RE Appr'!$E$13:$J$59,6,FALSE)/100)) -> 372,343 | BK22: =($A22-$A21)/365.25*$D$1*(1+$D$2+(VLOOKUP('RE Appr'!BQ29,'RE Appr'!$E$13:$J$59,6,FALSE)/100)) -> 432,957 | BL22: =($A22-$A21)/365.25*$D$1*(1+$D$2+(VLOOKUP('RE Appr'!BR29,'RE Appr'!$E$13:$J$59,6,FALSE)/100)) -> 410,391 | BM22: =($A22-$A21)/365.25*$D$1*(1+$D$2+(VLOOKUP('RE Appr'!BS29,'RE Appr'!$E$13:$J$59,6,FALSE)/100)) -> 438,238 | BN22: =($A22-$A21)/365.25*$D$1*(1+$D$2+(VLOOKUP('RE Appr'!BT29,'RE Appr'!$E$13:$J$59,6,FALSE)/100)) -> 452,255 | BO22: =($A22-$A21)/365.25*$D$1*(1+$D$2+(VLOOKUP('RE Appr'!BU29,'RE Appr'!$E$13:$J$59,6,FALSE)/100)) -> 422,821 | BP22: =($A22-$A21)/365.25*$D$1*(1+$D$2+(VLOOKUP('RE Appr'!BV29,'RE Appr'!$E$13:$J$59,6,FALSE)/100)) -> 410,391 | BQ22: =($A22-$A21)/365.25*$D$1*(1+$D$2+(VLOOKUP('RE Appr'!BW29,'RE Appr'!$E$13:$J$59,6,FALSE)/100)) -> 424,911 | BR22: =($A22-$A21)/365.25*$D$1*(1+$D$2+(VLOOKUP('RE Appr'!BX29,'RE Appr'!$E$13:$J$59,6,FALSE)/100)) -> 419,061 | BS22: =($A22-$A21)/365.25*$D$1*(1+$D$2+(VLOOKUP('RE Appr'!BY29,'RE Appr'!$E$13:$J$59,6,FALSE)/100)) -> 384,879 | BT22: =($A22-$A21)/365.25*$D$1*(1+$D$2+(VLOOKUP('RE Appr'!BZ29,'RE Appr'!$E$13:$J$59,6,FALSE)/100)) -> 442,737 | BU22: =($A22-$A21)/365.25*$D$1*(1+$D$2+(VLOOKUP('RE Appr'!CA29,'RE Appr'!$E$13:$J$59,6,FALSE)/100)) -> 408,206 | BV22: =($A22-$A21)/365.25*$D$1*(1+$D$2+(VLOOKUP('RE Appr'!CB29,'RE Appr'!$E$13:$J$59,6,FALSE)/100)) -> 387,735 | BW22: =($A22-$A21)/365.25*$D$1*(1+$D$2+(VLOOKUP('RE Appr'!CC29,'RE Appr'!$E$13:$J$59,6,FALSE)/100)) -> 419,319 | BX22: =($A22-$A21)/365.25*$D$1*(1+$D$2+(VLOOKUP('RE Appr'!CD29,'RE Appr'!$E$13:$J$59,6,FALSE)/100)) -> 410,391 | BY22: =($A22-$A21)/365.25*$D$1*(1+$D$2+(VLOOKUP('RE Appr'!CE29,'RE Appr'!$E$13:$J$59,6,FALSE)/100)) -> 452,255 | BZ22: =($A22-$A21)/365.25*$D$1*(1+$D$2+(VLOOKUP('RE Appr'!CF29,'RE Appr'!$E$13:$J$59,6,FALSE)/100)) -> 424,891 | CA22: =($A22-$A21)/365.25*$D$1*(1+$D$2+(VLOOKUP('RE Appr'!CG29,'RE Appr'!$E$13:$J$59,6,FALSE)/100)) -> 423,668 | CB22: =($A22-$A21)/365.25*$D$1*(1+$D$2+(VLOOKUP('RE Appr'!CH29,'RE Appr'!$E$13:$J$59,6,FALSE)/100)) -> 438,038 | CC22: =($A22-$A21)/365.25*$D$1*(1+$D$2+(VLOOKUP('RE Appr'!CI29,'RE Appr'!$E$13:$J$59,6,FALSE)/100)) -> 420,439 | CD22: =($A22-$A21)/365.25*$D$1*(1+$D$2+(VLOOKUP('RE Appr'!CJ29,'RE Appr'!$E$13:$J$59,6,FALSE)/100)) -> 452,255 | CE22: =($A22-$A21)/365.25*$D$1*(1+$D$2+(VLOOKUP('RE Appr'!CK29,'RE Appr'!$E$13:$J$59,6,FALSE)/100)) -> 412,175 | CF22: =($A22-$A21)/365.25*$D$1*(1+$D$2+(VLOOKUP('RE Appr'!CL29,'RE Appr'!$E$13:$J$59,6,FALSE)/100)) -> 420,439 | CG22: =($A22-$A21)/365.25*$D$1*(1+$D$2+(VLOOKUP('RE Appr'!CM29,'RE Appr'!$E$13:$J$59,6,FALSE)/100)) -> 416,987 | CH22: =($A22-$A21)/365.25*$D$1*(1+$D$2+(VLOOKUP('RE Appr'!CN29,'RE Appr'!$E$13:$J$59,6,FALSE)/100)) -> 442,737 | CI22: =($A22-$A21)/365.25*$D$1*(1+$D$2+(VLOOKUP('RE Appr'!CO29,'RE Appr'!$E$13:$J$59,6,FALSE)/100)) -> 432,957 | CJ22: =($A22-$A21)/365.25*$D$1*(1+$D$2+(VLOOKUP('RE Appr'!CP29,'RE Appr'!$E$13:$J$59,6,FALSE)/100)) -> 419,319 | CK22: =($A22-$A21)/365.25*$D$1*(1+$D$2+(VLOOKUP('RE Appr'!CQ29,'RE Appr'!$E$13:$J$59,6,FALSE)/100)) -> 416,987 | CL22: =($A22-$A21)/365.25*$D$1*(1+$D$2+(VLOOKUP('RE Appr'!CR29,'RE Appr'!$E$13:$J$59,6,FALSE)/100)) -> 421,343 | CM22: =($A22-$A21)/365.25*$D$1*(1+$D$2+(VLOOKUP('RE Appr'!CS29,'RE Appr'!$E$13:$J$59,6,FALSE)/100)) -> 416,183 | CN22: =($A22-$A21)/365.25*$D$1*(1+$D$2+(VLOOKUP('RE Appr'!CT29,'RE Appr'!$E$13:$J$59,6,FALSE)/100)) -> 438,238 | CO22: =($A22-$A21)/365.25*$D$1*(1+$D$2+(VLOOKUP('RE Appr'!CU29,'RE Appr'!$E$13:$J$59,6,FALSE)/100)) -> 430,492 | CP22: =($A22-$A21)/365.25*$D$1*(1+$D$2+(VLOOKUP('RE Appr'!CV29,'RE Appr'!$E$13:$J$59,6,FALSE)/100)) -> 419,319 | CQ22: =($A22-$A21)/365.25*$D$1*(1+$D$2+(VLOOKUP('RE Appr'!CW29,'RE Appr'!$E$13:$J$59,6,FALSE)/100)) -> 417,375 | CR22: =($A22-$A21)/365.25*$D$1*(1+$D$2+(VLOOKUP('RE Appr'!CX29,'RE Appr'!$E$13:$J$59,6,FALSE)/100)) -> 408,206 | CS22: =($A22-$A21)/365.25*$D$1*(1+$D$2+(VLOOKUP('RE Appr'!CY29,'RE Appr'!$E$13:$J$59,6,FALSE)/100)) -> 456,936 | CT22: =($A22-$A21)/365.25*$D$1*(1+$D$2+(VLOOKUP('RE Appr'!CZ29,'RE Appr'!$E$13:$J$59,6,FALSE)/100)) -> 416,183 | CU22: =($A22-$A21)/365.25*$D$1*(1+$D$2+(VLOOKUP('RE Appr'!DA29,'RE Appr'!$E$13:$J$59,6,FALSE)/100)) -> 413,407 | CV22: =($A22-$A21)/365.25*$D$1*(1+$D$2+(VLOOKUP('RE Appr'!DB29,'RE Appr'!$E$13:$J$59,6,FALSE)/100)) -> 424,891 | CW22: =($A22-$A21)/365.25*$D$1*(1+$D$2+(VLOOKUP('RE Appr'!DC29,'RE Appr'!$E$13:$J$59,6,FALSE)/100)) -> 424,911 | CX22: =($A22-$A21)/365.25*$D$1*(1+$D$2+(VLOOKUP('RE Appr'!DD29,'RE Appr'!$E$13:$J$59,6,FALSE)/100)) -> 413,768 | CY22: =($A22-$A21)/365.25*$D$1*(1+$D$2+(VLOOKUP('RE Appr'!DE29,'RE Appr'!$E$13:$J$59,6,FALSE)/100)) -> 471,787 | CZ22: =($A22-$A21)/365.25*$D$1*(1+$D$2+(VLOOKUP('RE Appr'!DF29,'RE Appr'!$E$13:$J$59,6,FALSE)/100)) -> 372,343 | DA22: =($A22-$A21)/365.25*$D$1*(1+$D$2+(VLOOKUP('RE Appr'!DG29,'RE Appr'!$E$13:$J$59,6,FALSE)/100)) -> 427,209
A23: =Main!A25 -> 2040-12-30 | B23: 18 | F23: =($A23-$A22)/365.25*$D$1*(1+$D$2+(VLOOKUP('RE Appr'!L30,'RE Appr'!$E$13:$J$59,6,FALSE)/100)) -> 470,498 | G23: =($A23-$A22)/365.25*$D$1*(1+$D$2+(VLOOKUP('RE Appr'!M30,'RE Appr'!$E$13:$J$59,6,FALSE)/100)) -> 399,326 | H23: =($A23-$A22)/365.25*$D$1*(1+$D$2+(VLOOKUP('RE Appr'!N30,'RE Appr'!$E$13:$J$59,6,FALSE)/100)) -> 435,772 | I23: =($A23-$A22)/365.25*$D$1*(1+$D$2+(VLOOKUP('RE Appr'!O30,'RE Appr'!$E$13:$J$59,6,FALSE)/100)) -> 420,192 | J23: =($A23-$A22)/365.25*$D$1*(1+$D$2+(VLOOKUP('RE Appr'!P30,'RE Appr'!$E$13:$J$59,6,FALSE)/100)) -> 416,695 | K23: =($A23-$A22)/365.25*$D$1*(1+$D$2+(VLOOKUP('RE Appr'!Q30,'RE Appr'!$E$13:$J$59,6,FALSE)/100)) -> 421,666 | L23: =($A23-$A22)/365.25*$D$1*(1+$D$2+(VLOOKUP('RE Appr'!R30,'RE Appr'!$E$13:$J$59,6,FALSE)/100)) -> 415,046 | M23: =($A23-$A22)/365.25*$D$1*(1+$D$2+(VLOOKUP('RE Appr'!S30,'RE Appr'!$E$13:$J$59,6,FALSE)/100)) -> 412,977 | N23: =($A23-$A22)/365.25*$D$1*(1+$D$2+(VLOOKUP('RE Appr'!T30,'RE Appr'!$E$13:$J$59,6,FALSE)/100)) -> 440,668 | O23: =($A23-$A22)/365.25*$D$1*(1+$D$2+(VLOOKUP('RE Appr'!U30,'RE Appr'!$E$13:$J$59,6,FALSE)/100)) -> 412,517 | P23: =($A23-$A22)/365.25*$D$1*(1+$D$2+(VLOOKUP('RE Appr'!V30,'RE Appr'!$E$13:$J$59,6,FALSE)/100)) -> 423,750 | Q23: =($A23-$A22)/365.25*$D$1*(1+$D$2+(VLOOKUP('RE Appr'!W30,'RE Appr'!$E$13:$J$59,6,FALSE)/100)) -> 441,528 | R23: =($A23-$A22)/365.25*$D$1*(1+$D$2+(VLOOKUP('RE Appr'!X30,'RE Appr'!$E$13:$J$59,6,FALSE)/100)) -> 441,528 | S23: =($A23-$A22)/365.25*$D$1*(1+$D$2+(VLOOKUP('RE Appr'!Y30,'RE Appr'!$E$13:$J$59,6,FALSE)/100)) -> 422,511 | T23: =($A23-$A22)/365.25*$D$1*(1+$D$2+(VLOOKUP('RE Appr'!Z30,'RE Appr'!$E$13:$J$59,6,FALSE)/100)) -> 421,666 | U23: =($A23-$A22)/365.25*$D$1*(1+$D$2+(VLOOKUP('RE Appr'!AA30,'RE Appr'!$E$13:$J$59,6,FALSE)/100)) -> 451,019 | V23: =($A23-$A22)/365.25*$D$1*(1+$D$2+(VLOOKUP('RE Appr'!AB30,'RE Appr'!$E$13:$J$59,6,FALSE)/100)) -> 422,511 | W23: =($A23-$A22)/365.25*$D$1*(1+$D$2+(VLOOKUP('RE Appr'!AC30,'RE Appr'!$E$13:$J$59,6,FALSE)/100)) -> 411,048 | X23: =($A23-$A22)/365.25*$D$1*(1+$D$2+(VLOOKUP('RE Appr'!AD30,'RE Appr'!$E$13:$J$59,6,FALSE)/100)) -> 436,841 | Y23: =($A23-$A22)/365.25*$D$1*(1+$D$2+(VLOOKUP('RE Appr'!AE30,'RE Appr'!$E$13:$J$59,6,FALSE)/100)) -> 455,688 | Z23: =($A23-$A22)/365.25*$D$1*(1+$D$2+(VLOOKUP('RE Appr'!AF30,'RE Appr'!$E$13:$J$59,6,FALSE)/100)) -> 418,834 | AA23: =($A23-$A22)/365.25*$D$1*(1+$D$2+(VLOOKUP('RE Appr'!AG30,'RE Appr'!$E$13:$J$59,6,FALSE)/100)) -> 401,385 | AB23: =($A23-$A22)/365.25*$D$1*(1+$D$2+(VLOOKUP('RE Appr'!AH30,'RE Appr'!$E$13:$J$59,6,FALSE)/100)) -> 419,543 | AC23: =($A23-$A22)/365.25*$D$1*(1+$D$2+(VLOOKUP('RE Appr'!AI30,'RE Appr'!$E$13:$J$59,6,FALSE)/100)) -> 423,750 | AD23: =($A23-$A22)/365.25*$D$1*(1+$D$2+(VLOOKUP('RE Appr'!AJ30,'RE Appr'!$E$13:$J$59,6,FALSE)/100)) -> 371,326 | AE23: =($A23-$A22)/365.25*$D$1*(1+$D$2+(VLOOKUP('RE Appr'!AK30,'RE Appr'!$E$13:$J$59,6,FALSE)/100)) -> 410,729 | AF23: =($A23-$A22)/365.25*$D$1*(1+$D$2+(VLOOKUP('RE Appr'!AL30,'RE Appr'!$E$13:$J$59,6,FALSE)/100)) -> 435,772 | AG23: =($A23-$A22)/365.25*$D$1*(1+$D$2+(VLOOKUP('RE Appr'!AM30,'RE Appr'!$E$13:$J$59,6,FALSE)/100)) -> 371,326 | AH23: =($A23-$A22)/365.25*$D$1*(1+$D$2+(VLOOKUP('RE Appr'!AN30,'RE Appr'!$E$13:$J$59,6,FALSE)/100)) -> 440,668 | AI23: =($A23-$A22)/365.25*$D$1*(1+$D$2+(VLOOKUP('RE Appr'!AO30,'RE Appr'!$E$13:$J$59,6,FALSE)/100)) -> 415,286 | AJ23: =($A23-$A22)/365.25*$D$1*(1+$D$2+(VLOOKUP('RE Appr'!AP30,'RE Appr'!$E$13:$J$59,6,FALSE)/100)) -> 418,834 | AK23: =($A23-$A22)/365.25*$D$1*(1+$D$2+(VLOOKUP('RE Appr'!AQ30,'RE Appr'!$E$13:$J$59,6,FALSE)/100)) -> 412,278 | AL23: =($A23-$A22)/365.25*$D$1*(1+$D$2+(VLOOKUP('RE Appr'!AR30,'RE Appr'!$E$13:$J$59,6,FALSE)/100)) -> 418,174 | AM23: =($A23-$A22)/365.25*$D$1*(1+$D$2+(VLOOKUP('RE Appr'!AS30,'RE Appr'!$E$13:$J$59,6,FALSE)/100)) -> 407,091 | AN23: =($A23-$A22)/365.25*$D$1*(1+$D$2+(VLOOKUP('RE Appr'!AT30,'RE Appr'!$E$13:$J$59,6,FALSE)/100)) -> 431,774 | AO23: =($A23-$A22)/365.25*$D$1*(1+$D$2+(VLOOKUP('RE Appr'!AU30,'RE Appr'!$E$13:$J$59,6,FALSE)/100)) -> 470,498 | AP23: =($A23-$A22)/365.25*$D$1*(1+$D$2+(VLOOKUP('RE Appr'!AV30,'RE Appr'!$E$13:$J$59,6,FALSE)/100)) -> 420,192 | AQ23: =($A23-$A22)/365.25*$D$1*(1+$D$2+(VLOOKUP('RE Appr'!AW30,'RE Appr'!$E$13:$J$59,6,FALSE)/100)) -> 417,916 | AR23: =($A23-$A22)/365.25*$D$1*(1+$D$2+(VLOOKUP('RE Appr'!AX30,'RE Appr'!$E$13:$J$59,6,FALSE)/100)) -> 371,326 | AS23: =($A23-$A22)/365.25*$D$1*(1+$D$2+(VLOOKUP('RE Appr'!AY30,'RE Appr'!$E$13:$J$59,6,FALSE)/100)) -> 415,046 | AT23: =($A23-$A22)/365.25*$D$1*(1+$D$2+(VLOOKUP('RE Appr'!AZ30,'RE Appr'!$E$13:$J$59,6,FALSE)/100)) -> 419,633 | AU23: =($A23-$A22)/365.25*$D$1*(1+$D$2+(VLOOKUP('RE Appr'!BA30,'RE Appr'!$E$13:$J$59,6,FALSE)/100)) -> 416,695 | AV23: =($A23-$A22)/365.25*$D$1*(1+$D$2+(VLOOKUP('RE Appr'!BB30,'RE Appr'!$E$13:$J$59,6,FALSE)/100)) -> 440,668 | AW23: =($A23-$A22)/365.25*$D$1*(1+$D$2+(VLOOKUP('RE Appr'!BC30,'RE Appr'!$E$13:$J$59,6,FALSE)/100)) -> 417,916 | AX23: =($A23-$A22)/365.25*$D$1*(1+$D$2+(VLOOKUP('RE Appr'!BD30,'RE Appr'!$E$13:$J$59,6,FALSE)/100)) -> 441,528 | AY23: =($A23-$A22)/365.25*$D$1*(1+$D$2+(VLOOKUP('RE Appr'!BE30,'RE Appr'!$E$13:$J$59,6,FALSE)/100)) -> 434,213 | AZ23: =($A23-$A22)/365.25*$D$1*(1+$D$2+(VLOOKUP('RE Appr'!BF30,'RE Appr'!$E$13:$J$59,6,FALSE)/100)) -> 426,042 | BA23: =($A23-$A22)/365.25*$D$1*(1+$D$2+(VLOOKUP('RE Appr'!BG30,'RE Appr'!$E$13:$J$59,6,FALSE)/100)) -> 412,278 | BB23: =($A23-$A22)/365.25*$D$1*(1+$D$2+(VLOOKUP('RE Appr'!BH30,'RE Appr'!$E$13:$J$59,6,FALSE)/100)) -> 386,675 | BC23: =($A23-$A22)/365.25*$D$1*(1+$D$2+(VLOOKUP('RE Appr'!BI30,'RE Appr'!$E$13:$J$59,6,FALSE)/100)) -> 419,543 | BD23: =($A23-$A22)/365.25*$D$1*(1+$D$2+(VLOOKUP('RE Appr'!BJ30,'RE Appr'!$E$13:$J$59,6,FALSE)/100)) -> 401,385 | BE23: =($A23-$A22)/365.25*$D$1*(1+$D$2+(VLOOKUP('RE Appr'!BK30,'RE Appr'!$E$13:$J$59,6,FALSE)/100)) -> 451,019 | BF23: =($A23-$A22)/365.25*$D$1*(1+$D$2+(VLOOKUP('RE Appr'!BL30,'RE Appr'!$E$13:$J$59,6,FALSE)/100)) -> 415,046 | BG23: =($A23-$A22)/365.25*$D$1*(1+$D$2+(VLOOKUP('RE Appr'!BM30,'RE Appr'!$E$13:$J$59,6,FALSE)/100)) -> 383,827 | BH23: =($A23-$A22)/365.25*$D$1*(1+$D$2+(VLOOKUP('RE Appr'!BN30,'RE Appr'!$E$13:$J$59,6,FALSE)/100)) -> 411,048 | BI23: =($A23-$A22)/365.25*$D$1*(1+$D$2+(VLOOKUP('RE Appr'!BO30,'RE Appr'!$E$13:$J$59,6,FALSE)/100)) -> 437,041 | BJ23: =($A23-$A22)/365.25*$D$1*(1+$D$2+(VLOOKUP('RE Appr'!BP30,'RE Appr'!$E$13:$J$59,6,FALSE)/100)) -> 455,688 | BK23: =($A23-$A22)/365.25*$D$1*(1+$D$2+(VLOOKUP('RE Appr'!BQ30,'RE Appr'!$E$13:$J$59,6,FALSE)/100)) -> 407,091 | BL23: =($A23-$A22)/365.25*$D$1*(1+$D$2+(VLOOKUP('RE Appr'!BR30,'RE Appr'!$E$13:$J$59,6,FALSE)/100)) -> 421,666 | BM23: =($A23-$A22)/365.25*$D$1*(1+$D$2+(VLOOKUP('RE Appr'!BS30,'RE Appr'!$E$13:$J$59,6,FALSE)/100)) -> 455,688 | BN23: =($A23-$A22)/365.25*$D$1*(1+$D$2+(VLOOKUP('RE Appr'!BT30,'RE Appr'!$E$13:$J$59,6,FALSE)/100)) -> 441,108 | BO23: =($A23-$A22)/365.25*$D$1*(1+$D$2+(VLOOKUP('RE Appr'!BU30,'RE Appr'!$E$13:$J$59,6,FALSE)/100)) -> 383,827 | BP23: =($A23-$A22)/365.25*$D$1*(1+$D$2+(VLOOKUP('RE Appr'!BV30,'RE Appr'!$E$13:$J$59,6,FALSE)/100)) -> 414,846 | BQ23: =($A23-$A22)/365.25*$D$1*(1+$D$2+(VLOOKUP('RE Appr'!BW30,'RE Appr'!$E$13:$J$59,6,FALSE)/100)) -> 435,772 | BR23: =($A23-$A22)/365.25*$D$1*(1+$D$2+(VLOOKUP('RE Appr'!BX30,'RE Appr'!$E$13:$J$59,6,FALSE)/100)) -> 441,108 | BS23: =($A23-$A22)/365.25*$D$1*(1+$D$2+(VLOOKUP('RE Appr'!BY30,'RE Appr'!$E$13:$J$59,6,FALSE)/100)) -> 419,343 | BT23: =($A23-$A22)/365.25*$D$1*(1+$D$2+(VLOOKUP('RE Appr'!BZ30,'RE Appr'!$E$13:$J$59,6,FALSE)/100)) -> 417,916 | BU23: =($A23-$A22)/365.25*$D$1*(1+$D$2+(VLOOKUP('RE Appr'!CA30,'RE Appr'!$E$13:$J$59,6,FALSE)/100)) -> 418,834 | BV23: =($A23-$A22)/365.25*$D$1*(1+$D$2+(VLOOKUP('RE Appr'!CB30,'RE Appr'!$E$13:$J$59,6,FALSE)/100)) -> 418,174 | BW23: =($A23-$A22)/365.25*$D$1*(1+$D$2+(VLOOKUP('RE Appr'!CC30,'RE Appr'!$E$13:$J$59,6,FALSE)/100)) -> 421,666 | BX23: =($A23-$A22)/365.25*$D$1*(1+$D$2+(VLOOKUP('RE Appr'!CD30,'RE Appr'!$E$13:$J$59,6,FALSE)/100)) -> 417,916 | BY23: =($A23-$A22)/365.25*$D$1*(1+$D$2+(VLOOKUP('RE Appr'!CE30,'RE Appr'!$E$13:$J$59,6,FALSE)/100)) -> 412,278 | BZ23: =($A23-$A22)/365.25*$D$1*(1+$D$2+(VLOOKUP('RE Appr'!CF30,'RE Appr'!$E$13:$J$59,6,FALSE)/100)) -> 437,041 | CA23: =($A23-$A22)/365.25*$D$1*(1+$D$2+(VLOOKUP('RE Appr'!CG30,'RE Appr'!$E$13:$J$59,6,FALSE)/100)) -> 375,603 | CB23: =($A23-$A22)/365.25*$D$1*(1+$D$2+(VLOOKUP('RE Appr'!CH30,'RE Appr'!$E$13:$J$59,6,FALSE)/100)) -> 422,511 | CC23: =($A23-$A22)/365.25*$D$1*(1+$D$2+(VLOOKUP('RE Appr'!CI30,'RE Appr'!$E$13:$J$59,6,FALSE)/100)) -> 410,729 | CD23: =($A23-$A22)/365.25*$D$1*(1+$D$2+(VLOOKUP('RE Appr'!CJ30,'RE Appr'!$E$13:$J$59,6,FALSE)/100)) -> 419,633 | CE23: =($A23-$A22)/365.25*$D$1*(1+$D$2+(VLOOKUP('RE Appr'!CK30,'RE Appr'!$E$13:$J$59,6,FALSE)/100)) -> 419,343 | CF23: =($A23-$A22)/365.25*$D$1*(1+$D$2+(VLOOKUP('RE Appr'!CL30,'RE Appr'!$E$13:$J$59,6,FALSE)/100)) -> 419,543 | CG23: =($A23-$A22)/365.25*$D$1*(1+$D$2+(VLOOKUP('RE Appr'!CM30,'RE Appr'!$E$13:$J$59,6,FALSE)/100)) -> 420,192 | CH23: =($A23-$A22)/365.25*$D$1*(1+$D$2+(VLOOKUP('RE Appr'!CN30,'RE Appr'!$E$13:$J$59,6,FALSE)/100)) -> 423,750 | CI23: =($A23-$A22)/365.25*$D$1*(1+$D$2+(VLOOKUP('RE Appr'!CO30,'RE Appr'!$E$13:$J$59,6,FALSE)/100)) -> 470,498 | CJ23: =($A23-$A22)/365.25*$D$1*(1+$D$2+(VLOOKUP('RE Appr'!CP30,'RE Appr'!$E$13:$J$59,6,FALSE)/100)) -> 435,772 | CK23: =($A23-$A22)/365.25*$D$1*(1+$D$2+(VLOOKUP('RE Appr'!CQ30,'RE Appr'!$E$13:$J$59,6,FALSE)/100)) -> 421,666 | CL23: =($A23-$A22)/365.25*$D$1*(1+$D$2+(VLOOKUP('RE Appr'!CR30,'RE Appr'!$E$13:$J$59,6,FALSE)/100)) -> 407,091 | CM23: =($A23-$A22)/365.25*$D$1*(1+$D$2+(VLOOKUP('RE Appr'!CS30,'RE Appr'!$E$13:$J$59,6,FALSE)/100)) -> 421,666 | CN23: =($A23-$A22)/365.25*$D$1*(1+$D$2+(VLOOKUP('RE Appr'!CT30,'RE Appr'!$E$13:$J$59,6,FALSE)/100)) -> 416,695 | CO23: =($A23-$A22)/365.25*$D$1*(1+$D$2+(VLOOKUP('RE Appr'!CU30,'RE Appr'!$E$13:$J$59,6,FALSE)/100)) -> 417,916 | CP23: =($A23-$A22)/365.25*$D$1*(1+$D$2+(VLOOKUP('RE Appr'!CV30,'RE Appr'!$E$13:$J$59,6,FALSE)/100)) -> 440,668 | CQ23: =($A23-$A22)/365.25*$D$1*(1+$D$2+(VLOOKUP('RE Appr'!CW30,'RE Appr'!$E$13:$J$59,6,FALSE)/100)) -> 420,192 | CR23: =($A23-$A22)/365.25*$D$1*(1+$D$2+(VLOOKUP('RE Appr'!CX30,'RE Appr'!$E$13:$J$59,6,FALSE)/100)) -> 423,750 | CS23: =($A23-$A22)/365.25*$D$1*(1+$D$2+(VLOOKUP('RE Appr'!CY30,'RE Appr'!$E$13:$J$59,6,FALSE)/100)) -> 470,498 | CT23: =($A23-$A22)/365.25*$D$1*(1+$D$2+(VLOOKUP('RE Appr'!CZ30,'RE Appr'!$E$13:$J$59,6,FALSE)/100)) -> 407,091 | CU23: =($A23-$A22)/365.25*$D$1*(1+$D$2+(VLOOKUP('RE Appr'!DA30,'RE Appr'!$E$13:$J$59,6,FALSE)/100)) -> 417,654 | CV23: =($A23-$A22)/365.25*$D$1*(1+$D$2+(VLOOKUP('RE Appr'!DB30,'RE Appr'!$E$13:$J$59,6,FALSE)/100)) -> 435,182 | CW23: =($A23-$A22)/365.25*$D$1*(1+$D$2+(VLOOKUP('RE Appr'!DC30,'RE Appr'!$E$13:$J$59,6,FALSE)/100)) -> 437,041 | CX23: =($A23-$A22)/365.25*$D$1*(1+$D$2+(VLOOKUP('RE Appr'!DD30,'RE Appr'!$E$13:$J$59,6,FALSE)/100)) -> 383,827 | CY23: =($A23-$A22)/365.25*$D$1*(1+$D$2+(VLOOKUP('RE Appr'!DE30,'RE Appr'!$E$13:$J$59,6,FALSE)/100)) -> 422,511 | CZ23: =($A23-$A22)/365.25*$D$1*(1+$D$2+(VLOOKUP('RE Appr'!DF30,'RE Appr'!$E$13:$J$59,6,FALSE)/100)) -> 429,316 | DA23: =($A23-$A22)/365.25*$D$1*(1+$D$2+(VLOOKUP('RE Appr'!DG30,'RE Appr'!$E$13:$J$59,6,FALSE)/100)) -> 420,192
A24: =Main!A26 -> 2041-12-30 | B24: 19 | F24: =($A24-$A23)/365.25*$D$1*(1+$D$2+(VLOOKUP('RE Appr'!L31,'RE Appr'!$E$13:$J$59,6,FALSE)/100)) -> 407,091 | G24: =($A24-$A23)/365.25*$D$1*(1+$D$2+(VLOOKUP('RE Appr'!M31,'RE Appr'!$E$13:$J$59,6,FALSE)/100)) -> 419,633 | H24: =($A24-$A23)/365.25*$D$1*(1+$D$2+(VLOOKUP('RE Appr'!N31,'RE Appr'!$E$13:$J$59,6,FALSE)/100)) -> 416,695 | I24: =($A24-$A23)/365.25*$D$1*(1+$D$2+(VLOOKUP('RE Appr'!O31,'RE Appr'!$E$13:$J$59,6,FALSE)/100)) -> 470,498 | J24: =($A24-$A23)/365.25*$D$1*(1+$D$2+(VLOOKUP('RE Appr'!P31,'RE Appr'!$E$13:$J$59,6,FALSE)/100)) -> 419,633 | K24: =($A24-$A23)/365.25*$D$1*(1+$D$2+(VLOOKUP('RE Appr'!Q31,'RE Appr'!$E$13:$J$59,6,FALSE)/100)) -> 419,633 | L24: =($A24-$A23)/365.25*$D$1*(1+$D$2+(VLOOKUP('RE Appr'!R31,'RE Appr'!$E$13:$J$59,6,FALSE)/100)) -> 416,695 | M24: =($A24-$A23)/365.25*$D$1*(1+$D$2+(VLOOKUP('RE Appr'!S31,'RE Appr'!$E$13:$J$59,6,FALSE)/100)) -> 375,603 | N24: =($A24-$A23)/365.25*$D$1*(1+$D$2+(VLOOKUP('RE Appr'!T31,'RE Appr'!$E$13:$J$59,6,FALSE)/100)) -> 451,019 | O24: =($A24-$A23)/365.25*$D$1*(1+$D$2+(VLOOKUP('RE Appr'!U31,'RE Appr'!$E$13:$J$59,6,FALSE)/100)) -> 375,603 | P24: =($A24-$A23)/365.25*$D$1*(1+$D$2+(VLOOKUP('RE Appr'!V31,'RE Appr'!$E$13:$J$59,6,FALSE)/100)) -> 415,286 | Q24: =($A24-$A23)/365.25*$D$1*(1+$D$2+(VLOOKUP('RE Appr'!W31,'RE Appr'!$E$13:$J$59,6,FALSE)/100)) -> 417,654 | R24: =($A24-$A23)/365.25*$D$1*(1+$D$2+(VLOOKUP('RE Appr'!X31,'RE Appr'!$E$13:$J$59,6,FALSE)/100)) -> 415,286 | S24: =($A24-$A23)/365.25*$D$1*(1+$D$2+(VLOOKUP('RE Appr'!Y31,'RE Appr'!$E$13:$J$59,6,FALSE)/100)) -> 420,192 | T24: =($A24-$A23)/365.25*$D$1*(1+$D$2+(VLOOKUP('RE Appr'!Z31,'RE Appr'!$E$13:$J$59,6,FALSE)/100)) -> 419,633 | U24: =($A24-$A23)/365.25*$D$1*(1+$D$2+(VLOOKUP('RE Appr'!AA31,'RE Appr'!$E$13:$J$59,6,FALSE)/100)) -> 441,108 | V24: =($A24-$A23)/365.25*$D$1*(1+$D$2+(VLOOKUP('RE Appr'!AB31,'RE Appr'!$E$13:$J$59,6,FALSE)/100)) -> 416,235 | W24: =($A24-$A23)/365.25*$D$1*(1+$D$2+(VLOOKUP('RE Appr'!AC31,'RE Appr'!$E$13:$J$59,6,FALSE)/100)) -> 429,316 | X24: =($A24-$A23)/365.25*$D$1*(1+$D$2+(VLOOKUP('RE Appr'!AD31,'RE Appr'!$E$13:$J$59,6,FALSE)/100)) -> 435,182 | Y24: =($A24-$A23)/365.25*$D$1*(1+$D$2+(VLOOKUP('RE Appr'!AE31,'RE Appr'!$E$13:$J$59,6,FALSE)/100)) -> 422,511 | Z24: =($A24-$A23)/365.25*$D$1*(1+$D$2+(VLOOKUP('RE Appr'!AF31,'RE Appr'!$E$13:$J$59,6,FALSE)/100)) -> 371,326 | AA24: =($A24-$A23)/365.25*$D$1*(1+$D$2+(VLOOKUP('RE Appr'!AG31,'RE Appr'!$E$13:$J$59,6,FALSE)/100)) -> 412,977 | AB24: =($A24-$A23)/365.25*$D$1*(1+$D$2+(VLOOKUP('RE Appr'!AH31,'RE Appr'!$E$13:$J$59,6,FALSE)/100)) -> 419,633 | AC24: =($A24-$A23)/365.25*$D$1*(1+$D$2+(VLOOKUP('RE Appr'!AI31,'RE Appr'!$E$13:$J$59,6,FALSE)/100)) -> 415,286 | AD24: =($A24-$A23)/365.25*$D$1*(1+$D$2+(VLOOKUP('RE Appr'!AJ31,'RE Appr'!$E$13:$J$59,6,FALSE)/100)) -> 412,278 | AE24: =($A24-$A23)/365.25*$D$1*(1+$D$2+(VLOOKUP('RE Appr'!AK31,'RE Appr'!$E$13:$J$59,6,FALSE)/100)) -> 399,326 | AF24: =($A24-$A23)/365.25*$D$1*(1+$D$2+(VLOOKUP('RE Appr'!AL31,'RE Appr'!$E$13:$J$59,6,FALSE)/100)) -> 419,290 | AG24: =($A24-$A23)/365.25*$D$1*(1+$D$2+(VLOOKUP('RE Appr'!AM31,'RE Appr'!$E$13:$J$59,6,FALSE)/100)) -> 429,316 | AH24: =($A24-$A23)/365.25*$D$1*(1+$D$2+(VLOOKUP('RE Appr'!AN31,'RE Appr'!$E$13:$J$59,6,FALSE)/100)) -> 410,729 | AI24: =($A24-$A23)/365.25*$D$1*(1+$D$2+(VLOOKUP('RE Appr'!AO31,'RE Appr'!$E$13:$J$59,6,FALSE)/100)) -> 419,543 | AJ24: =($A24-$A23)/365.25*$D$1*(1+$D$2+(VLOOKUP('RE Appr'!AP31,'RE Appr'!$E$13:$J$59,6,FALSE)/100)) -> 411,048 | AK24: =($A24-$A23)/365.25*$D$1*(1+$D$2+(VLOOKUP('RE Appr'!AQ31,'RE Appr'!$E$13:$J$59,6,FALSE)/100)) -> 421,666 | AL24: =($A24-$A23)/365.25*$D$1*(1+$D$2+(VLOOKUP('RE Appr'!AR31,'RE Appr'!$E$13:$J$59,6,FALSE)/100)) -> 412,278 | AM24: =($A24-$A23)/365.25*$D$1*(1+$D$2+(VLOOKUP('RE Appr'!AS31,'RE Appr'!$E$13:$J$59,6,FALSE)/100)) -> 429,316 | AN24: =($A24-$A23)/365.25*$D$1*(1+$D$2+(VLOOKUP('RE Appr'!AT31,'RE Appr'!$E$13:$J$59,6,FALSE)/100)) -> 435,772 | AO24: =($A24-$A23)/365.25*$D$1*(1+$D$2+(VLOOKUP('RE Appr'!AU31,'RE Appr'!$E$13:$J$59,6,FALSE)/100)) -> 401,385 | AP24: =($A24-$A23)/365.25*$D$1*(1+$D$2+(VLOOKUP('RE Appr'!AV31,'RE Appr'!$E$13:$J$59,6,FALSE)/100)) -> 419,290 | AQ24: =($A24-$A23)/365.25*$D$1*(1+$D$2+(VLOOKUP('RE Appr'!AW31,'RE Appr'!$E$13:$J$59,6,FALSE)/100)) -> 415,046 | AR24: =($A24-$A23)/365.25*$D$1*(1+$D$2+(VLOOKUP('RE Appr'!AX31,'RE Appr'!$E$13:$J$59,6,FALSE)/100)) -> 435,772 | AS24: =($A24-$A23)/365.25*$D$1*(1+$D$2+(VLOOKUP('RE Appr'!AY31,'RE Appr'!$E$13:$J$59,6,FALSE)/100)) -> 423,750 | AT24: =($A24-$A23)/365.25*$D$1*(1+$D$2+(VLOOKUP('RE Appr'!AZ31,'RE Appr'!$E$13:$J$59,6,FALSE)/100)) -> 422,511 | AU24: =($A24-$A23)/365.25*$D$1*(1+$D$2+(VLOOKUP('RE Appr'!BA31,'RE Appr'!$E$13:$J$59,6,FALSE)/100)) -> 401,385 | AV24: =($A24-$A23)/365.25*$D$1*(1+$D$2+(VLOOKUP('RE Appr'!BB31,'RE Appr'!$E$13:$J$59,6,FALSE)/100)) -> 414,846 | AW24: =($A24-$A23)/365.25*$D$1*(1+$D$2+(VLOOKUP('RE Appr'!BC31,'RE Appr'!$E$13:$J$59,6,FALSE)/100)) -> 470,498 | AX24: =($A24-$A23)/365.25*$D$1*(1+$D$2+(VLOOKUP('RE Appr'!BD31,'RE Appr'!$E$13:$J$59,6,FALSE)/100)) -> 421,666 | AY24: =($A24-$A23)/365.25*$D$1*(1+$D$2+(VLOOKUP('RE Appr'!BE31,'RE Appr'!$E$13:$J$59,6,FALSE)/100)) -> 401,385 | AZ24: =($A24-$A23)/365.25*$D$1*(1+$D$2+(VLOOKUP('RE Appr'!BF31,'RE Appr'!$E$13:$J$59,6,FALSE)/100)) -> 423,730 | BA24: =($A24-$A23)/365.25*$D$1*(1+$D$2+(VLOOKUP('RE Appr'!BG31,'RE Appr'!$E$13:$J$59,6,FALSE)/100)) -> 423,750 | BB24: =($A24-$A23)/365.25*$D$1*(1+$D$2+(VLOOKUP('RE Appr'!BH31,'RE Appr'!$E$13:$J$59,6,FALSE)/100)) -> 386,675 | BC24: =($A24-$A23)/365.25*$D$1*(1+$D$2+(VLOOKUP('RE Appr'!BI31,'RE Appr'!$E$13:$J$59,6,FALSE)/100)) -> 415,848 | BD24: =($A24-$A23)/365.25*$D$1*(1+$D$2+(VLOOKUP('RE Appr'!BJ31,'RE Appr'!$E$13:$J$59,6,FALSE)/100)) -> 419,290 | BE24: =($A24-$A23)/365.25*$D$1*(1+$D$2+(VLOOKUP('RE Appr'!BK31,'RE Appr'!$E$13:$J$59,6,FALSE)/100)) -> 401,385 | BF24: =($A24-$A23)/365.25*$D$1*(1+$D$2+(VLOOKUP('RE Appr'!BL31,'RE Appr'!$E$13:$J$59,6,FALSE)/100)) -> 437,041 | BG24: =($A24-$A23)/365.25*$D$1*(1+$D$2+(VLOOKUP('RE Appr'!BM31,'RE Appr'!$E$13:$J$59,6,FALSE)/100)) -> 386,675 | BH24: =($A24-$A23)/365.25*$D$1*(1+$D$2+(VLOOKUP('RE Appr'!BN31,'RE Appr'!$E$13:$J$59,6,FALSE)/100)) -> 436,841 | BI24: =($A24-$A23)/365.25*$D$1*(1+$D$2+(VLOOKUP('RE Appr'!BO31,'RE Appr'!$E$13:$J$59,6,FALSE)/100)) -> 441,108 | BJ24: =($A24-$A23)/365.25*$D$1*(1+$D$2+(VLOOKUP('RE Appr'!BP31,'RE Appr'!$E$13:$J$59,6,FALSE)/100)) -> 407,091 | BK24: =($A24-$A23)/365.25*$D$1*(1+$D$2+(VLOOKUP('RE Appr'!BQ31,'RE Appr'!$E$13:$J$59,6,FALSE)/100)) -> 455,688 | BL24: =($A24-$A23)/365.25*$D$1*(1+$D$2+(VLOOKUP('RE Appr'!BR31,'RE Appr'!$E$13:$J$59,6,FALSE)/100)) -> 436,841 | BM24: =($A24-$A23)/365.25*$D$1*(1+$D$2+(VLOOKUP('RE Appr'!BS31,'RE Appr'!$E$13:$J$59,6,FALSE)/100)) -> 414,846 | BN24: =($A24-$A23)/365.25*$D$1*(1+$D$2+(VLOOKUP('RE Appr'!BT31,'RE Appr'!$E$13:$J$59,6,FALSE)/100)) -> 412,517 | BO24: =($A24-$A23)/365.25*$D$1*(1+$D$2+(VLOOKUP('RE Appr'!BU31,'RE Appr'!$E$13:$J$59,6,FALSE)/100)) -> 423,730 | BP24: =($A24-$A23)/365.25*$D$1*(1+$D$2+(VLOOKUP('RE Appr'!BV31,'RE Appr'!$E$13:$J$59,6,FALSE)/100)) -> 436,841 | BQ24: =($A24-$A23)/365.25*$D$1*(1+$D$2+(VLOOKUP('RE Appr'!BW31,'RE Appr'!$E$13:$J$59,6,FALSE)/100)) -> 440,668 | BR24: =($A24-$A23)/365.25*$D$1*(1+$D$2+(VLOOKUP('RE Appr'!BX31,'RE Appr'!$E$13:$J$59,6,FALSE)/100)) -> 422,511 | BS24: =($A24-$A23)/365.25*$D$1*(1+$D$2+(VLOOKUP('RE Appr'!BY31,'RE Appr'!$E$13:$J$59,6,FALSE)/100)) -> 407,091 | BT24: =($A24-$A23)/365.25*$D$1*(1+$D$2+(VLOOKUP('RE Appr'!BZ31,'RE Appr'!$E$13:$J$59,6,FALSE)/100)) -> 437,041 | BU24: =($A24-$A23)/365.25*$D$1*(1+$D$2+(VLOOKUP('RE Appr'!CA31,'RE Appr'!$E$13:$J$59,6,FALSE)/100)) -> 410,729 | BV24: =($A24-$A23)/365.25*$D$1*(1+$D$2+(VLOOKUP('RE Appr'!CB31,'RE Appr'!$E$13:$J$59,6,FALSE)/100)) -> 415,046 | BW24: =($A24-$A23)/365.25*$D$1*(1+$D$2+(VLOOKUP('RE Appr'!CC31,'RE Appr'!$E$13:$J$59,6,FALSE)/100)) -> 436,841 | BX24: =($A24-$A23)/365.25*$D$1*(1+$D$2+(VLOOKUP('RE Appr'!CD31,'RE Appr'!$E$13:$J$59,6,FALSE)/100)) -> 412,517 | BY24: =($A24-$A23)/365.25*$D$1*(1+$D$2+(VLOOKUP('RE Appr'!CE31,'RE Appr'!$E$13:$J$59,6,FALSE)/100)) -> 416,695 | BZ24: =($A24-$A23)/365.25*$D$1*(1+$D$2+(VLOOKUP('RE Appr'!CF31,'RE Appr'!$E$13:$J$59,6,FALSE)/100)) -> 416,235 | CA24: =($A24-$A23)/365.25*$D$1*(1+$D$2+(VLOOKUP('RE Appr'!CG31,'RE Appr'!$E$13:$J$59,6,FALSE)/100)) -> 419,633 | CB24: =($A24-$A23)/365.25*$D$1*(1+$D$2+(VLOOKUP('RE Appr'!CH31,'RE Appr'!$E$13:$J$59,6,FALSE)/100)) -> 412,637 | CC24: =($A24-$A23)/365.25*$D$1*(1+$D$2+(VLOOKUP('RE Appr'!CI31,'RE Appr'!$E$13:$J$59,6,FALSE)/100)) -> 412,517 | CD24: =($A24-$A23)/365.25*$D$1*(1+$D$2+(VLOOKUP('RE Appr'!CJ31,'RE Appr'!$E$13:$J$59,6,FALSE)/100)) -> 386,675 | CE24: =($A24-$A23)/365.25*$D$1*(1+$D$2+(VLOOKUP('RE Appr'!CK31,'RE Appr'!$E$13:$J$59,6,FALSE)/100)) -> 419,290 | CF24: =($A24-$A23)/365.25*$D$1*(1+$D$2+(VLOOKUP('RE Appr'!CL31,'RE Appr'!$E$13:$J$59,6,FALSE)/100)) -> 371,326 | CG24: =($A24-$A23)/365.25*$D$1*(1+$D$2+(VLOOKUP('RE Appr'!CM31,'RE Appr'!$E$13:$J$59,6,FALSE)/100)) -> 441,108 | CH24: =($A24-$A23)/365.25*$D$1*(1+$D$2+(VLOOKUP('RE Appr'!CN31,'RE Appr'!$E$13:$J$59,6,FALSE)/100)) -> 434,213 | CI24: =($A24-$A23)/365.25*$D$1*(1+$D$2+(VLOOKUP('RE Appr'!CO31,'RE Appr'!$E$13:$J$59,6,FALSE)/100)) -> 412,517 | CJ24: =($A24-$A23)/365.25*$D$1*(1+$D$2+(VLOOKUP('RE Appr'!CP31,'RE Appr'!$E$13:$J$59,6,FALSE)/100)) -> 426,042 | CK24: =($A24-$A23)/365.25*$D$1*(1+$D$2+(VLOOKUP('RE Appr'!CQ31,'RE Appr'!$E$13:$J$59,6,FALSE)/100)) -> 441,108 | CL24: =($A24-$A23)/365.25*$D$1*(1+$D$2+(VLOOKUP('RE Appr'!CR31,'RE Appr'!$E$13:$J$59,6,FALSE)/100)) -> 421,666 | CM24: =($A24-$A23)/365.25*$D$1*(1+$D$2+(VLOOKUP('RE Appr'!CS31,'RE Appr'!$E$13:$J$59,6,FALSE)/100)) -> 418,834 | CN24: =($A24-$A23)/365.25*$D$1*(1+$D$2+(VLOOKUP('RE Appr'!CT31,'RE Appr'!$E$13:$J$59,6,FALSE)/100)) -> 416,695 | CO24: =($A24-$A23)/365.25*$D$1*(1+$D$2+(VLOOKUP('RE Appr'!CU31,'RE Appr'!$E$13:$J$59,6,FALSE)/100)) -> 429,316 | CP24: =($A24-$A23)/365.25*$D$1*(1+$D$2+(VLOOKUP('RE Appr'!CV31,'RE Appr'!$E$13:$J$59,6,FALSE)/100)) -> 418,834 | CQ24: =($A24-$A23)/365.25*$D$1*(1+$D$2+(VLOOKUP('RE Appr'!CW31,'RE Appr'!$E$13:$J$59,6,FALSE)/100)) -> 419,543 | CR24: =($A24-$A23)/365.25*$D$1*(1+$D$2+(VLOOKUP('RE Appr'!CX31,'RE Appr'!$E$13:$J$59,6,FALSE)/100)) -> 422,511 | CS24: =($A24-$A23)/365.25*$D$1*(1+$D$2+(VLOOKUP('RE Appr'!CY31,'RE Appr'!$E$13:$J$59,6,FALSE)/100)) -> 422,511 | CT24: =($A24-$A23)/365.25*$D$1*(1+$D$2+(VLOOKUP('RE Appr'!CZ31,'RE Appr'!$E$13:$J$59,6,FALSE)/100)) -> 419,343 | CU24: =($A24-$A23)/365.25*$D$1*(1+$D$2+(VLOOKUP('RE Appr'!DA31,'RE Appr'!$E$13:$J$59,6,FALSE)/100)) -> 441,528 | CV24: =($A24-$A23)/365.25*$D$1*(1+$D$2+(VLOOKUP('RE Appr'!DB31,'RE Appr'!$E$13:$J$59,6,FALSE)/100)) -> 419,543 | CW24: =($A24-$A23)/365.25*$D$1*(1+$D$2+(VLOOKUP('RE Appr'!DC31,'RE Appr'!$E$13:$J$59,6,FALSE)/100)) -> 437,041 | CX24: =($A24-$A23)/365.25*$D$1*(1+$D$2+(VLOOKUP('RE Appr'!DD31,'RE Appr'!$E$13:$J$59,6,FALSE)/100)) -> 437,041 | CY24: =($A24-$A23)/365.25*$D$1*(1+$D$2+(VLOOKUP('RE Appr'!DE31,'RE Appr'!$E$13:$J$59,6,FALSE)/100)) -> 412,977 | CZ24: =($A24-$A23)/365.25*$D$1*(1+$D$2+(VLOOKUP('RE Appr'!DF31,'RE Appr'!$E$13:$J$59,6,FALSE)/100)) -> 436,841 | DA24: =($A24-$A23)/365.25*$D$1*(1+$D$2+(VLOOKUP('RE Appr'!DG31,'RE Appr'!$E$13:$J$59,6,FALSE)/100)) -> 414,846
A25: =Main!A27 -> 2042-12-30 | B25: 20 | F25: =($A25-$A24)/365.25*$D$1*(1+$D$2+(VLOOKUP('RE Appr'!L32,'RE Appr'!$E$13:$J$59,6,FALSE)/100)) -> 436,841 | G25: =($A25-$A24)/365.25*$D$1*(1+$D$2+(VLOOKUP('RE Appr'!M32,'RE Appr'!$E$13:$J$59,6,FALSE)/100)) -> 409,270 | H25: =($A25-$A24)/365.25*$D$1*(1+$D$2+(VLOOKUP('RE Appr'!N32,'RE Appr'!$E$13:$J$59,6,FALSE)/100)) -> 411,048 | I25: =($A25-$A24)/365.25*$D$1*(1+$D$2+(VLOOKUP('RE Appr'!O32,'RE Appr'!$E$13:$J$59,6,FALSE)/100)) -> 415,848 | J25: =($A25-$A24)/365.25*$D$1*(1+$D$2+(VLOOKUP('RE Appr'!P32,'RE Appr'!$E$13:$J$59,6,FALSE)/100)) -> 423,750 | K25: =($A25-$A24)/365.25*$D$1*(1+$D$2+(VLOOKUP('RE Appr'!Q32,'RE Appr'!$E$13:$J$59,6,FALSE)/100)) -> 420,192 | L25: =($A25-$A24)/365.25*$D$1*(1+$D$2+(VLOOKUP('RE Appr'!R32,'RE Appr'!$E$13:$J$59,6,FALSE)/100)) -> 435,772 | M25: =($A25-$A24)/365.25*$D$1*(1+$D$2+(VLOOKUP('RE Appr'!S32,'RE Appr'!$E$13:$J$59,6,FALSE)/100)) -> 383,827 | N25: =($A25-$A24)/365.25*$D$1*(1+$D$2+(VLOOKUP('RE Appr'!T32,'RE Appr'!$E$13:$J$59,6,FALSE)/100)) -> 417,916 | O25: =($A25-$A24)/365.25*$D$1*(1+$D$2+(VLOOKUP('RE Appr'!U32,'RE Appr'!$E$13:$J$59,6,FALSE)/100)) -> 419,290 | P25: =($A25-$A24)/365.25*$D$1*(1+$D$2+(VLOOKUP('RE Appr'!V32,'RE Appr'!$E$13:$J$59,6,FALSE)/100)) -> 417,654 | Q25: =($A25-$A24)/365.25*$D$1*(1+$D$2+(VLOOKUP('RE Appr'!W32,'RE Appr'!$E$13:$J$59,6,FALSE)/100)) -> 455,688 | R25: =($A25-$A24)/365.25*$D$1*(1+$D$2+(VLOOKUP('RE Appr'!X32,'RE Appr'!$E$13:$J$59,6,FALSE)/100)) -> 426,042 | S25: =($A25-$A24)/365.25*$D$1*(1+$D$2+(VLOOKUP('RE Appr'!Y32,'RE Appr'!$E$13:$J$59,6,FALSE)/100)) -> 386,675 | T25: =($A25-$A24)/365.25*$D$1*(1+$D$2+(VLOOKUP('RE Appr'!Z32,'RE Appr'!$E$13:$J$59,6,FALSE)/100)) -> 414,846 | U25: =($A25-$A24)/365.25*$D$1*(1+$D$2+(VLOOKUP('RE Appr'!AA32,'RE Appr'!$E$13:$J$59,6,FALSE)/100)) -> 412,517 | V25: =($A25-$A24)/365.25*$D$1*(1+$D$2+(VLOOKUP('RE Appr'!AB32,'RE Appr'!$E$13:$J$59,6,FALSE)/100)) -> 407,091 | W25: =($A25-$A24)/365.25*$D$1*(1+$D$2+(VLOOKUP('RE Appr'!AC32,'RE Appr'!$E$13:$J$59,6,FALSE)/100)) -> 419,290 | X25: =($A25-$A24)/365.25*$D$1*(1+$D$2+(VLOOKUP('RE Appr'!AD32,'RE Appr'!$E$13:$J$59,6,FALSE)/100)) -> 436,841 | Y25: =($A25-$A24)/365.25*$D$1*(1+$D$2+(VLOOKUP('RE Appr'!AE32,'RE Appr'!$E$13:$J$59,6,FALSE)/100)) -> 419,290 | Z25: =($A25-$A24)/365.25*$D$1*(1+$D$2+(VLOOKUP('RE Appr'!AF32,'RE Appr'!$E$13:$J$59,6,FALSE)/100)) -> 399,326 | AA25: =($A25-$A24)/365.25*$D$1*(1+$D$2+(VLOOKUP('RE Appr'!AG32,'RE Appr'!$E$13:$J$59,6,FALSE)/100)) -> 418,834 | AB25: =($A25-$A24)/365.25*$D$1*(1+$D$2+(VLOOKUP('RE Appr'!AH32,'RE Appr'!$E$13:$J$59,6,FALSE)/100)) -> 415,848 | AC25: =($A25-$A24)/365.25*$D$1*(1+$D$2+(VLOOKUP('RE Appr'!AI32,'RE Appr'!$E$13:$J$59,6,FALSE)/100)) -> 415,046 | AD25: =($A25-$A24)/365.25*$D$1*(1+$D$2+(VLOOKUP('RE Appr'!AJ32,'RE Appr'!$E$13:$J$59,6,FALSE)/100)) -> 431,774 | AE25: =($A25-$A24)/365.25*$D$1*(1+$D$2+(VLOOKUP('RE Appr'!AK32,'RE Appr'!$E$13:$J$59,6,FALSE)/100)) -> 415,286 | AF25: =($A25-$A24)/365.25*$D$1*(1+$D$2+(VLOOKUP('RE Appr'!AL32,'RE Appr'!$E$13:$J$59,6,FALSE)/100)) -> 441,528 | AG25: =($A25-$A24)/365.25*$D$1*(1+$D$2+(VLOOKUP('RE Appr'!AM32,'RE Appr'!$E$13:$J$59,6,FALSE)/100)) -> 434,213 | AH25: =($A25-$A24)/365.25*$D$1*(1+$D$2+(VLOOKUP('RE Appr'!AN32,'RE Appr'!$E$13:$J$59,6,FALSE)/100)) -> 418,834 | AI25: =($A25-$A24)/365.25*$D$1*(1+$D$2+(VLOOKUP('RE Appr'!AO32,'RE Appr'!$E$13:$J$59,6,FALSE)/100)) -> 437,041 | AJ25: =($A25-$A24)/365.25*$D$1*(1+$D$2+(VLOOKUP('RE Appr'!AP32,'RE Appr'!$E$13:$J$59,6,FALSE)/100)) -> 418,834 | AK25: =($A25-$A24)/365.25*$D$1*(1+$D$2+(VLOOKUP('RE Appr'!AQ32,'RE Appr'!$E$13:$J$59,6,FALSE)/100)) -> 412,637 | AL25: =($A25-$A24)/365.25*$D$1*(1+$D$2+(VLOOKUP('RE Appr'!AR32,'RE Appr'!$E$13:$J$59,6,FALSE)/100)) -> 412,977 | AM25: =($A25-$A24)/365.25*$D$1*(1+$D$2+(VLOOKUP('RE Appr'!AS32,'RE Appr'!$E$13:$J$59,6,FALSE)/100)) -> 419,633 | AN25: =($A25-$A24)/365.25*$D$1*(1+$D$2+(VLOOKUP('RE Appr'!AT32,'RE Appr'!$E$13:$J$59,6,FALSE)/100)) -> 419,543 | AO25: =($A25-$A24)/365.25*$D$1*(1+$D$2+(VLOOKUP('RE Appr'!AU32,'RE Appr'!$E$13:$J$59,6,FALSE)/100)) -> 415,286 | AP25: =($A25-$A24)/365.25*$D$1*(1+$D$2+(VLOOKUP('RE Appr'!AV32,'RE Appr'!$E$13:$J$59,6,FALSE)/100)) -> 383,827 | AQ25: =($A25-$A24)/365.25*$D$1*(1+$D$2+(VLOOKUP('RE Appr'!AW32,'RE Appr'!$E$13:$J$59,6,FALSE)/100)) -> 375,603 | AR25: =($A25-$A24)/365.25*$D$1*(1+$D$2+(VLOOKUP('RE Appr'!AX32,'RE Appr'!$E$13:$J$59,6,FALSE)/100)) -> 418,174 | AS25: =($A25-$A24)/365.25*$D$1*(1+$D$2+(VLOOKUP('RE Appr'!AY32,'RE Appr'!$E$13:$J$59,6,FALSE)/100)) -> 426,042 | AT25: =($A25-$A24)/365.25*$D$1*(1+$D$2+(VLOOKUP('RE Appr'!AZ32,'RE Appr'!$E$13:$J$59,6,FALSE)/100)) -> 429,316 | AU25: =($A25-$A24)/365.25*$D$1*(1+$D$2+(VLOOKUP('RE Appr'!BA32,'RE Appr'!$E$13:$J$59,6,FALSE)/100)) -> 440,668 | AV25: =($A25-$A24)/365.25*$D$1*(1+$D$2+(VLOOKUP('RE Appr'!BB32,'RE Appr'!$E$13:$J$59,6,FALSE)/100)) -> 414,846 | AW25: =($A25-$A24)/365.25*$D$1*(1+$D$2+(VLOOKUP('RE Appr'!BC32,'RE Appr'!$E$13:$J$59,6,FALSE)/100)) -> 422,511 | AX25: =($A25-$A24)/365.25*$D$1*(1+$D$2+(VLOOKUP('RE Appr'!BD32,'RE Appr'!$E$13:$J$59,6,FALSE)/100)) -> 410,729 | AY25: =($A25-$A24)/365.25*$D$1*(1+$D$2+(VLOOKUP('RE Appr'!BE32,'RE Appr'!$E$13:$J$59,6,FALSE)/100)) -> 415,286 | AZ25: =($A25-$A24)/365.25*$D$1*(1+$D$2+(VLOOKUP('RE Appr'!BF32,'RE Appr'!$E$13:$J$59,6,FALSE)/100)) -> 431,774 | BA25: =($A25-$A24)/365.25*$D$1*(1+$D$2+(VLOOKUP('RE Appr'!BG32,'RE Appr'!$E$13:$J$59,6,FALSE)/100)) -> 441,528 | BB25: =($A25-$A24)/365.25*$D$1*(1+$D$2+(VLOOKUP('RE Appr'!BH32,'RE Appr'!$E$13:$J$59,6,FALSE)/100)) -> 419,290 | BC25: =($A25-$A24)/365.25*$D$1*(1+$D$2+(VLOOKUP('RE Appr'!BI32,'RE Appr'!$E$13:$J$59,6,FALSE)/100)) -> 419,290 | BD25: =($A25-$A24)/365.25*$D$1*(1+$D$2+(VLOOKUP('RE Appr'!BJ32,'RE Appr'!$E$13:$J$59,6,FALSE)/100)) -> 416,235 | BE25: =($A25-$A24)/365.25*$D$1*(1+$D$2+(VLOOKUP('RE Appr'!BK32,'RE Appr'!$E$13:$J$59,6,FALSE)/100)) -> 426,042 | BF25: =($A25-$A24)/365.25*$D$1*(1+$D$2+(VLOOKUP('RE Appr'!BL32,'RE Appr'!$E$13:$J$59,6,FALSE)/100)) -> 419,343 | BG25: =($A25-$A24)/365.25*$D$1*(1+$D$2+(VLOOKUP('RE Appr'!BM32,'RE Appr'!$E$13:$J$59,6,FALSE)/100)) -> 418,174 | BH25: =($A25-$A24)/365.25*$D$1*(1+$D$2+(VLOOKUP('RE Appr'!BN32,'RE Appr'!$E$13:$J$59,6,FALSE)/100)) -> 423,750 | BI25: =($A25-$A24)/365.25*$D$1*(1+$D$2+(VLOOKUP('RE Appr'!BO32,'RE Appr'!$E$13:$J$59,6,FALSE)/100)) -> 436,841 | BJ25: =($A25-$A24)/365.25*$D$1*(1+$D$2+(VLOOKUP('RE Appr'!BP32,'RE Appr'!$E$13:$J$59,6,FALSE)/100)) -> 410,729 | BK25: =($A25-$A24)/365.25*$D$1*(1+$D$2+(VLOOKUP('RE Appr'!BQ32,'RE Appr'!$E$13:$J$59,6,FALSE)/100)) -> 418,834 | BL25: =($A25-$A24)/365.25*$D$1*(1+$D$2+(VLOOKUP('RE Appr'!BR32,'RE Appr'!$E$13:$J$59,6,FALSE)/100)) -> 414,846 | BM25: =($A25-$A24)/365.25*$D$1*(1+$D$2+(VLOOKUP('RE Appr'!BS32,'RE Appr'!$E$13:$J$59,6,FALSE)/100)) -> 409,270 | BN25: =($A25-$A24)/365.25*$D$1*(1+$D$2+(VLOOKUP('RE Appr'!BT32,'RE Appr'!$E$13:$J$59,6,FALSE)/100)) -> 470,498 | BO25: =($A25-$A24)/365.25*$D$1*(1+$D$2+(VLOOKUP('RE Appr'!BU32,'RE Appr'!$E$13:$J$59,6,FALSE)/100)) -> 419,290 | BP25: =($A25-$A24)/365.25*$D$1*(1+$D$2+(VLOOKUP('RE Appr'!BV32,'RE Appr'!$E$13:$J$59,6,FALSE)/100)) -> 411,048 | BQ25: =($A25-$A24)/365.25*$D$1*(1+$D$2+(VLOOKUP('RE Appr'!BW32,'RE Appr'!$E$13:$J$59,6,FALSE)/100)) -> 410,729 | BR25: =($A25-$A24)/365.25*$D$1*(1+$D$2+(VLOOKUP('RE Appr'!BX32,'RE Appr'!$E$13:$J$59,6,FALSE)/100)) -> 435,182 | BS25: =($A25-$A24)/365.25*$D$1*(1+$D$2+(VLOOKUP('RE Appr'!BY32,'RE Appr'!$E$13:$J$59,6,FALSE)/100)) -> 451,019 | BT25: =($A25-$A24)/365.25*$D$1*(1+$D$2+(VLOOKUP('RE Appr'!BZ32,'RE Appr'!$E$13:$J$59,6,FALSE)/100)) -> 431,774 | BU25: =($A25-$A24)/365.25*$D$1*(1+$D$2+(VLOOKUP('RE Appr'!CA32,'RE Appr'!$E$13:$J$59,6,FALSE)/100)) -> 436,841 | BV25: =($A25-$A24)/365.25*$D$1*(1+$D$2+(VLOOKUP('RE Appr'!CB32,'RE Appr'!$E$13:$J$59,6,FALSE)/100)) -> 412,977 | BW25: =($A25-$A24)/365.25*$D$1*(1+$D$2+(VLOOKUP('RE Appr'!CC32,'RE Appr'!$E$13:$J$59,6,FALSE)/100)) -> 415,286 | BX25: =($A25-$A24)/365.25*$D$1*(1+$D$2+(VLOOKUP('RE Appr'!CD32,'RE Appr'!$E$13:$J$59,6,FALSE)/100)) -> 441,528 | BY25: =($A25-$A24)/365.25*$D$1*(1+$D$2+(VLOOKUP('RE Appr'!CE32,'RE Appr'!$E$13:$J$59,6,FALSE)/100)) -> 412,278 | BZ25: =($A25-$A24)/365.25*$D$1*(1+$D$2+(VLOOKUP('RE Appr'!CF32,'RE Appr'!$E$13:$J$59,6,FALSE)/100)) -> 470,498 | CA25: =($A25-$A24)/365.25*$D$1*(1+$D$2+(VLOOKUP('RE Appr'!CG32,'RE Appr'!$E$13:$J$59,6,FALSE)/100)) -> 440,668 | CB25: =($A25-$A24)/365.25*$D$1*(1+$D$2+(VLOOKUP('RE Appr'!CH32,'RE Appr'!$E$13:$J$59,6,FALSE)/100)) -> 409,270 | CC25: =($A25-$A24)/365.25*$D$1*(1+$D$2+(VLOOKUP('RE Appr'!CI32,'RE Appr'!$E$13:$J$59,6,FALSE)/100)) -> 419,343 | CD25: =($A25-$A24)/365.25*$D$1*(1+$D$2+(VLOOKUP('RE Appr'!CJ32,'RE Appr'!$E$13:$J$59,6,FALSE)/100)) -> 416,695 | CE25: =($A25-$A24)/365.25*$D$1*(1+$D$2+(VLOOKUP('RE Appr'!CK32,'RE Appr'!$E$13:$J$59,6,FALSE)/100)) -> 455,688 | CF25: =($A25-$A24)/365.25*$D$1*(1+$D$2+(VLOOKUP('RE Appr'!CL32,'RE Appr'!$E$13:$J$59,6,FALSE)/100)) -> 417,916 | CG25: =($A25-$A24)/365.25*$D$1*(1+$D$2+(VLOOKUP('RE Appr'!CM32,'RE Appr'!$E$13:$J$59,6,FALSE)/100)) -> 421,666 | CH25: =($A25-$A24)/365.25*$D$1*(1+$D$2+(VLOOKUP('RE Appr'!CN32,'RE Appr'!$E$13:$J$59,6,FALSE)/100)) -> 386,675 | CI25: =($A25-$A24)/365.25*$D$1*(1+$D$2+(VLOOKUP('RE Appr'!CO32,'RE Appr'!$E$13:$J$59,6,FALSE)/100)) -> 440,668 | CJ25: =($A25-$A24)/365.25*$D$1*(1+$D$2+(VLOOKUP('RE Appr'!CP32,'RE Appr'!$E$13:$J$59,6,FALSE)/100)) -> 421,666 | CK25: =($A25-$A24)/365.25*$D$1*(1+$D$2+(VLOOKUP('RE Appr'!CQ32,'RE Appr'!$E$13:$J$59,6,FALSE)/100)) -> 418,174 | CL25: =($A25-$A24)/365.25*$D$1*(1+$D$2+(VLOOKUP('RE Appr'!CR32,'RE Appr'!$E$13:$J$59,6,FALSE)/100)) -> 399,326 | CM25: =($A25-$A24)/365.25*$D$1*(1+$D$2+(VLOOKUP('RE Appr'!CS32,'RE Appr'!$E$13:$J$59,6,FALSE)/100)) -> 415,848 | CN25: =($A25-$A24)/365.25*$D$1*(1+$D$2+(VLOOKUP('RE Appr'!CT32,'RE Appr'!$E$13:$J$59,6,FALSE)/100)) -> 416,695 | CO25: =($A25-$A24)/365.25*$D$1*(1+$D$2+(VLOOKUP('RE Appr'!CU32,'RE Appr'!$E$13:$J$59,6,FALSE)/100)) -> 399,326 | CP25: =($A25-$A24)/365.25*$D$1*(1+$D$2+(VLOOKUP('RE Appr'!CV32,'RE Appr'!$E$13:$J$59,6,FALSE)/100)) -> 421,666 | CQ25: =($A25-$A24)/365.25*$D$1*(1+$D$2+(VLOOKUP('RE Appr'!CW32,'RE Appr'!$E$13:$J$59,6,FALSE)/100)) -> 416,695 | CR25: =($A25-$A24)/365.25*$D$1*(1+$D$2+(VLOOKUP('RE Appr'!CX32,'RE Appr'!$E$13:$J$59,6,FALSE)/100)) -> 437,041 | CS25: =($A25-$A24)/365.25*$D$1*(1+$D$2+(VLOOKUP('RE Appr'!CY32,'RE Appr'!$E$13:$J$59,6,FALSE)/100)) -> 455,688 | CT25: =($A25-$A24)/365.25*$D$1*(1+$D$2+(VLOOKUP('RE Appr'!CZ32,'RE Appr'!$E$13:$J$59,6,FALSE)/100)) -> 435,182 | CU25: =($A25-$A24)/365.25*$D$1*(1+$D$2+(VLOOKUP('RE Appr'!DA32,'RE Appr'!$E$13:$J$59,6,FALSE)/100)) -> 412,517 | CV25: =($A25-$A24)/365.25*$D$1*(1+$D$2+(VLOOKUP('RE Appr'!DB32,'RE Appr'!$E$13:$J$59,6,FALSE)/100)) -> 386,675 | CW25: =($A25-$A24)/365.25*$D$1*(1+$D$2+(VLOOKUP('RE Appr'!DC32,'RE Appr'!$E$13:$J$59,6,FALSE)/100)) -> 383,827 | CX25: =($A25-$A24)/365.25*$D$1*(1+$D$2+(VLOOKUP('RE Appr'!DD32,'RE Appr'!$E$13:$J$59,6,FALSE)/100)) -> 420,192 | CY25: =($A25-$A24)/365.25*$D$1*(1+$D$2+(VLOOKUP('RE Appr'!DE32,'RE Appr'!$E$13:$J$59,6,FALSE)/100)) -> 441,108 | CZ25: =($A25-$A24)/365.25*$D$1*(1+$D$2+(VLOOKUP('RE Appr'!DF32,'RE Appr'!$E$13:$J$59,6,FALSE)/100)) -> 412,977 | DA25: =($A25-$A24)/365.25*$D$1*(1+$D$2+(VLOOKUP('RE Appr'!DG32,'RE Appr'!$E$13:$J$59,6,FALSE)/100)) -> 375,603
A26: =Main!A28 -> 2043-12-31 | B26: 21 | F26: =($A26-$A25)/365.25*$D$1*(1+$D$2+(VLOOKUP('RE Appr'!L33,'RE Appr'!$E$13:$J$59,6,FALSE)/100)) -> 420,782 | G26: =($A26-$A25)/365.25*$D$1*(1+$D$2+(VLOOKUP('RE Appr'!M33,'RE Appr'!$E$13:$J$59,6,FALSE)/100)) -> 416,987 | H26: =($A26-$A25)/365.25*$D$1*(1+$D$2+(VLOOKUP('RE Appr'!N33,'RE Appr'!$E$13:$J$59,6,FALSE)/100)) -> 420,492 | I26: =($A26-$A25)/365.25*$D$1*(1+$D$2+(VLOOKUP('RE Appr'!O33,'RE Appr'!$E$13:$J$59,6,FALSE)/100)) -> 422,821 | J26: =($A26-$A25)/365.25*$D$1*(1+$D$2+(VLOOKUP('RE Appr'!P33,'RE Appr'!$E$13:$J$59,6,FALSE)/100)) -> 471,787 | K26: =($A26-$A25)/365.25*$D$1*(1+$D$2+(VLOOKUP('RE Appr'!Q33,'RE Appr'!$E$13:$J$59,6,FALSE)/100)) -> 424,911 | L26: =($A26-$A25)/365.25*$D$1*(1+$D$2+(VLOOKUP('RE Appr'!R33,'RE Appr'!$E$13:$J$59,6,FALSE)/100)) -> 411,854 | M26: =($A26-$A25)/365.25*$D$1*(1+$D$2+(VLOOKUP('RE Appr'!S33,'RE Appr'!$E$13:$J$59,6,FALSE)/100)) -> 442,737 | N26: =($A26-$A25)/365.25*$D$1*(1+$D$2+(VLOOKUP('RE Appr'!T33,'RE Appr'!$E$13:$J$59,6,FALSE)/100)) -> 419,061 | O26: =($A26-$A25)/365.25*$D$1*(1+$D$2+(VLOOKUP('RE Appr'!U33,'RE Appr'!$E$13:$J$59,6,FALSE)/100)) -> 410,391 | P26: =($A26-$A25)/365.25*$D$1*(1+$D$2+(VLOOKUP('RE Appr'!V33,'RE Appr'!$E$13:$J$59,6,FALSE)/100)) -> 412,175 | Q26: =($A26-$A25)/365.25*$D$1*(1+$D$2+(VLOOKUP('RE Appr'!W33,'RE Appr'!$E$13:$J$59,6,FALSE)/100)) -> 420,439 | R26: =($A26-$A25)/365.25*$D$1*(1+$D$2+(VLOOKUP('RE Appr'!X33,'RE Appr'!$E$13:$J$59,6,FALSE)/100)) -> 422,821 | S26: =($A26-$A25)/365.25*$D$1*(1+$D$2+(VLOOKUP('RE Appr'!Y33,'RE Appr'!$E$13:$J$59,6,FALSE)/100)) -> 419,319 | T26: =($A26-$A25)/365.25*$D$1*(1+$D$2+(VLOOKUP('RE Appr'!Z33,'RE Appr'!$E$13:$J$59,6,FALSE)/100)) -> 420,692 | U26: =($A26-$A25)/365.25*$D$1*(1+$D$2+(VLOOKUP('RE Appr'!AA33,'RE Appr'!$E$13:$J$59,6,FALSE)/100)) -> 408,206 | V26: =($A26-$A25)/365.25*$D$1*(1+$D$2+(VLOOKUP('RE Appr'!AB33,'RE Appr'!$E$13:$J$59,6,FALSE)/100)) -> 456,936 | W26: =($A26-$A25)/365.25*$D$1*(1+$D$2+(VLOOKUP('RE Appr'!AC33,'RE Appr'!$E$13:$J$59,6,FALSE)/100)) -> 427,209 | X26: =($A26-$A25)/365.25*$D$1*(1+$D$2+(VLOOKUP('RE Appr'!AD33,'RE Appr'!$E$13:$J$59,6,FALSE)/100)) -> 419,061 | Y26: =($A26-$A25)/365.25*$D$1*(1+$D$2+(VLOOKUP('RE Appr'!AE33,'RE Appr'!$E$13:$J$59,6,FALSE)/100)) -> 417,375 | Z26: =($A26-$A25)/365.25*$D$1*(1+$D$2+(VLOOKUP('RE Appr'!AF33,'RE Appr'!$E$13:$J$59,6,FALSE)/100)) -> 420,782 | AA26: =($A26-$A25)/365.25*$D$1*(1+$D$2+(VLOOKUP('RE Appr'!AG33,'RE Appr'!$E$13:$J$59,6,FALSE)/100)) -> 421,343 | AB26: =($A26-$A25)/365.25*$D$1*(1+$D$2+(VLOOKUP('RE Appr'!AH33,'RE Appr'!$E$13:$J$59,6,FALSE)/100)) -> 410,391 | AC26: =($A26-$A25)/365.25*$D$1*(1+$D$2+(VLOOKUP('RE Appr'!AI33,'RE Appr'!$E$13:$J$59,6,FALSE)/100)) -> 400,421 | AD26: =($A26-$A25)/365.25*$D$1*(1+$D$2+(VLOOKUP('RE Appr'!AJ33,'RE Appr'!$E$13:$J$59,6,FALSE)/100)) -> 419,319 | AE26: =($A26-$A25)/365.25*$D$1*(1+$D$2+(VLOOKUP('RE Appr'!AK33,'RE Appr'!$E$13:$J$59,6,FALSE)/100)) -> 430,492 | AF26: =($A26-$A25)/365.25*$D$1*(1+$D$2+(VLOOKUP('RE Appr'!AL33,'RE Appr'!$E$13:$J$59,6,FALSE)/100)) -> 402,485 | AG26: =($A26-$A25)/365.25*$D$1*(1+$D$2+(VLOOKUP('RE Appr'!AM33,'RE Appr'!$E$13:$J$59,6,FALSE)/100)) -> 384,879 | AH26: =($A26-$A25)/365.25*$D$1*(1+$D$2+(VLOOKUP('RE Appr'!AN33,'RE Appr'!$E$13:$J$59,6,FALSE)/100)) -> 419,319 | AI26: =($A26-$A25)/365.25*$D$1*(1+$D$2+(VLOOKUP('RE Appr'!AO33,'RE Appr'!$E$13:$J$59,6,FALSE)/100)) -> 420,782 | AJ26: =($A26-$A25)/365.25*$D$1*(1+$D$2+(VLOOKUP('RE Appr'!AP33,'RE Appr'!$E$13:$J$59,6,FALSE)/100)) -> 411,854 | AK26: =($A26-$A25)/365.25*$D$1*(1+$D$2+(VLOOKUP('RE Appr'!AQ33,'RE Appr'!$E$13:$J$59,6,FALSE)/100)) -> 416,987 | AL26: =($A26-$A25)/365.25*$D$1*(1+$D$2+(VLOOKUP('RE Appr'!AR33,'RE Appr'!$E$13:$J$59,6,FALSE)/100)) -> 436,965 | AM26: =($A26-$A25)/365.25*$D$1*(1+$D$2+(VLOOKUP('RE Appr'!AS33,'RE Appr'!$E$13:$J$59,6,FALSE)/100)) -> 411,854 | AN26: =($A26-$A25)/365.25*$D$1*(1+$D$2+(VLOOKUP('RE Appr'!AT33,'RE Appr'!$E$13:$J$59,6,FALSE)/100)) -> 421,343 | AO26: =($A26-$A25)/365.25*$D$1*(1+$D$2+(VLOOKUP('RE Appr'!AU33,'RE Appr'!$E$13:$J$59,6,FALSE)/100)) -> 432,957 | AP26: =($A26-$A25)/365.25*$D$1*(1+$D$2+(VLOOKUP('RE Appr'!AV33,'RE Appr'!$E$13:$J$59,6,FALSE)/100)) -> 419,319 | AQ26: =($A26-$A25)/365.25*$D$1*(1+$D$2+(VLOOKUP('RE Appr'!AW33,'RE Appr'!$E$13:$J$59,6,FALSE)/100)) -> 384,879 | AR26: =($A26-$A25)/365.25*$D$1*(1+$D$2+(VLOOKUP('RE Appr'!AX33,'RE Appr'!$E$13:$J$59,6,FALSE)/100)) -> 420,439 | AS26: =($A26-$A25)/365.25*$D$1*(1+$D$2+(VLOOKUP('RE Appr'!AY33,'RE Appr'!$E$13:$J$59,6,FALSE)/100)) -> 420,782 | AT26: =($A26-$A25)/365.25*$D$1*(1+$D$2+(VLOOKUP('RE Appr'!AZ33,'RE Appr'!$E$13:$J$59,6,FALSE)/100)) -> 436,965 | AU26: =($A26-$A25)/365.25*$D$1*(1+$D$2+(VLOOKUP('RE Appr'!BA33,'RE Appr'!$E$13:$J$59,6,FALSE)/100)) -> 416,183 | AV26: =($A26-$A25)/365.25*$D$1*(1+$D$2+(VLOOKUP('RE Appr'!BB33,'RE Appr'!$E$13:$J$59,6,FALSE)/100)) -> 408,206 | AW26: =($A26-$A25)/365.25*$D$1*(1+$D$2+(VLOOKUP('RE Appr'!BC33,'RE Appr'!$E$13:$J$59,6,FALSE)/100)) -> 417,375 | AX26: =($A26-$A25)/365.25*$D$1*(1+$D$2+(VLOOKUP('RE Appr'!BD33,'RE Appr'!$E$13:$J$59,6,FALSE)/100)) -> 384,879 | AY26: =($A26-$A25)/365.25*$D$1*(1+$D$2+(VLOOKUP('RE Appr'!BE33,'RE Appr'!$E$13:$J$59,6,FALSE)/100)) -> 410,391 | AZ26: =($A26-$A25)/365.25*$D$1*(1+$D$2+(VLOOKUP('RE Appr'!BF33,'RE Appr'!$E$13:$J$59,6,FALSE)/100)) -> 435,402 | BA26: =($A26-$A25)/365.25*$D$1*(1+$D$2+(VLOOKUP('RE Appr'!BG33,'RE Appr'!$E$13:$J$59,6,FALSE)/100)) -> 435,402 | BB26: =($A26-$A25)/365.25*$D$1*(1+$D$2+(VLOOKUP('RE Appr'!BH33,'RE Appr'!$E$13:$J$59,6,FALSE)/100)) -> 435,402 | BC26: =($A26-$A25)/365.25*$D$1*(1+$D$2+(VLOOKUP('RE Appr'!BI33,'RE Appr'!$E$13:$J$59,6,FALSE)/100)) -> 417,375 | BD26: =($A26-$A25)/365.25*$D$1*(1+$D$2+(VLOOKUP('RE Appr'!BJ33,'RE Appr'!$E$13:$J$59,6,FALSE)/100)) -> 441,875 | BE26: =($A26-$A25)/365.25*$D$1*(1+$D$2+(VLOOKUP('RE Appr'!BK33,'RE Appr'!$E$13:$J$59,6,FALSE)/100)) -> 413,768 | BF26: =($A26-$A25)/365.25*$D$1*(1+$D$2+(VLOOKUP('RE Appr'!BL33,'RE Appr'!$E$13:$J$59,6,FALSE)/100)) -> 376,632 | BG26: =($A26-$A25)/365.25*$D$1*(1+$D$2+(VLOOKUP('RE Appr'!BM33,'RE Appr'!$E$13:$J$59,6,FALSE)/100)) -> 402,485 | BH26: =($A26-$A25)/365.25*$D$1*(1+$D$2+(VLOOKUP('RE Appr'!BN33,'RE Appr'!$E$13:$J$59,6,FALSE)/100)) -> 402,485 | BI26: =($A26-$A25)/365.25*$D$1*(1+$D$2+(VLOOKUP('RE Appr'!BO33,'RE Appr'!$E$13:$J$59,6,FALSE)/100)) -> 418,798 | BJ26: =($A26-$A25)/365.25*$D$1*(1+$D$2+(VLOOKUP('RE Appr'!BP33,'RE Appr'!$E$13:$J$59,6,FALSE)/100)) -> 415,982 | BK26: =($A26-$A25)/365.25*$D$1*(1+$D$2+(VLOOKUP('RE Appr'!BQ33,'RE Appr'!$E$13:$J$59,6,FALSE)/100)) -> 419,319 | BL26: =($A26-$A25)/365.25*$D$1*(1+$D$2+(VLOOKUP('RE Appr'!BR33,'RE Appr'!$E$13:$J$59,6,FALSE)/100)) -> 419,981 | BM26: =($A26-$A25)/365.25*$D$1*(1+$D$2+(VLOOKUP('RE Appr'!BS33,'RE Appr'!$E$13:$J$59,6,FALSE)/100)) -> 452,255 | BN26: =($A26-$A25)/365.25*$D$1*(1+$D$2+(VLOOKUP('RE Appr'!BT33,'RE Appr'!$E$13:$J$59,6,FALSE)/100)) -> 414,109 | BO26: =($A26-$A25)/365.25*$D$1*(1+$D$2+(VLOOKUP('RE Appr'!BU33,'RE Appr'!$E$13:$J$59,6,FALSE)/100)) -> 441,875 | BP26: =($A26-$A25)/365.25*$D$1*(1+$D$2+(VLOOKUP('RE Appr'!BV33,'RE Appr'!$E$13:$J$59,6,FALSE)/100)) -> 430,492 | BQ26: =($A26-$A25)/365.25*$D$1*(1+$D$2+(VLOOKUP('RE Appr'!BW33,'RE Appr'!$E$13:$J$59,6,FALSE)/100)) -> 471,787 | BR26: =($A26-$A25)/365.25*$D$1*(1+$D$2+(VLOOKUP('RE Appr'!BX33,'RE Appr'!$E$13:$J$59,6,FALSE)/100)) -> 436,374 | BS26: =($A26-$A25)/365.25*$D$1*(1+$D$2+(VLOOKUP('RE Appr'!BY33,'RE Appr'!$E$13:$J$59,6,FALSE)/100)) -> 410,391 | BT26: =($A26-$A25)/365.25*$D$1*(1+$D$2+(VLOOKUP('RE Appr'!BZ33,'RE Appr'!$E$13:$J$59,6,FALSE)/100)) -> 417,836 | BU26: =($A26-$A25)/365.25*$D$1*(1+$D$2+(VLOOKUP('RE Appr'!CA33,'RE Appr'!$E$13:$J$59,6,FALSE)/100)) -> 410,391 | BV26: =($A26-$A25)/365.25*$D$1*(1+$D$2+(VLOOKUP('RE Appr'!CB33,'RE Appr'!$E$13:$J$59,6,FALSE)/100)) -> 414,109 | BW26: =($A26-$A25)/365.25*$D$1*(1+$D$2+(VLOOKUP('RE Appr'!CC33,'RE Appr'!$E$13:$J$59,6,FALSE)/100)) -> 471,787 | BX26: =($A26-$A25)/365.25*$D$1*(1+$D$2+(VLOOKUP('RE Appr'!CD33,'RE Appr'!$E$13:$J$59,6,FALSE)/100)) -> 442,737 | BY26: =($A26-$A25)/365.25*$D$1*(1+$D$2+(VLOOKUP('RE Appr'!CE33,'RE Appr'!$E$13:$J$59,6,FALSE)/100)) -> 416,423 | BZ26: =($A26-$A25)/365.25*$D$1*(1+$D$2+(VLOOKUP('RE Appr'!CF33,'RE Appr'!$E$13:$J$59,6,FALSE)/100)) -> 441,875 | CA26: =($A26-$A25)/365.25*$D$1*(1+$D$2+(VLOOKUP('RE Appr'!CG33,'RE Appr'!$E$13:$J$59,6,FALSE)/100)) -> 413,648 | CB26: =($A26-$A25)/365.25*$D$1*(1+$D$2+(VLOOKUP('RE Appr'!CH33,'RE Appr'!$E$13:$J$59,6,FALSE)/100)) -> 436,374 | CC26: =($A26-$A25)/365.25*$D$1*(1+$D$2+(VLOOKUP('RE Appr'!CI33,'RE Appr'!$E$13:$J$59,6,FALSE)/100)) -> 376,632 | CD26: =($A26-$A25)/365.25*$D$1*(1+$D$2+(VLOOKUP('RE Appr'!CJ33,'RE Appr'!$E$13:$J$59,6,FALSE)/100)) -> 420,492 | CE26: =($A26-$A25)/365.25*$D$1*(1+$D$2+(VLOOKUP('RE Appr'!CK33,'RE Appr'!$E$13:$J$59,6,FALSE)/100)) -> 420,782 | CF26: =($A26-$A25)/365.25*$D$1*(1+$D$2+(VLOOKUP('RE Appr'!CL33,'RE Appr'!$E$13:$J$59,6,FALSE)/100)) -> 420,439 | CG26: =($A26-$A25)/365.25*$D$1*(1+$D$2+(VLOOKUP('RE Appr'!CM33,'RE Appr'!$E$13:$J$59,6,FALSE)/100)) -> 421,343 | CH26: =($A26-$A25)/365.25*$D$1*(1+$D$2+(VLOOKUP('RE Appr'!CN33,'RE Appr'!$E$13:$J$59,6,FALSE)/100)) -> 400,421 | CI26: =($A26-$A25)/365.25*$D$1*(1+$D$2+(VLOOKUP('RE Appr'!CO33,'RE Appr'!$E$13:$J$59,6,FALSE)/100)) -> 424,911 | CJ26: =($A26-$A25)/365.25*$D$1*(1+$D$2+(VLOOKUP('RE Appr'!CP33,'RE Appr'!$E$13:$J$59,6,FALSE)/100)) -> 408,206 | CK26: =($A26-$A25)/365.25*$D$1*(1+$D$2+(VLOOKUP('RE Appr'!CQ33,'RE Appr'!$E$13:$J$59,6,FALSE)/100)) -> 416,987 | CL26: =($A26-$A25)/365.25*$D$1*(1+$D$2+(VLOOKUP('RE Appr'!CR33,'RE Appr'!$E$13:$J$59,6,FALSE)/100)) -> 442,316 | CM26: =($A26-$A25)/365.25*$D$1*(1+$D$2+(VLOOKUP('RE Appr'!CS33,'RE Appr'!$E$13:$J$59,6,FALSE)/100)) -> 408,206 | CN26: =($A26-$A25)/365.25*$D$1*(1+$D$2+(VLOOKUP('RE Appr'!CT33,'RE Appr'!$E$13:$J$59,6,FALSE)/100)) -> 415,982 | CO26: =($A26-$A25)/365.25*$D$1*(1+$D$2+(VLOOKUP('RE Appr'!CU33,'RE Appr'!$E$13:$J$59,6,FALSE)/100)) -> 419,319 | CP26: =($A26-$A25)/365.25*$D$1*(1+$D$2+(VLOOKUP('RE Appr'!CV33,'RE Appr'!$E$13:$J$59,6,FALSE)/100)) -> 438,038 | CQ26: =($A26-$A25)/365.25*$D$1*(1+$D$2+(VLOOKUP('RE Appr'!CW33,'RE Appr'!$E$13:$J$59,6,FALSE)/100)) -> 419,319 | CR26: =($A26-$A25)/365.25*$D$1*(1+$D$2+(VLOOKUP('RE Appr'!CX33,'RE Appr'!$E$13:$J$59,6,FALSE)/100)) -> 416,423 | CS26: =($A26-$A25)/365.25*$D$1*(1+$D$2+(VLOOKUP('RE Appr'!CY33,'RE Appr'!$E$13:$J$59,6,FALSE)/100)) -> 413,407 | CT26: =($A26-$A25)/365.25*$D$1*(1+$D$2+(VLOOKUP('RE Appr'!CZ33,'RE Appr'!$E$13:$J$59,6,FALSE)/100)) -> 413,407 | CU26: =($A26-$A25)/365.25*$D$1*(1+$D$2+(VLOOKUP('RE Appr'!DA33,'RE Appr'!$E$13:$J$59,6,FALSE)/100)) -> 417,375 | CV26: =($A26-$A25)/365.25*$D$1*(1+$D$2+(VLOOKUP('RE Appr'!DB33,'RE Appr'!$E$13:$J$59,6,FALSE)/100)) -> 452,255 | CW26: =($A26-$A25)/365.25*$D$1*(1+$D$2+(VLOOKUP('RE Appr'!DC33,'RE Appr'!$E$13:$J$59,6,FALSE)/100)) -> 418,798 | CX26: =($A26-$A25)/365.25*$D$1*(1+$D$2+(VLOOKUP('RE Appr'!DD33,'RE Appr'!$E$13:$J$59,6,FALSE)/100)) -> 452,255 | CY26: =($A26-$A25)/365.25*$D$1*(1+$D$2+(VLOOKUP('RE Appr'!DE33,'RE Appr'!$E$13:$J$59,6,FALSE)/100)) -> 416,987 | CZ26: =($A26-$A25)/365.25*$D$1*(1+$D$2+(VLOOKUP('RE Appr'!DF33,'RE Appr'!$E$13:$J$59,6,FALSE)/100)) -> 419,981 | DA26: =($A26-$A25)/365.25*$D$1*(1+$D$2+(VLOOKUP('RE Appr'!DG33,'RE Appr'!$E$13:$J$59,6,FALSE)/100)) -> 415,982
A27: =Main!A29 -> 2044-12-30 | B27: 22 | F27: =($A27-$A26)/365.25*$D$1*(1+$D$2+(VLOOKUP('RE Appr'!L34,'RE Appr'!$E$13:$J$59,6,FALSE)/100)) -> 418,834 | G27: =($A27-$A26)/365.25*$D$1*(1+$D$2+(VLOOKUP('RE Appr'!M34,'RE Appr'!$E$13:$J$59,6,FALSE)/100)) -> 418,174 | H27: =($A27-$A26)/365.25*$D$1*(1+$D$2+(VLOOKUP('RE Appr'!N34,'RE Appr'!$E$13:$J$59,6,FALSE)/100)) -> 411,048 | I27: =($A27-$A26)/365.25*$D$1*(1+$D$2+(VLOOKUP('RE Appr'!O34,'RE Appr'!$E$13:$J$59,6,FALSE)/100)) -> 415,286 | J27: =($A27-$A26)/365.25*$D$1*(1+$D$2+(VLOOKUP('RE Appr'!P34,'RE Appr'!$E$13:$J$59,6,FALSE)/100)) -> 415,848 | K27: =($A27-$A26)/365.25*$D$1*(1+$D$2+(VLOOKUP('RE Appr'!Q34,'RE Appr'!$E$13:$J$59,6,FALSE)/100)) -> 419,343 | L27: =($A27-$A26)/365.25*$D$1*(1+$D$2+(VLOOKUP('RE Appr'!R34,'RE Appr'!$E$13:$J$59,6,FALSE)/100)) -> 437,041 | M27: =($A27-$A26)/365.25*$D$1*(1+$D$2+(VLOOKUP('RE Appr'!S34,'RE Appr'!$E$13:$J$59,6,FALSE)/100)) -> 383,827 | N27: =($A27-$A26)/365.25*$D$1*(1+$D$2+(VLOOKUP('RE Appr'!T34,'RE Appr'!$E$13:$J$59,6,FALSE)/100)) -> 414,846 | O27: =($A27-$A26)/365.25*$D$1*(1+$D$2+(VLOOKUP('RE Appr'!U34,'RE Appr'!$E$13:$J$59,6,FALSE)/100)) -> 426,042 | P27: =($A27-$A26)/365.25*$D$1*(1+$D$2+(VLOOKUP('RE Appr'!V34,'RE Appr'!$E$13:$J$59,6,FALSE)/100)) -> 417,916 | Q27: =($A27-$A26)/365.25*$D$1*(1+$D$2+(VLOOKUP('RE Appr'!W34,'RE Appr'!$E$13:$J$59,6,FALSE)/100)) -> 415,286 | R27: =($A27-$A26)/365.25*$D$1*(1+$D$2+(VLOOKUP('RE Appr'!X34,'RE Appr'!$E$13:$J$59,6,FALSE)/100)) -> 418,834 | S27: =($A27-$A26)/365.25*$D$1*(1+$D$2+(VLOOKUP('RE Appr'!Y34,'RE Appr'!$E$13:$J$59,6,FALSE)/100)) -> 418,834 | T27: =($A27-$A26)/365.25*$D$1*(1+$D$2+(VLOOKUP('RE Appr'!Z34,'RE Appr'!$E$13:$J$59,6,FALSE)/100)) -> 418,174 | U27: =($A27-$A26)/365.25*$D$1*(1+$D$2+(VLOOKUP('RE Appr'!AA34,'RE Appr'!$E$13:$J$59,6,FALSE)/100)) -> 383,827 | V27: =($A27-$A26)/365.25*$D$1*(1+$D$2+(VLOOKUP('RE Appr'!AB34,'RE Appr'!$E$13:$J$59,6,FALSE)/100)) -> 436,841 | W27: =($A27-$A26)/365.25*$D$1*(1+$D$2+(VLOOKUP('RE Appr'!AC34,'RE Appr'!$E$13:$J$59,6,FALSE)/100)) -> 441,528 | X27: =($A27-$A26)/365.25*$D$1*(1+$D$2+(VLOOKUP('RE Appr'!AD34,'RE Appr'!$E$13:$J$59,6,FALSE)/100)) -> 399,326 | Y27: =($A27-$A26)/365.25*$D$1*(1+$D$2+(VLOOKUP('RE Appr'!AE34,'RE Appr'!$E$13:$J$59,6,FALSE)/100)) -> 416,235 | Z27: =($A27-$A26)/365.25*$D$1*(1+$D$2+(VLOOKUP('RE Appr'!AF34,'RE Appr'!$E$13:$J$59,6,FALSE)/100)) -> 422,511 | AA27: =($A27-$A26)/365.25*$D$1*(1+$D$2+(VLOOKUP('RE Appr'!AG34,'RE Appr'!$E$13:$J$59,6,FALSE)/100)) -> 375,603 | AB27: =($A27-$A26)/365.25*$D$1*(1+$D$2+(VLOOKUP('RE Appr'!AH34,'RE Appr'!$E$13:$J$59,6,FALSE)/100)) -> 412,637 | AC27: =($A27-$A26)/365.25*$D$1*(1+$D$2+(VLOOKUP('RE Appr'!AI34,'RE Appr'!$E$13:$J$59,6,FALSE)/100)) -> 412,517 | AD27: =($A27-$A26)/365.25*$D$1*(1+$D$2+(VLOOKUP('RE Appr'!AJ34,'RE Appr'!$E$13:$J$59,6,FALSE)/100)) -> 441,108 | AE27: =($A27-$A26)/365.25*$D$1*(1+$D$2+(VLOOKUP('RE Appr'!AK34,'RE Appr'!$E$13:$J$59,6,FALSE)/100)) -> 451,019 | AF27: =($A27-$A26)/365.25*$D$1*(1+$D$2+(VLOOKUP('RE Appr'!AL34,'RE Appr'!$E$13:$J$59,6,FALSE)/100)) -> 437,041 | AG27: =($A27-$A26)/365.25*$D$1*(1+$D$2+(VLOOKUP('RE Appr'!AM34,'RE Appr'!$E$13:$J$59,6,FALSE)/100)) -> 419,633 | AH27: =($A27-$A26)/365.25*$D$1*(1+$D$2+(VLOOKUP('RE Appr'!AN34,'RE Appr'!$E$13:$J$59,6,FALSE)/100)) -> 434,213 | AI27: =($A27-$A26)/365.25*$D$1*(1+$D$2+(VLOOKUP('RE Appr'!AO34,'RE Appr'!$E$13:$J$59,6,FALSE)/100)) -> 420,192 | AJ27: =($A27-$A26)/365.25*$D$1*(1+$D$2+(VLOOKUP('RE Appr'!AP34,'RE Appr'!$E$13:$J$59,6,FALSE)/100)) -> 411,048 | AK27: =($A27-$A26)/365.25*$D$1*(1+$D$2+(VLOOKUP('RE Appr'!AQ34,'RE Appr'!$E$13:$J$59,6,FALSE)/100)) -> 399,326 | AL27: =($A27-$A26)/365.25*$D$1*(1+$D$2+(VLOOKUP('RE Appr'!AR34,'RE Appr'!$E$13:$J$59,6,FALSE)/100)) -> 419,290 | AM27: =($A27-$A26)/365.25*$D$1*(1+$D$2+(VLOOKUP('RE Appr'!AS34,'RE Appr'!$E$13:$J$59,6,FALSE)/100)) -> 423,750 | AN27: =($A27-$A26)/365.25*$D$1*(1+$D$2+(VLOOKUP('RE Appr'!AT34,'RE Appr'!$E$13:$J$59,6,FALSE)/100)) -> 455,688 | AO27: =($A27-$A26)/365.25*$D$1*(1+$D$2+(VLOOKUP('RE Appr'!AU34,'RE Appr'!$E$13:$J$59,6,FALSE)/100)) -> 418,174 | AP27: =($A27-$A26)/365.25*$D$1*(1+$D$2+(VLOOKUP('RE Appr'!AV34,'RE Appr'!$E$13:$J$59,6,FALSE)/100)) -> 412,517 | AQ27: =($A27-$A26)/365.25*$D$1*(1+$D$2+(VLOOKUP('RE Appr'!AW34,'RE Appr'!$E$13:$J$59,6,FALSE)/100)) -> 470,498 | AR27: =($A27-$A26)/365.25*$D$1*(1+$D$2+(VLOOKUP('RE Appr'!AX34,'RE Appr'!$E$13:$J$59,6,FALSE)/100)) -> 411,048 | AS27: =($A27-$A26)/365.25*$D$1*(1+$D$2+(VLOOKUP('RE Appr'!AY34,'RE Appr'!$E$13:$J$59,6,FALSE)/100)) -> 417,916 | AT27: =($A27-$A26)/365.25*$D$1*(1+$D$2+(VLOOKUP('RE Appr'!AZ34,'RE Appr'!$E$13:$J$59,6,FALSE)/100)) -> 419,290 | AU27: =($A27-$A26)/365.25*$D$1*(1+$D$2+(VLOOKUP('RE Appr'!BA34,'RE Appr'!$E$13:$J$59,6,FALSE)/100)) -> 441,108 | AV27: =($A27-$A26)/365.25*$D$1*(1+$D$2+(VLOOKUP('RE Appr'!BB34,'RE Appr'!$E$13:$J$59,6,FALSE)/100)) -> 411,048 | AW27: =($A27-$A26)/365.25*$D$1*(1+$D$2+(VLOOKUP('RE Appr'!BC34,'RE Appr'!$E$13:$J$59,6,FALSE)/100)) -> 411,048 | AX27: =($A27-$A26)/365.25*$D$1*(1+$D$2+(VLOOKUP('RE Appr'!BD34,'RE Appr'!$E$13:$J$59,6,FALSE)/100)) -> 429,316 | AY27: =($A27-$A26)/365.25*$D$1*(1+$D$2+(VLOOKUP('RE Appr'!BE34,'RE Appr'!$E$13:$J$59,6,FALSE)/100)) -> 423,750 | AZ27: =($A27-$A26)/365.25*$D$1*(1+$D$2+(VLOOKUP('RE Appr'!BF34,'RE Appr'!$E$13:$J$59,6,FALSE)/100)) -> 414,846 | BA27: =($A27-$A26)/365.25*$D$1*(1+$D$2+(VLOOKUP('RE Appr'!BG34,'RE Appr'!$E$13:$J$59,6,FALSE)/100)) -> 435,772 | BB27: =($A27-$A26)/365.25*$D$1*(1+$D$2+(VLOOKUP('RE Appr'!BH34,'RE Appr'!$E$13:$J$59,6,FALSE)/100)) -> 431,774 | BC27: =($A27-$A26)/365.25*$D$1*(1+$D$2+(VLOOKUP('RE Appr'!BI34,'RE Appr'!$E$13:$J$59,6,FALSE)/100)) -> 451,019 | BD27: =($A27-$A26)/365.25*$D$1*(1+$D$2+(VLOOKUP('RE Appr'!BJ34,'RE Appr'!$E$13:$J$59,6,FALSE)/100)) -> 412,517 | BE27: =($A27-$A26)/365.25*$D$1*(1+$D$2+(VLOOKUP('RE Appr'!BK34,'RE Appr'!$E$13:$J$59,6,FALSE)/100)) -> 423,750 | BF27: =($A27-$A26)/365.25*$D$1*(1+$D$2+(VLOOKUP('RE Appr'!BL34,'RE Appr'!$E$13:$J$59,6,FALSE)/100)) -> 412,637 | BG27: =($A27-$A26)/365.25*$D$1*(1+$D$2+(VLOOKUP('RE Appr'!BM34,'RE Appr'!$E$13:$J$59,6,FALSE)/100)) -> 419,343 | BH27: =($A27-$A26)/365.25*$D$1*(1+$D$2+(VLOOKUP('RE Appr'!BN34,'RE Appr'!$E$13:$J$59,6,FALSE)/100)) -> 422,511 | BI27: =($A27-$A26)/365.25*$D$1*(1+$D$2+(VLOOKUP('RE Appr'!BO34,'RE Appr'!$E$13:$J$59,6,FALSE)/100)) -> 409,270 | BJ27: =($A27-$A26)/365.25*$D$1*(1+$D$2+(VLOOKUP('RE Appr'!BP34,'RE Appr'!$E$13:$J$59,6,FALSE)/100)) -> 386,675 | BK27: =($A27-$A26)/365.25*$D$1*(1+$D$2+(VLOOKUP('RE Appr'!BQ34,'RE Appr'!$E$13:$J$59,6,FALSE)/100)) -> 441,108 | BL27: =($A27-$A26)/365.25*$D$1*(1+$D$2+(VLOOKUP('RE Appr'!BR34,'RE Appr'!$E$13:$J$59,6,FALSE)/100)) -> 423,750 | BM27: =($A27-$A26)/365.25*$D$1*(1+$D$2+(VLOOKUP('RE Appr'!BS34,'RE Appr'!$E$13:$J$59,6,FALSE)/100)) -> 416,235 | BN27: =($A27-$A26)/365.25*$D$1*(1+$D$2+(VLOOKUP('RE Appr'!BT34,'RE Appr'!$E$13:$J$59,6,FALSE)/100)) -> 386,675 | BO27: =($A27-$A26)/365.25*$D$1*(1+$D$2+(VLOOKUP('RE Appr'!BU34,'RE Appr'!$E$13:$J$59,6,FALSE)/100)) -> 426,042 | BP27: =($A27-$A26)/365.25*$D$1*(1+$D$2+(VLOOKUP('RE Appr'!BV34,'RE Appr'!$E$13:$J$59,6,FALSE)/100)) -> 422,511 | BQ27: =($A27-$A26)/365.25*$D$1*(1+$D$2+(VLOOKUP('RE Appr'!BW34,'RE Appr'!$E$13:$J$59,6,FALSE)/100)) -> 470,498 | BR27: =($A27-$A26)/365.25*$D$1*(1+$D$2+(VLOOKUP('RE Appr'!BX34,'RE Appr'!$E$13:$J$59,6,FALSE)/100)) -> 409,270 | BS27: =($A27-$A26)/365.25*$D$1*(1+$D$2+(VLOOKUP('RE Appr'!BY34,'RE Appr'!$E$13:$J$59,6,FALSE)/100)) -> 410,729 | BT27: =($A27-$A26)/365.25*$D$1*(1+$D$2+(VLOOKUP('RE Appr'!BZ34,'RE Appr'!$E$13:$J$59,6,FALSE)/100)) -> 412,278 | BU27: =($A27-$A26)/365.25*$D$1*(1+$D$2+(VLOOKUP('RE Appr'!CA34,'RE Appr'!$E$13:$J$59,6,FALSE)/100)) -> 418,834 | BV27: =($A27-$A26)/365.25*$D$1*(1+$D$2+(VLOOKUP('RE Appr'!CB34,'RE Appr'!$E$13:$J$59,6,FALSE)/100)) -> 409,270 | BW27: =($A27-$A26)/365.25*$D$1*(1+$D$2+(VLOOKUP('RE Appr'!CC34,'RE Appr'!$E$13:$J$59,6,FALSE)/100)) -> 421,666 | BX27: =($A27-$A26)/365.25*$D$1*(1+$D$2+(VLOOKUP('RE Appr'!CD34,'RE Appr'!$E$13:$J$59,6,FALSE)/100)) -> 383,827 | BY27: =($A27-$A26)/365.25*$D$1*(1+$D$2+(VLOOKUP('RE Appr'!CE34,'RE Appr'!$E$13:$J$59,6,FALSE)/100)) -> 420,192 | BZ27: =($A27-$A26)/365.25*$D$1*(1+$D$2+(VLOOKUP('RE Appr'!CF34,'RE Appr'!$E$13:$J$59,6,FALSE)/100)) -> 441,528 | CA27: =($A27-$A26)/365.25*$D$1*(1+$D$2+(VLOOKUP('RE Appr'!CG34,'RE Appr'!$E$13:$J$59,6,FALSE)/100)) -> 435,772 | CB27: =($A27-$A26)/365.25*$D$1*(1+$D$2+(VLOOKUP('RE Appr'!CH34,'RE Appr'!$E$13:$J$59,6,FALSE)/100)) -> 470,498 | CC27: =($A27-$A26)/365.25*$D$1*(1+$D$2+(VLOOKUP('RE Appr'!CI34,'RE Appr'!$E$13:$J$59,6,FALSE)/100)) -> 412,278 | CD27: =($A27-$A26)/365.25*$D$1*(1+$D$2+(VLOOKUP('RE Appr'!CJ34,'RE Appr'!$E$13:$J$59,6,FALSE)/100)) -> 434,213 | CE27: =($A27-$A26)/365.25*$D$1*(1+$D$2+(VLOOKUP('RE Appr'!CK34,'RE Appr'!$E$13:$J$59,6,FALSE)/100)) -> 441,108 | CF27: =($A27-$A26)/365.25*$D$1*(1+$D$2+(VLOOKUP('RE Appr'!CL34,'RE Appr'!$E$13:$J$59,6,FALSE)/100)) -> 423,730 | CG27: =($A27-$A26)/365.25*$D$1*(1+$D$2+(VLOOKUP('RE Appr'!CM34,'RE Appr'!$E$13:$J$59,6,FALSE)/100)) -> 419,290 | CH27: =($A27-$A26)/365.25*$D$1*(1+$D$2+(VLOOKUP('RE Appr'!CN34,'RE Appr'!$E$13:$J$59,6,FALSE)/100)) -> 416,695 | CI27: =($A27-$A26)/365.25*$D$1*(1+$D$2+(VLOOKUP('RE Appr'!CO34,'RE Appr'!$E$13:$J$59,6,FALSE)/100)) -> 470,498 | CJ27: =($A27-$A26)/365.25*$D$1*(1+$D$2+(VLOOKUP('RE Appr'!CP34,'RE Appr'!$E$13:$J$59,6,FALSE)/100)) -> 411,048 | CK27: =($A27-$A26)/365.25*$D$1*(1+$D$2+(VLOOKUP('RE Appr'!CQ34,'RE Appr'!$E$13:$J$59,6,FALSE)/100)) -> 470,498 | CL27: =($A27-$A26)/365.25*$D$1*(1+$D$2+(VLOOKUP('RE Appr'!CR34,'RE Appr'!$E$13:$J$59,6,FALSE)/100)) -> 375,603 | CM27: =($A27-$A26)/365.25*$D$1*(1+$D$2+(VLOOKUP('RE Appr'!CS34,'RE Appr'!$E$13:$J$59,6,FALSE)/100)) -> 470,498 | CN27: =($A27-$A26)/365.25*$D$1*(1+$D$2+(VLOOKUP('RE Appr'!CT34,'RE Appr'!$E$13:$J$59,6,FALSE)/100)) -> 414,846 | CO27: =($A27-$A26)/365.25*$D$1*(1+$D$2+(VLOOKUP('RE Appr'!CU34,'RE Appr'!$E$13:$J$59,6,FALSE)/100)) -> 411,048 | CP27: =($A27-$A26)/365.25*$D$1*(1+$D$2+(VLOOKUP('RE Appr'!CV34,'RE Appr'!$E$13:$J$59,6,FALSE)/100)) -> 412,637 | CQ27: =($A27-$A26)/365.25*$D$1*(1+$D$2+(VLOOKUP('RE Appr'!CW34,'RE Appr'!$E$13:$J$59,6,FALSE)/100)) -> 415,046 | CR27: =($A27-$A26)/365.25*$D$1*(1+$D$2+(VLOOKUP('RE Appr'!CX34,'RE Appr'!$E$13:$J$59,6,FALSE)/100)) -> 435,772 | CS27: =($A27-$A26)/365.25*$D$1*(1+$D$2+(VLOOKUP('RE Appr'!CY34,'RE Appr'!$E$13:$J$59,6,FALSE)/100)) -> 455,688 | CT27: =($A27-$A26)/365.25*$D$1*(1+$D$2+(VLOOKUP('RE Appr'!CZ34,'RE Appr'!$E$13:$J$59,6,FALSE)/100)) -> 412,517 | CU27: =($A27-$A26)/365.25*$D$1*(1+$D$2+(VLOOKUP('RE Appr'!DA34,'RE Appr'!$E$13:$J$59,6,FALSE)/100)) -> 455,688 | CV27: =($A27-$A26)/365.25*$D$1*(1+$D$2+(VLOOKUP('RE Appr'!DB34,'RE Appr'!$E$13:$J$59,6,FALSE)/100)) -> 412,977 | CW27: =($A27-$A26)/365.25*$D$1*(1+$D$2+(VLOOKUP('RE Appr'!DC34,'RE Appr'!$E$13:$J$59,6,FALSE)/100)) -> 419,633 | CX27: =($A27-$A26)/365.25*$D$1*(1+$D$2+(VLOOKUP('RE Appr'!DD34,'RE Appr'!$E$13:$J$59,6,FALSE)/100)) -> 410,729 | CY27: =($A27-$A26)/365.25*$D$1*(1+$D$2+(VLOOKUP('RE Appr'!DE34,'RE Appr'!$E$13:$J$59,6,FALSE)/100)) -> 470,498 | CZ27: =($A27-$A26)/365.25*$D$1*(1+$D$2+(VLOOKUP('RE Appr'!DF34,'RE Appr'!$E$13:$J$59,6,FALSE)/100)) -> 431,774 | DA27: =($A27-$A26)/365.25*$D$1*(1+$D$2+(VLOOKUP('RE Appr'!DG34,'RE Appr'!$E$13:$J$59,6,FALSE)/100)) -> 422,511
A28: =Main!A30 -> 2045-12-30 | B28: 23 | F28: =($A28-$A27)/365.25*$D$1*(1+$D$2+(VLOOKUP('RE Appr'!L35,'RE Appr'!$E$13:$J$59,6,FALSE)/100)) -> 412,977 | G28: =($A28-$A27)/365.25*$D$1*(1+$D$2+(VLOOKUP('RE Appr'!M35,'RE Appr'!$E$13:$J$59,6,FALSE)/100)) -> 451,019 | H28: =($A28-$A27)/365.25*$D$1*(1+$D$2+(VLOOKUP('RE Appr'!N35,'RE Appr'!$E$13:$J$59,6,FALSE)/100)) -> 421,666 | I28: =($A28-$A27)/365.25*$D$1*(1+$D$2+(VLOOKUP('RE Appr'!O35,'RE Appr'!$E$13:$J$59,6,FALSE)/100)) -> 440,668 | J28: =($A28-$A27)/365.25*$D$1*(1+$D$2+(VLOOKUP('RE Appr'!P35,'RE Appr'!$E$13:$J$59,6,FALSE)/100)) -> 440,668 | K28: =($A28-$A27)/365.25*$D$1*(1+$D$2+(VLOOKUP('RE Appr'!Q35,'RE Appr'!$E$13:$J$59,6,FALSE)/100)) -> 411,048 | L28: =($A28-$A27)/365.25*$D$1*(1+$D$2+(VLOOKUP('RE Appr'!R35,'RE Appr'!$E$13:$J$59,6,FALSE)/100)) -> 421,666 | M28: =($A28-$A27)/365.25*$D$1*(1+$D$2+(VLOOKUP('RE Appr'!S35,'RE Appr'!$E$13:$J$59,6,FALSE)/100)) -> 418,834 | N28: =($A28-$A27)/365.25*$D$1*(1+$D$2+(VLOOKUP('RE Appr'!T35,'RE Appr'!$E$13:$J$59,6,FALSE)/100)) -> 418,834 | O28: =($A28-$A27)/365.25*$D$1*(1+$D$2+(VLOOKUP('RE Appr'!U35,'RE Appr'!$E$13:$J$59,6,FALSE)/100)) -> 414,846 | P28: =($A28-$A27)/365.25*$D$1*(1+$D$2+(VLOOKUP('RE Appr'!V35,'RE Appr'!$E$13:$J$59,6,FALSE)/100)) -> 436,841 | Q28: =($A28-$A27)/365.25*$D$1*(1+$D$2+(VLOOKUP('RE Appr'!W35,'RE Appr'!$E$13:$J$59,6,FALSE)/100)) -> 437,041 | R28: =($A28-$A27)/365.25*$D$1*(1+$D$2+(VLOOKUP('RE Appr'!X35,'RE Appr'!$E$13:$J$59,6,FALSE)/100)) -> 440,668 | S28: =($A28-$A27)/365.25*$D$1*(1+$D$2+(VLOOKUP('RE Appr'!Y35,'RE Appr'!$E$13:$J$59,6,FALSE)/100)) -> 435,772 | T28: =($A28-$A27)/365.25*$D$1*(1+$D$2+(VLOOKUP('RE Appr'!Z35,'RE Appr'!$E$13:$J$59,6,FALSE)/100)) -> 441,528 | U28: =($A28-$A27)/365.25*$D$1*(1+$D$2+(VLOOKUP('RE Appr'!AA35,'RE Appr'!$E$13:$J$59,6,FALSE)/100)) -> 401,385 | V28: =($A28-$A27)/365.25*$D$1*(1+$D$2+(VLOOKUP('RE Appr'!AB35,'RE Appr'!$E$13:$J$59,6,FALSE)/100)) -> 371,326 | W28: =($A28-$A27)/365.25*$D$1*(1+$D$2+(VLOOKUP('RE Appr'!AC35,'RE Appr'!$E$13:$J$59,6,FALSE)/100)) -> 429,316 | X28: =($A28-$A27)/365.25*$D$1*(1+$D$2+(VLOOKUP('RE Appr'!AD35,'RE Appr'!$E$13:$J$59,6,FALSE)/100)) -> 431,774 | Y28: =($A28-$A27)/365.25*$D$1*(1+$D$2+(VLOOKUP('RE Appr'!AE35,'RE Appr'!$E$13:$J$59,6,FALSE)/100)) -> 399,326 | Z28: =($A28-$A27)/365.25*$D$1*(1+$D$2+(VLOOKUP('RE Appr'!AF35,'RE Appr'!$E$13:$J$59,6,FALSE)/100)) -> 419,343 | AA28: =($A28-$A27)/365.25*$D$1*(1+$D$2+(VLOOKUP('RE Appr'!AG35,'RE Appr'!$E$13:$J$59,6,FALSE)/100)) -> 410,729 | AB28: =($A28-$A27)/365.25*$D$1*(1+$D$2+(VLOOKUP('RE Appr'!AH35,'RE Appr'!$E$13:$J$59,6,FALSE)/100)) -> 411,048 | AC28: =($A28-$A27)/365.25*$D$1*(1+$D$2+(VLOOKUP('RE Appr'!AI35,'RE Appr'!$E$13:$J$59,6,FALSE)/100)) -> 429,316 | AD28: =($A28-$A27)/365.25*$D$1*(1+$D$2+(VLOOKUP('RE Appr'!AJ35,'RE Appr'!$E$13:$J$59,6,FALSE)/100)) -> 416,695 | AE28: =($A28-$A27)/365.25*$D$1*(1+$D$2+(VLOOKUP('RE Appr'!AK35,'RE Appr'!$E$13:$J$59,6,FALSE)/100)) -> 418,834 | AF28: =($A28-$A27)/365.25*$D$1*(1+$D$2+(VLOOKUP('RE Appr'!AL35,'RE Appr'!$E$13:$J$59,6,FALSE)/100)) -> 437,041 | AG28: =($A28-$A27)/365.25*$D$1*(1+$D$2+(VLOOKUP('RE Appr'!AM35,'RE Appr'!$E$13:$J$59,6,FALSE)/100)) -> 419,543 | AH28: =($A28-$A27)/365.25*$D$1*(1+$D$2+(VLOOKUP('RE Appr'!AN35,'RE Appr'!$E$13:$J$59,6,FALSE)/100)) -> 437,041 | AI28: =($A28-$A27)/365.25*$D$1*(1+$D$2+(VLOOKUP('RE Appr'!AO35,'RE Appr'!$E$13:$J$59,6,FALSE)/100)) -> 412,517 | AJ28: =($A28-$A27)/365.25*$D$1*(1+$D$2+(VLOOKUP('RE Appr'!AP35,'RE Appr'!$E$13:$J$59,6,FALSE)/100)) -> 383,827 | AK28: =($A28-$A27)/365.25*$D$1*(1+$D$2+(VLOOKUP('RE Appr'!AQ35,'RE Appr'!$E$13:$J$59,6,FALSE)/100)) -> 435,182 | AL28: =($A28-$A27)/365.25*$D$1*(1+$D$2+(VLOOKUP('RE Appr'!AR35,'RE Appr'!$E$13:$J$59,6,FALSE)/100)) -> 414,846 | AM28: =($A28-$A27)/365.25*$D$1*(1+$D$2+(VLOOKUP('RE Appr'!AS35,'RE Appr'!$E$13:$J$59,6,FALSE)/100)) -> 440,668 | AN28: =($A28-$A27)/365.25*$D$1*(1+$D$2+(VLOOKUP('RE Appr'!AT35,'RE Appr'!$E$13:$J$59,6,FALSE)/100)) -> 421,666 | AO28: =($A28-$A27)/365.25*$D$1*(1+$D$2+(VLOOKUP('RE Appr'!AU35,'RE Appr'!$E$13:$J$59,6,FALSE)/100)) -> 412,278 | AP28: =($A28-$A27)/365.25*$D$1*(1+$D$2+(VLOOKUP('RE Appr'!AV35,'RE Appr'!$E$13:$J$59,6,FALSE)/100)) -> 422,511 | AQ28: =($A28-$A27)/365.25*$D$1*(1+$D$2+(VLOOKUP('RE Appr'!AW35,'RE Appr'!$E$13:$J$59,6,FALSE)/100)) -> 441,108 | AR28: =($A28-$A27)/365.25*$D$1*(1+$D$2+(VLOOKUP('RE Appr'!AX35,'RE Appr'!$E$13:$J$59,6,FALSE)/100)) -> 441,528 | AS28: =($A28-$A27)/365.25*$D$1*(1+$D$2+(VLOOKUP('RE Appr'!AY35,'RE Appr'!$E$13:$J$59,6,FALSE)/100)) -> 386,675 | AT28: =($A28-$A27)/365.25*$D$1*(1+$D$2+(VLOOKUP('RE Appr'!AZ35,'RE Appr'!$E$13:$J$59,6,FALSE)/100)) -> 434,213 | AU28: =($A28-$A27)/365.25*$D$1*(1+$D$2+(VLOOKUP('RE Appr'!BA35,'RE Appr'!$E$13:$J$59,6,FALSE)/100)) -> 411,048 | AV28: =($A28-$A27)/365.25*$D$1*(1+$D$2+(VLOOKUP('RE Appr'!BB35,'RE Appr'!$E$13:$J$59,6,FALSE)/100)) -> 410,729 | AW28: =($A28-$A27)/365.25*$D$1*(1+$D$2+(VLOOKUP('RE Appr'!BC35,'RE Appr'!$E$13:$J$59,6,FALSE)/100)) -> 416,235 | AX28: =($A28-$A27)/365.25*$D$1*(1+$D$2+(VLOOKUP('RE Appr'!BD35,'RE Appr'!$E$13:$J$59,6,FALSE)/100)) -> 423,730 | AY28: =($A28-$A27)/365.25*$D$1*(1+$D$2+(VLOOKUP('RE Appr'!BE35,'RE Appr'!$E$13:$J$59,6,FALSE)/100)) -> 418,834 | AZ28: =($A28-$A27)/365.25*$D$1*(1+$D$2+(VLOOKUP('RE Appr'!BF35,'RE Appr'!$E$13:$J$59,6,FALSE)/100)) -> 434,213 | BA28: =($A28-$A27)/365.25*$D$1*(1+$D$2+(VLOOKUP('RE Appr'!BG35,'RE Appr'!$E$13:$J$59,6,FALSE)/100)) -> 411,048 | BB28: =($A28-$A27)/365.25*$D$1*(1+$D$2+(VLOOKUP('RE Appr'!BH35,'RE Appr'!$E$13:$J$59,6,FALSE)/100)) -> 423,730 | BC28: =($A28-$A27)/365.25*$D$1*(1+$D$2+(VLOOKUP('RE Appr'!BI35,'RE Appr'!$E$13:$J$59,6,FALSE)/100)) -> 416,695 | BD28: =($A28-$A27)/365.25*$D$1*(1+$D$2+(VLOOKUP('RE Appr'!BJ35,'RE Appr'!$E$13:$J$59,6,FALSE)/100)) -> 421,666 | BE28: =($A28-$A27)/365.25*$D$1*(1+$D$2+(VLOOKUP('RE Appr'!BK35,'RE Appr'!$E$13:$J$59,6,FALSE)/100)) -> 420,192 | BF28: =($A28-$A27)/365.25*$D$1*(1+$D$2+(VLOOKUP('RE Appr'!BL35,'RE Appr'!$E$13:$J$59,6,FALSE)/100)) -> 417,654 | BG28: =($A28-$A27)/365.25*$D$1*(1+$D$2+(VLOOKUP('RE Appr'!BM35,'RE Appr'!$E$13:$J$59,6,FALSE)/100)) -> 437,041 | BH28: =($A28-$A27)/365.25*$D$1*(1+$D$2+(VLOOKUP('RE Appr'!BN35,'RE Appr'!$E$13:$J$59,6,FALSE)/100)) -> 412,517 | BI28: =($A28-$A27)/365.25*$D$1*(1+$D$2+(VLOOKUP('RE Appr'!BO35,'RE Appr'!$E$13:$J$59,6,FALSE)/100)) -> 423,750 | BJ28: =($A28-$A27)/365.25*$D$1*(1+$D$2+(VLOOKUP('RE Appr'!BP35,'RE Appr'!$E$13:$J$59,6,FALSE)/100)) -> 412,517 | BK28: =($A28-$A27)/365.25*$D$1*(1+$D$2+(VLOOKUP('RE Appr'!BQ35,'RE Appr'!$E$13:$J$59,6,FALSE)/100)) -> 429,316 | BL28: =($A28-$A27)/365.25*$D$1*(1+$D$2+(VLOOKUP('RE Appr'!BR35,'RE Appr'!$E$13:$J$59,6,FALSE)/100)) -> 470,498 | BM28: =($A28-$A27)/365.25*$D$1*(1+$D$2+(VLOOKUP('RE Appr'!BS35,'RE Appr'!$E$13:$J$59,6,FALSE)/100)) -> 419,543 | BN28: =($A28-$A27)/365.25*$D$1*(1+$D$2+(VLOOKUP('RE Appr'!BT35,'RE Appr'!$E$13:$J$59,6,FALSE)/100)) -> 412,517 | BO28: =($A28-$A27)/365.25*$D$1*(1+$D$2+(VLOOKUP('RE Appr'!BU35,'RE Appr'!$E$13:$J$59,6,FALSE)/100)) -> 415,848 | BP28: =($A28-$A27)/365.25*$D$1*(1+$D$2+(VLOOKUP('RE Appr'!BV35,'RE Appr'!$E$13:$J$59,6,FALSE)/100)) -> 412,517 | BQ28: =($A28-$A27)/365.25*$D$1*(1+$D$2+(VLOOKUP('RE Appr'!BW35,'RE Appr'!$E$13:$J$59,6,FALSE)/100)) -> 423,730 | BR28: =($A28-$A27)/365.25*$D$1*(1+$D$2+(VLOOKUP('RE Appr'!BX35,'RE Appr'!$E$13:$J$59,6,FALSE)/100)) -> 412,517 | BS28: =($A28-$A27)/365.25*$D$1*(1+$D$2+(VLOOKUP('RE Appr'!BY35,'RE Appr'!$E$13:$J$59,6,FALSE)/100)) -> 429,316 | BT28: =($A28-$A27)/365.25*$D$1*(1+$D$2+(VLOOKUP('RE Appr'!BZ35,'RE Appr'!$E$13:$J$59,6,FALSE)/100)) -> 437,041 | BU28: =($A28-$A27)/365.25*$D$1*(1+$D$2+(VLOOKUP('RE Appr'!CA35,'RE Appr'!$E$13:$J$59,6,FALSE)/100)) -> 409,270 | BV28: =($A28-$A27)/365.25*$D$1*(1+$D$2+(VLOOKUP('RE Appr'!CB35,'RE Appr'!$E$13:$J$59,6,FALSE)/100)) -> 418,834 | BW28: =($A28-$A27)/365.25*$D$1*(1+$D$2+(VLOOKUP('RE Appr'!CC35,'RE Appr'!$E$13:$J$59,6,FALSE)/100)) -> 431,774 | BX28: =($A28-$A27)/365.25*$D$1*(1+$D$2+(VLOOKUP('RE Appr'!CD35,'RE Appr'!$E$13:$J$59,6,FALSE)/100)) -> 383,827 | BY28: =($A28-$A27)/365.25*$D$1*(1+$D$2+(VLOOKUP('RE Appr'!CE35,'RE Appr'!$E$13:$J$59,6,FALSE)/100)) -> 441,528 | BZ28: =($A28-$A27)/365.25*$D$1*(1+$D$2+(VLOOKUP('RE Appr'!CF35,'RE Appr'!$E$13:$J$59,6,FALSE)/100)) -> 421,666 | CA28: =($A28-$A27)/365.25*$D$1*(1+$D$2+(VLOOKUP('RE Appr'!CG35,'RE Appr'!$E$13:$J$59,6,FALSE)/100)) -> 423,730 | CB28: =($A28-$A27)/365.25*$D$1*(1+$D$2+(VLOOKUP('RE Appr'!CH35,'RE Appr'!$E$13:$J$59,6,FALSE)/100)) -> 435,772 | CC28: =($A28-$A27)/365.25*$D$1*(1+$D$2+(VLOOKUP('RE Appr'!CI35,'RE Appr'!$E$13:$J$59,6,FALSE)/100)) -> 434,213 | CD28: =($A28-$A27)/365.25*$D$1*(1+$D$2+(VLOOKUP('RE Appr'!CJ35,'RE Appr'!$E$13:$J$59,6,FALSE)/100)) -> 419,290 | CE28: =($A28-$A27)/365.25*$D$1*(1+$D$2+(VLOOKUP('RE Appr'!CK35,'RE Appr'!$E$13:$J$59,6,FALSE)/100)) -> 416,235 | CF28: =($A28-$A27)/365.25*$D$1*(1+$D$2+(VLOOKUP('RE Appr'!CL35,'RE Appr'!$E$13:$J$59,6,FALSE)/100)) -> 436,841 | CG28: =($A28-$A27)/365.25*$D$1*(1+$D$2+(VLOOKUP('RE Appr'!CM35,'RE Appr'!$E$13:$J$59,6,FALSE)/100)) -> 412,278 | CH28: =($A28-$A27)/365.25*$D$1*(1+$D$2+(VLOOKUP('RE Appr'!CN35,'RE Appr'!$E$13:$J$59,6,FALSE)/100)) -> 407,091 | CI28: =($A28-$A27)/365.25*$D$1*(1+$D$2+(VLOOKUP('RE Appr'!CO35,'RE Appr'!$E$13:$J$59,6,FALSE)/100)) -> 409,270 | CJ28: =($A28-$A27)/365.25*$D$1*(1+$D$2+(VLOOKUP('RE Appr'!CP35,'RE Appr'!$E$13:$J$59,6,FALSE)/100)) -> 441,108 | CK28: =($A28-$A27)/365.25*$D$1*(1+$D$2+(VLOOKUP('RE Appr'!CQ35,'RE Appr'!$E$13:$J$59,6,FALSE)/100)) -> 441,108 | CL28: =($A28-$A27)/365.25*$D$1*(1+$D$2+(VLOOKUP('RE Appr'!CR35,'RE Appr'!$E$13:$J$59,6,FALSE)/100)) -> 412,977 | CM28: =($A28-$A27)/365.25*$D$1*(1+$D$2+(VLOOKUP('RE Appr'!CS35,'RE Appr'!$E$13:$J$59,6,FALSE)/100)) -> 426,042 | CN28: =($A28-$A27)/365.25*$D$1*(1+$D$2+(VLOOKUP('RE Appr'!CT35,'RE Appr'!$E$13:$J$59,6,FALSE)/100)) -> 419,543 | CO28: =($A28-$A27)/365.25*$D$1*(1+$D$2+(VLOOKUP('RE Appr'!CU35,'RE Appr'!$E$13:$J$59,6,FALSE)/100)) -> 415,286 | CP28: =($A28-$A27)/365.25*$D$1*(1+$D$2+(VLOOKUP('RE Appr'!CV35,'RE Appr'!$E$13:$J$59,6,FALSE)/100)) -> 451,019 | CQ28: =($A28-$A27)/365.25*$D$1*(1+$D$2+(VLOOKUP('RE Appr'!CW35,'RE Appr'!$E$13:$J$59,6,FALSE)/100)) -> 407,091 | CR28: =($A28-$A27)/365.25*$D$1*(1+$D$2+(VLOOKUP('RE Appr'!CX35,'RE Appr'!$E$13:$J$59,6,FALSE)/100)) -> 410,729 | CS28: =($A28-$A27)/365.25*$D$1*(1+$D$2+(VLOOKUP('RE Appr'!CY35,'RE Appr'!$E$13:$J$59,6,FALSE)/100)) -> 416,235 | CT28: =($A28-$A27)/365.25*$D$1*(1+$D$2+(VLOOKUP('RE Appr'!CZ35,'RE Appr'!$E$13:$J$59,6,FALSE)/100)) -> 418,834 | CU28: =($A28-$A27)/365.25*$D$1*(1+$D$2+(VLOOKUP('RE Appr'!DA35,'RE Appr'!$E$13:$J$59,6,FALSE)/100)) -> 415,848 | CV28: =($A28-$A27)/365.25*$D$1*(1+$D$2+(VLOOKUP('RE Appr'!DB35,'RE Appr'!$E$13:$J$59,6,FALSE)/100)) -> 415,848 | CW28: =($A28-$A27)/365.25*$D$1*(1+$D$2+(VLOOKUP('RE Appr'!DC35,'RE Appr'!$E$13:$J$59,6,FALSE)/100)) -> 409,270 | CX28: =($A28-$A27)/365.25*$D$1*(1+$D$2+(VLOOKUP('RE Appr'!DD35,'RE Appr'!$E$13:$J$59,6,FALSE)/100)) -> 441,108 | CY28: =($A28-$A27)/365.25*$D$1*(1+$D$2+(VLOOKUP('RE Appr'!DE35,'RE Appr'!$E$13:$J$59,6,FALSE)/100)) -> 410,729 | CZ28: =($A28-$A27)/365.25*$D$1*(1+$D$2+(VLOOKUP('RE Appr'!DF35,'RE Appr'!$E$13:$J$59,6,FALSE)/100)) -> 418,174 | DA28: =($A28-$A27)/365.25*$D$1*(1+$D$2+(VLOOKUP('RE Appr'!DG35,'RE Appr'!$E$13:$J$59,6,FALSE)/100)) -> 415,286
A29: =Main!A31 -> 2046-12-30 | B29: 24 | F29: =($A29-$A28)/365.25*$D$1*(1+$D$2+(VLOOKUP('RE Appr'!L36,'RE Appr'!$E$13:$J$59,6,FALSE)/100)) -> 418,834 | G29: =($A29-$A28)/365.25*$D$1*(1+$D$2+(VLOOKUP('RE Appr'!M36,'RE Appr'!$E$13:$J$59,6,FALSE)/100)) -> 411,048 | H29: =($A29-$A28)/365.25*$D$1*(1+$D$2+(VLOOKUP('RE Appr'!N36,'RE Appr'!$E$13:$J$59,6,FALSE)/100)) -> 411,048 | I29: =($A29-$A28)/365.25*$D$1*(1+$D$2+(VLOOKUP('RE Appr'!O36,'RE Appr'!$E$13:$J$59,6,FALSE)/100)) -> 412,517 | J29: =($A29-$A28)/365.25*$D$1*(1+$D$2+(VLOOKUP('RE Appr'!P36,'RE Appr'!$E$13:$J$59,6,FALSE)/100)) -> 455,688 | K29: =($A29-$A28)/365.25*$D$1*(1+$D$2+(VLOOKUP('RE Appr'!Q36,'RE Appr'!$E$13:$J$59,6,FALSE)/100)) -> 415,848 | L29: =($A29-$A28)/365.25*$D$1*(1+$D$2+(VLOOKUP('RE Appr'!R36,'RE Appr'!$E$13:$J$59,6,FALSE)/100)) -> 415,286 | M29: =($A29-$A28)/365.25*$D$1*(1+$D$2+(VLOOKUP('RE Appr'!S36,'RE Appr'!$E$13:$J$59,6,FALSE)/100)) -> 451,019 | N29: =($A29-$A28)/365.25*$D$1*(1+$D$2+(VLOOKUP('RE Appr'!T36,'RE Appr'!$E$13:$J$59,6,FALSE)/100)) -> 401,385 | O29: =($A29-$A28)/365.25*$D$1*(1+$D$2+(VLOOKUP('RE Appr'!U36,'RE Appr'!$E$13:$J$59,6,FALSE)/100)) -> 383,827 | P29: =($A29-$A28)/365.25*$D$1*(1+$D$2+(VLOOKUP('RE Appr'!V36,'RE Appr'!$E$13:$J$59,6,FALSE)/100)) -> 416,695 | Q29: =($A29-$A28)/365.25*$D$1*(1+$D$2+(VLOOKUP('RE Appr'!W36,'RE Appr'!$E$13:$J$59,6,FALSE)/100)) -> 416,235 | R29: =($A29-$A28)/365.25*$D$1*(1+$D$2+(VLOOKUP('RE Appr'!X36,'RE Appr'!$E$13:$J$59,6,FALSE)/100)) -> 411,048 | S29: =($A29-$A28)/365.25*$D$1*(1+$D$2+(VLOOKUP('RE Appr'!Y36,'RE Appr'!$E$13:$J$59,6,FALSE)/100)) -> 419,543 | T29: =($A29-$A28)/365.25*$D$1*(1+$D$2+(VLOOKUP('RE Appr'!Z36,'RE Appr'!$E$13:$J$59,6,FALSE)/100)) -> 412,637 | U29: =($A29-$A28)/365.25*$D$1*(1+$D$2+(VLOOKUP('RE Appr'!AA36,'RE Appr'!$E$13:$J$59,6,FALSE)/100)) -> 431,774 | V29: =($A29-$A28)/365.25*$D$1*(1+$D$2+(VLOOKUP('RE Appr'!AB36,'RE Appr'!$E$13:$J$59,6,FALSE)/100)) -> 371,326 | W29: =($A29-$A28)/365.25*$D$1*(1+$D$2+(VLOOKUP('RE Appr'!AC36,'RE Appr'!$E$13:$J$59,6,FALSE)/100)) -> 371,326 | X29: =($A29-$A28)/365.25*$D$1*(1+$D$2+(VLOOKUP('RE Appr'!AD36,'RE Appr'!$E$13:$J$59,6,FALSE)/100)) -> 417,654 | Y29: =($A29-$A28)/365.25*$D$1*(1+$D$2+(VLOOKUP('RE Appr'!AE36,'RE Appr'!$E$13:$J$59,6,FALSE)/100)) -> 441,528 | Z29: =($A29-$A28)/365.25*$D$1*(1+$D$2+(VLOOKUP('RE Appr'!AF36,'RE Appr'!$E$13:$J$59,6,FALSE)/100)) -> 431,774 | AA29: =($A29-$A28)/365.25*$D$1*(1+$D$2+(VLOOKUP('RE Appr'!AG36,'RE Appr'!$E$13:$J$59,6,FALSE)/100)) -> 412,637 | AB29: =($A29-$A28)/365.25*$D$1*(1+$D$2+(VLOOKUP('RE Appr'!AH36,'RE Appr'!$E$13:$J$59,6,FALSE)/100)) -> 470,498 | AC29: =($A29-$A28)/365.25*$D$1*(1+$D$2+(VLOOKUP('RE Appr'!AI36,'RE Appr'!$E$13:$J$59,6,FALSE)/100)) -> 423,730 | AD29: =($A29-$A28)/365.25*$D$1*(1+$D$2+(VLOOKUP('RE Appr'!AJ36,'RE Appr'!$E$13:$J$59,6,FALSE)/100)) -> 419,290 | AE29: =($A29-$A28)/365.25*$D$1*(1+$D$2+(VLOOKUP('RE Appr'!AK36,'RE Appr'!$E$13:$J$59,6,FALSE)/100)) -> 416,235 | AF29: =($A29-$A28)/365.25*$D$1*(1+$D$2+(VLOOKUP('RE Appr'!AL36,'RE Appr'!$E$13:$J$59,6,FALSE)/100)) -> 415,848 | AG29: =($A29-$A28)/365.25*$D$1*(1+$D$2+(VLOOKUP('RE Appr'!AM36,'RE Appr'!$E$13:$J$59,6,FALSE)/100)) -> 410,729 | AH29: =($A29-$A28)/365.25*$D$1*(1+$D$2+(VLOOKUP('RE Appr'!AN36,'RE Appr'!$E$13:$J$59,6,FALSE)/100)) -> 435,182 | AI29: =($A29-$A28)/365.25*$D$1*(1+$D$2+(VLOOKUP('RE Appr'!AO36,'RE Appr'!$E$13:$J$59,6,FALSE)/100)) -> 426,042 | AJ29: =($A29-$A28)/365.25*$D$1*(1+$D$2+(VLOOKUP('RE Appr'!AP36,'RE Appr'!$E$13:$J$59,6,FALSE)/100)) -> 470,498 | AK29: =($A29-$A28)/365.25*$D$1*(1+$D$2+(VLOOKUP('RE Appr'!AQ36,'RE Appr'!$E$13:$J$59,6,FALSE)/100)) -> 407,091 | AL29: =($A29-$A28)/365.25*$D$1*(1+$D$2+(VLOOKUP('RE Appr'!AR36,'RE Appr'!$E$13:$J$59,6,FALSE)/100)) -> 412,637 | AM29: =($A29-$A28)/365.25*$D$1*(1+$D$2+(VLOOKUP('RE Appr'!AS36,'RE Appr'!$E$13:$J$59,6,FALSE)/100)) -> 415,046 | AN29: =($A29-$A28)/365.25*$D$1*(1+$D$2+(VLOOKUP('RE Appr'!AT36,'RE Appr'!$E$13:$J$59,6,FALSE)/100)) -> 441,528 | AO29: =($A29-$A28)/365.25*$D$1*(1+$D$2+(VLOOKUP('RE Appr'!AU36,'RE Appr'!$E$13:$J$59,6,FALSE)/100)) -> 470,498 | AP29: =($A29-$A28)/365.25*$D$1*(1+$D$2+(VLOOKUP('RE Appr'!AV36,'RE Appr'!$E$13:$J$59,6,FALSE)/100)) -> 375,603 | AQ29: =($A29-$A28)/365.25*$D$1*(1+$D$2+(VLOOKUP('RE Appr'!AW36,'RE Appr'!$E$13:$J$59,6,FALSE)/100)) -> 429,316 | AR29: =($A29-$A28)/365.25*$D$1*(1+$D$2+(VLOOKUP('RE Appr'!AX36,'RE Appr'!$E$13:$J$59,6,FALSE)/100)) -> 435,182 | AS29: =($A29-$A28)/365.25*$D$1*(1+$D$2+(VLOOKUP('RE Appr'!AY36,'RE Appr'!$E$13:$J$59,6,FALSE)/100)) -> 375,603 | AT29: =($A29-$A28)/365.25*$D$1*(1+$D$2+(VLOOKUP('RE Appr'!AZ36,'RE Appr'!$E$13:$J$59,6,FALSE)/100)) -> 421,666 | AU29: =($A29-$A28)/365.25*$D$1*(1+$D$2+(VLOOKUP('RE Appr'!BA36,'RE Appr'!$E$13:$J$59,6,FALSE)/100)) -> 415,046 | AV29: =($A29-$A28)/365.25*$D$1*(1+$D$2+(VLOOKUP('RE Appr'!BB36,'RE Appr'!$E$13:$J$59,6,FALSE)/100)) -> 415,848 | AW29: =($A29-$A28)/365.25*$D$1*(1+$D$2+(VLOOKUP('RE Appr'!BC36,'RE Appr'!$E$13:$J$59,6,FALSE)/100)) -> 451,019 | AX29: =($A29-$A28)/365.25*$D$1*(1+$D$2+(VLOOKUP('RE Appr'!BD36,'RE Appr'!$E$13:$J$59,6,FALSE)/100)) -> 415,848 | AY29: =($A29-$A28)/365.25*$D$1*(1+$D$2+(VLOOKUP('RE Appr'!BE36,'RE Appr'!$E$13:$J$59,6,FALSE)/100)) -> 419,290 | AZ29: =($A29-$A28)/365.25*$D$1*(1+$D$2+(VLOOKUP('RE Appr'!BF36,'RE Appr'!$E$13:$J$59,6,FALSE)/100)) -> 420,192 | BA29: =($A29-$A28)/365.25*$D$1*(1+$D$2+(VLOOKUP('RE Appr'!BG36,'RE Appr'!$E$13:$J$59,6,FALSE)/100)) -> 434,213 | BB29: =($A29-$A28)/365.25*$D$1*(1+$D$2+(VLOOKUP('RE Appr'!BH36,'RE Appr'!$E$13:$J$59,6,FALSE)/100)) -> 407,091 | BC29: =($A29-$A28)/365.25*$D$1*(1+$D$2+(VLOOKUP('RE Appr'!BI36,'RE Appr'!$E$13:$J$59,6,FALSE)/100)) -> 410,729 | BD29: =($A29-$A28)/365.25*$D$1*(1+$D$2+(VLOOKUP('RE Appr'!BJ36,'RE Appr'!$E$13:$J$59,6,FALSE)/100)) -> 401,385 | BE29: =($A29-$A28)/365.25*$D$1*(1+$D$2+(VLOOKUP('RE Appr'!BK36,'RE Appr'!$E$13:$J$59,6,FALSE)/100)) -> 407,091 | BF29: =($A29-$A28)/365.25*$D$1*(1+$D$2+(VLOOKUP('RE Appr'!BL36,'RE Appr'!$E$13:$J$59,6,FALSE)/100)) -> 417,916 | BG29: =($A29-$A28)/365.25*$D$1*(1+$D$2+(VLOOKUP('RE Appr'!BM36,'RE Appr'!$E$13:$J$59,6,FALSE)/100)) -> 423,730 | BH29: =($A29-$A28)/365.25*$D$1*(1+$D$2+(VLOOKUP('RE Appr'!BN36,'RE Appr'!$E$13:$J$59,6,FALSE)/100)) -> 411,048 | BI29: =($A29-$A28)/365.25*$D$1*(1+$D$2+(VLOOKUP('RE Appr'!BO36,'RE Appr'!$E$13:$J$59,6,FALSE)/100)) -> 419,343 | BJ29: =($A29-$A28)/365.25*$D$1*(1+$D$2+(VLOOKUP('RE Appr'!BP36,'RE Appr'!$E$13:$J$59,6,FALSE)/100)) -> 421,666 | BK29: =($A29-$A28)/365.25*$D$1*(1+$D$2+(VLOOKUP('RE Appr'!BQ36,'RE Appr'!$E$13:$J$59,6,FALSE)/100)) -> 416,695 | BL29: =($A29-$A28)/365.25*$D$1*(1+$D$2+(VLOOKUP('RE Appr'!BR36,'RE Appr'!$E$13:$J$59,6,FALSE)/100)) -> 418,174 | BM29: =($A29-$A28)/365.25*$D$1*(1+$D$2+(VLOOKUP('RE Appr'!BS36,'RE Appr'!$E$13:$J$59,6,FALSE)/100)) -> 416,235 | BN29: =($A29-$A28)/365.25*$D$1*(1+$D$2+(VLOOKUP('RE Appr'!BT36,'RE Appr'!$E$13:$J$59,6,FALSE)/100)) -> 419,543 | BO29: =($A29-$A28)/365.25*$D$1*(1+$D$2+(VLOOKUP('RE Appr'!BU36,'RE Appr'!$E$13:$J$59,6,FALSE)/100)) -> 437,041 | BP29: =($A29-$A28)/365.25*$D$1*(1+$D$2+(VLOOKUP('RE Appr'!BV36,'RE Appr'!$E$13:$J$59,6,FALSE)/100)) -> 411,048 | BQ29: =($A29-$A28)/365.25*$D$1*(1+$D$2+(VLOOKUP('RE Appr'!BW36,'RE Appr'!$E$13:$J$59,6,FALSE)/100)) -> 410,729 | BR29: =($A29-$A28)/365.25*$D$1*(1+$D$2+(VLOOKUP('RE Appr'!BX36,'RE Appr'!$E$13:$J$59,6,FALSE)/100)) -> 419,343 | BS29: =($A29-$A28)/365.25*$D$1*(1+$D$2+(VLOOKUP('RE Appr'!BY36,'RE Appr'!$E$13:$J$59,6,FALSE)/100)) -> 419,543 | BT29: =($A29-$A28)/365.25*$D$1*(1+$D$2+(VLOOKUP('RE Appr'!BZ36,'RE Appr'!$E$13:$J$59,6,FALSE)/100)) -> 422,511 | BU29: =($A29-$A28)/365.25*$D$1*(1+$D$2+(VLOOKUP('RE Appr'!CA36,'RE Appr'!$E$13:$J$59,6,FALSE)/100)) -> 455,688 | BV29: =($A29-$A28)/365.25*$D$1*(1+$D$2+(VLOOKUP('RE Appr'!CB36,'RE Appr'!$E$13:$J$59,6,FALSE)/100)) -> 429,316 | BW29: =($A29-$A28)/365.25*$D$1*(1+$D$2+(VLOOKUP('RE Appr'!CC36,'RE Appr'!$E$13:$J$59,6,FALSE)/100)) -> 371,326 | BX29: =($A29-$A28)/365.25*$D$1*(1+$D$2+(VLOOKUP('RE Appr'!CD36,'RE Appr'!$E$13:$J$59,6,FALSE)/100)) -> 412,517 | BY29: =($A29-$A28)/365.25*$D$1*(1+$D$2+(VLOOKUP('RE Appr'!CE36,'RE Appr'!$E$13:$J$59,6,FALSE)/100)) -> 415,286 | BZ29: =($A29-$A28)/365.25*$D$1*(1+$D$2+(VLOOKUP('RE Appr'!CF36,'RE Appr'!$E$13:$J$59,6,FALSE)/100)) -> 420,192 | CA29: =($A29-$A28)/365.25*$D$1*(1+$D$2+(VLOOKUP('RE Appr'!CG36,'RE Appr'!$E$13:$J$59,6,FALSE)/100)) -> 416,235 | CB29: =($A29-$A28)/365.25*$D$1*(1+$D$2+(VLOOKUP('RE Appr'!CH36,'RE Appr'!$E$13:$J$59,6,FALSE)/100)) -> 421,666 | CC29: =($A29-$A28)/365.25*$D$1*(1+$D$2+(VLOOKUP('RE Appr'!CI36,'RE Appr'!$E$13:$J$59,6,FALSE)/100)) -> 415,286 | CD29: =($A29-$A28)/365.25*$D$1*(1+$D$2+(VLOOKUP('RE Appr'!CJ36,'RE Appr'!$E$13:$J$59,6,FALSE)/100)) -> 401,385 | CE29: =($A29-$A28)/365.25*$D$1*(1+$D$2+(VLOOKUP('RE Appr'!CK36,'RE Appr'!$E$13:$J$59,6,FALSE)/100)) -> 419,290 | CF29: =($A29-$A28)/365.25*$D$1*(1+$D$2+(VLOOKUP('RE Appr'!CL36,'RE Appr'!$E$13:$J$59,6,FALSE)/100)) -> 419,343 | CG29: =($A29-$A28)/365.25*$D$1*(1+$D$2+(VLOOKUP('RE Appr'!CM36,'RE Appr'!$E$13:$J$59,6,FALSE)/100)) -> 418,834 | CH29: =($A29-$A28)/365.25*$D$1*(1+$D$2+(VLOOKUP('RE Appr'!CN36,'RE Appr'!$E$13:$J$59,6,FALSE)/100)) -> 411,048 | CI29: =($A29-$A28)/365.25*$D$1*(1+$D$2+(VLOOKUP('RE Appr'!CO36,'RE Appr'!$E$13:$J$59,6,FALSE)/100)) -> 411,048 | CJ29: =($A29-$A28)/365.25*$D$1*(1+$D$2+(VLOOKUP('RE Appr'!CP36,'RE Appr'!$E$13:$J$59,6,FALSE)/100)) -> 435,182 | CK29: =($A29-$A28)/365.25*$D$1*(1+$D$2+(VLOOKUP('RE Appr'!CQ36,'RE Appr'!$E$13:$J$59,6,FALSE)/100)) -> 436,841 | CL29: =($A29-$A28)/365.25*$D$1*(1+$D$2+(VLOOKUP('RE Appr'!CR36,'RE Appr'!$E$13:$J$59,6,FALSE)/100)) -> 431,774 | CM29: =($A29-$A28)/365.25*$D$1*(1+$D$2+(VLOOKUP('RE Appr'!CS36,'RE Appr'!$E$13:$J$59,6,FALSE)/100)) -> 470,498 | CN29: =($A29-$A28)/365.25*$D$1*(1+$D$2+(VLOOKUP('RE Appr'!CT36,'RE Appr'!$E$13:$J$59,6,FALSE)/100)) -> 419,290 | CO29: =($A29-$A28)/365.25*$D$1*(1+$D$2+(VLOOKUP('RE Appr'!CU36,'RE Appr'!$E$13:$J$59,6,FALSE)/100)) -> 415,848 | CP29: =($A29-$A28)/365.25*$D$1*(1+$D$2+(VLOOKUP('RE Appr'!CV36,'RE Appr'!$E$13:$J$59,6,FALSE)/100)) -> 436,841 | CQ29: =($A29-$A28)/365.25*$D$1*(1+$D$2+(VLOOKUP('RE Appr'!CW36,'RE Appr'!$E$13:$J$59,6,FALSE)/100)) -> 412,278 | CR29: =($A29-$A28)/365.25*$D$1*(1+$D$2+(VLOOKUP('RE Appr'!CX36,'RE Appr'!$E$13:$J$59,6,FALSE)/100)) -> 419,290 | CS29: =($A29-$A28)/365.25*$D$1*(1+$D$2+(VLOOKUP('RE Appr'!CY36,'RE Appr'!$E$13:$J$59,6,FALSE)/100)) -> 431,774 | CT29: =($A29-$A28)/365.25*$D$1*(1+$D$2+(VLOOKUP('RE Appr'!CZ36,'RE Appr'!$E$13:$J$59,6,FALSE)/100)) -> 417,916 | CU29: =($A29-$A28)/365.25*$D$1*(1+$D$2+(VLOOKUP('RE Appr'!DA36,'RE Appr'!$E$13:$J$59,6,FALSE)/100)) -> 418,834 | CV29: =($A29-$A28)/365.25*$D$1*(1+$D$2+(VLOOKUP('RE Appr'!DB36,'RE Appr'!$E$13:$J$59,6,FALSE)/100)) -> 437,041 | CW29: =($A29-$A28)/365.25*$D$1*(1+$D$2+(VLOOKUP('RE Appr'!DC36,'RE Appr'!$E$13:$J$59,6,FALSE)/100)) -> 417,916 | CX29: =($A29-$A28)/365.25*$D$1*(1+$D$2+(VLOOKUP('RE Appr'!DD36,'RE Appr'!$E$13:$J$59,6,FALSE)/100)) -> 401,385 | CY29: =($A29-$A28)/365.25*$D$1*(1+$D$2+(VLOOKUP('RE Appr'!DE36,'RE Appr'!$E$13:$J$59,6,FALSE)/100)) -> 429,316 | CZ29: =($A29-$A28)/365.25*$D$1*(1+$D$2+(VLOOKUP('RE Appr'!DF36,'RE Appr'!$E$13:$J$59,6,FALSE)/100)) -> 426,042 | DA29: =($A29-$A28)/365.25*$D$1*(1+$D$2+(VLOOKUP('RE Appr'!DG36,'RE Appr'!$E$13:$J$59,6,FALSE)/100)) -> 441,528
A30: =Main!A32 -> 2047-12-31 | B30: 25 | F30: =($A30-$A29)/365.25*$D$1*(1+$D$2+(VLOOKUP('RE Appr'!L37,'RE Appr'!$E$13:$J$59,6,FALSE)/100)) -> 420,439 | G30: =($A30-$A29)/365.25*$D$1*(1+$D$2+(VLOOKUP('RE Appr'!M37,'RE Appr'!$E$13:$J$59,6,FALSE)/100)) -> 420,692 | H30: =($A30-$A29)/365.25*$D$1*(1+$D$2+(VLOOKUP('RE Appr'!N37,'RE Appr'!$E$13:$J$59,6,FALSE)/100)) -> 422,821 | I30: =($A30-$A29)/365.25*$D$1*(1+$D$2+(VLOOKUP('RE Appr'!O37,'RE Appr'!$E$13:$J$59,6,FALSE)/100)) -> 384,879 | J30: =($A30-$A29)/365.25*$D$1*(1+$D$2+(VLOOKUP('RE Appr'!P37,'RE Appr'!$E$13:$J$59,6,FALSE)/100)) -> 441,875 | K30: =($A30-$A29)/365.25*$D$1*(1+$D$2+(VLOOKUP('RE Appr'!Q37,'RE Appr'!$E$13:$J$59,6,FALSE)/100)) -> 372,343 | L30: =($A30-$A29)/365.25*$D$1*(1+$D$2+(VLOOKUP('RE Appr'!R37,'RE Appr'!$E$13:$J$59,6,FALSE)/100)) -> 421,343 | M30: =($A30-$A29)/365.25*$D$1*(1+$D$2+(VLOOKUP('RE Appr'!S37,'RE Appr'!$E$13:$J$59,6,FALSE)/100)) -> 441,875 | N30: =($A30-$A29)/365.25*$D$1*(1+$D$2+(VLOOKUP('RE Appr'!T37,'RE Appr'!$E$13:$J$59,6,FALSE)/100)) -> 436,965 | O30: =($A30-$A29)/365.25*$D$1*(1+$D$2+(VLOOKUP('RE Appr'!U37,'RE Appr'!$E$13:$J$59,6,FALSE)/100)) -> 423,668 | P30: =($A30-$A29)/365.25*$D$1*(1+$D$2+(VLOOKUP('RE Appr'!V37,'RE Appr'!$E$13:$J$59,6,FALSE)/100)) -> 424,891 | Q30: =($A30-$A29)/365.25*$D$1*(1+$D$2+(VLOOKUP('RE Appr'!W37,'RE Appr'!$E$13:$J$59,6,FALSE)/100)) -> 414,109 | R30: =($A30-$A29)/365.25*$D$1*(1+$D$2+(VLOOKUP('RE Appr'!X37,'RE Appr'!$E$13:$J$59,6,FALSE)/100)) -> 413,768 | S30: =($A30-$A29)/365.25*$D$1*(1+$D$2+(VLOOKUP('RE Appr'!Y37,'RE Appr'!$E$13:$J$59,6,FALSE)/100)) -> 420,692 | T30: =($A30-$A29)/365.25*$D$1*(1+$D$2+(VLOOKUP('RE Appr'!Z37,'RE Appr'!$E$13:$J$59,6,FALSE)/100)) -> 430,492 | U30: =($A30-$A29)/365.25*$D$1*(1+$D$2+(VLOOKUP('RE Appr'!AA37,'RE Appr'!$E$13:$J$59,6,FALSE)/100)) -> 419,319 | V30: =($A30-$A29)/365.25*$D$1*(1+$D$2+(VLOOKUP('RE Appr'!AB37,'RE Appr'!$E$13:$J$59,6,FALSE)/100)) -> 438,238 | W30: =($A30-$A29)/365.25*$D$1*(1+$D$2+(VLOOKUP('RE Appr'!AC37,'RE Appr'!$E$13:$J$59,6,FALSE)/100)) -> 421,343 | X30: =($A30-$A29)/365.25*$D$1*(1+$D$2+(VLOOKUP('RE Appr'!AD37,'RE Appr'!$E$13:$J$59,6,FALSE)/100)) -> 436,374 | Y30: =($A30-$A29)/365.25*$D$1*(1+$D$2+(VLOOKUP('RE Appr'!AE37,'RE Appr'!$E$13:$J$59,6,FALSE)/100)) -> 438,238 | Z30: =($A30-$A29)/365.25*$D$1*(1+$D$2+(VLOOKUP('RE Appr'!AF37,'RE Appr'!$E$13:$J$59,6,FALSE)/100)) -> 411,854 | AA30: =($A30-$A29)/365.25*$D$1*(1+$D$2+(VLOOKUP('RE Appr'!AG37,'RE Appr'!$E$13:$J$59,6,FALSE)/100)) -> 424,891 | AB30: =($A30-$A29)/365.25*$D$1*(1+$D$2+(VLOOKUP('RE Appr'!AH37,'RE Appr'!$E$13:$J$59,6,FALSE)/100)) -> 416,987 | AC30: =($A30-$A29)/365.25*$D$1*(1+$D$2+(VLOOKUP('RE Appr'!AI37,'RE Appr'!$E$13:$J$59,6,FALSE)/100)) -> 442,316 | AD30: =($A30-$A29)/365.25*$D$1*(1+$D$2+(VLOOKUP('RE Appr'!AJ37,'RE Appr'!$E$13:$J$59,6,FALSE)/100)) -> 432,957 | AE30: =($A30-$A29)/365.25*$D$1*(1+$D$2+(VLOOKUP('RE Appr'!AK37,'RE Appr'!$E$13:$J$59,6,FALSE)/100)) -> 414,109 | AF30: =($A30-$A29)/365.25*$D$1*(1+$D$2+(VLOOKUP('RE Appr'!AL37,'RE Appr'!$E$13:$J$59,6,FALSE)/100)) -> 424,911 | AG30: =($A30-$A29)/365.25*$D$1*(1+$D$2+(VLOOKUP('RE Appr'!AM37,'RE Appr'!$E$13:$J$59,6,FALSE)/100)) -> 416,183 | AH30: =($A30-$A29)/365.25*$D$1*(1+$D$2+(VLOOKUP('RE Appr'!AN37,'RE Appr'!$E$13:$J$59,6,FALSE)/100)) -> 387,735 | AI30: =($A30-$A29)/365.25*$D$1*(1+$D$2+(VLOOKUP('RE Appr'!AO37,'RE Appr'!$E$13:$J$59,6,FALSE)/100)) -> 413,768 | AJ30: =($A30-$A29)/365.25*$D$1*(1+$D$2+(VLOOKUP('RE Appr'!AP37,'RE Appr'!$E$13:$J$59,6,FALSE)/100)) -> 412,175 | AK30: =($A30-$A29)/365.25*$D$1*(1+$D$2+(VLOOKUP('RE Appr'!AQ37,'RE Appr'!$E$13:$J$59,6,FALSE)/100)) -> 424,891 | AL30: =($A30-$A29)/365.25*$D$1*(1+$D$2+(VLOOKUP('RE Appr'!AR37,'RE Appr'!$E$13:$J$59,6,FALSE)/100)) -> 419,319 | AM30: =($A30-$A29)/365.25*$D$1*(1+$D$2+(VLOOKUP('RE Appr'!AS37,'RE Appr'!$E$13:$J$59,6,FALSE)/100)) -> 420,492 | AN30: =($A30-$A29)/365.25*$D$1*(1+$D$2+(VLOOKUP('RE Appr'!AT37,'RE Appr'!$E$13:$J$59,6,FALSE)/100)) -> 452,255 | AO30: =($A30-$A29)/365.25*$D$1*(1+$D$2+(VLOOKUP('RE Appr'!AU37,'RE Appr'!$E$13:$J$59,6,FALSE)/100)) -> 441,875 | AP30: =($A30-$A29)/365.25*$D$1*(1+$D$2+(VLOOKUP('RE Appr'!AV37,'RE Appr'!$E$13:$J$59,6,FALSE)/100)) -> 421,343 | AQ30: =($A30-$A29)/365.25*$D$1*(1+$D$2+(VLOOKUP('RE Appr'!AW37,'RE Appr'!$E$13:$J$59,6,FALSE)/100)) -> 417,836 | AR30: =($A30-$A29)/365.25*$D$1*(1+$D$2+(VLOOKUP('RE Appr'!AX37,'RE Appr'!$E$13:$J$59,6,FALSE)/100)) -> 413,768 | AS30: =($A30-$A29)/365.25*$D$1*(1+$D$2+(VLOOKUP('RE Appr'!AY37,'RE Appr'!$E$13:$J$59,6,FALSE)/100)) -> 408,206 | AT30: =($A30-$A29)/365.25*$D$1*(1+$D$2+(VLOOKUP('RE Appr'!AZ37,'RE Appr'!$E$13:$J$59,6,FALSE)/100)) -> 420,692 | AU30: =($A30-$A29)/365.25*$D$1*(1+$D$2+(VLOOKUP('RE Appr'!BA37,'RE Appr'!$E$13:$J$59,6,FALSE)/100)) -> 410,391 | AV30: =($A30-$A29)/365.25*$D$1*(1+$D$2+(VLOOKUP('RE Appr'!BB37,'RE Appr'!$E$13:$J$59,6,FALSE)/100)) -> 432,957 | AW30: =($A30-$A29)/365.25*$D$1*(1+$D$2+(VLOOKUP('RE Appr'!BC37,'RE Appr'!$E$13:$J$59,6,FALSE)/100)) -> 416,423 | AX30: =($A30-$A29)/365.25*$D$1*(1+$D$2+(VLOOKUP('RE Appr'!BD37,'RE Appr'!$E$13:$J$59,6,FALSE)/100)) -> 423,668 | AY30: =($A30-$A29)/365.25*$D$1*(1+$D$2+(VLOOKUP('RE Appr'!BE37,'RE Appr'!$E$13:$J$59,6,FALSE)/100)) -> 424,891 | AZ30: =($A30-$A29)/365.25*$D$1*(1+$D$2+(VLOOKUP('RE Appr'!BF37,'RE Appr'!$E$13:$J$59,6,FALSE)/100)) -> 456,936 | BA30: =($A30-$A29)/365.25*$D$1*(1+$D$2+(VLOOKUP('RE Appr'!BG37,'RE Appr'!$E$13:$J$59,6,FALSE)/100)) -> 416,987 | BB30: =($A30-$A29)/365.25*$D$1*(1+$D$2+(VLOOKUP('RE Appr'!BH37,'RE Appr'!$E$13:$J$59,6,FALSE)/100)) -> 384,879 | BC30: =($A30-$A29)/365.25*$D$1*(1+$D$2+(VLOOKUP('RE Appr'!BI37,'RE Appr'!$E$13:$J$59,6,FALSE)/100)) -> 416,423 | BD30: =($A30-$A29)/365.25*$D$1*(1+$D$2+(VLOOKUP('RE Appr'!BJ37,'RE Appr'!$E$13:$J$59,6,FALSE)/100)) -> 435,402 | BE30: =($A30-$A29)/365.25*$D$1*(1+$D$2+(VLOOKUP('RE Appr'!BK37,'RE Appr'!$E$13:$J$59,6,FALSE)/100)) -> 413,407 | BF30: =($A30-$A29)/365.25*$D$1*(1+$D$2+(VLOOKUP('RE Appr'!BL37,'RE Appr'!$E$13:$J$59,6,FALSE)/100)) -> 387,735 | BG30: =($A30-$A29)/365.25*$D$1*(1+$D$2+(VLOOKUP('RE Appr'!BM37,'RE Appr'!$E$13:$J$59,6,FALSE)/100)) -> 424,891 | BH30: =($A30-$A29)/365.25*$D$1*(1+$D$2+(VLOOKUP('RE Appr'!BN37,'RE Appr'!$E$13:$J$59,6,FALSE)/100)) -> 436,374 | BI30: =($A30-$A29)/365.25*$D$1*(1+$D$2+(VLOOKUP('RE Appr'!BO37,'RE Appr'!$E$13:$J$59,6,FALSE)/100)) -> 471,787 | BJ30: =($A30-$A29)/365.25*$D$1*(1+$D$2+(VLOOKUP('RE Appr'!BP37,'RE Appr'!$E$13:$J$59,6,FALSE)/100)) -> 430,492 | BK30: =($A30-$A29)/365.25*$D$1*(1+$D$2+(VLOOKUP('RE Appr'!BQ37,'RE Appr'!$E$13:$J$59,6,FALSE)/100)) -> 424,911 | BL30: =($A30-$A29)/365.25*$D$1*(1+$D$2+(VLOOKUP('RE Appr'!BR37,'RE Appr'!$E$13:$J$59,6,FALSE)/100)) -> 421,343 | BM30: =($A30-$A29)/365.25*$D$1*(1+$D$2+(VLOOKUP('RE Appr'!BS37,'RE Appr'!$E$13:$J$59,6,FALSE)/100)) -> 419,981 | BN30: =($A30-$A29)/365.25*$D$1*(1+$D$2+(VLOOKUP('RE Appr'!BT37,'RE Appr'!$E$13:$J$59,6,FALSE)/100)) -> 424,891 | BO30: =($A30-$A29)/365.25*$D$1*(1+$D$2+(VLOOKUP('RE Appr'!BU37,'RE Appr'!$E$13:$J$59,6,FALSE)/100)) -> 400,421 | BP30: =($A30-$A29)/365.25*$D$1*(1+$D$2+(VLOOKUP('RE Appr'!BV37,'RE Appr'!$E$13:$J$59,6,FALSE)/100)) -> 442,316 | BQ30: =($A30-$A29)/365.25*$D$1*(1+$D$2+(VLOOKUP('RE Appr'!BW37,'RE Appr'!$E$13:$J$59,6,FALSE)/100)) -> 419,061 | BR30: =($A30-$A29)/365.25*$D$1*(1+$D$2+(VLOOKUP('RE Appr'!BX37,'RE Appr'!$E$13:$J$59,6,FALSE)/100)) -> 413,768 | BS30: =($A30-$A29)/365.25*$D$1*(1+$D$2+(VLOOKUP('RE Appr'!BY37,'RE Appr'!$E$13:$J$59,6,FALSE)/100)) -> 420,439 | BT30: =($A30-$A29)/365.25*$D$1*(1+$D$2+(VLOOKUP('RE Appr'!BZ37,'RE Appr'!$E$13:$J$59,6,FALSE)/100)) -> 408,206 | BU30: =($A30-$A29)/365.25*$D$1*(1+$D$2+(VLOOKUP('RE Appr'!CA37,'RE Appr'!$E$13:$J$59,6,FALSE)/100)) -> 413,407 | BV30: =($A30-$A29)/365.25*$D$1*(1+$D$2+(VLOOKUP('RE Appr'!CB37,'RE Appr'!$E$13:$J$59,6,FALSE)/100)) -> 442,316 | BW30: =($A30-$A29)/365.25*$D$1*(1+$D$2+(VLOOKUP('RE Appr'!CC37,'RE Appr'!$E$13:$J$59,6,FALSE)/100)) -> 442,316 | BX30: =($A30-$A29)/365.25*$D$1*(1+$D$2+(VLOOKUP('RE Appr'!CD37,'RE Appr'!$E$13:$J$59,6,FALSE)/100)) -> 413,407 | BY30: =($A30-$A29)/365.25*$D$1*(1+$D$2+(VLOOKUP('RE Appr'!CE37,'RE Appr'!$E$13:$J$59,6,FALSE)/100)) -> 436,965 | BZ30: =($A30-$A29)/365.25*$D$1*(1+$D$2+(VLOOKUP('RE Appr'!CF37,'RE Appr'!$E$13:$J$59,6,FALSE)/100)) -> 427,209 | CA30: =($A30-$A29)/365.25*$D$1*(1+$D$2+(VLOOKUP('RE Appr'!CG37,'RE Appr'!$E$13:$J$59,6,FALSE)/100)) -> 416,183 | CB30: =($A30-$A29)/365.25*$D$1*(1+$D$2+(VLOOKUP('RE Appr'!CH37,'RE Appr'!$E$13:$J$59,6,FALSE)/100)) -> 436,374 | CC30: =($A30-$A29)/365.25*$D$1*(1+$D$2+(VLOOKUP('RE Appr'!CI37,'RE Appr'!$E$13:$J$59,6,FALSE)/100)) -> 420,439 | CD30: =($A30-$A29)/365.25*$D$1*(1+$D$2+(VLOOKUP('RE Appr'!CJ37,'RE Appr'!$E$13:$J$59,6,FALSE)/100)) -> 441,875 | CE30: =($A30-$A29)/365.25*$D$1*(1+$D$2+(VLOOKUP('RE Appr'!CK37,'RE Appr'!$E$13:$J$59,6,FALSE)/100)) -> 436,374 | CF30: =($A30-$A29)/365.25*$D$1*(1+$D$2+(VLOOKUP('RE Appr'!CL37,'RE Appr'!$E$13:$J$59,6,FALSE)/100)) -> 416,423 | CG30: =($A30-$A29)/365.25*$D$1*(1+$D$2+(VLOOKUP('RE Appr'!CM37,'RE Appr'!$E$13:$J$59,6,FALSE)/100)) -> 436,374 | CH30: =($A30-$A29)/365.25*$D$1*(1+$D$2+(VLOOKUP('RE Appr'!CN37,'RE Appr'!$E$13:$J$59,6,FALSE)/100)) -> 424,891 | CI30: =($A30-$A29)/365.25*$D$1*(1+$D$2+(VLOOKUP('RE Appr'!CO37,'RE Appr'!$E$13:$J$59,6,FALSE)/100)) -> 442,737 | CJ30: =($A30-$A29)/365.25*$D$1*(1+$D$2+(VLOOKUP('RE Appr'!CP37,'RE Appr'!$E$13:$J$59,6,FALSE)/100)) -> 442,737 | CK30: =($A30-$A29)/365.25*$D$1*(1+$D$2+(VLOOKUP('RE Appr'!CQ37,'RE Appr'!$E$13:$J$59,6,FALSE)/100)) -> 372,343 | CL30: =($A30-$A29)/365.25*$D$1*(1+$D$2+(VLOOKUP('RE Appr'!CR37,'RE Appr'!$E$13:$J$59,6,FALSE)/100)) -> 452,255 | CM30: =($A30-$A29)/365.25*$D$1*(1+$D$2+(VLOOKUP('RE Appr'!CS37,'RE Appr'!$E$13:$J$59,6,FALSE)/100)) -> 438,238 | CN30: =($A30-$A29)/365.25*$D$1*(1+$D$2+(VLOOKUP('RE Appr'!CT37,'RE Appr'!$E$13:$J$59,6,FALSE)/100)) -> 432,957 | CO30: =($A30-$A29)/365.25*$D$1*(1+$D$2+(VLOOKUP('RE Appr'!CU37,'RE Appr'!$E$13:$J$59,6,FALSE)/100)) -> 438,238 | CP30: =($A30-$A29)/365.25*$D$1*(1+$D$2+(VLOOKUP('RE Appr'!CV37,'RE Appr'!$E$13:$J$59,6,FALSE)/100)) -> 412,175 | CQ30: =($A30-$A29)/365.25*$D$1*(1+$D$2+(VLOOKUP('RE Appr'!CW37,'RE Appr'!$E$13:$J$59,6,FALSE)/100)) -> 420,492 | CR30: =($A30-$A29)/365.25*$D$1*(1+$D$2+(VLOOKUP('RE Appr'!CX37,'RE Appr'!$E$13:$J$59,6,FALSE)/100)) -> 427,209 | CS30: =($A30-$A29)/365.25*$D$1*(1+$D$2+(VLOOKUP('RE Appr'!CY37,'RE Appr'!$E$13:$J$59,6,FALSE)/100)) -> 419,319 | CT30: =($A30-$A29)/365.25*$D$1*(1+$D$2+(VLOOKUP('RE Appr'!CZ37,'RE Appr'!$E$13:$J$59,6,FALSE)/100)) -> 438,238 | CU30: =($A30-$A29)/365.25*$D$1*(1+$D$2+(VLOOKUP('RE Appr'!DA37,'RE Appr'!$E$13:$J$59,6,FALSE)/100)) -> 412,175 | CV30: =($A30-$A29)/365.25*$D$1*(1+$D$2+(VLOOKUP('RE Appr'!DB37,'RE Appr'!$E$13:$J$59,6,FALSE)/100)) -> 408,206 | CW30: =($A30-$A29)/365.25*$D$1*(1+$D$2+(VLOOKUP('RE Appr'!DC37,'RE Appr'!$E$13:$J$59,6,FALSE)/100)) -> 408,206 | CX30: =($A30-$A29)/365.25*$D$1*(1+$D$2+(VLOOKUP('RE Appr'!DD37,'RE Appr'!$E$13:$J$59,6,FALSE)/100)) -> 411,854 | CY30: =($A30-$A29)/365.25*$D$1*(1+$D$2+(VLOOKUP('RE Appr'!DE37,'RE Appr'!$E$13:$J$59,6,FALSE)/100)) -> 419,319 | CZ30: =($A30-$A29)/365.25*$D$1*(1+$D$2+(VLOOKUP('RE Appr'!DF37,'RE Appr'!$E$13:$J$59,6,FALSE)/100)) -> 417,375 | DA30: =($A30-$A29)/365.25*$D$1*(1+$D$2+(VLOOKUP('RE Appr'!DG37,'RE Appr'!$E$13:$J$59,6,FALSE)/100)) -> 400,421
